Workbook

Sheet Portada

Sheet Ayuda
B1: Planilla para el cálculo de la Producción de Carne y del Ingreso Neto Ganadero
A3: 1.- | B3: Segui las instrucciones que indica la Guía de ayuda rápida en la solapa Planilla de datos. La misma te guiará por las distintas tablas a completar.
A4: 2.- | B4: Paso 1 de la Guía de ayuda rápida: Primero tenes que completar el Inventario de inicio con el que comenzarás a cargar los datos. Es la única vez que cargarás un inventario. Luego, en función de los movimientos de altas y bajas que registres, se irá visualizando el inventario de hacienda actualizado en la Tabla de Stock Contable (por altas y bajas generadas por los movimientos). Tenés que incluir el nombre de la categoría, la actividad a la que pertenece dicha categoría, el tipo de activo del cual se trata (*), la cantidad de cabezas por categoría, los kilos/cabeza promedio de la categoría y el precio de cada categoría en ese momento. En el caso de las categorías de cría (toros, vacas o vaquillonas del rodeo de cría) que habitualmente el mercado valoriza por cabeza y que tienen un "peso de inventario constante", indica ese valor dividido por los kilos de la categoría, quedando registrado entonces el valor por kilo. (*) Teniendo en cuenta que tanto el Margen de Contribución como el Resultado por Producción incluyen la tenencia de los Bienes de Cambio, pero no así la tenencia de los Bienes de Uso, es importante discriminar entre ambos tipos de activo. Por lo tanto el Resultado por Tenencia se discrimina entre el que impacta en el ACTIVO CORRIENTE y el que lo hace sobre el ACTIVO NO CORRIENTE.
A5: 3.- | B5: Si desearas agregar otra categoría adicional (por ejemplo Novillos), inserta una fila sobre la categoría siguiente a donde quieres agregarla (en este caso: Novillitos). Al insertarse la fila debes: 1) Ingresá la fecha del Inventario de inicio, 2) Escribi la categoría que desees y 3) Indicá la actividad a la que pertenece la categoría correspondiente. Las formulas de las columnas preestablecidas, se completarán automáticamente. Hay que tener en cuenta que la categoría que agregues, no puede tener el mismo nombre que otra de la tabla. En caso de ser necesario, escribí la categoría con alguna diferencia (por ejemplo Novillitos 2, Novillitos JR, etc.)
A6: 4.- | B6: Paso 2 de la Guía de ayuda rápida: Luego comienza a ingresar los movimientos de hacienda (ventas, compras, traslados, muertes, nacimientos, cambios de categoría, etc.). Antes de hacerlo indicá la campaña que estás analizando (30-6-AAAA a 30-6-AAA), en las casillas correspondientes. Estos movimientos iran modificando las existencias, tanto en cabezas, como en "kilos contables" y en "valores contables", es decir de lo que resulte de dichos movimientos. Hasta aquí no considerará los kilos ganados, o perdidos, y sus correspondientes valores económicos. Las categorías de animales que pueden registrarse en la tabla de movimientos, son aquellas que figuran en la Tabla del Inventario de inicio. En caso de necesitar agregar una nueva categoría, tenés que agregar la misma en aquella tabla, siguiendo las instrucciones del punto anterior (3.-). En este caso, dicha categoría tendrá todos sus datos iniciales con valor 0 (cero).
A7: 5.- | B7: En caso que quieras agregar un movimiento con fecha anterior a las últimas registradas, si bien podes hacerlo sin seguir un orden cronológico, te sugerimos que lo respetes. Para ello ubica el cursor sobre el margen izquierdo de la celda de la fecha siguiente a donde quieres agregarla. Aparecerá una flecha negra como la que se observa en la figura 1. Hacé click allí con el botón derecho del mouse y se desplegará un menú. En el mismo hacé clíck en Insertar, y luego en Filas de la tabla arriba (Figura 2). Se agregará una fila por encima, pero sólo en la tabla y no en toda la planilla. Allí escribí los datos del movimiento omitido. Las formulas de las columnas preestablecidas, se completarán automáticamente.
B8: Figura 1 Figura 2
A9: 6.- | B9: Paso 3 de la Guía de ayuda rápida: A medida que agregues esos movimientos de altas y bajas, la Tabla de Stock contable se irá actualizando automáticamente en cabezas, en los kilos y en los montos que hayas dado de alta o de baja, pero no estará incluyendo los kilos que se van produciendo mientras tanto, y sus correspondientes valores económicos. Cuando quieras "ajustar los kilos", para obtener el inventario actualizado con pesos y valores reales, basta que indiques los kilos actuales (reales, ya sea pesados o estimados) para cada categoría, en la Tabla de Inventario de kilos y precios actualizados (Real). Las Normas de Gestión CREA indican que en la actividad cría se deben actualizar los kilajes al menos una vez al año (al cierre de la campaña). Mientras que en la actividad invernada, debe hacerse de forma trimestral.
A10: 7.- | B10: Paso 4 de la Guía de ayuda rápida: Inmediatamente, registra los precios/kilo reales (actualizados a la fecha del ajuste) de cada categoría en misma Tabla. DEBEN INCLUIRSE LOS PRECIOS EN TODAS LAS CATEGORÍAS DE LA TABLA, TENGAN O NO EXISTENCIAS AL CIERRE (Esto es así porque sino se hará un calculo erroneo de la Diferencia por Tenencia con el sistema tradicional, ya que al calcular el valor del inventario inicial a valores de cierre de una categoría cuyo valor al cierre fuera igual a cero (0), calculará que esa categoría del inventario inicial tiene un valor igual a cero(0) al cierre). Para que las actualizaciones en kilos y en montos económicos se apliquen, tenés que completar los pasos 5 y 6 de la Guía de ayuda rápida.
A11: 8.- | B11: Paso 5 de la Guía de ayuda rápida: Haciendo click sobre el Paso 5 de la Guía de ayuda rápida, se realizará el ajuste de Kilos Producidos (Diferencia entre los kilos reales y los kilos contables). Luego sólo tenés que completar la fecha correspondiente a la fecha de ajuste (cierre del trimestre en la actividad invernada, y cierre de la campaña en la actividad cría, según las Normas de Gestión CREA), en todos los asientos de Kilos Producidos.
A12: 9.- | B12: Paso 6 de la Guía de ayuda rápida: Finalmente haciendo click sobre el Paso 6 de la Guía de ayuda rápida, se realizará el ajuste por Tenencia (Diferencia entre el valor actualizado del stock de hacienda, y el valor contable que surge de los movimientos de altas y bajas de hacienda registrados). Luego sólo tenés que completar la fecha correspondiente a la fecha de ajuste (cierre del trimestre en la actividad invernada, y cierre de la campaña en la actividad cría, según las Normas de Gestión CREA).
A13: 10.- | B13: Realizados todos los pasos anteriores, en las Tablas de Producción de Carne e Ingreso Ganadero, tanto con la Metodología de cálculo actual como con la tradicional, podrás observar la Producción de Carne y el Ingreso Ganadero en pesos corrientes. Podés ver el resultado de cada actividad por separado (En Ganadería de carne: Cabaña, Cría, Recría, Invernada o Feed-lot; y en Ganadería de Leche: Tambo, Guachera y Recría). Para ello debes seleccionar la actividad correspondiente en la casilla correspondiente. Si quisieras ver todas las actividades consolidadas, basta que pongas un * (asterisco), en la celda de Actividades. Este símbolo englobará todas las actividades que hayas cargado. Por defecto (default) la celda de actividad, viene con el asterisco, para visualizar todas las actividades en forma consolidada.
A14: 11.- | B14: Podés ver el resultado de toda la campaña, indicando la fecha de inicio y cierre de la campaña (30-jun del año de inicio, al 30-jun del año de cierre). Si quisieran ver la producción de un período menor (por ejemplo: un trimestre determinado, o incluso un mes), podes hacerlo, teniendo la precausión de que tendrás que hacer los ajustes de "kilos producidos" y "Res. tenencia" al finalizar cada período que luego quieras analizar. Sólo así los resultados serán correctos. De lo contratio, omitirás ambos términos y el cálculo será incorrecto.
A15: 11.- | B15: Para visualizar los resultados en pesos constantes, deberás ingresar los coeficientes de actualización (IPIM), tal cual surgen habitualmente en la publicación "Lo ayudamos a cerrar gestión", en la correspondiente columna de la solapa Movimientos, Precios e Indices. Una vez que hayas ingresado los coeficientes, podrás ver los resultados en pesos actualizados, haciendo click en la viñeta $ actualizados.
A16: 12.- | B16: Cualquier duda con respecto a las Normas de Gestión CREA, se sugiere leer el capítulo 6.2 de la misma en la Plataforma correspondiente en la web CREA (https://www.crea.org.ar/6-2-ganaderia/)
H17: Producción de Carne e Ingreso Neto Ganadero Metodología de cálculo anterior .
B18: Area Empresa - I+D - CREA © .

Sheet Planilla de datos
A1: =IF(N19=0,"Stock al inicio del período analizado","Stock al inicio del período analizado (al "&DAY(N19)&"/"&MONTH(N19)&"/"&YEAR(N19)&")") -> Stock al inicio del período analizado (al 1/7/2023) | J1: =IF(N19=0,"Stock Contable (por movimientos de altas y bajas)","Stock Contable (por movimientos de altas y bajas) (al "&DAY(P19)&"/"&MONTH(P19)&"/"&YEAR(P19)&")") -> Stock Contable (por movimientos de altas y bajas) (al 30/6/2024) | Q1: Inventario Real (a kilos y precios actualizados) | T1: Dif. Real - Contable | W1: =IF(W3="fecha ???","Intentario de inicio","Inventario de inicio (al "&DAY(W3)&"/"&MONTH(W3)&"/"&YEAR(W3)&")") -> Intentario de inicio | AE1: VOLVER AL CUADRO DE STOCK Y RESULTADOS
A2: Categoria | B2: Actividad | C2: Cab. Inicio período | D2: Kg/Cab. Inicio período | E2: Kg. Totales Inicio período | F2: $/Kg. Inicio período | G2: $/Cab. Inicio período | H2: $ Total IP (corrientes) | I2: IP en Valores Actualizados | J2: Cab. Stock | K2: Kg./cab. Stock | L2: Kg. Totales Stock | M2: $/Kg. Stock | N2: $/Cab. Stock | O2: $ Total FP (corrientes) | P2: FP en Valores Actualizados | Q2: Kg./Cab. al Cierre | R2: $/Kg. al Cierre | S2: $/Cab. al Cierre | T2: Kg. Diferencia | U2: $ Total Diferencia | V2: Columna1 | W2: Fecha | X2: Movimiento | Y2: Categoría | Z2: Actividad | AA2: Tipo de Activo | AB2: Comentarios | AC2: Cabezas | AD2: Cab. | AE2: Kg/Cab. | AF2: Kg. | AG2: $/Kg | AH2: $/Cab. | AI2: $ Total (corrientes) | AJ2: Valores Actualizados
A3: =+TablaInventarios[[#This Row],[Categoría]] -> Toros | B3: =+VLOOKUP(TablaInventarios[[#This Row],[Categoria]],TablaInventarios[[Categoría]:[Actividad]],2,FALSE) -> Cría | C3: =+SUMPRODUCT((TablaInventarios[[#This Row],[Categoria]]=TablaInventarios[Categoria])*TablaInventarios[Cab.])+SUMPRODUCT((TablaInventarios[[#This Row],[Categoria]]=TablaMovimientos[Categoría])*(TablaMovimientos[Cab.])*(TablaMovimientos[Fecha]<=$N$19)) -> 0 | D3: =IF(TablaInventarios[[#This Row],[Cab. Inicio período]]=0,0,(SUMPRODUCT((TablaInventarios[[#This Row],[Categoria]]=TablaInventarios[Categoria])*(TablaInventarios[Kg.]))+SUMPRODUCT((TablaInventarios[[#This Row],[Categoria]]=TablaMovimientos[Categoría])*(TablaMovimientos[Kg.])*(TablaMovimientos[Fecha]<=$N$19)))/TablaInventarios[[#This Row],[Cab. Inicio período]]) -> 0 | E3: =SUMPRODUCT((TablaInventarios[[#This Row],[Categoria]]=TablaInventarios[Categoria])*TablaInventarios[Kg.])+SUMPRODUCT((TablaInventarios[[#This Row],[Categoria]]=TablaMovimientos[Categoría])*(TablaMovimientos[Cab.])*(TablaMovimientos[Fecha]<=$N$19)) -> 0 | F3: =IF(TablaInventarios[[#This Row],[Kg. Totales Inicio período]]=0,0,TablaInventarios[[#This Row],[$ Total IP (corrientes)]]/TablaInventarios[[#This Row],[Kg. Totales Inicio período]]) -> 0 | G3: =+IF(TablaInventarios[[#This Row],[Cab. Inicio período]]=0,0,TablaInventarios[[#This Row],[$ Total IP (corrientes)]]/TablaInventarios[[#This Row],[Cab. Inicio período]]) -> 0 | H3: =+SUMPRODUCT((TablaInventarios[[#This Row],[Categoria]]=TablaInventarios[Categoria])*TablaInventarios[$ Total (corrientes)])+SUMPRODUCT((TablaInventarios[[#This Row],[Categoria]]=TablaMovimientos[Categoría])*(TablaMovimientos[Total $ corr-tes])*(TablaMovimientos[Fecha]<=$N$19)) -> 0 | I3: =IF($N$19=0,0,TablaInventarios[[#This Row],[$ Total IP (corrientes)]]*IF($S$23=FALSE,0,IF($T$19="SIPM",VLOOKUP(DATE(YEAR($N$19),MONTH($N$19)+IF(DAY($N$19)=1,-1,0),1),Indices[[Fecha]:[Indice SIPM]],2,FALSE),IF($T$19="Dólar Oficial",1/VLOOKUP(DATE(YEAR($N$19),MONTH($N$19),DAY($N$19)+IF(DAY($N$19)=1,-1,0)),Tabla5[],2),IF($T$19="Dólar Informal",1/VLOOKUP(DATE(YEAR($N$19),MONTH($N$19),DAY($N$19)+IF(DAY($N$19)=1,-1,0)),Tabla3[],2)))))) -> 0 | J3: =+SUMPRODUCT((TablaInventarios[[#This Row],[Categoria]]=TablaInventarios[Categoria])*(TablaInventarios[Cab. Inicio período]))+SUMPRODUCT((TablaInventarios[[#This Row],[Categoria]]=TablaMovimientos[Categoría])*(TablaMovimientos[Cab.])*(TablaMovimientos[Fecha]>$N$19)*(TablaMovimientos[Fecha]<=$P$19)) -> 0 | K3: =IFERROR(TablaInventarios[[#This Row],[Kg. Totales Stock]]/TablaInventarios[[#This Row],[Cab. Stock]],0) -> 0 | L3: =+SUMPRODUCT((TablaInventarios[[#This Row],[Categoria]]=TablaInventarios[Categoria])*(TablaInventarios[Kg. Totales Inicio período]))+SUMPRODUCT((TablaInventarios[[#This Row],[Categoria]]=TablaMovimientos[Categoría])*(TablaMovimientos[Kg.])*(TablaMovimientos[Fecha]>$N$19)*(TablaMovimientos[Fecha]<=$P$19)) -> 0 | M3: =IF(TablaInventarios[[#This Row],[Kg. Totales Stock]]=0,TablaInventarios[[#This Row],[$/Kg. al Cierre]],IFERROR(TablaInventarios[[#This Row],[$ Total FP (corrientes)]]/TablaInventarios[[#This Row],[Kg. Totales Stock]],0)) -> 0 | N3: =IFERROR(TablaInventarios[[#This Row],[$ Total FP (corrientes)]]/TablaInventarios[[#This Row],[Cab. Stock]],0) -> 0 | O3: =+SUMPRODUCT((TablaInventarios[[#This Row],[Categoria]]=TablaInventarios[Categoria])*(TablaInventarios[$ Total IP (corrientes)]))+SUMPRODUCT((TablaInventarios[[#This Row],[Categoria]]=TablaMovimientos[Categoría])*(TablaMovimientos[Total $ corr-tes])*(TablaMovimientos[Fecha]>$N$19)*(TablaMovimientos[Fecha]<=$P$19)) -> 0 | P3: =IF($P$19=0,0,TablaInventarios[[#This Row],[$ Total FP (corrientes)]]*IF($S$23=FALSE,0,IF($T$19="SIPM",VLOOKUP(DATE(YEAR($P$19),MONTH($P$19),1),Indices[[Fecha]:[Indice SIPM]],2,FALSE),IF($T$19="Dólar Oficial",1/VLOOKUP(DATE(YEAR($P$19),MONTH($P$19),DAY($P$19)),Tabla5[],2),IF($T$19="Dólar Informal",1/VLOOKUP(DATE(YEAR($P$19),MONTH($P$19),DAY($P$19)),Tabla3[],2)))))) -> 0 | S3: =TablaInventarios[[#This Row],[Kg./Cab. al Cierre]]*TablaInventarios[[#This Row],[$/Kg. al Cierre]] -> 0 | T3: =TablaInventarios[[#This Row],[Cab. Stock]]*TablaInventarios[[#This Row],[Kg./Cab. al Cierre]]-TablaInventarios[[#This Row],[Kg. Totales Stock]] -> 0 | U3: =TablaInventarios[[#This Row],[Cab. Stock]]*TablaInventarios[[#This Row],[Kg./Cab. al Cierre]]*TablaInventarios[[#This Row],[$/Kg. al Cierre]]-TablaInventarios[[#This Row],[$ Total FP (corrientes)]] -> 0 | W3: Fecha ??? | X3: ="Inventario de inicio" -> Inventario de inicio | Y3: Toros | Z3: Cría | AA3: ANC | AD3: =+TablaInventarios[[#This Row],[Cabezas]] -> 0 | AF3: =+TablaInventarios[[#This Row],[Cabezas]]*TablaInventarios[[#This Row],[Kg/Cab.]] -> 0 | AH3: =TablaInventarios[[#This Row],[Kg/Cab.]]*TablaInventarios[[#This Row],[$/Kg]] -> 0 | AI3: =+TablaInventarios[[#This Row],[Kg.]]*TablaInventarios[[#This Row],[$/Kg]] -> 0 | AJ3: =IF(W3="Fecha ???",0,TablaInventarios[[#This Row],[$ Total (corrientes)]]*IF(AND($S$23=TRUE,$T$19="Dólar Informal"),1/VLOOKUP(TablaInventarios[[#This Row],[Fecha]],Tabla3[],2),IF(AND($S$23=TRUE,$T$19="Dólar Oficial"),1/VLOOKUP(TablaInventarios[[#This Row],[Fecha]],Tabla5[],2),IF(AND($S$23=TRUE,$T$19="SIPM"),VLOOKUP(DATE(YEAR(DATE(YEAR($W3),MONTH($W3),DAY($W3))-1),MONTH(DATE(YEAR($W3),MONTH($W3),DAY($W3))-1),1),Indices[[Fecha]:[Indice SIPM]],2,FALSE))))) -> 0
A4: =+TablaInventarios[[#This Row],[Categoría]] -> Vacas CUT | B4: =+VLOOKUP(TablaInventarios[[#This Row],[Categoria]],TablaInventarios[[Categoría]:[Actividad]],2,FALSE) -> Cría | C4: =+SUMPRODUCT((TablaInventarios[[#This Row],[Categoria]]=TablaInventarios[Categoria])*TablaInventarios[Cab.])+SUMPRODUCT((TablaInventarios[[#This Row],[Categoria]]=TablaMovimientos[Categoría])*(TablaMovimientos[Cab.])*(TablaMovimientos[Fecha]<=$N$19)) -> 0 | D4: =IF(TablaInventarios[[#This Row],[Cab. Inicio período]]=0,0,(SUMPRODUCT((TablaInventarios[[#This Row],[Categoria]]=TablaInventarios[Categoria])*(TablaInventarios[Kg.]))+SUMPRODUCT((TablaInventarios[[#This Row],[Categoria]]=TablaMovimientos[Categoría])*(TablaMovimientos[Kg.])*(TablaMovimientos[Fecha]<=$N$19)))/TablaInventarios[[#This Row],[Cab. Inicio período]]) -> 0 | E4: =SUMPRODUCT((TablaInventarios[[#This Row],[Categoria]]=TablaInventarios[Categoria])*TablaInventarios[Kg.])+SUMPRODUCT((TablaInventarios[[#This Row],[Categoria]]=TablaMovimientos[Categoría])*(TablaMovimientos[Cab.])*(TablaMovimientos[Fecha]<=$N$19)) -> 0 | F4: =IF(TablaInventarios[[#This Row],[Kg. Totales Inicio período]]=0,0,TablaInventarios[[#This Row],[$ Total IP (corrientes)]]/TablaInventarios[[#This Row],[Kg. Totales Inicio período]]) -> 0 | G4: =+IF(TablaInventarios[[#This Row],[Cab. Inicio período]]=0,0,TablaInventarios[[#This Row],[$ Total IP (corrientes)]]/TablaInventarios[[#This Row],[Cab. Inicio período]]) -> 0 | H4: =+SUMPRODUCT((TablaInventarios[[#This Row],[Categoria]]=TablaInventarios[Categoria])*TablaInventarios[$ Total (corrientes)])+SUMPRODUCT((TablaInventarios[[#This Row],[Categoria]]=TablaMovimientos[Categoría])*(TablaMovimientos[Total $ corr-tes])*(TablaMovimientos[Fecha]<=$N$19)) -> 0 | I4: =IF($N$19=0,0,TablaInventarios[[#This Row],[$ Total IP (corrientes)]]*IF($S$23=FALSE,0,IF($T$19="SIPM",VLOOKUP(DATE(YEAR($N$19),MONTH($N$19)+IF(DAY($N$19)=1,-1,0),1),Indices[[Fecha]:[Indice SIPM]],2,FALSE),IF($T$19="Dólar Oficial",1/VLOOKUP(DATE(YEAR($N$19),MONTH($N$19),DAY($N$19)+IF(DAY($N$19)=1,-1,0)),Tabla5[],2),IF($T$19="Dólar Informal",1/VLOOKUP(DATE(YEAR($N$19),MONTH($N$19),DAY($N$19)+IF(DAY($N$19)=1,-1,0)),Tabla3[],2)))))) -> 0 | J4: =+SUMPRODUCT((TablaInventarios[[#This Row],[Categoria]]=TablaInventarios[Categoria])*(TablaInventarios[Cab. Inicio período]))+SUMPRODUCT((TablaInventarios[[#This Row],[Categoria]]=TablaMovimientos[Categoría])*(TablaMovimientos[Cab.])*(TablaMovimientos[Fecha]>$N$19)*(TablaMovimientos[Fecha]<=$P$19)) -> 0 | K4: =IFERROR(TablaInventarios[[#This Row],[Kg. Totales Stock]]/TablaInventarios[[#This Row],[Cab. Stock]],0) -> 0 | L4: =+SUMPRODUCT((TablaInventarios[[#This Row],[Categoria]]=TablaInventarios[Categoria])*(TablaInventarios[Kg. Totales Inicio período]))+SUMPRODUCT((TablaInventarios[[#This Row],[Categoria]]=TablaMovimientos[Categoría])*(TablaMovimientos[Kg.])*(TablaMovimientos[Fecha]>$N$19)*(TablaMovimientos[Fecha]<=$P$19)) -> 0 | M4: =IF(TablaInventarios[[#This Row],[Kg. Totales Stock]]=0,TablaInventarios[[#This Row],[$/Kg. al Cierre]],IFERROR(TablaInventarios[[#This Row],[$ Total FP (corrientes)]]/TablaInventarios[[#This Row],[Kg. Totales Stock]],0)) -> 0 | N4: =IFERROR(TablaInventarios[[#This Row],[$ Total FP (corrientes)]]/TablaInventarios[[#This Row],[Cab. Stock]],0) -> 0 | O4: =+SUMPRODUCT((TablaInventarios[[#This Row],[Categoria]]=TablaInventarios[Categoria])*(TablaInventarios[$ Total IP (corrientes)]))+SUMPRODUCT((TablaInventarios[[#This Row],[Categoria]]=TablaMovimientos[Categoría])*(TablaMovimientos[Total $ corr-tes])*(TablaMovimientos[Fecha]>$N$19)*(TablaMovimientos[Fecha]<=$P$19)) -> 0 | P4: =IF($P$19=0,0,TablaInventarios[[#This Row],[$ Total FP (corrientes)]]*IF($S$23=FALSE,0,IF($T$19="SIPM",VLOOKUP(DATE(YEAR($P$19),MONTH($P$19),1),Indices[[Fecha]:[Indice SIPM]],2,FALSE),IF($T$19="Dólar Oficial",1/VLOOKUP(DATE(YEAR($P$19),MONTH($P$19),DAY($P$19)),Tabla5[],2),IF($T$19="Dólar Informal",1/VLOOKUP(DATE(YEAR($P$19),MONTH($P$19),DAY($P$19)),Tabla3[],2)))))) -> 0 | S4: =TablaInventarios[[#This Row],[Kg./Cab. al Cierre]]*TablaInventarios[[#This Row],[$/Kg. al Cierre]] -> 0 | T4: =TablaInventarios[[#This Row],[Cab. Stock]]*TablaInventarios[[#This Row],[Kg./Cab. al Cierre]]-TablaInventarios[[#This Row],[Kg. Totales Stock]] -> 0 | U4: =TablaInventarios[[#This Row],[Cab. Stock]]*TablaInventarios[[#This Row],[Kg./Cab. al Cierre]]*TablaInventarios[[#This Row],[$/Kg. al Cierre]]-TablaInventarios[[#This Row],[$ Total FP (corrientes)]] -> 0 | W4: =+W3 -> Fecha ??? | X4: ="Inventario de inicio" -> Inventario de inicio | Y4: Vacas CUT | Z4: Cría | AA4: ANC | AD4: =+TablaInventarios[[#This Row],[Cabezas]] -> 0 | AF4: =+TablaInventarios[[#This Row],[Cabezas]]*TablaInventarios[[#This Row],[Kg/Cab.]] -> 0 | AH4: =TablaInventarios[[#This Row],[Kg/Cab.]]*TablaInventarios[[#This Row],[$/Kg]] -> 0 | AI4: =+TablaInventarios[[#This Row],[Kg.]]*TablaInventarios[[#This Row],[$/Kg]] -> 0 | AJ4: =IF(W4="Fecha ???",0,TablaInventarios[[#This Row],[$ Total (corrientes)]]*IF(AND($S$23=TRUE,$T$19="Dólar Informal"),1/VLOOKUP(TablaInventarios[[#This Row],[Fecha]],Tabla3[],2),IF(AND($S$23=TRUE,$T$19="Dólar Oficial"),1/VLOOKUP(TablaInventarios[[#This Row],[Fecha]],Tabla5[],2),IF(AND($S$23=TRUE,$T$19="SIPM"),VLOOKUP(DATE(YEAR(DATE(YEAR($W4),MONTH($W4),DAY($W4))-1),MONTH(DATE(YEAR($W4),MONTH($W4),DAY($W4))-1),1),Indices[[Fecha]:[Indice SIPM]],2,FALSE))))) -> 0
A5: =+TablaInventarios[[#This Row],[Categoría]] -> Vacas rodeo cría | B5: =+VLOOKUP(TablaInventarios[[#This Row],[Categoria]],TablaInventarios[[Categoría]:[Actividad]],2,FALSE) -> Cría | C5: =+SUMPRODUCT((TablaInventarios[[#This Row],[Categoria]]=TablaInventarios[Categoria])*TablaInventarios[Cab.])+SUMPRODUCT((TablaInventarios[[#This Row],[Categoria]]=TablaMovimientos[Categoría])*(TablaMovimientos[Cab.])*(TablaMovimientos[Fecha]<=$N$19)) -> 0 | D5: =IF(TablaInventarios[[#This Row],[Cab. Inicio período]]=0,0,(SUMPRODUCT((TablaInventarios[[#This Row],[Categoria]]=TablaInventarios[Categoria])*(TablaInventarios[Kg.]))+SUMPRODUCT((TablaInventarios[[#This Row],[Categoria]]=TablaMovimientos[Categoría])*(TablaMovimientos[Kg.])*(TablaMovimientos[Fecha]<=$N$19)))/TablaInventarios[[#This Row],[Cab. Inicio período]]) -> 0 | E5: =SUMPRODUCT((TablaInventarios[[#This Row],[Categoria]]=TablaInventarios[Categoria])*TablaInventarios[Kg.])+SUMPRODUCT((TablaInventarios[[#This Row],[Categoria]]=TablaMovimientos[Categoría])*(TablaMovimientos[Cab.])*(TablaMovimientos[Fecha]<=$N$19)) -> 0 | F5: =IF(TablaInventarios[[#This Row],[Kg. Totales Inicio período]]=0,0,TablaInventarios[[#This Row],[$ Total IP (corrientes)]]/TablaInventarios[[#This Row],[Kg. Totales Inicio período]]) -> 0 | G5: =+IF(TablaInventarios[[#This Row],[Cab. Inicio período]]=0,0,TablaInventarios[[#This Row],[$ Total IP (corrientes)]]/TablaInventarios[[#This Row],[Cab. Inicio período]]) -> 0 | H5: =+SUMPRODUCT((TablaInventarios[[#This Row],[Categoria]]=TablaInventarios[Categoria])*TablaInventarios[$ Total (corrientes)])+SUMPRODUCT((TablaInventarios[[#This Row],[Categoria]]=TablaMovimientos[Categoría])*(TablaMovimientos[Total $ corr-tes])*(TablaMovimientos[Fecha]<=$N$19)) -> 0 | I5: =IF($N$19=0,0,TablaInventarios[[#This Row],[$ Total IP (corrientes)]]*IF($S$23=FALSE,0,IF($T$19="SIPM",VLOOKUP(DATE(YEAR($N$19),MONTH($N$19)+IF(DAY($N$19)=1,-1,0),1),Indices[[Fecha]:[Indice SIPM]],2,FALSE),IF($T$19="Dólar Oficial",1/VLOOKUP(DATE(YEAR($N$19),MONTH($N$19),DAY($N$19)+IF(DAY($N$19)=1,-1,0)),Tabla5[],2),IF($T$19="Dólar Informal",1/VLOOKUP(DATE(YEAR($N$19),MONTH($N$19),DAY($N$19)+IF(DAY($N$19)=1,-1,0)),Tabla3[],2)))))) -> 0 | J5: =+SUMPRODUCT((TablaInventarios[[#This Row],[Categoria]]=TablaInventarios[Categoria])*(TablaInventarios[Cab. Inicio período]))+SUMPRODUCT((TablaInventarios[[#This Row],[Categoria]]=TablaMovimientos[Categoría])*(TablaMovimientos[Cab.])*(TablaMovimientos[Fecha]>$N$19)*(TablaMovimientos[Fecha]<=$P$19)) -> 0 | K5: =IFERROR(TablaInventarios[[#This Row],[Kg. Totales Stock]]/TablaInventarios[[#This Row],[Cab. Stock]],0) -> 0 | L5: =+SUMPRODUCT((TablaInventarios[[#This Row],[Categoria]]=TablaInventarios[Categoria])*(TablaInventarios[Kg. Totales Inicio período]))+SUMPRODUCT((TablaInventarios[[#This Row],[Categoria]]=TablaMovimientos[Categoría])*(TablaMovimientos[Kg.])*(TablaMovimientos[Fecha]>$N$19)*(TablaMovimientos[Fecha]<=$P$19)) -> 0 | M5: =IF(TablaInventarios[[#This Row],[Kg. Totales Stock]]=0,TablaInventarios[[#This Row],[$/Kg. al Cierre]],IFERROR(TablaInventarios[[#This Row],[$ Total FP (corrientes)]]/TablaInventarios[[#This Row],[Kg. Totales Stock]],0)) -> 0 | N5: =IFERROR(TablaInventarios[[#This Row],[$ Total FP (corrientes)]]/TablaInventarios[[#This Row],[Cab. Stock]],0) -> 0 | O5: =+SUMPRODUCT((TablaInventarios[[#This Row],[Categoria]]=TablaInventarios[Categoria])*(TablaInventarios[$ Total IP (corrientes)]))+SUMPRODUCT((TablaInventarios[[#This Row],[Categoria]]=TablaMovimientos[Categoría])*(TablaMovimientos[Total $ corr-tes])*(TablaMovimientos[Fecha]>$N$19)*(TablaMovimientos[Fecha]<=$P$19)) -> 0 | P5: =IF($P$19=0,0,TablaInventarios[[#This Row],[$ Total FP (corrientes)]]*IF($S$23=FALSE,0,IF($T$19="SIPM",VLOOKUP(DATE(YEAR($P$19),MONTH($P$19),1),Indices[[Fecha]:[Indice SIPM]],2,FALSE),IF($T$19="Dólar Oficial",1/VLOOKUP(DATE(YEAR($P$19),MONTH($P$19),DAY($P$19)),Tabla5[],2),IF($T$19="Dólar Informal",1/VLOOKUP(DATE(YEAR($P$19),MONTH($P$19),DAY($P$19)),Tabla3[],2)))))) -> 0 | S5: =TablaInventarios[[#This Row],[Kg./Cab. al Cierre]]*TablaInventarios[[#This Row],[$/Kg. al Cierre]] -> 0 | T5: =TablaInventarios[[#This Row],[Cab. Stock]]*TablaInventarios[[#This Row],[Kg./Cab. al Cierre]]-TablaInventarios[[#This Row],[Kg. Totales Stock]] -> 0 | U5: =TablaInventarios[[#This Row],[Cab. Stock]]*TablaInventarios[[#This Row],[Kg./Cab. al Cierre]]*TablaInventarios[[#This Row],[$/Kg. al Cierre]]-TablaInventarios[[#This Row],[$ Total FP (corrientes)]] -> 0 | W5: Fecha ??? | X5: Inventario de inicio | Y5: Vacas rodeo cría | Z5: Cría | AA5: ANC | AD5: =+TablaInventarios[[#This Row],[Cabezas]] -> 0 | AF5: =+TablaInventarios[[#This Row],[Cabezas]]*TablaInventarios[[#This Row],[Kg/Cab.]] -> 0 | AH5: =TablaInventarios[[#This Row],[Kg/Cab.]]*TablaInventarios[[#This Row],[$/Kg]] -> 0 | AI5: =+TablaInventarios[[#This Row],[Kg.]]*TablaInventarios[[#This Row],[$/Kg]] -> 0 | AJ5: =IF(W5="Fecha ???",0,TablaInventarios[[#This Row],[$ Total (corrientes)]]*IF(AND($S$23=TRUE,$T$19="Dólar Informal"),1/VLOOKUP(TablaInventarios[[#This Row],[Fecha]],Tabla3[],2),IF(AND($S$23=TRUE,$T$19="Dólar Oficial"),1/VLOOKUP(TablaInventarios[[#This Row],[Fecha]],Tabla5[],2),IF(AND($S$23=TRUE,$T$19="SIPM"),VLOOKUP(DATE(YEAR(DATE(YEAR($W5),MONTH($W5),DAY($W5))-1),MONTH(DATE(YEAR($W5),MONTH($W5),DAY($W5))-1),1),Indices[[Fecha]:[Indice SIPM]],2,FALSE))))) -> 0
A6: =+TablaInventarios[[#This Row],[Categoría]] -> Vaquillonas rodeo cría | B6: =+VLOOKUP(TablaInventarios[[#This Row],[Categoria]],TablaInventarios[[Categoría]:[Actividad]],2,FALSE) -> Cría | C6: =+SUMPRODUCT((TablaInventarios[[#This Row],[Categoria]]=TablaInventarios[Categoria])*TablaInventarios[Cab.])+SUMPRODUCT((TablaInventarios[[#This Row],[Categoria]]=TablaMovimientos[Categoría])*(TablaMovimientos[Cab.])*(TablaMovimientos[Fecha]<=$N$19)) -> 0 | D6: =IF(TablaInventarios[[#This Row],[Cab. Inicio período]]=0,0,(SUMPRODUCT((TablaInventarios[[#This Row],[Categoria]]=TablaInventarios[Categoria])*(TablaInventarios[Kg.]))+SUMPRODUCT((TablaInventarios[[#This Row],[Categoria]]=TablaMovimientos[Categoría])*(TablaMovimientos[Kg.])*(TablaMovimientos[Fecha]<=$N$19)))/TablaInventarios[[#This Row],[Cab. Inicio período]]) -> 0 | E6: =SUMPRODUCT((TablaInventarios[[#This Row],[Categoria]]=TablaInventarios[Categoria])*TablaInventarios[Kg.])+SUMPRODUCT((TablaInventarios[[#This Row],[Categoria]]=TablaMovimientos[Categoría])*(TablaMovimientos[Cab.])*(TablaMovimientos[Fecha]<=$N$19)) -> 0 | F6: =IF(TablaInventarios[[#This Row],[Kg. Totales Inicio período]]=0,0,TablaInventarios[[#This Row],[$ Total IP (corrientes)]]/TablaInventarios[[#This Row],[Kg. Totales Inicio período]]) -> 0 | G6: =+IF(TablaInventarios[[#This Row],[Cab. Inicio período]]=0,0,TablaInventarios[[#This Row],[$ Total IP (corrientes)]]/TablaInventarios[[#This Row],[Cab. Inicio período]]) -> 0 | H6: =+SUMPRODUCT((TablaInventarios[[#This Row],[Categoria]]=TablaInventarios[Categoria])*TablaInventarios[$ Total (corrientes)])+SUMPRODUCT((TablaInventarios[[#This Row],[Categoria]]=TablaMovimientos[Categoría])*(TablaMovimientos[Total $ corr-tes])*(TablaMovimientos[Fecha]<=$N$19)) -> 0 | I6: =IF($N$19=0,0,TablaInventarios[[#This Row],[$ Total IP (corrientes)]]*IF($S$23=FALSE,0,IF($T$19="SIPM",VLOOKUP(DATE(YEAR($N$19),MONTH($N$19)+IF(DAY($N$19)=1,-1,0),1),Indices[[Fecha]:[Indice SIPM]],2,FALSE),IF($T$19="Dólar Oficial",1/VLOOKUP(DATE(YEAR($N$19),MONTH($N$19),DAY($N$19)+IF(DAY($N$19)=1,-1,0)),Tabla5[],2),IF($T$19="Dólar Informal",1/VLOOKUP(DATE(YEAR($N$19),MONTH($N$19),DAY($N$19)+IF(DAY($N$19)=1,-1,0)),Tabla3[],2)))))) -> 0 | J6: =+SUMPRODUCT((TablaInventarios[[#This Row],[Categoria]]=TablaInventarios[Categoria])*(TablaInventarios[Cab. Inicio período]))+SUMPRODUCT((TablaInventarios[[#This Row],[Categoria]]=TablaMovimientos[Categoría])*(TablaMovimientos[Cab.])*(TablaMovimientos[Fecha]>$N$19)*(TablaMovimientos[Fecha]<=$P$19)) -> 0 | K6: =IFERROR(TablaInventarios[[#This Row],[Kg. Totales Stock]]/TablaInventarios[[#This Row],[Cab. Stock]],0) -> 0 | L6: =+SUMPRODUCT((TablaInventarios[[#This Row],[Categoria]]=TablaInventarios[Categoria])*(TablaInventarios[Kg. Totales Inicio período]))+SUMPRODUCT((TablaInventarios[[#This Row],[Categoria]]=TablaMovimientos[Categoría])*(TablaMovimientos[Kg.])*(TablaMovimientos[Fecha]>$N$19)*(TablaMovimientos[Fecha]<=$P$19)) -> 0 | M6: =IF(TablaInventarios[[#This Row],[Kg. Totales Stock]]=0,TablaInventarios[[#This Row],[$/Kg. al Cierre]],IFERROR(TablaInventarios[[#This Row],[$ Total FP (corrientes)]]/TablaInventarios[[#This Row],[Kg. Totales Stock]],0)) -> 0 | N6: =IFERROR(TablaInventarios[[#This Row],[$ Total FP (corrientes)]]/TablaInventarios[[#This Row],[Cab. Stock]],0) -> 0 | O6: =+SUMPRODUCT((TablaInventarios[[#This Row],[Categoria]]=TablaInventarios[Categoria])*(TablaInventarios[$ Total IP (corrientes)]))+SUMPRODUCT((TablaInventarios[[#This Row],[Categoria]]=TablaMovimientos[Categoría])*(TablaMovimientos[Total $ corr-tes])*(TablaMovimientos[Fecha]>$N$19)*(TablaMovimientos[Fecha]<=$P$19)) -> 0 | P6: =IF($P$19=0,0,TablaInventarios[[#This Row],[$ Total FP (corrientes)]]*IF($S$23=FALSE,0,IF($T$19="SIPM",VLOOKUP(DATE(YEAR($P$19),MONTH($P$19),1),Indices[[Fecha]:[Indice SIPM]],2,FALSE),IF($T$19="Dólar Oficial",1/VLOOKUP(DATE(YEAR($P$19),MONTH($P$19),DAY($P$19)),Tabla5[],2),IF($T$19="Dólar Informal",1/VLOOKUP(DATE(YEAR($P$19),MONTH($P$19),DAY($P$19)),Tabla3[],2)))))) -> 0 | S6: =TablaInventarios[[#This Row],[Kg./Cab. al Cierre]]*TablaInventarios[[#This Row],[$/Kg. al Cierre]] -> 0 | T6: =TablaInventarios[[#This Row],[Cab. Stock]]*TablaInventarios[[#This Row],[Kg./Cab. al Cierre]]-TablaInventarios[[#This Row],[Kg. Totales Stock]] -> 0 | U6: =TablaInventarios[[#This Row],[Cab. Stock]]*TablaInventarios[[#This Row],[Kg./Cab. al Cierre]]*TablaInventarios[[#This Row],[$/Kg. al Cierre]]-TablaInventarios[[#This Row],[$ Total FP (corrientes)]] -> 0 | W6: Fecha ??? | X6: Inventario de inicio | Y6: Vaquillonas rodeo cría | Z6: Cría | AA6: ANC | AD6: =+TablaInventarios[[#This Row],[Cabezas]] -> 0 | AF6: =+TablaInventarios[[#This Row],[Cabezas]]*TablaInventarios[[#This Row],[Kg/Cab.]] -> 0 | AH6: =TablaInventarios[[#This Row],[Kg/Cab.]]*TablaInventarios[[#This Row],[$/Kg]] -> 0 | AI6: =+TablaInventarios[[#This Row],[Kg.]]*TablaInventarios[[#This Row],[$/Kg]] -> 0 | AJ6: =IF(W6="Fecha ???",0,TablaInventarios[[#This Row],[$ Total (corrientes)]]*IF(AND($S$23=TRUE,$T$19="Dólar Informal"),1/VLOOKUP(TablaInventarios[[#This Row],[Fecha]],Tabla3[],2),IF(AND($S$23=TRUE,$T$19="Dólar Oficial"),1/VLOOKUP(TablaInventarios[[#This Row],[Fecha]],Tabla5[],2),IF(AND($S$23=TRUE,$T$19="SIPM"),VLOOKUP(DATE(YEAR(DATE(YEAR($W6),MONTH($W6),DAY($W6))-1),MONTH(DATE(YEAR($W6),MONTH($W6),DAY($W6))-1),1),Indices[[Fecha]:[Indice SIPM]],2,FALSE))))) -> 0
A7: =+TablaInventarios[[#This Row],[Categoría]] -> Vaq. Recría 2/3 | B7: =+VLOOKUP(TablaInventarios[[#This Row],[Categoria]],TablaInventarios[[Categoría]:[Actividad]],2,FALSE) -> Recría | C7: =+SUMPRODUCT((TablaInventarios[[#This Row],[Categoria]]=TablaInventarios[Categoria])*TablaInventarios[Cab.])+SUMPRODUCT((TablaInventarios[[#This Row],[Categoria]]=TablaMovimientos[Categoría])*(TablaMovimientos[Cab.])*(TablaMovimientos[Fecha]<=$N$19)) -> 0 | D7: =IF(TablaInventarios[[#This Row],[Cab. Inicio período]]=0,0,(SUMPRODUCT((TablaInventarios[[#This Row],[Categoria]]=TablaInventarios[Categoria])*(TablaInventarios[Kg.]))+SUMPRODUCT((TablaInventarios[[#This Row],[Categoria]]=TablaMovimientos[Categoría])*(TablaMovimientos[Kg.])*(TablaMovimientos[Fecha]<=$N$19)))/TablaInventarios[[#This Row],[Cab. Inicio período]]) -> 0 | E7: =SUMPRODUCT((TablaInventarios[[#This Row],[Categoria]]=TablaInventarios[Categoria])*TablaInventarios[Kg.])+SUMPRODUCT((TablaInventarios[[#This Row],[Categoria]]=TablaMovimientos[Categoría])*(TablaMovimientos[Cab.])*(TablaMovimientos[Fecha]<=$N$19)) -> 0 | F7: =IF(TablaInventarios[[#This Row],[Kg. Totales Inicio período]]=0,0,TablaInventarios[[#This Row],[$ Total IP (corrientes)]]/TablaInventarios[[#This Row],[Kg. Totales Inicio período]]) -> 0 | G7: =+IF(TablaInventarios[[#This Row],[Cab. Inicio período]]=0,0,TablaInventarios[[#This Row],[$ Total IP (corrientes)]]/TablaInventarios[[#This Row],[Cab. Inicio período]]) -> 0 | H7: =+SUMPRODUCT((TablaInventarios[[#This Row],[Categoria]]=TablaInventarios[Categoria])*TablaInventarios[$ Total (corrientes)])+SUMPRODUCT((TablaInventarios[[#This Row],[Categoria]]=TablaMovimientos[Categoría])*(TablaMovimientos[Total $ corr-tes])*(TablaMovimientos[Fecha]<=$N$19)) -> 0 | I7: =IF($N$19=0,0,TablaInventarios[[#This Row],[$ Total IP (corrientes)]]*IF($S$23=FALSE,0,IF($T$19="SIPM",VLOOKUP(DATE(YEAR($N$19),MONTH($N$19)+IF(DAY($N$19)=1,-1,0),1),Indices[[Fecha]:[Indice SIPM]],2,FALSE),IF($T$19="Dólar Oficial",1/VLOOKUP(DATE(YEAR($N$19),MONTH($N$19),DAY($N$19)+IF(DAY($N$19)=1,-1,0)),Tabla5[],2),IF($T$19="Dólar Informal",1/VLOOKUP(DATE(YEAR($N$19),MONTH($N$19),DAY($N$19)+IF(DAY($N$19)=1,-1,0)),Tabla3[],2)))))) -> 0 | J7: =+SUMPRODUCT((TablaInventarios[[#This Row],[Categoria]]=TablaInventarios[Categoria])*(TablaInventarios[Cab. Inicio período]))+SUMPRODUCT((TablaInventarios[[#This Row],[Categoria]]=TablaMovimientos[Categoría])*(TablaMovimientos[Cab.])*(TablaMovimientos[Fecha]>$N$19)*(TablaMovimientos[Fecha]<=$P$19)) -> 0 | K7: =IFERROR(TablaInventarios[[#This Row],[Kg. Totales Stock]]/TablaInventarios[[#This Row],[Cab. Stock]],0) -> 0 | L7: =+SUMPRODUCT((TablaInventarios[[#This Row],[Categoria]]=TablaInventarios[Categoria])*(TablaInventarios[Kg. Totales Inicio período]))+SUMPRODUCT((TablaInventarios[[#This Row],[Categoria]]=TablaMovimientos[Categoría])*(TablaMovimientos[Kg.])*(TablaMovimientos[Fecha]>$N$19)*(TablaMovimientos[Fecha]<=$P$19)) -> 0 | M7: =IF(TablaInventarios[[#This Row],[Kg. Totales Stock]]=0,TablaInventarios[[#This Row],[$/Kg. al Cierre]],IFERROR(TablaInventarios[[#This Row],[$ Total FP (corrientes)]]/TablaInventarios[[#This Row],[Kg. Totales Stock]],0)) -> 0 | N7: =IFERROR(TablaInventarios[[#This Row],[$ Total FP (corrientes)]]/TablaInventarios[[#This Row],[Cab. Stock]],0) -> 0 | O7: =+SUMPRODUCT((TablaInventarios[[#This Row],[Categoria]]=TablaInventarios[Categoria])*(TablaInventarios[$ Total IP (corrientes)]))+SUMPRODUCT((TablaInventarios[[#This Row],[Categoria]]=TablaMovimientos[Categoría])*(TablaMovimientos[Total $ corr-tes])*(TablaMovimientos[Fecha]>$N$19)*(TablaMovimientos[Fecha]<=$P$19)) -> 0 | P7: =IF($P$19=0,0,TablaInventarios[[#This Row],[$ Total FP (corrientes)]]*IF($S$23=FALSE,0,IF($T$19="SIPM",VLOOKUP(DATE(YEAR($P$19),MONTH($P$19),1),Indices[[Fecha]:[Indice SIPM]],2,FALSE),IF($T$19="Dólar Oficial",1/VLOOKUP(DATE(YEAR($P$19),MONTH($P$19),DAY($P$19)),Tabla5[],2),IF($T$19="Dólar Informal",1/VLOOKUP(DATE(YEAR($P$19),MONTH($P$19),DAY($P$19)),Tabla3[],2)))))) -> 0 | S7: =TablaInventarios[[#This Row],[Kg./Cab. al Cierre]]*TablaInventarios[[#This Row],[$/Kg. al Cierre]] -> 0 | T7: =TablaInventarios[[#This Row],[Cab. Stock]]*TablaInventarios[[#This Row],[Kg./Cab. al Cierre]]-TablaInventarios[[#This Row],[Kg. Totales Stock]] -> 0 | U7: =TablaInventarios[[#This Row],[Cab. Stock]]*TablaInventarios[[#This Row],[Kg./Cab. al Cierre]]*TablaInventarios[[#This Row],[$/Kg. al Cierre]]-TablaInventarios[[#This Row],[$ Total FP (corrientes)]] -> 0 | W7: Fecha ??? | X7: ="Inventario de inicio" -> Inventario de inicio | Y7: Vaq. Recría 2/3 | Z7: Recría | AA7: AC | AD7: =+TablaInventarios[[#This Row],[Cabezas]] -> 0 | AF7: =+TablaInventarios[[#This Row],[Cabezas]]*TablaInventarios[[#This Row],[Kg/Cab.]] -> 0 | AH7: =TablaInventarios[[#This Row],[Kg/Cab.]]*TablaInventarios[[#This Row],[$/Kg]] -> 0 | AI7: =+TablaInventarios[[#This Row],[Kg.]]*TablaInventarios[[#This Row],[$/Kg]] -> 0 | AJ7: =IF(W7="Fecha ???",0,TablaInventarios[[#This Row],[$ Total (corrientes)]]*IF(AND($S$23=TRUE,$T$19="Dólar Informal"),1/VLOOKUP(TablaInventarios[[#This Row],[Fecha]],Tabla3[],2),IF(AND($S$23=TRUE,$T$19="Dólar Oficial"),1/VLOOKUP(TablaInventarios[[#This Row],[Fecha]],Tabla5[],2),IF(AND($S$23=TRUE,$T$19="SIPM"),VLOOKUP(DATE(YEAR(DATE(YEAR($W7),MONTH($W7),DAY($W7))-1),MONTH(DATE(YEAR($W7),MONTH($W7),DAY($W7))-1),1),Indices[[Fecha]:[Indice SIPM]],2,FALSE))))) -> 0
A8: =+TablaInventarios[[#This Row],[Categoría]] -> Vaq. Recría 1/2 | B8: =+VLOOKUP(TablaInventarios[[#This Row],[Categoria]],TablaInventarios[[Categoría]:[Actividad]],2,FALSE) -> Recría | C8: =+SUMPRODUCT((TablaInventarios[[#This Row],[Categoria]]=TablaInventarios[Categoria])*TablaInventarios[Cab.])+SUMPRODUCT((TablaInventarios[[#This Row],[Categoria]]=TablaMovimientos[Categoría])*(TablaMovimientos[Cab.])*(TablaMovimientos[Fecha]<=$N$19)) -> 0 | D8: =IF(TablaInventarios[[#This Row],[Cab. Inicio período]]=0,0,(SUMPRODUCT((TablaInventarios[[#This Row],[Categoria]]=TablaInventarios[Categoria])*(TablaInventarios[Kg.]))+SUMPRODUCT((TablaInventarios[[#This Row],[Categoria]]=TablaMovimientos[Categoría])*(TablaMovimientos[Kg.])*(TablaMovimientos[Fecha]<=$N$19)))/TablaInventarios[[#This Row],[Cab. Inicio período]]) -> 0 | E8: =SUMPRODUCT((TablaInventarios[[#This Row],[Categoria]]=TablaInventarios[Categoria])*TablaInventarios[Kg.])+SUMPRODUCT((TablaInventarios[[#This Row],[Categoria]]=TablaMovimientos[Categoría])*(TablaMovimientos[Cab.])*(TablaMovimientos[Fecha]<=$N$19)) -> 0 | F8: =IF(TablaInventarios[[#This Row],[Kg. Totales Inicio período]]=0,0,TablaInventarios[[#This Row],[$ Total IP (corrientes)]]/TablaInventarios[[#This Row],[Kg. Totales Inicio período]]) -> 0 | G8: =+IF(TablaInventarios[[#This Row],[Cab. Inicio período]]=0,0,TablaInventarios[[#This Row],[$ Total IP (corrientes)]]/TablaInventarios[[#This Row],[Cab. Inicio período]]) -> 0 | H8: =+SUMPRODUCT((TablaInventarios[[#This Row],[Categoria]]=TablaInventarios[Categoria])*TablaInventarios[$ Total (corrientes)])+SUMPRODUCT((TablaInventarios[[#This Row],[Categoria]]=TablaMovimientos[Categoría])*(TablaMovimientos[Total $ corr-tes])*(TablaMovimientos[Fecha]<=$N$19)) -> 0 | I8: =IF($N$19=0,0,TablaInventarios[[#This Row],[$ Total IP (corrientes)]]*IF($S$23=FALSE,0,IF($T$19="SIPM",VLOOKUP(DATE(YEAR($N$19),MONTH($N$19)+IF(DAY($N$19)=1,-1,0),1),Indices[[Fecha]:[Indice SIPM]],2,FALSE),IF($T$19="Dólar Oficial",1/VLOOKUP(DATE(YEAR($N$19),MONTH($N$19),DAY($N$19)+IF(DAY($N$19)=1,-1,0)),Tabla5[],2),IF($T$19="Dólar Informal",1/VLOOKUP(DATE(YEAR($N$19),MONTH($N$19),DAY($N$19)+IF(DAY($N$19)=1,-1,0)),Tabla3[],2)))))) -> 0 | J8: =+SUMPRODUCT((TablaInventarios[[#This Row],[Categoria]]=TablaInventarios[Categoria])*(TablaInventarios[Cab. Inicio período]))+SUMPRODUCT((TablaInventarios[[#This Row],[Categoria]]=TablaMovimientos[Categoría])*(TablaMovimientos[Cab.])*(TablaMovimientos[Fecha]>$N$19)*(TablaMovimientos[Fecha]<=$P$19)) -> 0 | K8: =IFERROR(TablaInventarios[[#This Row],[Kg. Totales Stock]]/TablaInventarios[[#This Row],[Cab. Stock]],0) -> 0 | L8: =+SUMPRODUCT((TablaInventarios[[#This Row],[Categoria]]=TablaInventarios[Categoria])*(TablaInventarios[Kg. Totales Inicio período]))+SUMPRODUCT((TablaInventarios[[#This Row],[Categoria]]=TablaMovimientos[Categoría])*(TablaMovimientos[Kg.])*(TablaMovimientos[Fecha]>$N$19)*(TablaMovimientos[Fecha]<=$P$19)) -> 0 | M8: =IF(TablaInventarios[[#This Row],[Kg. Totales Stock]]=0,TablaInventarios[[#This Row],[$/Kg. al Cierre]],IFERROR(TablaInventarios[[#This Row],[$ Total FP (corrientes)]]/TablaInventarios[[#This Row],[Kg. Totales Stock]],0)) -> 0 | N8: =IFERROR(TablaInventarios[[#This Row],[$ Total FP (corrientes)]]/TablaInventarios[[#This Row],[Cab. Stock]],0) -> 0 | O8: =+SUMPRODUCT((TablaInventarios[[#This Row],[Categoria]]=TablaInventarios[Categoria])*(TablaInventarios[$ Total IP (corrientes)]))+SUMPRODUCT((TablaInventarios[[#This Row],[Categoria]]=TablaMovimientos[Categoría])*(TablaMovimientos[Total $ corr-tes])*(TablaMovimientos[Fecha]>$N$19)*(TablaMovimientos[Fecha]<=$P$19)) -> 0 | P8: =IF($P$19=0,0,TablaInventarios[[#This Row],[$ Total FP (corrientes)]]*IF($S$23=FALSE,0,IF($T$19="SIPM",VLOOKUP(DATE(YEAR($P$19),MONTH($P$19),1),Indices[[Fecha]:[Indice SIPM]],2,FALSE),IF($T$19="Dólar Oficial",1/VLOOKUP(DATE(YEAR($P$19),MONTH($P$19),DAY($P$19)),Tabla5[],2),IF($T$19="Dólar Informal",1/VLOOKUP(DATE(YEAR($P$19),MONTH($P$19),DAY($P$19)),Tabla3[],2)))))) -> 0 | S8: =TablaInventarios[[#This Row],[Kg./Cab. al Cierre]]*TablaInventarios[[#This Row],[$/Kg. al Cierre]] -> 0 | T8: =TablaInventarios[[#This Row],[Cab. Stock]]*TablaInventarios[[#This Row],[Kg./Cab. al Cierre]]-TablaInventarios[[#This Row],[Kg. Totales Stock]] -> 0 | U8: =TablaInventarios[[#This Row],[Cab. Stock]]*TablaInventarios[[#This Row],[Kg./Cab. al Cierre]]*TablaInventarios[[#This Row],[$/Kg. al Cierre]]-TablaInventarios[[#This Row],[$ Total FP (corrientes)]] -> 0 | W8: Fecha ??? | X8: Inventario de inicio | Y8: Vaq. Recría 1/2 | Z8: Recría | AA8: AC | AD8: =+TablaInventarios[[#This Row],[Cabezas]] -> 0 | AF8: =+TablaInventarios[[#This Row],[Cabezas]]*TablaInventarios[[#This Row],[Kg/Cab.]] -> 0 | AH8: =TablaInventarios[[#This Row],[Kg/Cab.]]*TablaInventarios[[#This Row],[$/Kg]] -> 0 | AI8: =+TablaInventarios[[#This Row],[Kg.]]*TablaInventarios[[#This Row],[$/Kg]] -> 0 | AJ8: =IF(W8="Fecha ???",0,TablaInventarios[[#This Row],[$ Total (corrientes)]]*IF(AND($S$23=TRUE,$T$19="Dólar Informal"),1/VLOOKUP(TablaInventarios[[#This Row],[Fecha]],Tabla3[],2),IF(AND($S$23=TRUE,$T$19="Dólar Oficial"),1/VLOOKUP(TablaInventarios[[#This Row],[Fecha]],Tabla5[],2),IF(AND($S$23=TRUE,$T$19="SIPM"),VLOOKUP(DATE(YEAR(DATE(YEAR($W8),MONTH($W8),DAY($W8))-1),MONTH(DATE(YEAR($W8),MONTH($W8),DAY($W8))-1),1),Indices[[Fecha]:[Indice SIPM]],2,FALSE))))) -> 0
A9: =+TablaInventarios[[#This Row],[Categoría]] -> Terneras | B9: =+VLOOKUP(TablaInventarios[[#This Row],[Categoria]],TablaInventarios[[Categoría]:[Actividad]],2,FALSE) -> Recría | C9: =+SUMPRODUCT((TablaInventarios[[#This Row],[Categoria]]=TablaInventarios[Categoria])*TablaInventarios[Cab.])+SUMPRODUCT((TablaInventarios[[#This Row],[Categoria]]=TablaMovimientos[Categoría])*(TablaMovimientos[Cab.])*(TablaMovimientos[Fecha]<=$N$19)) -> 0 | D9: =IF(TablaInventarios[[#This Row],[Cab. Inicio período]]=0,0,(SUMPRODUCT((TablaInventarios[[#This Row],[Categoria]]=TablaInventarios[Categoria])*(TablaInventarios[Kg.]))+SUMPRODUCT((TablaInventarios[[#This Row],[Categoria]]=TablaMovimientos[Categoría])*(TablaMovimientos[Kg.])*(TablaMovimientos[Fecha]<=$N$19)))/TablaInventarios[[#This Row],[Cab. Inicio período]]) -> 0 | E9: =SUMPRODUCT((TablaInventarios[[#This Row],[Categoria]]=TablaInventarios[Categoria])*TablaInventarios[Kg.])+SUMPRODUCT((TablaInventarios[[#This Row],[Categoria]]=TablaMovimientos[Categoría])*(TablaMovimientos[Cab.])*(TablaMovimientos[Fecha]<=$N$19)) -> 0 | F9: =IF(TablaInventarios[[#This Row],[Kg. Totales Inicio período]]=0,0,TablaInventarios[[#This Row],[$ Total IP (corrientes)]]/TablaInventarios[[#This Row],[Kg. Totales Inicio período]]) -> 0 | G9: =+IF(TablaInventarios[[#This Row],[Cab. Inicio período]]=0,0,TablaInventarios[[#This Row],[$ Total IP (corrientes)]]/TablaInventarios[[#This Row],[Cab. Inicio período]]) -> 0 | H9: =+SUMPRODUCT((TablaInventarios[[#This Row],[Categoria]]=TablaInventarios[Categoria])*TablaInventarios[$ Total (corrientes)])+SUMPRODUCT((TablaInventarios[[#This Row],[Categoria]]=TablaMovimientos[Categoría])*(TablaMovimientos[Total $ corr-tes])*(TablaMovimientos[Fecha]<=$N$19)) -> 0 | I9: =IF($N$19=0,0,TablaInventarios[[#This Row],[$ Total IP (corrientes)]]*IF($S$23=FALSE,0,IF($T$19="SIPM",VLOOKUP(DATE(YEAR($N$19),MONTH($N$19)+IF(DAY($N$19)=1,-1,0),1),Indices[[Fecha]:[Indice SIPM]],2,FALSE),IF($T$19="Dólar Oficial",1/VLOOKUP(DATE(YEAR($N$19),MONTH($N$19),DAY($N$19)+IF(DAY($N$19)=1,-1,0)),Tabla5[],2),IF($T$19="Dólar Informal",1/VLOOKUP(DATE(YEAR($N$19),MONTH($N$19),DAY($N$19)+IF(DAY($N$19)=1,-1,0)),Tabla3[],2)))))) -> 0 | J9: =+SUMPRODUCT((TablaInventarios[[#This Row],[Categoria]]=TablaInventarios[Categoria])*(TablaInventarios[Cab. Inicio período]))+SUMPRODUCT((TablaInventarios[[#This Row],[Categoria]]=TablaMovimientos[Categoría])*(TablaMovimientos[Cab.])*(TablaMovimientos[Fecha]>$N$19)*(TablaMovimientos[Fecha]<=$P$19)) -> 0 | K9: =IFERROR(TablaInventarios[[#This Row],[Kg. Totales Stock]]/TablaInventarios[[#This Row],[Cab. Stock]],0) -> 0 | L9: =+SUMPRODUCT((TablaInventarios[[#This Row],[Categoria]]=TablaInventarios[Categoria])*(TablaInventarios[Kg. Totales Inicio período]))+SUMPRODUCT((TablaInventarios[[#This Row],[Categoria]]=TablaMovimientos[Categoría])*(TablaMovimientos[Kg.])*(TablaMovimientos[Fecha]>$N$19)*(TablaMovimientos[Fecha]<=$P$19)) -> 0 | M9: =IF(TablaInventarios[[#This Row],[Kg. Totales Stock]]=0,TablaInventarios[[#This Row],[$/Kg. al Cierre]],IFERROR(TablaInventarios[[#This Row],[$ Total FP (corrientes)]]/TablaInventarios[[#This Row],[Kg. Totales Stock]],0)) -> 0 | N9: =IFERROR(TablaInventarios[[#This Row],[$ Total FP (corrientes)]]/TablaInventarios[[#This Row],[Cab. Stock]],0) -> 0 | O9: =+SUMPRODUCT((TablaInventarios[[#This Row],[Categoria]]=TablaInventarios[Categoria])*(TablaInventarios[$ Total IP (corrientes)]))+SUMPRODUCT((TablaInventarios[[#This Row],[Categoria]]=TablaMovimientos[Categoría])*(TablaMovimientos[Total $ corr-tes])*(TablaMovimientos[Fecha]>$N$19)*(TablaMovimientos[Fecha]<=$P$19)) -> 0 | P9: =IF($P$19=0,0,TablaInventarios[[#This Row],[$ Total FP (corrientes)]]*IF($S$23=FALSE,0,IF($T$19="SIPM",VLOOKUP(DATE(YEAR($P$19),MONTH($P$19),1),Indices[[Fecha]:[Indice SIPM]],2,FALSE),IF($T$19="Dólar Oficial",1/VLOOKUP(DATE(YEAR($P$19),MONTH($P$19),DAY($P$19)),Tabla5[],2),IF($T$19="Dólar Informal",1/VLOOKUP(DATE(YEAR($P$19),MONTH($P$19),DAY($P$19)),Tabla3[],2)))))) -> 0 | S9: =TablaInventarios[[#This Row],[Kg./Cab. al Cierre]]*TablaInventarios[[#This Row],[$/Kg. al Cierre]] -> 0 | T9: =TablaInventarios[[#This Row],[Cab. Stock]]*TablaInventarios[[#This Row],[Kg./Cab. al Cierre]]-TablaInventarios[[#This Row],[Kg. Totales Stock]] -> 0 | U9: =TablaInventarios[[#This Row],[Cab. Stock]]*TablaInventarios[[#This Row],[Kg./Cab. al Cierre]]*TablaInventarios[[#This Row],[$/Kg. al Cierre]]-TablaInventarios[[#This Row],[$ Total FP (corrientes)]] -> 0 | W9: Fecha ??? | X9: Inventario de inicio | Y9: Terneras | Z9: Recría | AA9: AC | AD9: =+TablaInventarios[[#This Row],[Cabezas]] -> 0 | AF9: =+TablaInventarios[[#This Row],[Cabezas]]*TablaInventarios[[#This Row],[Kg/Cab.]] -> 0 | AH9: =TablaInventarios[[#This Row],[Kg/Cab.]]*TablaInventarios[[#This Row],[$/Kg]] -> 0 | AI9: =+TablaInventarios[[#This Row],[Kg.]]*TablaInventarios[[#This Row],[$/Kg]] -> 0 | AJ9: =IF(W9="Fecha ???",0,TablaInventarios[[#This Row],[$ Total (corrientes)]]*IF(AND($S$23=TRUE,$T$19="Dólar Informal"),1/VLOOKUP(TablaInventarios[[#This Row],[Fecha]],Tabla3[],2),IF(AND($S$23=TRUE,$T$19="Dólar Oficial"),1/VLOOKUP(TablaInventarios[[#This Row],[Fecha]],Tabla5[],2),IF(AND($S$23=TRUE,$T$19="SIPM"),VLOOKUP(DATE(YEAR(DATE(YEAR($W9),MONTH($W9),DAY($W9))-1),MONTH(DATE(YEAR($W9),MONTH($W9),DAY($W9))-1),1),Indices[[Fecha]:[Indice SIPM]],2,FALSE))))) -> 0
A10: =+TablaInventarios[[#This Row],[Categoría]] -> Terneros al pie | B10: =+VLOOKUP(TablaInventarios[[#This Row],[Categoria]],TablaInventarios[[Categoría]:[Actividad]],2,FALSE) -> Cría | C10: =+SUMPRODUCT((TablaInventarios[[#This Row],[Categoria]]=TablaInventarios[Categoria])*TablaInventarios[Cab.])+SUMPRODUCT((TablaInventarios[[#This Row],[Categoria]]=TablaMovimientos[Categoría])*(TablaMovimientos[Cab.])*(TablaMovimientos[Fecha]<=$N$19)) -> 0 | D10: =IF(TablaInventarios[[#This Row],[Cab. Inicio período]]=0,0,(SUMPRODUCT((TablaInventarios[[#This Row],[Categoria]]=TablaInventarios[Categoria])*(TablaInventarios[Kg.]))+SUMPRODUCT((TablaInventarios[[#This Row],[Categoria]]=TablaMovimientos[Categoría])*(TablaMovimientos[Kg.])*(TablaMovimientos[Fecha]<=$N$19)))/TablaInventarios[[#This Row],[Cab. Inicio período]]) -> 0 | E10: =SUMPRODUCT((TablaInventarios[[#This Row],[Categoria]]=TablaInventarios[Categoria])*TablaInventarios[Kg.])+SUMPRODUCT((TablaInventarios[[#This Row],[Categoria]]=TablaMovimientos[Categoría])*(TablaMovimientos[Cab.])*(TablaMovimientos[Fecha]<=$N$19)) -> 0 | F10: =IF(TablaInventarios[[#This Row],[Kg. Totales Inicio período]]=0,0,TablaInventarios[[#This Row],[$ Total IP (corrientes)]]/TablaInventarios[[#This Row],[Kg. Totales Inicio período]]) -> 0 | G10: =+IF(TablaInventarios[[#This Row],[Cab. Inicio período]]=0,0,TablaInventarios[[#This Row],[$ Total IP (corrientes)]]/TablaInventarios[[#This Row],[Cab. Inicio período]]) -> 0 | H10: =+SUMPRODUCT((TablaInventarios[[#This Row],[Categoria]]=TablaInventarios[Categoria])*TablaInventarios[$ Total (corrientes)])+SUMPRODUCT((TablaInventarios[[#This Row],[Categoria]]=TablaMovimientos[Categoría])*(TablaMovimientos[Total $ corr-tes])*(TablaMovimientos[Fecha]<=$N$19)) -> 0 | I10: =IF($N$19=0,0,TablaInventarios[[#This Row],[$ Total IP (corrientes)]]*IF($S$23=FALSE,0,IF($T$19="SIPM",VLOOKUP(DATE(YEAR($N$19),MONTH($N$19)+IF(DAY($N$19)=1,-1,0),1),Indices[[Fecha]:[Indice SIPM]],2,FALSE),IF($T$19="Dólar Oficial",1/VLOOKUP(DATE(YEAR($N$19),MONTH($N$19),DAY($N$19)+IF(DAY($N$19)=1,-1,0)),Tabla5[],2),IF($T$19="Dólar Informal",1/VLOOKUP(DATE(YEAR($N$19),MONTH($N$19),DAY($N$19)+IF(DAY($N$19)=1,-1,0)),Tabla3[],2)))))) -> 0 | J10: =+SUMPRODUCT((TablaInventarios[[#This Row],[Categoria]]=TablaInventarios[Categoria])*(TablaInventarios[Cab. Inicio período]))+SUMPRODUCT((TablaInventarios[[#This Row],[Categoria]]=TablaMovimientos[Categoría])*(TablaMovimientos[Cab.])*(TablaMovimientos[Fecha]>$N$19)*(TablaMovimientos[Fecha]<=$P$19)) -> 0 | K10: =IFERROR(TablaInventarios[[#This Row],[Kg. Totales Stock]]/TablaInventarios[[#This Row],[Cab. Stock]],0) -> 0 | L10: =+SUMPRODUCT((TablaInventarios[[#This Row],[Categoria]]=TablaInventarios[Categoria])*(TablaInventarios[Kg. Totales Inicio período]))+SUMPRODUCT((TablaInventarios[[#This Row],[Categoria]]=TablaMovimientos[Categoría])*(TablaMovimientos[Kg.])*(TablaMovimientos[Fecha]>$N$19)*(TablaMovimientos[Fecha]<=$P$19)) -> 0 | M10: =IF(TablaInventarios[[#This Row],[Kg. Totales Stock]]=0,TablaInventarios[[#This Row],[$/Kg. al Cierre]],IFERROR(TablaInventarios[[#This Row],[$ Total FP (corrientes)]]/TablaInventarios[[#This Row],[Kg. Totales Stock]],0)) -> 0 | N10: =IFERROR(TablaInventarios[[#This Row],[$ Total FP (corrientes)]]/TablaInventarios[[#This Row],[Cab. Stock]],0) -> 0 | O10: =+SUMPRODUCT((TablaInventarios[[#This Row],[Categoria]]=TablaInventarios[Categoria])*(TablaInventarios[$ Total IP (corrientes)]))+SUMPRODUCT((TablaInventarios[[#This Row],[Categoria]]=TablaMovimientos[Categoría])*(TablaMovimientos[Total $ corr-tes])*(TablaMovimientos[Fecha]>$N$19)*(TablaMovimientos[Fecha]<=$P$19)) -> 0 | P10: =IF($P$19=0,0,TablaInventarios[[#This Row],[$ Total FP (corrientes)]]*IF($S$23=FALSE,0,IF($T$19="SIPM",VLOOKUP(DATE(YEAR($P$19),MONTH($P$19),1),Indices[[Fecha]:[Indice SIPM]],2,FALSE),IF($T$19="Dólar Oficial",1/VLOOKUP(DATE(YEAR($P$19),MONTH($P$19),DAY($P$19)),Tabla5[],2),IF($T$19="Dólar Informal",1/VLOOKUP(DATE(YEAR($P$19),MONTH($P$19),DAY($P$19)),Tabla3[],2)))))) -> 0 | S10: =TablaInventarios[[#This Row],[Kg./Cab. al Cierre]]*TablaInventarios[[#This Row],[$/Kg. al Cierre]] -> 0 | T10: =TablaInventarios[[#This Row],[Cab. Stock]]*TablaInventarios[[#This Row],[Kg./Cab. al Cierre]]-TablaInventarios[[#This Row],[Kg. Totales Stock]] -> 0 | U10: =TablaInventarios[[#This Row],[Cab. Stock]]*TablaInventarios[[#This Row],[Kg./Cab. al Cierre]]*TablaInventarios[[#This Row],[$/Kg. al Cierre]]-TablaInventarios[[#This Row],[$ Total FP (corrientes)]] -> 0 | W10: Fecha ??? | X10: Inventario de inicio | Y10: Terneros al pie | Z10: Cría | AA10: AC | AD10: =+TablaInventarios[[#This Row],[Cabezas]] -> 0 | AF10: =+TablaInventarios[[#This Row],[Cabezas]]*TablaInventarios[[#This Row],[Kg/Cab.]] -> 0 | AH10: =TablaInventarios[[#This Row],[Kg/Cab.]]*TablaInventarios[[#This Row],[$/Kg]] -> 0 | AI10: =+TablaInventarios[[#This Row],[Kg.]]*TablaInventarios[[#This Row],[$/Kg]] -> 0 | AJ10: =IF(W10="Fecha ???",0,TablaInventarios[[#This Row],[$ Total (corrientes)]]*IF(AND($S$23=TRUE,$T$19="Dólar Informal"),1/VLOOKUP(TablaInventarios[[#This Row],[Fecha]],Tabla3[],2),IF(AND($S$23=TRUE,$T$19="Dólar Oficial"),1/VLOOKUP(TablaInventarios[[#This Row],[Fecha]],Tabla5[],2),IF(AND($S$23=TRUE,$T$19="SIPM"),VLOOKUP(DATE(YEAR(DATE(YEAR($W10),MONTH($W10),DAY($W10))-1),MONTH(DATE(YEAR($W10),MONTH($W10),DAY($W10))-1),1),Indices[[Fecha]:[Indice SIPM]],2,FALSE))))) -> 0
A11: =+TablaInventarios[[#This Row],[Categoría]] -> Toros refugo | B11: =+VLOOKUP(TablaInventarios[[#This Row],[Categoria]],TablaInventarios[[Categoría]:[Actividad]],2,FALSE) -> Cría | C11: =+SUMPRODUCT((TablaInventarios[[#This Row],[Categoria]]=TablaInventarios[Categoria])*TablaInventarios[Cab.])+SUMPRODUCT((TablaInventarios[[#This Row],[Categoria]]=TablaMovimientos[Categoría])*(TablaMovimientos[Cab.])*(TablaMovimientos[Fecha]<=$N$19)) -> 0 | D11: =IF(TablaInventarios[[#This Row],[Cab. Inicio período]]=0,0,(SUMPRODUCT((TablaInventarios[[#This Row],[Categoria]]=TablaInventarios[Categoria])*(TablaInventarios[Kg.]))+SUMPRODUCT((TablaInventarios[[#This Row],[Categoria]]=TablaMovimientos[Categoría])*(TablaMovimientos[Kg.])*(TablaMovimientos[Fecha]<=$N$19)))/TablaInventarios[[#This Row],[Cab. Inicio período]]) -> 0 | E11: =SUMPRODUCT((TablaInventarios[[#This Row],[Categoria]]=TablaInventarios[Categoria])*TablaInventarios[Kg.])+SUMPRODUCT((TablaInventarios[[#This Row],[Categoria]]=TablaMovimientos[Categoría])*(TablaMovimientos[Cab.])*(TablaMovimientos[Fecha]<=$N$19)) -> 0 | F11: =IF(TablaInventarios[[#This Row],[Kg. Totales Inicio período]]=0,0,TablaInventarios[[#This Row],[$ Total IP (corrientes)]]/TablaInventarios[[#This Row],[Kg. Totales Inicio período]]) -> 0 | G11: =+IF(TablaInventarios[[#This Row],[Cab. Inicio período]]=0,0,TablaInventarios[[#This Row],[$ Total IP (corrientes)]]/TablaInventarios[[#This Row],[Cab. Inicio período]]) -> 0 | H11: =+SUMPRODUCT((TablaInventarios[[#This Row],[Categoria]]=TablaInventarios[Categoria])*TablaInventarios[$ Total (corrientes)])+SUMPRODUCT((TablaInventarios[[#This Row],[Categoria]]=TablaMovimientos[Categoría])*(TablaMovimientos[Total $ corr-tes])*(TablaMovimientos[Fecha]<=$N$19)) -> 0 | I11: =IF($N$19=0,0,TablaInventarios[[#This Row],[$ Total IP (corrientes)]]*IF($S$23=FALSE,0,IF($T$19="SIPM",VLOOKUP(DATE(YEAR($N$19),MONTH($N$19)+IF(DAY($N$19)=1,-1,0),1),Indices[[Fecha]:[Indice SIPM]],2,FALSE),IF($T$19="Dólar Oficial",1/VLOOKUP(DATE(YEAR($N$19),MONTH($N$19),DAY($N$19)+IF(DAY($N$19)=1,-1,0)),Tabla5[],2),IF($T$19="Dólar Informal",1/VLOOKUP(DATE(YEAR($N$19),MONTH($N$19),DAY($N$19)+IF(DAY($N$19)=1,-1,0)),Tabla3[],2)))))) -> 0 | J11: =+SUMPRODUCT((TablaInventarios[[#This Row],[Categoria]]=TablaInventarios[Categoria])*(TablaInventarios[Cab. Inicio período]))+SUMPRODUCT((TablaInventarios[[#This Row],[Categoria]]=TablaMovimientos[Categoría])*(TablaMovimientos[Cab.])*(TablaMovimientos[Fecha]>$N$19)*(TablaMovimientos[Fecha]<=$P$19)) -> 0 | K11: =IFERROR(TablaInventarios[[#This Row],[Kg. Totales Stock]]/TablaInventarios[[#This Row],[Cab. Stock]],0) -> 0 | L11: =+SUMPRODUCT((TablaInventarios[[#This Row],[Categoria]]=TablaInventarios[Categoria])*(TablaInventarios[Kg. Totales Inicio período]))+SUMPRODUCT((TablaInventarios[[#This Row],[Categoria]]=TablaMovimientos[Categoría])*(TablaMovimientos[Kg.])*(TablaMovimientos[Fecha]>$N$19)*(TablaMovimientos[Fecha]<=$P$19)) -> 0 | M11: =IF(TablaInventarios[[#This Row],[Kg. Totales Stock]]=0,TablaInventarios[[#This Row],[$/Kg. al Cierre]],IFERROR(TablaInventarios[[#This Row],[$ Total FP (corrientes)]]/TablaInventarios[[#This Row],[Kg. Totales Stock]],0)) -> 0 | N11: =IFERROR(TablaInventarios[[#This Row],[$ Total FP (corrientes)]]/TablaInventarios[[#This Row],[Cab. Stock]],0) -> 0 | O11: =+SUMPRODUCT((TablaInventarios[[#This Row],[Categoria]]=TablaInventarios[Categoria])*(TablaInventarios[$ Total IP (corrientes)]))+SUMPRODUCT((TablaInventarios[[#This Row],[Categoria]]=TablaMovimientos[Categoría])*(TablaMovimientos[Total $ corr-tes])*(TablaMovimientos[Fecha]>$N$19)*(TablaMovimientos[Fecha]<=$P$19)) -> 0 | P11: =IF($P$19=0,0,TablaInventarios[[#This Row],[$ Total FP (corrientes)]]*IF($S$23=FALSE,0,IF($T$19="SIPM",VLOOKUP(DATE(YEAR($P$19),MONTH($P$19),1),Indices[[Fecha]:[Indice SIPM]],2,FALSE),IF($T$19="Dólar Oficial",1/VLOOKUP(DATE(YEAR($P$19),MONTH($P$19),DAY($P$19)),Tabla5[],2),IF($T$19="Dólar Informal",1/VLOOKUP(DATE(YEAR($P$19),MONTH($P$19),DAY($P$19)),Tabla3[],2)))))) -> 0 | S11: =TablaInventarios[[#This Row],[Kg./Cab. al Cierre]]*TablaInventarios[[#This Row],[$/Kg. al Cierre]] -> 0 | T11: =TablaInventarios[[#This Row],[Cab. Stock]]*TablaInventarios[[#This Row],[Kg./Cab. al Cierre]]-TablaInventarios[[#This Row],[Kg. Totales Stock]] -> 0 | U11: =TablaInventarios[[#This Row],[Cab. Stock]]*TablaInventarios[[#This Row],[Kg./Cab. al Cierre]]*TablaInventarios[[#This Row],[$/Kg. al Cierre]]-TablaInventarios[[#This Row],[$ Total FP (corrientes)]] -> 0 | W11: Fecha ??? | X11: Inventario de inicio | Y11: Toros refugo | Z11: Cría | AA11: AC | AD11: =+TablaInventarios[[#This Row],[Cabezas]] -> 0 | AF11: =+TablaInventarios[[#This Row],[Cabezas]]*TablaInventarios[[#This Row],[Kg/Cab.]] -> 0 | AH11: =TablaInventarios[[#This Row],[Kg/Cab.]]*TablaInventarios[[#This Row],[$/Kg]] -> 0 | AI11: =+TablaInventarios[[#This Row],[Kg.]]*TablaInventarios[[#This Row],[$/Kg]] -> 0 | AJ11: =IF(W11="Fecha ???",0,TablaInventarios[[#This Row],[$ Total (corrientes)]]*IF(AND($S$23=TRUE,$T$19="Dólar Informal"),1/VLOOKUP(TablaInventarios[[#This Row],[Fecha]],Tabla3[],2),IF(AND($S$23=TRUE,$T$19="Dólar Oficial"),1/VLOOKUP(TablaInventarios[[#This Row],[Fecha]],Tabla5[],2),IF(AND($S$23=TRUE,$T$19="SIPM"),VLOOKUP(DATE(YEAR(DATE(YEAR($W11),MONTH($W11),DAY($W11))-1),MONTH(DATE(YEAR($W11),MONTH($W11),DAY($W11))-1),1),Indices[[Fecha]:[Indice SIPM]],2,FALSE))))) -> 0
A12: =+TablaInventarios[[#This Row],[Categoría]] -> Vacas refugo | B12: =+VLOOKUP(TablaInventarios[[#This Row],[Categoria]],TablaInventarios[[Categoría]:[Actividad]],2,FALSE) -> Cría | C12: =+SUMPRODUCT((TablaInventarios[[#This Row],[Categoria]]=TablaInventarios[Categoria])*TablaInventarios[Cab.])+SUMPRODUCT((TablaInventarios[[#This Row],[Categoria]]=TablaMovimientos[Categoría])*(TablaMovimientos[Cab.])*(TablaMovimientos[Fecha]<=$N$19)) -> 0 | D12: =IF(TablaInventarios[[#This Row],[Cab. Inicio período]]=0,0,(SUMPRODUCT((TablaInventarios[[#This Row],[Categoria]]=TablaInventarios[Categoria])*(TablaInventarios[Kg.]))+SUMPRODUCT((TablaInventarios[[#This Row],[Categoria]]=TablaMovimientos[Categoría])*(TablaMovimientos[Kg.])*(TablaMovimientos[Fecha]<=$N$19)))/TablaInventarios[[#This Row],[Cab. Inicio período]]) -> 0 | E12: =SUMPRODUCT((TablaInventarios[[#This Row],[Categoria]]=TablaInventarios[Categoria])*TablaInventarios[Kg.])+SUMPRODUCT((TablaInventarios[[#This Row],[Categoria]]=TablaMovimientos[Categoría])*(TablaMovimientos[Cab.])*(TablaMovimientos[Fecha]<=$N$19)) -> 0 | F12: =IF(TablaInventarios[[#This Row],[Kg. Totales Inicio período]]=0,0,TablaInventarios[[#This Row],[$ Total IP (corrientes)]]/TablaInventarios[[#This Row],[Kg. Totales Inicio período]]) -> 0 | G12: =+IF(TablaInventarios[[#This Row],[Cab. Inicio período]]=0,0,TablaInventarios[[#This Row],[$ Total IP (corrientes)]]/TablaInventarios[[#This Row],[Cab. Inicio período]]) -> 0 | H12: =+SUMPRODUCT((TablaInventarios[[#This Row],[Categoria]]=TablaInventarios[Categoria])*TablaInventarios[$ Total (corrientes)])+SUMPRODUCT((TablaInventarios[[#This Row],[Categoria]]=TablaMovimientos[Categoría])*(TablaMovimientos[Total $ corr-tes])*(TablaMovimientos[Fecha]<=$N$19)) -> 0 | I12: =IF($N$19=0,0,TablaInventarios[[#This Row],[$ Total IP (corrientes)]]*IF($S$23=FALSE,0,IF($T$19="SIPM",VLOOKUP(DATE(YEAR($N$19),MONTH($N$19)+IF(DAY($N$19)=1,-1,0),1),Indices[[Fecha]:[Indice SIPM]],2,FALSE),IF($T$19="Dólar Oficial",1/VLOOKUP(DATE(YEAR($N$19),MONTH($N$19),DAY($N$19)+IF(DAY($N$19)=1,-1,0)),Tabla5[],2),IF($T$19="Dólar Informal",1/VLOOKUP(DATE(YEAR($N$19),MONTH($N$19),DAY($N$19)+IF(DAY($N$19)=1,-1,0)),Tabla3[],2)))))) -> 0 | J12: =+SUMPRODUCT((TablaInventarios[[#This Row],[Categoria]]=TablaInventarios[Categoria])*(TablaInventarios[Cab. Inicio período]))+SUMPRODUCT((TablaInventarios[[#This Row],[Categoria]]=TablaMovimientos[Categoría])*(TablaMovimientos[Cab.])*(TablaMovimientos[Fecha]>$N$19)*(TablaMovimientos[Fecha]<=$P$19)) -> 0 | K12: =IFERROR(TablaInventarios[[#This Row],[Kg. Totales Stock]]/TablaInventarios[[#This Row],[Cab. Stock]],0) -> 0 | L12: =+SUMPRODUCT((TablaInventarios[[#This Row],[Categoria]]=TablaInventarios[Categoria])*(TablaInventarios[Kg. Totales Inicio período]))+SUMPRODUCT((TablaInventarios[[#This Row],[Categoria]]=TablaMovimientos[Categoría])*(TablaMovimientos[Kg.])*(TablaMovimientos[Fecha]>$N$19)*(TablaMovimientos[Fecha]<=$P$19)) -> 0 | M12: =IF(TablaInventarios[[#This Row],[Kg. Totales Stock]]=0,TablaInventarios[[#This Row],[$/Kg. al Cierre]],IFERROR(TablaInventarios[[#This Row],[$ Total FP (corrientes)]]/TablaInventarios[[#This Row],[Kg. Totales Stock]],0)) -> 0 | N12: =IFERROR(TablaInventarios[[#This Row],[$ Total FP (corrientes)]]/TablaInventarios[[#This Row],[Cab. Stock]],0) -> 0 | O12: =+SUMPRODUCT((TablaInventarios[[#This Row],[Categoria]]=TablaInventarios[Categoria])*(TablaInventarios[$ Total IP (corrientes)]))+SUMPRODUCT((TablaInventarios[[#This Row],[Categoria]]=TablaMovimientos[Categoría])*(TablaMovimientos[Total $ corr-tes])*(TablaMovimientos[Fecha]>$N$19)*(TablaMovimientos[Fecha]<=$P$19)) -> 0 | P12: =IF($P$19=0,0,TablaInventarios[[#This Row],[$ Total FP (corrientes)]]*IF($S$23=FALSE,0,IF($T$19="SIPM",VLOOKUP(DATE(YEAR($P$19),MONTH($P$19),1),Indices[[Fecha]:[Indice SIPM]],2,FALSE),IF($T$19="Dólar Oficial",1/VLOOKUP(DATE(YEAR($P$19),MONTH($P$19),DAY($P$19)),Tabla5[],2),IF($T$19="Dólar Informal",1/VLOOKUP(DATE(YEAR($P$19),MONTH($P$19),DAY($P$19)),Tabla3[],2)))))) -> 0 | S12: =TablaInventarios[[#This Row],[Kg./Cab. al Cierre]]*TablaInventarios[[#This Row],[$/Kg. al Cierre]] -> 0 | T12: =TablaInventarios[[#This Row],[Cab. Stock]]*TablaInventarios[[#This Row],[Kg./Cab. al Cierre]]-TablaInventarios[[#This Row],[Kg. Totales Stock]] -> 0 | U12: =TablaInventarios[[#This Row],[Cab. Stock]]*TablaInventarios[[#This Row],[Kg./Cab. al Cierre]]*TablaInventarios[[#This Row],[$/Kg. al Cierre]]-TablaInventarios[[#This Row],[$ Total FP (corrientes)]] -> 0 | W12: Fecha ??? | X12: Inventario de inicio | Y12: Vacas refugo | Z12: Cría | AA12: AC | AD12: =+TablaInventarios[[#This Row],[Cabezas]] -> 0 | AF12: =+TablaInventarios[[#This Row],[Cabezas]]*TablaInventarios[[#This Row],[Kg/Cab.]] -> 0 | AH12: =TablaInventarios[[#This Row],[Kg/Cab.]]*TablaInventarios[[#This Row],[$/Kg]] -> 0 | AI12: =+TablaInventarios[[#This Row],[Kg.]]*TablaInventarios[[#This Row],[$/Kg]] -> 0 | AJ12: =IF(W12="Fecha ???",0,TablaInventarios[[#This Row],[$ Total (corrientes)]]*IF(AND($S$23=TRUE,$T$19="Dólar Informal"),1/VLOOKUP(TablaInventarios[[#This Row],[Fecha]],Tabla3[],2),IF(AND($S$23=TRUE,$T$19="Dólar Oficial"),1/VLOOKUP(TablaInventarios[[#This Row],[Fecha]],Tabla5[],2),IF(AND($S$23=TRUE,$T$19="SIPM"),VLOOKUP(DATE(YEAR(DATE(YEAR($W12),MONTH($W12),DAY($W12))-1),MONTH(DATE(YEAR($W12),MONTH($W12),DAY($W12))-1),1),Indices[[Fecha]:[Indice SIPM]],2,FALSE))))) -> 0
A13: =+TablaInventarios[[#This Row],[Categoría]] -> Novillitos 260-300 | B13: =+VLOOKUP(TablaInventarios[[#This Row],[Categoria]],TablaInventarios[[Categoría]:[Actividad]],2,FALSE) -> Recría | C13: =+SUMPRODUCT((TablaInventarios[[#This Row],[Categoria]]=TablaInventarios[Categoria])*TablaInventarios[Cab.])+SUMPRODUCT((TablaInventarios[[#This Row],[Categoria]]=TablaMovimientos[Categoría])*(TablaMovimientos[Cab.])*(TablaMovimientos[Fecha]<=$N$19)) -> 0 | D13: =IF(TablaInventarios[[#This Row],[Cab. Inicio período]]=0,0,(SUMPRODUCT((TablaInventarios[[#This Row],[Categoria]]=TablaInventarios[Categoria])*(TablaInventarios[Kg.]))+SUMPRODUCT((TablaInventarios[[#This Row],[Categoria]]=TablaMovimientos[Categoría])*(TablaMovimientos[Kg.])*(TablaMovimientos[Fecha]<=$N$19)))/TablaInventarios[[#This Row],[Cab. Inicio período]]) -> 0 | E13: =SUMPRODUCT((TablaInventarios[[#This Row],[Categoria]]=TablaInventarios[Categoria])*TablaInventarios[Kg.])+SUMPRODUCT((TablaInventarios[[#This Row],[Categoria]]=TablaMovimientos[Categoría])*(TablaMovimientos[Cab.])*(TablaMovimientos[Fecha]<=$N$19)) -> 0 | F13: =IF(TablaInventarios[[#This Row],[Kg. Totales Inicio período]]=0,0,TablaInventarios[[#This Row],[$ Total IP (corrientes)]]/TablaInventarios[[#This Row],[Kg. Totales Inicio período]]) -> 0 | G13: =+IF(TablaInventarios[[#This Row],[Cab. Inicio período]]=0,0,TablaInventarios[[#This Row],[$ Total IP (corrientes)]]/TablaInventarios[[#This Row],[Cab. Inicio período]]) -> 0 | H13: =+SUMPRODUCT((TablaInventarios[[#This Row],[Categoria]]=TablaInventarios[Categoria])*TablaInventarios[$ Total (corrientes)])+SUMPRODUCT((TablaInventarios[[#This Row],[Categoria]]=TablaMovimientos[Categoría])*(TablaMovimientos[Total $ corr-tes])*(TablaMovimientos[Fecha]<=$N$19)) -> 0 | I13: =IF($N$19=0,0,TablaInventarios[[#This Row],[$ Total IP (corrientes)]]*IF($S$23=FALSE,0,IF($T$19="SIPM",VLOOKUP(DATE(YEAR($N$19),MONTH($N$19)+IF(DAY($N$19)=1,-1,0),1),Indices[[Fecha]:[Indice SIPM]],2,FALSE),IF($T$19="Dólar Oficial",1/VLOOKUP(DATE(YEAR($N$19),MONTH($N$19),DAY($N$19)+IF(DAY($N$19)=1,-1,0)),Tabla5[],2),IF($T$19="Dólar Informal",1/VLOOKUP(DATE(YEAR($N$19),MONTH($N$19),DAY($N$19)+IF(DAY($N$19)=1,-1,0)),Tabla3[],2)))))) -> 0 | J13: =+SUMPRODUCT((TablaInventarios[[#This Row],[Categoria]]=TablaInventarios[Categoria])*(TablaInventarios[Cab. Inicio período]))+SUMPRODUCT((TablaInventarios[[#This Row],[Categoria]]=TablaMovimientos[Categoría])*(TablaMovimientos[Cab.])*(TablaMovimientos[Fecha]>$N$19)*(TablaMovimientos[Fecha]<=$P$19)) -> 0 | K13: =IFERROR(TablaInventarios[[#This Row],[Kg. Totales Stock]]/TablaInventarios[[#This Row],[Cab. Stock]],0) -> 0 | L13: =+SUMPRODUCT((TablaInventarios[[#This Row],[Categoria]]=TablaInventarios[Categoria])*(TablaInventarios[Kg. Totales Inicio período]))+SUMPRODUCT((TablaInventarios[[#This Row],[Categoria]]=TablaMovimientos[Categoría])*(TablaMovimientos[Kg.])*(TablaMovimientos[Fecha]>$N$19)*(TablaMovimientos[Fecha]<=$P$19)) -> 0 | M13: =IF(TablaInventarios[[#This Row],[Kg. Totales Stock]]=0,TablaInventarios[[#This Row],[$/Kg. al Cierre]],IFERROR(TablaInventarios[[#This Row],[$ Total FP (corrientes)]]/TablaInventarios[[#This Row],[Kg. Totales Stock]],0)) -> 0 | N13: =IFERROR(TablaInventarios[[#This Row],[$ Total FP (corrientes)]]/TablaInventarios[[#This Row],[Cab. Stock]],0) -> 0 | O13: =+SUMPRODUCT((TablaInventarios[[#This Row],[Categoria]]=TablaInventarios[Categoria])*(TablaInventarios[$ Total IP (corrientes)]))+SUMPRODUCT((TablaInventarios[[#This Row],[Categoria]]=TablaMovimientos[Categoría])*(TablaMovimientos[Total $ corr-tes])*(TablaMovimientos[Fecha]>$N$19)*(TablaMovimientos[Fecha]<=$P$19)) -> 0 | P13: =IF($P$19=0,0,TablaInventarios[[#This Row],[$ Total FP (corrientes)]]*IF($S$23=FALSE,0,IF($T$19="SIPM",VLOOKUP(DATE(YEAR($P$19),MONTH($P$19),1),Indices[[Fecha]:[Indice SIPM]],2,FALSE),IF($T$19="Dólar Oficial",1/VLOOKUP(DATE(YEAR($P$19),MONTH($P$19),DAY($P$19)),Tabla5[],2),IF($T$19="Dólar Informal",1/VLOOKUP(DATE(YEAR($P$19),MONTH($P$19),DAY($P$19)),Tabla3[],2)))))) -> 0 | S13: =TablaInventarios[[#This Row],[Kg./Cab. al Cierre]]*TablaInventarios[[#This Row],[$/Kg. al Cierre]] -> 0 | T13: =TablaInventarios[[#This Row],[Cab. Stock]]*TablaInventarios[[#This Row],[Kg./Cab. al Cierre]]-TablaInventarios[[#This Row],[Kg. Totales Stock]] -> 0 | U13: =TablaInventarios[[#This Row],[Cab. Stock]]*TablaInventarios[[#This Row],[Kg./Cab. al Cierre]]*TablaInventarios[[#This Row],[$/Kg. al Cierre]]-TablaInventarios[[#This Row],[$ Total FP (corrientes)]] -> 0 | W13: Fecha ??? | X13: ="Inventario de inicio" -> Inventario de inicio | Y13: Novillitos 260-300 | Z13: Recría | AA13: AC | AD13: =+TablaInventarios[[#This Row],[Cabezas]] -> 0 | AF13: =+TablaInventarios[[#This Row],[Cabezas]]*TablaInventarios[[#This Row],[Kg/Cab.]] -> 0 | AH13: =TablaInventarios[[#This Row],[Kg/Cab.]]*TablaInventarios[[#This Row],[$/Kg]] -> 0 | AI13: =+TablaInventarios[[#This Row],[Kg.]]*TablaInventarios[[#This Row],[$/Kg]] -> 0 | AJ13: =IF(W13="Fecha ???",0,TablaInventarios[[#This Row],[$ Total (corrientes)]]*IF(AND($S$23=TRUE,$T$19="Dólar Informal"),1/VLOOKUP(TablaInventarios[[#This Row],[Fecha]],Tabla3[],2),IF(AND($S$23=TRUE,$T$19="Dólar Oficial"),1/VLOOKUP(TablaInventarios[[#This Row],[Fecha]],Tabla5[],2),IF(AND($S$23=TRUE,$T$19="SIPM"),VLOOKUP(DATE(YEAR(DATE(YEAR($W13),MONTH($W13),DAY($W13))-1),MONTH(DATE(YEAR($W13),MONTH($W13),DAY($W13))-1),1),Indices[[Fecha]:[Indice SIPM]],2,FALSE))))) -> 0
A14: =+TablaInventarios[[#This Row],[Categoría]] -> Novillitos 230-260 | B14: =+VLOOKUP(TablaInventarios[[#This Row],[Categoria]],TablaInventarios[[Categoría]:[Actividad]],2,FALSE) -> Recría | C14: =+SUMPRODUCT((TablaInventarios[[#This Row],[Categoria]]=TablaInventarios[Categoria])*TablaInventarios[Cab.])+SUMPRODUCT((TablaInventarios[[#This Row],[Categoria]]=TablaMovimientos[Categoría])*(TablaMovimientos[Cab.])*(TablaMovimientos[Fecha]<=$N$19)) -> 0 | D14: =IF(TablaInventarios[[#This Row],[Cab. Inicio período]]=0,0,(SUMPRODUCT((TablaInventarios[[#This Row],[Categoria]]=TablaInventarios[Categoria])*(TablaInventarios[Kg.]))+SUMPRODUCT((TablaInventarios[[#This Row],[Categoria]]=TablaMovimientos[Categoría])*(TablaMovimientos[Kg.])*(TablaMovimientos[Fecha]<=$N$19)))/TablaInventarios[[#This Row],[Cab. Inicio período]]) -> 0 | E14: =SUMPRODUCT((TablaInventarios[[#This Row],[Categoria]]=TablaInventarios[Categoria])*TablaInventarios[Kg.])+SUMPRODUCT((TablaInventarios[[#This Row],[Categoria]]=TablaMovimientos[Categoría])*(TablaMovimientos[Cab.])*(TablaMovimientos[Fecha]<=$N$19)) -> 0 | F14: =IF(TablaInventarios[[#This Row],[Kg. Totales Inicio período]]=0,0,TablaInventarios[[#This Row],[$ Total IP (corrientes)]]/TablaInventarios[[#This Row],[Kg. Totales Inicio período]]) -> 0 | G14: =+IF(TablaInventarios[[#This Row],[Cab. Inicio período]]=0,0,TablaInventarios[[#This Row],[$ Total IP (corrientes)]]/TablaInventarios[[#This Row],[Cab. Inicio período]]) -> 0 | H14: =+SUMPRODUCT((TablaInventarios[[#This Row],[Categoria]]=TablaInventarios[Categoria])*TablaInventarios[$ Total (corrientes)])+SUMPRODUCT((TablaInventarios[[#This Row],[Categoria]]=TablaMovimientos[Categoría])*(TablaMovimientos[Total $ corr-tes])*(TablaMovimientos[Fecha]<=$N$19)) -> 0 | I14: =IF($N$19=0,0,TablaInventarios[[#This Row],[$ Total IP (corrientes)]]*IF($S$23=FALSE,0,IF($T$19="SIPM",VLOOKUP(DATE(YEAR($N$19),MONTH($N$19)+IF(DAY($N$19)=1,-1,0),1),Indices[[Fecha]:[Indice SIPM]],2,FALSE),IF($T$19="Dólar Oficial",1/VLOOKUP(DATE(YEAR($N$19),MONTH($N$19),DAY($N$19)+IF(DAY($N$19)=1,-1,0)),Tabla5[],2),IF($T$19="Dólar Informal",1/VLOOKUP(DATE(YEAR($N$19),MONTH($N$19),DAY($N$19)+IF(DAY($N$19)=1,-1,0)),Tabla3[],2)))))) -> 0 | J14: =+SUMPRODUCT((TablaInventarios[[#This Row],[Categoria]]=TablaInventarios[Categoria])*(TablaInventarios[Cab. Inicio período]))+SUMPRODUCT((TablaInventarios[[#This Row],[Categoria]]=TablaMovimientos[Categoría])*(TablaMovimientos[Cab.])*(TablaMovimientos[Fecha]>$N$19)*(TablaMovimientos[Fecha]<=$P$19)) -> 0 | K14: =IFERROR(TablaInventarios[[#This Row],[Kg. Totales Stock]]/TablaInventarios[[#This Row],[Cab. Stock]],0) -> 0 | L14: =+SUMPRODUCT((TablaInventarios[[#This Row],[Categoria]]=TablaInventarios[Categoria])*(TablaInventarios[Kg. Totales Inicio período]))+SUMPRODUCT((TablaInventarios[[#This Row],[Categoria]]=TablaMovimientos[Categoría])*(TablaMovimientos[Kg.])*(TablaMovimientos[Fecha]>$N$19)*(TablaMovimientos[Fecha]<=$P$19)) -> 0 | M14: =IF(TablaInventarios[[#This Row],[Kg. Totales Stock]]=0,TablaInventarios[[#This Row],[$/Kg. al Cierre]],IFERROR(TablaInventarios[[#This Row],[$ Total FP (corrientes)]]/TablaInventarios[[#This Row],[Kg. Totales Stock]],0)) -> 0 | N14: =IFERROR(TablaInventarios[[#This Row],[$ Total FP (corrientes)]]/TablaInventarios[[#This Row],[Cab. Stock]],0) -> 0 | O14: =+SUMPRODUCT((TablaInventarios[[#This Row],[Categoria]]=TablaInventarios[Categoria])*(TablaInventarios[$ Total IP (corrientes)]))+SUMPRODUCT((TablaInventarios[[#This Row],[Categoria]]=TablaMovimientos[Categoría])*(TablaMovimientos[Total $ corr-tes])*(TablaMovimientos[Fecha]>$N$19)*(TablaMovimientos[Fecha]<=$P$19)) -> 0 | P14: =IF($P$19=0,0,TablaInventarios[[#This Row],[$ Total FP (corrientes)]]*IF($S$23=FALSE,0,IF($T$19="SIPM",VLOOKUP(DATE(YEAR($P$19),MONTH($P$19),1),Indices[[Fecha]:[Indice SIPM]],2,FALSE),IF($T$19="Dólar Oficial",1/VLOOKUP(DATE(YEAR($P$19),MONTH($P$19),DAY($P$19)),Tabla5[],2),IF($T$19="Dólar Informal",1/VLOOKUP(DATE(YEAR($P$19),MONTH($P$19),DAY($P$19)),Tabla3[],2)))))) -> 0 | S14: =TablaInventarios[[#This Row],[Kg./Cab. al Cierre]]*TablaInventarios[[#This Row],[$/Kg. al Cierre]] -> 0 | T14: =TablaInventarios[[#This Row],[Cab. Stock]]*TablaInventarios[[#This Row],[Kg./Cab. al Cierre]]-TablaInventarios[[#This Row],[Kg. Totales Stock]] -> 0 | U14: =TablaInventarios[[#This Row],[Cab. Stock]]*TablaInventarios[[#This Row],[Kg./Cab. al Cierre]]*TablaInventarios[[#This Row],[$/Kg. al Cierre]]-TablaInventarios[[#This Row],[$ Total FP (corrientes)]] -> 0 | W14: Fecha ??? | X14: Inventario de inicio | Y14: Novillitos 230-260 | Z14: Recría | AA14: AC | AD14: =+TablaInventarios[[#This Row],[Cabezas]] -> 0 | AF14: =+TablaInventarios[[#This Row],[Cabezas]]*TablaInventarios[[#This Row],[Kg/Cab.]] -> 0 | AH14: =TablaInventarios[[#This Row],[Kg/Cab.]]*TablaInventarios[[#This Row],[$/Kg]] -> 0 | AI14: =+TablaInventarios[[#This Row],[Kg.]]*TablaInventarios[[#This Row],[$/Kg]] -> 0 | AJ14: =IF(W14="Fecha ???",0,TablaInventarios[[#This Row],[$ Total (corrientes)]]*IF(AND($S$23=TRUE,$T$19="Dólar Informal"),1/VLOOKUP(TablaInventarios[[#This Row],[Fecha]],Tabla3[],2),IF(AND($S$23=TRUE,$T$19="Dólar Oficial"),1/VLOOKUP(TablaInventarios[[#This Row],[Fecha]],Tabla5[],2),IF(AND($S$23=TRUE,$T$19="SIPM"),VLOOKUP(DATE(YEAR(DATE(YEAR($W14),MONTH($W14),DAY($W14))-1),MONTH(DATE(YEAR($W14),MONTH($W14),DAY($W14))-1),1),Indices[[Fecha]:[Indice SIPM]],2,FALSE))))) -> 0
A15: =+TablaInventarios[[#This Row],[Categoría]] -> Terneros | B15: =+VLOOKUP(TablaInventarios[[#This Row],[Categoria]],TablaInventarios[[Categoría]:[Actividad]],2,FALSE) -> Recría | C15: =+SUMPRODUCT((TablaInventarios[[#This Row],[Categoria]]=TablaInventarios[Categoria])*TablaInventarios[Cab.])+SUMPRODUCT((TablaInventarios[[#This Row],[Categoria]]=TablaMovimientos[Categoría])*(TablaMovimientos[Cab.])*(TablaMovimientos[Fecha]<=$N$19)) -> 0 | D15: =IF(TablaInventarios[[#This Row],[Cab. Inicio período]]=0,0,(SUMPRODUCT((TablaInventarios[[#This Row],[Categoria]]=TablaInventarios[Categoria])*(TablaInventarios[Kg.]))+SUMPRODUCT((TablaInventarios[[#This Row],[Categoria]]=TablaMovimientos[Categoría])*(TablaMovimientos[Kg.])*(TablaMovimientos[Fecha]<=$N$19)))/TablaInventarios[[#This Row],[Cab. Inicio período]]) -> 0 | E15: =SUMPRODUCT((TablaInventarios[[#This Row],[Categoria]]=TablaInventarios[Categoria])*TablaInventarios[Kg.])+SUMPRODUCT((TablaInventarios[[#This Row],[Categoria]]=TablaMovimientos[Categoría])*(TablaMovimientos[Cab.])*(TablaMovimientos[Fecha]<=$N$19)) -> 0 | F15: =IF(TablaInventarios[[#This Row],[Kg. Totales Inicio período]]=0,0,TablaInventarios[[#This Row],[$ Total IP (corrientes)]]/TablaInventarios[[#This Row],[Kg. Totales Inicio período]]) -> 0 | G15: =+IF(TablaInventarios[[#This Row],[Cab. Inicio período]]=0,0,TablaInventarios[[#This Row],[$ Total IP (corrientes)]]/TablaInventarios[[#This Row],[Cab. Inicio período]]) -> 0 | H15: =+SUMPRODUCT((TablaInventarios[[#This Row],[Categoria]]=TablaInventarios[Categoria])*TablaInventarios[$ Total (corrientes)])+SUMPRODUCT((TablaInventarios[[#This Row],[Categoria]]=TablaMovimientos[Categoría])*(TablaMovimientos[Total $ corr-tes])*(TablaMovimientos[Fecha]<=$N$19)) -> 0 | I15: =IF($N$19=0,0,TablaInventarios[[#This Row],[$ Total IP (corrientes)]]*IF($S$23=FALSE,0,IF($T$19="SIPM",VLOOKUP(DATE(YEAR($N$19),MONTH($N$19)+IF(DAY($N$19)=1,-1,0),1),Indices[[Fecha]:[Indice SIPM]],2,FALSE),IF($T$19="Dólar Oficial",1/VLOOKUP(DATE(YEAR($N$19),MONTH($N$19),DAY($N$19)+IF(DAY($N$19)=1,-1,0)),Tabla5[],2),IF($T$19="Dólar Informal",1/VLOOKUP(DATE(YEAR($N$19),MONTH($N$19),DAY($N$19)+IF(DAY($N$19)=1,-1,0)),Tabla3[],2)))))) -> 0 | J15: =+SUMPRODUCT((TablaInventarios[[#This Row],[Categoria]]=TablaInventarios[Categoria])*(TablaInventarios[Cab. Inicio período]))+SUMPRODUCT((TablaInventarios[[#This Row],[Categoria]]=TablaMovimientos[Categoría])*(TablaMovimientos[Cab.])*(TablaMovimientos[Fecha]>$N$19)*(TablaMovimientos[Fecha]<=$P$19)) -> 0 | K15: =IFERROR(TablaInventarios[[#This Row],[Kg. Totales Stock]]/TablaInventarios[[#This Row],[Cab. Stock]],0) -> 0 | L15: =+SUMPRODUCT((TablaInventarios[[#This Row],[Categoria]]=TablaInventarios[Categoria])*(TablaInventarios[Kg. Totales Inicio período]))+SUMPRODUCT((TablaInventarios[[#This Row],[Categoria]]=TablaMovimientos[Categoría])*(TablaMovimientos[Kg.])*(TablaMovimientos[Fecha]>$N$19)*(TablaMovimientos[Fecha]<=$P$19)) -> 0 | M15: =IF(TablaInventarios[[#This Row],[Kg. Totales Stock]]=0,TablaInventarios[[#This Row],[$/Kg. al Cierre]],IFERROR(TablaInventarios[[#This Row],[$ Total FP (corrientes)]]/TablaInventarios[[#This Row],[Kg. Totales Stock]],0)) -> 0 | N15: =IFERROR(TablaInventarios[[#This Row],[$ Total FP (corrientes)]]/TablaInventarios[[#This Row],[Cab. Stock]],0) -> 0 | O15: =+SUMPRODUCT((TablaInventarios[[#This Row],[Categoria]]=TablaInventarios[Categoria])*(TablaInventarios[$ Total IP (corrientes)]))+SUMPRODUCT((TablaInventarios[[#This Row],[Categoria]]=TablaMovimientos[Categoría])*(TablaMovimientos[Total $ corr-tes])*(TablaMovimientos[Fecha]>$N$19)*(TablaMovimientos[Fecha]<=$P$19)) -> 0 | P15: =IF($P$19=0,0,TablaInventarios[[#This Row],[$ Total FP (corrientes)]]*IF($S$23=FALSE,0,IF($T$19="SIPM",VLOOKUP(DATE(YEAR($P$19),MONTH($P$19),1),Indices[[Fecha]:[Indice SIPM]],2,FALSE),IF($T$19="Dólar Oficial",1/VLOOKUP(DATE(YEAR($P$19),MONTH($P$19),DAY($P$19)),Tabla5[],2),IF($T$19="Dólar Informal",1/VLOOKUP(DATE(YEAR($P$19),MONTH($P$19),DAY($P$19)),Tabla3[],2)))))) -> 0 | S15: =TablaInventarios[[#This Row],[Kg./Cab. al Cierre]]*TablaInventarios[[#This Row],[$/Kg. al Cierre]] -> 0 | T15: =TablaInventarios[[#This Row],[Cab. Stock]]*TablaInventarios[[#This Row],[Kg./Cab. al Cierre]]-TablaInventarios[[#This Row],[Kg. Totales Stock]] -> 0 | U15: =TablaInventarios[[#This Row],[Cab. Stock]]*TablaInventarios[[#This Row],[Kg./Cab. al Cierre]]*TablaInventarios[[#This Row],[$/Kg. al Cierre]]-TablaInventarios[[#This Row],[$ Total FP (corrientes)]] -> 0 | W15: =+W14 -> Fecha ??? | X15: Inventario de inicio | Y15: Terneros | Z15: Recría | AA15: AC | AD15: =+TablaInventarios[[#This Row],[Cabezas]] -> 0 | AF15: =+TablaInventarios[[#This Row],[Cabezas]]*TablaInventarios[[#This Row],[Kg/Cab.]] -> 0 | AH15: =TablaInventarios[[#This Row],[Kg/Cab.]]*TablaInventarios[[#This Row],[$/Kg]] -> 0 | AI15: =+TablaInventarios[[#This Row],[Kg.]]*TablaInventarios[[#This Row],[$/Kg]] -> 0 | AJ15: =IF(W15="Fecha ???",0,TablaInventarios[[#This Row],[$ Total (corrientes)]]*IF(AND($S$23=TRUE,$T$19="Dólar Informal"),1/VLOOKUP(TablaInventarios[[#This Row],[Fecha]],Tabla3[],2),IF(AND($S$23=TRUE,$T$19="Dólar Oficial"),1/VLOOKUP(TablaInventarios[[#This Row],[Fecha]],Tabla5[],2),IF(AND($S$23=TRUE,$T$19="SIPM"),VLOOKUP(DATE(YEAR(DATE(YEAR($W15),MONTH($W15),DAY($W15))-1),MONTH(DATE(YEAR($W15),MONTH($W15),DAY($W15))-1),1),Indices[[Fecha]:[Indice SIPM]],2,FALSE))))) -> 0
A17: TOTAL | B17: =+J19 -> * | C17: =+SUMIFS(TablaInventarios[Cab. Inicio período],TablaInventarios[[Actividad ]],B17) -> 0 | D17: =IF(C17=0,0,E17/C17) -> 0 | E17: =SUMIFS(TablaInventarios[Kg. Totales Inicio período],TablaInventarios[[Actividad ]],B17) -> 0 | F17: =IF(E17=0,0,H17/E17) -> 0 | G17: =IF(C17=0,0,H17/C17) -> 0 | H17: =SUMIFS(TablaInventarios[$ Total IP (corrientes)],TablaInventarios[[Actividad ]],B17) -> 0 | I17: =SUMIFS(TablaInventarios[IP en Valores Actualizados],TablaInventarios[[Actividad ]],B17) -> 0 | J17: =SUMIFS(TablaInventarios[Cab. Stock],TablaInventarios[[Actividad ]],B17) -> 0 | K17: =IF(J17=0,0,L17/J17) -> 0 | L17: =SUMIFS(TablaInventarios[Kg. Totales Stock],TablaInventarios[[Actividad ]],B17) -> 0 | M17: =IF(L17=0,0,O17/L17) -> 0 | N17: =IF(J17=0,0,O17/J17) -> 0 | O17: =SUMIFS(TablaInventarios[$ Total FP (corrientes)],TablaInventarios[[Actividad ]],B17) -> 0 | P17: =SUMIFS(TablaInventarios[FP en Valores Actualizados],TablaInventarios[[Actividad ]],B17) -> 0 | T17: =SUMIFS(Kg._Diferencia,TablaInventarios[[Actividad ]],B17) -> 0 | U17: =SUMIFS(TablaInventarios[$ Total Diferencia],TablaInventarios[[Actividad ]],B17) -> 0 | W17: TOTAL | Y17: TODAS | Z17: =+J19 -> * | AC17: =+SUMIFS(TablaInventarios[Cabezas],TablaInventarios[Actividad],$Z$17) -> 0 | AD17: =+SUMIFS(TablaInventarios[Cab.],TablaInventarios[Actividad],$Z$17) -> 0 | AE17: =IF(AD17=0,0,AF17/AD17) -> 0 | AF17: =+SUMIFS(TablaInventarios[Kg.],TablaInventarios[Actividad],$Z$17) -> 0 | AI17: =+SUMIFS(TablaInventarios[$ Total (corrientes)],TablaInventarios[Actividad],$Z$17) -> 0 | AJ17: =+SUMIFS(TablaInventarios[Valores Actualizados],TablaInventarios[Actividad],$Z$17) -> 0
W18: Movimientos
H19: Actividad | J19: * | L19: =('SIPM (Actualización en $)'!L4-1) -> 12 | N19: 2023-07-01 | P19: 2024-06-30 | R19: Ajustado por | T19: SIPM | W19: Fecha | X19: Movimiento | Y19: Categoría | Z19: Actividad | AA19: Activo | AB19: Comentarios | AC19: Cabezas | AD19: Cab. | AE19: Kg/Cab. | AF19: Kg. | AG19: $/Kg | AH19: $/Cab. | AI19: Total $ corr-tes | AJ19: Valores Actualizados
Z20: =IF(TablaMovimientos[[#This Row],[Categoría]]=0,"",VLOOKUP(TablaMovimientos[[#This Row],[Categoría]],TablaInventarios[[Categoría]:[Actividad]],2,FALSE)) ->  | AA20: =IF(TablaMovimientos[[#This Row],[Categoría]]=0,"",VLOOKUP(TablaMovimientos[[#This Row],[Categoría]],TablaInventarios[[Categoría]:[Tipo de Activo]],3,FALSE)) ->  | AD20: =IF(OR(TablaMovimientos[[#This Row],[Movimiento]]="Kilos Producidos",TablaMovimientos[[#This Row],[Movimiento]]="Res. por Tenencia",TablaMovimientos[[#This Row],[Movimiento]]=0),0,IF(VLOOKUP(TablaMovimientos[[#This Row],[Movimiento]],Movimientos[],2,FALSE)="-",-TablaMovimientos[[#This Row],[Cabezas]],TablaMovimientos[[#This Row],[Cabezas]])) -> 0 | AF20: =+TablaMovimientos[[#This Row],[Cab.]]*TablaMovimientos[[#This Row],[Kg/Cab.]] -> 0 | AH20: =IF(TablaMovimientos[[#This Row],[Movimiento]]="Res. por Tenencia",0,TablaMovimientos[[#This Row],[Kg/Cab.]]*TablaMovimientos[[#This Row],[$/Kg]]) -> 0 | AI20: =+TablaMovimientos[[#This Row],[Kg.]]*TablaMovimientos[[#This Row],[$/Kg]] -> 0 | AJ20: =IF(TablaMovimientos[[#This Row],[Total $ corr-tes]]=0,0,TablaMovimientos[[#This Row],[Total $ corr-tes]]*IF(AND($S$23=TRUE,$T$19="Dólar Informal"),1/VLOOKUP(TablaMovimientos[[#This Row],[Fecha]],Tabla3[],2),IF(AND($S$23=TRUE,$T$19="Dólar Oficial"),1/VLOOKUP(TablaMovimientos[[#This Row],[Fecha]],Tabla5[],2),IF(AND($S$23=TRUE,$T$19="SIPM"),VLOOKUP(DATE(YEAR(DATE(YEAR($W20),MONTH($W20),DAY($W20))-1),MONTH(DATE(YEAR($W20),MONTH($W20),DAY($W20))-1),1),Indices[[Fecha]:[Indice SIPM]],2,FALSE))))) -> 0
A21: GUIA DE AYUDA RÁPIDA: (hacé click sobre cada uno de los pasos) | H21: Producción de Carne e Ingreso Ganadero Metodología de cálculo actual | N21: Producción de Carne e Ingreso Ganadero Metodología de cálculo tradicional . | T21: Valores ajustados a
A23: 1- Completa el inventario de inicio (sólo las celdas grisadas) Tenes que hacerlo sólo la primera vez que cargues los datos. | S23: TRUE | T23: 2024-06-01
J24: Kilos | K24: =IF(S23=TRUE,"$act./Kg","$corr./Kg") -> $act./Kg | L24: Total $ corrientes | M24: Valores Actualiz. | P24: Cabezas | Q24: Kilos | R24: =IF(S23=TRUE,"$act./Kg","$corr./Kg") -> $act./Kg | S24: Total $ corrientes | T24: Valores Actualiz.
H25: Kilos Producidos | J25: =+SUMPRODUCT((H25=TablaMovimientos[Movimiento])*(TablaMovimientos[Kg.])*(TablaMovimientos[Fecha]>$N$19)*(TablaMovimientos[Fecha]<=$P$19)*IF(J19="*",1,(TablaMovimientos[Actividad]=$J$19))) -> 0 | K25: =IF(J25=0,0,IF($S$23=TRUE,M25/J25,L25/J25)) -> 0 | L25: =+SUMPRODUCT((H25=TablaMovimientos[Movimiento])*(TablaMovimientos[Total $ corr-tes])*(TablaMovimientos[Fecha]>$N$19)*(TablaMovimientos[Fecha]<=$P$19)*IF(J19="*",1,(TablaMovimientos[Actividad]=$J$19))) -> 0 | M25: =IF($J$19="*",SUMPRODUCT((H25=TablaMovimientos[Movimiento])*(TablaMovimientos[Valores Actualizados])*(TablaMovimientos[Fecha]>$N$19)*(TablaMovimientos[Fecha]<=$P$19)),SUMPRODUCT((H25=TablaMovimientos[Movimiento])*(TablaMovimientos[Valores Actualizados])*(TablaMovimientos[Fecha]>$N$19)*(TablaMovimientos[Fecha]<=$P$19)*(TablaMovimientos[Actividad]=$J$19))) -> 0 | N25: Venta | P25: =SUMPRODUCT((N25=TablaMovimientos[Movimiento])*(TablaMovimientos[Cab.])*(TablaMovimientos[Fecha]>$N$19)*(TablaMovimientos[Fecha]<=$P$19)*IF(J19="*",1,(TablaMovimientos[Actividad]=$J$19))) -> 0 | Q25: =-SUMPRODUCT((N25=TablaMovimientos[Movimiento])*(TablaMovimientos[Kg.])*(TablaMovimientos[Fecha]>$N$19)*(TablaMovimientos[Fecha]<=$P$19)*IF(J19="*",1,(TablaMovimientos[Actividad]=$J$19))) -> 0 | R25: =IF(Q25=0,0,IF($S$23=TRUE,T25/Q25,S25/Q25)) -> 0 | S25: =-SUMPRODUCT((N25=TablaMovimientos[Movimiento])*(TablaMovimientos[Total $ corr-tes])*(TablaMovimientos[Fecha]>$N$19)*(TablaMovimientos[Fecha]<=$P$19)*IF(J19="*",1,(TablaMovimientos[Actividad]=$J$19))) -> 0 | T25: =IF($J$19="*",-SUMPRODUCT((N25=TablaMovimientos[Movimiento])*(TablaMovimientos[Valores Actualizados])*(TablaMovimientos[Fecha]>$N$19)*(TablaMovimientos[Fecha]<=$P$19)),-SUMPRODUCT((N25=TablaMovimientos[Movimiento])*(TablaMovimientos[Valores Actualizados])*(TablaMovimientos[Fecha]>$N$19)*(TablaMovimientos[Fecha]<=$P$19)*(TablaMovimientos[Actividad]=$J$19))) -> 0
A26: 2- Introduci todos los MOVIMIENTOS de ALTAS y BAJAS | H26: Nacimiento | J26: =+SUMPRODUCT((H26=TablaMovimientos[Movimiento])*(TablaMovimientos[Kg.])*(TablaMovimientos[Fecha]>$N$19)*(TablaMovimientos[Fecha]<=$P$19)*IF(J19="*",1,(TablaMovimientos[Actividad]=$J$19))) -> 0 | K26: =IF(J26=0,0,IF($S$23=TRUE,M26/J26,L26/J26)) -> 0 | L26: =+SUMPRODUCT((H26=TablaMovimientos[Movimiento])*(TablaMovimientos[Total $ corr-tes])*(TablaMovimientos[Fecha]>$N$19)*(TablaMovimientos[Fecha]<=$P$19)*IF(J19="*",1,(TablaMovimientos[Actividad]=$J$19))) -> 0 | M26: =IF($J$19="*",SUMPRODUCT((H26=TablaMovimientos[Movimiento])*(TablaMovimientos[Valores Actualizados])*(TablaMovimientos[Fecha]>$N$19)*(TablaMovimientos[Fecha]<=$P$19)),SUMPRODUCT((H26=TablaMovimientos[Movimiento])*(TablaMovimientos[Valores Actualizados])*(TablaMovimientos[Fecha]>$N$19)*(TablaMovimientos[Fecha]<=$P$19)*(TablaMovimientos[Actividad]=$J$19))) -> 0 | N26: Traslado Salida | P26: =SUMPRODUCT((N26=TablaMovimientos[Movimiento])*(TablaMovimientos[Cab.])*(TablaMovimientos[Fecha]>$N$19)*(TablaMovimientos[Fecha]<=$P$19)*IF(J19="*",1,(TablaMovimientos[Actividad]=$J$19))) -> 0 | Q26: =-SUMPRODUCT((N26=TablaMovimientos[Movimiento])*(TablaMovimientos[Kg.])*(TablaMovimientos[Fecha]>$N$19)*(TablaMovimientos[Fecha]<=$P$19)*IF(J19="*",1,(TablaMovimientos[Actividad]=$J$19))) -> 0 | R26: =IF(Q26=0,0,IF($S$23=TRUE,T26/Q26,S26/Q26)) -> 0 | S26: =-SUMPRODUCT((N26=TablaMovimientos[Movimiento])*(TablaMovimientos[Total $ corr-tes])*(TablaMovimientos[Fecha]>$N$19)*(TablaMovimientos[Fecha]<=$P$19)*IF(J19="*",1,(TablaMovimientos[Actividad]=$J$19))) -> 0 | T26: =IF($J$19="*",-SUMPRODUCT((N26=TablaMovimientos[Movimiento])*(TablaMovimientos[Valores Actualizados])*(TablaMovimientos[Fecha]>$N$19)*(TablaMovimientos[Fecha]<=$P$19)),-SUMPRODUCT((N26=TablaMovimientos[Movimiento])*(TablaMovimientos[Valores Actualizados])*(TablaMovimientos[Fecha]>$N$19)*(TablaMovimientos[Fecha]<=$P$19)*(TablaMovimientos[Actividad]=$J$19))) -> 0
H27: Mortandad | J27: =+SUMPRODUCT((H27=TablaMovimientos[Movimiento])*(TablaMovimientos[Kg.])*(TablaMovimientos[Fecha]>$N$19)*(TablaMovimientos[Fecha]<=$P$19)*IF(J19="*",1,(TablaMovimientos[Actividad]=$J$19))) -> 0 | K27: =IF(J27=0,0,IF($S$23=TRUE,M27/J27,L27/J27)) -> 0 | L27: =+SUMPRODUCT((H27=TablaMovimientos[Movimiento])*(TablaMovimientos[Total $ corr-tes])*(TablaMovimientos[Fecha]>$N$19)*(TablaMovimientos[Fecha]<=$P$19)*IF(J19="*",1,(TablaMovimientos[Actividad]=$J$19))) -> 0 | M27: =IF($J$19="*",SUMPRODUCT((H27=TablaMovimientos[Movimiento])*(TablaMovimientos[Valores Actualizados])*(TablaMovimientos[Fecha]>$N$19)*(TablaMovimientos[Fecha]<=$P$19)),SUMPRODUCT((H27=TablaMovimientos[Movimiento])*(TablaMovimientos[Valores Actualizados])*(TablaMovimientos[Fecha]>$N$19)*(TablaMovimientos[Fecha]<=$P$19)*(TablaMovimientos[Actividad]=$J$19))) -> 0 | N27: Consumo | P27: =SUMPRODUCT((N27=TablaMovimientos[Movimiento])*(TablaMovimientos[Cab.])*(TablaMovimientos[Fecha]>$N$19)*(TablaMovimientos[Fecha]<=$P$19)*IF(J19="*",1,(TablaMovimientos[Actividad]=$J$19))) -> 0 | Q27: =-SUMPRODUCT((N27=TablaMovimientos[Movimiento])*(TablaMovimientos[Kg.])*(TablaMovimientos[Fecha]>$N$19)*(TablaMovimientos[Fecha]<=$P$19)*IF(J19="*",1,(TablaMovimientos[Actividad]=$J$19))) -> 0 | R27: =IF(Q27=0,0,IF($S$23=TRUE,T27/Q27,S27/Q27)) -> 0 | S27: =-SUMPRODUCT((N27=TablaMovimientos[Movimiento])*(TablaMovimientos[Total $ corr-tes])*(TablaMovimientos[Fecha]>$N$19)*(TablaMovimientos[Fecha]<=$P$19)*IF(J19="*",1,(TablaMovimientos[Actividad]=$J$19))) -> 0 | T27: =IF($J$19="*",-SUMPRODUCT((N27=TablaMovimientos[Movimiento])*(TablaMovimientos[Valores Actualizados])*(TablaMovimientos[Fecha]>$N$19)*(TablaMovimientos[Fecha]<=$P$19)),-SUMPRODUCT((N27=TablaMovimientos[Movimiento])*(TablaMovimientos[Valores Actualizados])*(TablaMovimientos[Fecha]>$N$19)*(TablaMovimientos[Fecha]<=$P$19)*(TablaMovimientos[Actividad]=$J$19))) -> 0
H28: Cambio Categoria | I28: =IF(J28=0,"","Revisar (debe ser 0)") ->  | J28: =SUMPRODUCT(("Cambio Categoría (-)"=TablaMovimientos[Movimiento])*(TablaMovimientos[Kg.])*(TablaMovimientos[Fecha]>$N$19)*(TablaMovimientos[Fecha]<=$P$19)*IF(J19="*",1,(TablaMovimientos[Actividad]=$J$19)))+SUMPRODUCT(("Cambio Categoría (+)"=TablaMovimientos[Movimiento])*(TablaMovimientos[Kg.])*(TablaMovimientos[Fecha]>$N$19)*(TablaMovimientos[Fecha]<=$P$19)*IF(J19="*",1,(TablaMovimientos[Actividad]=$J$19))) -> 0 | K28: =IF(J40=0,0,IF($S$23=TRUE,M28/J40,L28/J40)) -> 0 | L28: =SUMPRODUCT(("Cambio Categoría (-)"=TablaMovimientos[Movimiento])*(TablaMovimientos[Total $ corr-tes])*(TablaMovimientos[Fecha]>$N$19)*(TablaMovimientos[Fecha]<=$P$19)*IF(J19="*",1,(TablaMovimientos[Actividad]=$J$19)))+SUMPRODUCT(("Cambio Categoría (+)"=TablaMovimientos[Movimiento])*(TablaMovimientos[Total $ corr-tes])*(TablaMovimientos[Fecha]>$N$19)*(TablaMovimientos[Fecha]<=$P$19)*IF(J19="*",1,(TablaMovimientos[Actividad]=$J$19))) -> 0 | M28: =SUMPRODUCT(("Cambio Categoría (-)"=TablaMovimientos[Movimiento])*(TablaMovimientos[Valores Actualizados])*(TablaMovimientos[Fecha]>$N$19)*(TablaMovimientos[Fecha]<=$P$19)*IF(J19="*",1,(TablaMovimientos[Actividad]=$J$19)))+SUMPRODUCT(("Cambio Categoría (+)"=TablaMovimientos[Movimiento])*(TablaMovimientos[Valores Actualizados])*(TablaMovimientos[Fecha]>$N$19)*(TablaMovimientos[Fecha]<=$P$19)*IF(J19="*",1,(TablaMovimientos[Actividad]=$J$19))) -> 0 | N28: Donación | P28: =SUMPRODUCT((N28=TablaMovimientos[Movimiento])*(TablaMovimientos[Cab.])*(TablaMovimientos[Fecha]>$N$19)*(TablaMovimientos[Fecha]<=$P$19)*IF(J19="*",1,(TablaMovimientos[Actividad]=$J$19))) -> 0 | Q28: =-SUMPRODUCT((N28=TablaMovimientos[Movimiento])*(TablaMovimientos[Kg.])*(TablaMovimientos[Fecha]>$N$19)*(TablaMovimientos[Fecha]<=$P$19)*IF(J19="*",1,(TablaMovimientos[Actividad]=$J$19))) -> 0 | R28: =IF(Q28=0,0,IF($S$23=TRUE,T28/Q28,S28/Q28)) -> 0 | S28: =-SUMPRODUCT((N28=TablaMovimientos[Movimiento])*(TablaMovimientos[Total $ corr-tes])*(TablaMovimientos[Fecha]>$N$19)*(TablaMovimientos[Fecha]<=$P$19)*IF(J19="*",1,(TablaMovimientos[Actividad]=$J$19))) -> 0 | T28: =IF($J$19="*",-SUMPRODUCT((N28=TablaMovimientos[Movimiento])*(TablaMovimientos[Valores Actualizados])*(TablaMovimientos[Fecha]>$N$19)*(TablaMovimientos[Fecha]<=$P$19)),-SUMPRODUCT((N28=TablaMovimientos[Movimiento])*(TablaMovimientos[Valores Actualizados])*(TablaMovimientos[Fecha]>$N$19)*(TablaMovimientos[Fecha]<=$P$19)*(TablaMovimientos[Actividad]=$J$19))) -> 0
A29: 3- Cuando quieras ajustar los kilajes reales de cada categoría, registralos en la Tabla de Inventario de kilos y precios actualizados (Real). | H29: =IF(Actividad="*","Cesión e/actividades","") -> Cesión e/actividades | I29: =IF(J29="","",IF(J29=0,"","Revisar (debe ser 0)")) ->  | J29: =IF(Actividad="*",ROUND((SUMPRODUCT(("Cesión (-)"=TablaMovimientos[Movimiento])*(TablaMovimientos[Kg.])*(TablaMovimientos[Fecha]>$N$19)*(TablaMovimientos[Fecha]<=$P$19)*IF($J$19="*",1,(TablaMovimientos[Actividad]=$J$19)))+SUMPRODUCT(("Cesión (+)"=TablaMovimientos[Movimiento])*(TablaMovimientos[Kg.])*(TablaMovimientos[Fecha]>$N$19)*(TablaMovimientos[Fecha]<=$P$19)*IF($J$19="*",1,(TablaMovimientos[Actividad]=$J$19)))),0),"") -> 0 | K29: =IF(OR(L29="",M29=""),"",IF(J40=0,0,IF($S$23=TRUE,M29/J40,L29/J40))) -> 0 | L29: =IF(Actividad="*",(SUMPRODUCT(("Cesión (-)"=TablaMovimientos[Movimiento])*(TablaMovimientos[Total $ corr-tes])*(TablaMovimientos[Fecha]>$N$19)*(TablaMovimientos[Fecha]<=$P$19)*IF($J$19="*",1,(TablaMovimientos[Actividad]=$J$19)))+SUMPRODUCT(("Cesión (+)"=TablaMovimientos[Movimiento])*(TablaMovimientos[Total $ corr-tes])*(TablaMovimientos[Fecha]>$N$19)*(TablaMovimientos[Fecha]<=$P$19)*IF($J$19="*",1,(TablaMovimientos[Actividad]=$J$19)))),"") -> 0 | M29: =IF(Actividad="*",(SUMPRODUCT(("Cesión (-)"=TablaMovimientos[Movimiento])*(TablaMovimientos[Valores Actualizados])*(TablaMovimientos[Fecha]>$N$19)*(TablaMovimientos[Fecha]<=$P$19)*IF($J$19="*",1,(TablaMovimientos[Actividad]=$J$19)))+SUMPRODUCT(("Cesión (+)"=TablaMovimientos[Movimiento])*(TablaMovimientos[Valores Actualizados])*(TablaMovimientos[Fecha]>$N$19)*(TablaMovimientos[Fecha]<=$P$19)*IF($J$19="*",1,(TablaMovimientos[Actividad]=$J$19)))),"") -> 0 | N29: =IF(Actividad="*","","Cesión (-)") ->  | P29: =SUMPRODUCT((N29=TablaMovimientos[Movimiento])*(TablaMovimientos[Cab.])*(TablaMovimientos[Fecha]>$N$19)*(TablaMovimientos[Fecha]<=$P$19)*IF(J19="*",1,(TablaMovimientos[Actividad]=$J$19))) -> 0 | Q29: =-SUMPRODUCT((N29=TablaMovimientos[Movimiento])*(TablaMovimientos[Kg.])*(TablaMovimientos[Fecha]>$N$19)*(TablaMovimientos[Fecha]<=$P$19)*IF(J19="*",1,(TablaMovimientos[Actividad]=$J$19))) -> 0 | R29: =IF(Q29=0,0,IF($S$23=TRUE,T29/Q29,S29/Q29)) -> 0 | S29: =-SUMPRODUCT((N29=TablaMovimientos[Movimiento])*(TablaMovimientos[Total $ corr-tes])*(TablaMovimientos[Fecha]>$N$19)*(TablaMovimientos[Fecha]<=$P$19)*IF(J19="*",1,(TablaMovimientos[Actividad]=$J$19))) -> 0 | T29: =IF($J$19="*",-SUMPRODUCT((N29=TablaMovimientos[Movimiento])*(TablaMovimientos[Valores Actualizados])*(TablaMovimientos[Fecha]>$N$19)*(TablaMovimientos[Fecha]<=$P$19)),-SUMPRODUCT((N29=TablaMovimientos[Movimiento])*(TablaMovimientos[Valores Actualizados])*(TablaMovimientos[Fecha]>$N$19)*(TablaMovimientos[Fecha]<=$P$19)*(TablaMovimientos[Actividad]=$J$19))) -> 0
N30: Mortandad | P30: =SUMPRODUCT((N30=TablaMovimientos[Movimiento])*(TablaMovimientos[Cab.])*(TablaMovimientos[Fecha]>$N$19)*(TablaMovimientos[Fecha]<=$P$19)*IF(J19="*",1,(TablaMovimientos[Actividad]=$J$19))) -> 0 | Q30: / / / / / / / / / / | R30: / / / / / / / / / / | S30: / / / / / / / / / / / | T30: / / / / / / / / / / /
N31: Robo | P31: =SUMPRODUCT((N31=TablaMovimientos[Movimiento])*(TablaMovimientos[Cab.])*(TablaMovimientos[Fecha]>$N$19)*(TablaMovimientos[Fecha]<=$P$19)*IF(J19="*",1,(TablaMovimientos[Actividad]=$J$19))) -> 0 | Q31: =-SUMPRODUCT((N31=TablaMovimientos[Movimiento])*(TablaMovimientos[Kg.])*(TablaMovimientos[Fecha]>$N$19)*(TablaMovimientos[Fecha]<=$P$19)*IF(J19="*",1,(TablaMovimientos[Actividad]=$J$19))) -> 0 | R31: =IF(Q31=0,0,IF($S$23=TRUE,T31/Q31,S31/Q31)) -> 0 | S31: =-SUMPRODUCT((N31=TablaMovimientos[Movimiento])*(TablaMovimientos[Total $ corr-tes])*(TablaMovimientos[Fecha]>$N$19)*(TablaMovimientos[Fecha]<=$P$19)*IF(J19="*",1,(TablaMovimientos[Actividad]=$J$19))) -> 0 | T31: =IF($J$19="*",-SUMPRODUCT((N31=TablaMovimientos[Movimiento])*(TablaMovimientos[Valores Actualizados])*(TablaMovimientos[Fecha]>$N$19)*(TablaMovimientos[Fecha]<=$P$19)),-SUMPRODUCT((N31=TablaMovimientos[Movimiento])*(TablaMovimientos[Valores Actualizados])*(TablaMovimientos[Fecha]>$N$19)*(TablaMovimientos[Fecha]<=$P$19)*(TablaMovimientos[Actividad]=$J$19))) -> 0
N32: Error de recuento (-) | P32: =SUMPRODUCT((N32=TablaMovimientos[Movimiento])*(TablaMovimientos[Cab.])*(TablaMovimientos[Fecha]>$N$19)*(TablaMovimientos[Fecha]<=$P$19)*IF(J19="*",1,(TablaMovimientos[Actividad]=$J$19))) -> 0 | Q32: =-SUMPRODUCT((N32=TablaMovimientos[Movimiento])*(TablaMovimientos[Kg.])*(TablaMovimientos[Fecha]>$N$19)*(TablaMovimientos[Fecha]<=$P$19)*IF(J19="*",1,(TablaMovimientos[Actividad]=$J$19))) -> 0 | R32: =IF(Q32=0,0,IF($S$23=TRUE,T32/Q32,S32/Q32)) -> 0 | S32: =-SUMPRODUCT((N32=TablaMovimientos[Movimiento])*(TablaMovimientos[Total $ corr-tes])*(TablaMovimientos[Fecha]>$N$19)*(TablaMovimientos[Fecha]<=$P$19)*IF(J19="*",1,(TablaMovimientos[Actividad]=$J$19))) -> 0 | T32: =IF($J$19="*",-SUMPRODUCT((N32=TablaMovimientos[Movimiento])*(TablaMovimientos[Valores Actualizados])*(TablaMovimientos[Fecha]>$N$19)*(TablaMovimientos[Fecha]<=$P$19)),-SUMPRODUCT((N32=TablaMovimientos[Movimiento])*(TablaMovimientos[Valores Actualizados])*(TablaMovimientos[Fecha]>$N$19)*(TablaMovimientos[Fecha]<=$P$19)*(TablaMovimientos[Actividad]=$J$19))) -> 0
A33: 4- Inmediatamente, registra los precios/kilo reales (actualizados) de cada categoría en misma Tabla. | N33: Compra | P33: =SUMPRODUCT((N33=TablaMovimientos[Movimiento])*(TablaMovimientos[Cab.])*(TablaMovimientos[Fecha]>$N$19)*(TablaMovimientos[Fecha]<=$P$19)*IF(J19="*",1,(TablaMovimientos[Actividad]=$J$19))) -> 0 | Q33: =-SUMPRODUCT((N33=TablaMovimientos[Movimiento])*(TablaMovimientos[Kg.])*(TablaMovimientos[Fecha]>$N$19)*(TablaMovimientos[Fecha]<=$P$19)*IF(J19="*",1,(TablaMovimientos[Actividad]=$J$19))) -> 0 | R33: =IF(Q33=0,0,IF($S$23=TRUE,T33/Q33,S33/Q33)) -> 0 | S33: =-SUMPRODUCT((N33=TablaMovimientos[Movimiento])*(TablaMovimientos[Total $ corr-tes])*(TablaMovimientos[Fecha]>$N$19)*(TablaMovimientos[Fecha]<=$P$19)*IF(J19="*",1,(TablaMovimientos[Actividad]=$J$19))) -> 0 | T33: =IF($J$19="*",-SUMPRODUCT((N33=TablaMovimientos[Movimiento])*(TablaMovimientos[Valores Actualizados])*(TablaMovimientos[Fecha]>$N$19)*(TablaMovimientos[Fecha]<=$P$19)),-SUMPRODUCT((N33=TablaMovimientos[Movimiento])*(TablaMovimientos[Valores Actualizados])*(TablaMovimientos[Fecha]>$N$19)*(TablaMovimientos[Fecha]<=$P$19)*(TablaMovimientos[Actividad]=$J$19))) -> 0
N34: Traslado Entrada | P34: =SUMPRODUCT((N34=TablaMovimientos[Movimiento])*(TablaMovimientos[Cab.])*(TablaMovimientos[Fecha]>$N$19)*(TablaMovimientos[Fecha]<=$P$19)*IF(J19="*",1,(TablaMovimientos[Actividad]=$J$19))) -> 0 | Q34: =-SUMPRODUCT((N34=TablaMovimientos[Movimiento])*(TablaMovimientos[Kg.])*(TablaMovimientos[Fecha]>$N$19)*(TablaMovimientos[Fecha]<=$P$19)*IF(J19="*",1,(TablaMovimientos[Actividad]=$J$19))) -> 0 | R34: =IF(Q34=0,0,IF($S$23=TRUE,T34/Q34,S34/Q34)) -> 0 | S34: =-SUMPRODUCT((N34=TablaMovimientos[Movimiento])*(TablaMovimientos[Total $ corr-tes])*(TablaMovimientos[Fecha]>$N$19)*(TablaMovimientos[Fecha]<=$P$19)*IF(J19="*",1,(TablaMovimientos[Actividad]=$J$19))) -> 0 | T34: =IF($J$19="*",-SUMPRODUCT((N34=TablaMovimientos[Movimiento])*(TablaMovimientos[Valores Actualizados])*(TablaMovimientos[Fecha]>$N$19)*(TablaMovimientos[Fecha]<=$P$19)),-SUMPRODUCT((N34=TablaMovimientos[Movimiento])*(TablaMovimientos[Valores Actualizados])*(TablaMovimientos[Fecha]>$N$19)*(TablaMovimientos[Fecha]<=$P$19)*(TablaMovimientos[Actividad]=$J$19))) -> 0
N35: =IF(Actividad="*","","Cesión (+)") ->  | P35: =SUMPRODUCT((N35=TablaMovimientos[Movimiento])*(TablaMovimientos[Cab.])*(TablaMovimientos[Fecha]>$N$19)*(TablaMovimientos[Fecha]<=$P$19)*IF(J19="*",1,(TablaMovimientos[Actividad]=$J$19))) -> 0 | Q35: =-SUMPRODUCT((N35=TablaMovimientos[Movimiento])*(TablaMovimientos[Kg.])*(TablaMovimientos[Fecha]>$N$19)*(TablaMovimientos[Fecha]<=$P$19)*IF(J19="*",1,(TablaMovimientos[Actividad]=$J$19))) -> 0 | R35: =IF(Q35=0,0,IF($S$23=TRUE,T35/Q35,S35/Q35)) -> 0 | S35: =-SUMPRODUCT((N35=TablaMovimientos[Movimiento])*(TablaMovimientos[Total $ corr-tes])*(TablaMovimientos[Fecha]>$N$19)*(TablaMovimientos[Fecha]<=$P$19)*IF(J19="*",1,(TablaMovimientos[Actividad]=$J$19))) -> 0 | T35: =IF($J$19="*",-SUMPRODUCT((N35=TablaMovimientos[Movimiento])*(TablaMovimientos[Valores Actualizados])*(TablaMovimientos[Fecha]>$N$19)*(TablaMovimientos[Fecha]<=$P$19)),-SUMPRODUCT((N35=TablaMovimientos[Movimiento])*(TablaMovimientos[Valores Actualizados])*(TablaMovimientos[Fecha]>$N$19)*(TablaMovimientos[Fecha]<=$P$19)*(TablaMovimientos[Actividad]=$J$19))) -> 0
A36: 5- Ajusta la diferencia de kilos (Real-Contable)/ KILOS PRODUCIDOS Al finalizar agrega la fecha de ajuste | G36: =+IF(T17=0,"Ajuste Kilos Producidos REALIZADO","Ajuste Kilos Producidos PENDIENTE") -> Ajuste Kilos Producidos REALIZADO | N36: Nacimiento | P36: =SUMPRODUCT((N36=TablaMovimientos[Movimiento])*(TablaMovimientos[Cab.])*(TablaMovimientos[Fecha]>$N$19)*(TablaMovimientos[Fecha]<=$P$19)*IF(J19="*",1,(TablaMovimientos[Actividad]=$J$19))) -> 0 | Q36: / / / / / / / / / / | R36: / / / / / / / / / / | S36: / / / / / / / / / / / | T36: / / / / / / / / / / /
N37: Error de recuento (+) | P37: =SUMPRODUCT((N37=TablaMovimientos[Movimiento])*(TablaMovimientos[Cab.])*(TablaMovimientos[Fecha]>$N$19)*(TablaMovimientos[Fecha]<=$P$19)*IF(J19="*",1,(TablaMovimientos[Actividad]=$J$19))) -> 0 | Q37: =-SUMPRODUCT((N37=TablaMovimientos[Movimiento])*(TablaMovimientos[Kg.])*(TablaMovimientos[Fecha]>$N$19)*(TablaMovimientos[Fecha]<=$P$19)*IF(J19="*",1,(TablaMovimientos[Actividad]=$J$19))) -> 0 | R37: =IF(Q37=0,0,IF($S$23=TRUE,T37/Q37,S37/Q37)) -> 0 | S37: =-SUMPRODUCT((N37=TablaMovimientos[Movimiento])*(TablaMovimientos[Total $ corr-tes])*(TablaMovimientos[Fecha]>$N$19)*(TablaMovimientos[Fecha]<=$P$19)*IF(J19="*",1,(TablaMovimientos[Actividad]=$J$19))) -> 0 | T37: =IF($J$19="*",-SUMPRODUCT((N37=TablaMovimientos[Movimiento])*(TablaMovimientos[Valores Actualizados])*(TablaMovimientos[Fecha]>$N$19)*(TablaMovimientos[Fecha]<=$P$19)),-SUMPRODUCT((N37=TablaMovimientos[Movimiento])*(TablaMovimientos[Valores Actualizados])*(TablaMovimientos[Fecha]>$N$19)*(TablaMovimientos[Fecha]<=$P$19)*(TablaMovimientos[Actividad]=$J$19))) -> 0
N38: Inventario Final | P38: =-J17 -> 0 | Q38: =L17 -> 0 | R38: =IF(Q38=0,0,IF($S$23=TRUE,T38/Q38,S38/Q38)) -> 0 | S38: =O17 -> 0 | T38: =+P17 -> 0
A39: 6.- Ajusta la diferencia de valuación (Real-Contable) / TENENCIA Al finalizar agregua la fecha de ajuste | G39: =+IF(U17=0,"Ajuste por Tenencia REALIZADO","Ajuste por Tenencia PENDIENTE") -> Ajuste por Tenencia REALIZADO | N39: Inventario Inicial | P39: =+C17 -> 0 | Q39: =-E17 -> 0 | R39: =IF(Q39=0,0,IF($S$23=TRUE,T39/Q39,S39/Q39)) -> 0 | S39: =-SUMPRODUCT((TablaInventarios[Cab. Inicio período])*(TablaInventarios[Kg/Cab. Inicio período])*(TablaInventarios[$/Kg. Stock])*IF(J19="*",1,TablaInventarios[[Actividad ]]=J19)) -> 0 | T39: =VLOOKUP(DATE(YEAR(P19),MONTH(P19),1),Indices[],2,FALSE)*S39 -> 0
H40: Ingreso | J40: =+SUM(J25:J29) -> 0 | K40: =IF(J40=0,0,IF($S$23=TRUE,M40/J40,L40/J40)) -> 0 | L40: =+SUM(L25:L29) -> 0 | M40: =+SUM(M25:M29) -> 0 | N40: Ingreso | P40: =IF(SUM(P25:P39)=0,"Cab. OK!","Revisar !!") -> Cab. OK! | Q40: =+SUM(Q25:Q39) -> 0 | R40: =IF(Q40=0,0,IF($S$23=TRUE,T40/Q40,S40/Q40)) -> 0 | S40: =+SUM(S25:S39) -> 0 | T40: =+SUM(T25:T39) -> 0
H41: Res. por Tenencia (AC) | K41: =IF(J44=0,0,IF($S$23=TRUE,M41/J44,L41/J44)) -> 0 | L41: =SUMPRODUCT(("Res. por Tenencia"=TablaMovimientos[Movimiento])*("AC"=TablaMovimientos[Activo])*(TablaMovimientos[Total $ corr-tes])*(TablaMovimientos[Fecha]>$N$19)*(TablaMovimientos[Fecha]<=$P$19)*IF($J$19="*",1,(TablaMovimientos[Actividad]=$J$19))) -> 0 | M41: =+SUMPRODUCT(("Res. por Tenencia"=TablaMovimientos[Movimiento])*("AC"=TablaMovimientos[Activo])*(TablaMovimientos[Valores Actualizados])*(TablaMovimientos[Fecha]>$N$19)*(TablaMovimientos[Fecha]<=$P$19)*IF($J$19="*",1,(TablaMovimientos[Actividad]=$J$19))) -> 0 | N41: Res. por Tenencia | R41: =IF(Q44=0,0,IF($S$23=TRUE,T41/Q44,S41/Q44)) -> 0 | S41: =SUMPRODUCT((TablaInventarios[Cab. Inicio período])*(TablaInventarios[Kg/Cab. Inicio período])*(TablaInventarios[$/Kg. Stock])*IF(J19="*",1,TablaInventarios[[Actividad ]]=J19))-H17 -> 0 | T41: =IF($N$19=0,0,IF(Actividad="*",(SUMPRODUCT((TablaInventarios[Kg. Totales Inicio período])*(TablaInventarios[$/Kg. Stock]))*IF($S$23=FALSE,0,IF($T$19="SIPM",VLOOKUP(DATE(YEAR($P$19),MONTH($P$19),1),Indices[[Fecha]:[Indice SIPM]],2,FALSE),IF($T$19="Dólar Oficial",1/VLOOKUP(DATE(YEAR($P$19),MONTH($P$19),DAY($P$19)),Tabla5[],2),IF($T$19="Dólar Informal",1/VLOOKUP(DATE(YEAR($P$19),MONTH($P$19),DAY($P$19)),Tabla3[],2)))))-I17),(SUMPRODUCT((TablaInventarios[Kg. Totales Inicio período])*(TablaInventarios[$/Kg. Stock])*(TablaInventarios[[Actividad ]]=Actividad)))*IF($S$23=FALSE,0,IF($T$19="SIPM",VLOOKUP(DATE(YEAR($P$19),MONTH($P$19),1),Indices[[Fecha]:[Indice SIPM]],2,FALSE),IF($T$19="Dólar Oficial",1/VLOOKUP(DATE(YEAR($P$19),MONTH($P$19),DAY($P$19)),Tabla5[],2),IF($T$19="Dólar Informal",1/VLOOKUP(DATE(YEAR($P$19),MONTH($P$19),DAY($P$19)),Tabla3[],2)))))-SUMPRODUCT((TablaInventarios[IP en Valores Actualizados])*(TablaInventarios[[Actividad ]]=Actividad)))) -> 0
H42: Res. por Tenencia (ANC) | K42: =IF(J44=0,0,IF($S$23=TRUE,M42/J44,L42/J44)) -> 0 | L42: =SUMPRODUCT(("Res. por Tenencia"=TablaMovimientos[Movimiento])*("ANC"=TablaMovimientos[Activo])*(TablaMovimientos[Total $ corr-tes])*(TablaMovimientos[Fecha]>$N$19)*(TablaMovimientos[Fecha]<=$P$19)*IF($J$19="*",1,(TablaMovimientos[Actividad]=$J$19))) -> 0 | M42: =+SUMPRODUCT(("Res. por Tenencia"=TablaMovimientos[Movimiento])*("ANC"=TablaMovimientos[Activo])*(TablaMovimientos[Valores Actualizados])*(TablaMovimientos[Fecha]>$N$19)*(TablaMovimientos[Fecha]<=$P$19)*IF($J$19="*",1,(TablaMovimientos[Actividad]=$J$19))) -> 0
H43: Ajuste por exposición inflación | K43: =IF(J44=0,0,IF($S$23=TRUE,M43/J44,"")) -> 0 | M43: =+SUM(T25:T38)-H17*VLOOKUP(DATE(YEAR(DATE(YEAR($N19),MONTH($N19),DAY($N19))-1),MONTH(DATE(YEAR($N19),MONTH($N19),DAY($N19))-1),1),Indices[[Fecha]:[Coef. SIPM]],2,FALSE)-SUM('Planilla de datos'!M40:M42) -> 0
H44: Ingreso con Tenencia | J44: =+SUM(J40:J41) -> 0 | K44: =IF(J44=0,0,IF($S$23=TRUE,M44/J44,L44/J44)) -> 0 | L44: =+SUM(L40:L43) -> 0 | M44: =+SUM(M40:M43) -> 0 | N44: Ingreso con Tenencia | Q44: =+SUM(Q40:Q41) -> 0 | R44: =IF(Q44=0,0,IF($S$23=TRUE,T44/Q44,S44/Q44)) -> 0 | S44: =+SUM(S40:S43) -> 0 | T44: =+T40+T41 -> 0
I46: Stock Promedio | K46: =IF(J19="*",'SIPM (Actualización en $)'!K4,HLOOKUP(J19,'SIPM (Actualización en $)'!D3:K4,2,FALSE)) -> 0 | L46: Cabezas adultas
I47: Producción / cab. adulta | K47: =IF(K46=0,"",J44/K46) ->  | L47: Kg./cabeza adulta
G48: =IF(N19=0,0,SUMPRODUCT((TablaMovimientos[Fecha]=P19)*(TablaMovimientos[Movimiento]=H25))=ROWS(TablaInventarios[Categoria])) -> FALSE | H48: =IF(N19=0,"",IF(SUMPRODUCT((TablaMovimientos[Fecha]=P19)*(TablaMovimientos[Movimiento]=H25))=ROWS(TablaInventarios[Categoria])=TRUE,"Existe ajuste de kilos producidos en todas las categorías, a la fecha de cierre del período analizado.","ATENCION: NO EXISTE AJUSTE DE KILOS PRODUCIDOS EN TODAS LAS CATEGORÍAS, A LA FECHA DE CIERRE DEL PERÍODO ANALIZADO. LA PRODUCCION PUEDE NO ESTAR INCLUYENDOLOS")) -> ATENCION: NO EXISTE AJUSTE DE KILOS PRODUCIDOS EN TODAS LAS CATEGORÍAS, A LA FECHA DE CIERRE DEL PERÍODO ANALIZADO. LA PRODUCCION PUEDE NO ESTAR INCLUYENDOLOS
G49: =IF(N19=0,0,SUMPRODUCT((TablaMovimientos[Fecha]=P19)*(TablaMovimientos[Movimiento]="Res. por Tenencia"))=ROWS(TablaInventarios[Categoria])) -> FALSE | H49: =(IF(N19=0,"",IF(SUMPRODUCT((TablaMovimientos[Fecha]=P19)*(TablaMovimientos[Movimiento]="Res. por Tenencia"))=ROWS(TablaInventarios[Categoria])=TRUE,"Existe ajuste por tenencia en todas las categorías, a la fecha de cierre del período analizado.","ATENCION: NO EXISTE AJUSTE POR TENENCIA EN TODAS LAS CATEGORÍAS, A LA FECHA DE CIERRE DEL PERÍODO ANALIZADO. EL INGRESO PUEDE NO ESTAR INCLUYENDOLO"))) -> ATENCION: NO EXISTE AJUSTE POR TENENCIA EN TODAS LAS CATEGORÍAS, A LA FECHA DE CIERRE DEL PERÍODO ANALIZADO. EL INGRESO PUEDE NO ESTAR INCLUYENDOLO
AL126: =-#REF!/SUM(#REF!) -> 

Sheet Criterios de validación
A1: MOVIMIENTOS | B1: Alta / Baja | D1: ACTIVIDADES | E1: # Act. | G1: Tipo de Activo
A2: Venta | B2: - | D2: Cría | E2: 1 | G2: AC
A3: Traslado Salida | B3: - | D3: Recría | E3: =1+E2 -> 2 | G3: ANC
A4: Consumo | B4: - | D4: Invernada | E4: 3
A5: Donación | B5: - | D5: Feed-lot | E5: 4
A6: Cesión (-) | B6: - | D6: Cabaña | E6: 5
A7: Cambio Categoría (-) | B7: - | D7: Tambo | E7: =1+E6 -> 6
A8: Robo | B8: - | D8: Guachera | E8: =1+E7 -> 7
A9: Mortandad | B9: -
A10: Error de recuento (-) | B10: -
A11: Compra | B11: +
A12: Traslado Entrada | B12: +
A13: Cesión (+) | B13: +
A14: Cambio Categoría (+) | B14: +
A15: Nacimiento | B15: +
A16: Error de recuento (+) | B16: +
A17: Kilos Producidos
A18: Res. por Tenencia

Sheet SIPM (Actualización en $)
A1: SIPM - Fuente: https://www.indec.gob.ar/ftp/cuadros/economia/series_sipm_dic2015.xls
D3: =+D5 -> Cría | E3: =+E5 -> Recría | F3: Invernada | G3: Feed-lot | H3: Cabaña | I3: Tambo | J3: Guachera | K3: *
A4: Período analizado | B4: ='Planilla de datos'!N19 -> 2023-07-01 | C4: ='Planilla de datos'!P19 -> 2024-06-30 | D4: =IF($L$4=0,0,SUMPRODUCT(Indices[Cría],Indices[Meses activos])/$L$4) -> 0 | E4: =IF($L$4=0,0,SUMPRODUCT(Indices[Recría],Indices[Meses activos])/$L$4) -> 0 | F4: =IF($L$4=0,0,SUMPRODUCT(Indices[Invernada],Indices[Meses activos])/$L$4) -> 0 | G4: =IF($L$4=0,0,SUMPRODUCT(Indices[Feed-lot],Indices[Meses activos])/$L$4) -> 0 | H4: =IF($L$4=0,0,SUMPRODUCT(Indices[Cabaña],Indices[Meses activos])/$L$4) -> 0 | I4: =IF($L$4=0,0,SUMPRODUCT(Indices[Tambo],Indices[Meses activos])/$L$4) -> 0 | J4: =IF($L$4=0,0,SUMPRODUCT(Indices[Guachera],Indices[Meses activos])/$L$4) -> 0 | K4: =+SUM(D4:J4) -> 0 | L4: =+SUM(Indices[Meses activos]) -> 13
A5: Fecha | B5: Coef. SIPM | C5: Indice SIPM | D5: Cría | E5: Recría | F5: Invernada | G5: Feed-lot | H5: Cabaña | I5: Tambo | J5: Guachera | K5: * | L5: Meses activos
A6: 2021-06-01 | B6: =IF(C6=0,"",VLOOKUP('Planilla de datos'!$T$23,'SIPM (Actualización en $)'!$A$6:$C$42,3,FALSE)/C6) ->  | D6: =IF(Indices[[#This Row],[Meses activos]]=0,0,(SUMPRODUCT((TablaInventarios[Cab.])*(TablaInventarios[Actividad]=Indices[[#Headers],[Cría]]))+SUMPRODUCT((TablaMovimientos[Cab.])*(TablaMovimientos[Fecha]<=Indices[[#This Row],[Fecha]])*(TablaMovimientos[Actividad]=Indices[[#Headers],[Cría]])))-(SUMPRODUCT((TablaInventarios[Cab.])*(TablaInventarios[Actividad]=Indices[[#Headers],[Cría]])*(TablaInventarios[Categoría]="Terneros al pie"))+SUMPRODUCT((TablaMovimientos[Cab.])*(TablaMovimientos[Fecha]<=Indices[[#This Row],[Fecha]])*(TablaMovimientos[Actividad]=Indices[[#Headers],[Cría]])*(TablaMovimientos[Categoría]="Terneros al pie")))) -> 0 | E6: =IF(Indices[[#This Row],[Meses activos]]=0,0,(SUMPRODUCT((TablaInventarios[Cab.])*(TablaInventarios[Actividad]=Indices[[#Headers],[Recría]]))+SUMPRODUCT((TablaMovimientos[Cab.])*(TablaMovimientos[Fecha]<=Indices[[#This Row],[Fecha]])*(TablaMovimientos[Actividad]=Indices[[#Headers],[Recría]])))-(SUMPRODUCT((TablaInventarios[Cab.])*(TablaInventarios[Actividad]=Indices[[#Headers],[Recría]])*(TablaInventarios[Categoría]="Terneros al pie"))+SUMPRODUCT((TablaMovimientos[Cab.])*(TablaMovimientos[Fecha]<=Indices[[#This Row],[Fecha]])*(TablaMovimientos[Actividad]=Indices[[#Headers],[Recría]])*(TablaMovimientos[Categoría]="Terneros al pie")))) -> 0 | F6: =IF(Indices[[#This Row],[Meses activos]]=0,0,(SUMPRODUCT((TablaInventarios[Cab.])*(TablaInventarios[Actividad]=Indices[[#Headers],[Invernada]]))+SUMPRODUCT((TablaMovimientos[Cab.])*(TablaMovimientos[Fecha]<=Indices[[#This Row],[Fecha]])*(TablaMovimientos[Actividad]=Indices[[#Headers],[Invernada]])))-(SUMPRODUCT((TablaInventarios[Cab.])*(TablaInventarios[Actividad]=Indices[[#Headers],[Invernada]])*(TablaInventarios[Categoría]="Terneros al pie"))+SUMPRODUCT((TablaMovimientos[Cab.])*(TablaMovimientos[Fecha]<=Indices[[#This Row],[Fecha]])*(TablaMovimientos[Actividad]=Indices[[#Headers],[Invernada]])*(TablaMovimientos[Categoría]="Terneros al pie")))) -> 0 | G6: =IF(Indices[[#This Row],[Meses activos]]=0,0,(SUMPRODUCT((TablaInventarios[Cab.])*(TablaInventarios[Actividad]=Indices[[#Headers],[Feed-lot]]))+SUMPRODUCT((TablaMovimientos[Cab.])*(TablaMovimientos[Fecha]<=Indices[[#This Row],[Fecha]])*(TablaMovimientos[Actividad]=Indices[[#Headers],[Feed-lot]])))-(SUMPRODUCT((TablaInventarios[Cab.])*(TablaInventarios[Actividad]=Indices[[#Headers],[Feed-lot]])*(TablaInventarios[Categoría]="Terneros al pie"))+SUMPRODUCT((TablaMovimientos[Cab.])*(TablaMovimientos[Fecha]<=Indices[[#This Row],[Fecha]])*(TablaMovimientos[Actividad]=Indices[[#Headers],[Feed-lot]])*(TablaMovimientos[Categoría]="Terneros al pie")))) -> 0 | H6: =IF(Indices[[#This Row],[Meses activos]]=0,0,(SUMPRODUCT((TablaInventarios[Cab.])*(TablaInventarios[Actividad]=Indices[[#Headers],[Cabaña]]))+SUMPRODUCT((TablaMovimientos[Cab.])*(TablaMovimientos[Fecha]<=Indices[[#This Row],[Fecha]])*(TablaMovimientos[Actividad]=Indices[[#Headers],[Cabaña]])))-(SUMPRODUCT((TablaInventarios[Cab.])*(TablaInventarios[Actividad]=Indices[[#Headers],[Cabaña]])*(TablaInventarios[Categoría]="Terneros al pie"))+SUMPRODUCT((TablaMovimientos[Cab.])*(TablaMovimientos[Fecha]<=Indices[[#This Row],[Fecha]])*(TablaMovimientos[Actividad]=Indices[[#Headers],[Cabaña]])*(TablaMovimientos[Categoría]="Terneros al pie")))) -> 0 | I6: =IF(Indices[[#This Row],[Meses activos]]=0,0,(SUMPRODUCT((TablaInventarios[Cab.])*(TablaInventarios[Actividad]=Indices[[#Headers],[Tambo]]))+SUMPRODUCT((TablaMovimientos[Cab.])*(TablaMovimientos[Fecha]<=Indices[[#This Row],[Fecha]])*(TablaMovimientos[Actividad]=Indices[[#Headers],[Tambo]])))-(SUMPRODUCT((TablaInventarios[Cab.])*(TablaInventarios[Actividad]=Indices[[#Headers],[Tambo]])*(TablaInventarios[Categoría]="Terneros al pie"))+SUMPRODUCT((TablaMovimientos[Cab.])*(TablaMovimientos[Fecha]<=Indices[[#This Row],[Fecha]])*(TablaMovimientos[Actividad]=Indices[[#Headers],[Tambo]])*(TablaMovimientos[Categoría]="Terneros al pie")))) -> 0 | J6: =IF(Indices[[#This Row],[Meses activos]]=0,0,(SUMPRODUCT((TablaInventarios[Cab.])*(TablaInventarios[Actividad]=Indices[[#Headers],[Guachera]]))+SUMPRODUCT((TablaMovimientos[Cab.])*(TablaMovimientos[Fecha]<=Indices[[#This Row],[Fecha]])*(TablaMovimientos[Actividad]=Indices[[#Headers],[Guachera]])))-(SUMPRODUCT((TablaInventarios[Cab.])*(TablaInventarios[Actividad]=Indices[[#Headers],[Guachera]])*(TablaInventarios[Categoría]="Terneros al pie"))+SUMPRODUCT((TablaMovimientos[Cab.])*(TablaMovimientos[Fecha]<=Indices[[#This Row],[Fecha]])*(TablaMovimientos[Actividad]=Indices[[#Headers],[Guachera]])*(TablaMovimientos[Categoría]="Terneros al pie")))) -> 0 | K6: =+SUM(Indices[[#This Row],[Cría]:[Guachera]]) -> 0 | L6: =IF(DATE(YEAR(Indices[[#This Row],[Fecha]]),MONTH(Indices[[#This Row],[Fecha]]),1)>=DATE(YEAR('Planilla de datos'!$N$19-1),MONTH('Planilla de datos'!$N$19-1),1),1,0)*IF(DATE(YEAR(Indices[[#This Row],[Fecha]]),MONTH(Indices[[#This Row],[Fecha]]),1)<='Planilla de datos'!$P$19,1,0) -> 0
A7: 2021-07-01 | B7: =IF(C7=0,"",VLOOKUP('Planilla de datos'!$T$23,'SIPM (Actualización en $)'!$A$6:$C$42,3,FALSE)/C7) ->  | D7: =IF(Indices[[#This Row],[Meses activos]]=0,0,(SUMPRODUCT((TablaInventarios[Cab.])*(TablaInventarios[Actividad]=Indices[[#Headers],[Cría]]))+SUMPRODUCT((TablaMovimientos[Cab.])*(TablaMovimientos[Fecha]<=Indices[[#This Row],[Fecha]])*(TablaMovimientos[Actividad]=Indices[[#Headers],[Cría]])))-(SUMPRODUCT((TablaInventarios[Cab.])*(TablaInventarios[Actividad]=Indices[[#Headers],[Cría]])*(TablaInventarios[Categoría]="Terneros al pie"))+SUMPRODUCT((TablaMovimientos[Cab.])*(TablaMovimientos[Fecha]<=Indices[[#This Row],[Fecha]])*(TablaMovimientos[Actividad]=Indices[[#Headers],[Cría]])*(TablaMovimientos[Categoría]="Terneros al pie")))) -> 0 | E7: =IF(Indices[[#This Row],[Meses activos]]=0,0,(SUMPRODUCT((TablaInventarios[Cab.])*(TablaInventarios[Actividad]=Indices[[#Headers],[Recría]]))+SUMPRODUCT((TablaMovimientos[Cab.])*(TablaMovimientos[Fecha]<=Indices[[#This Row],[Fecha]])*(TablaMovimientos[Actividad]=Indices[[#Headers],[Recría]])))-(SUMPRODUCT((TablaInventarios[Cab.])*(TablaInventarios[Actividad]=Indices[[#Headers],[Recría]])*(TablaInventarios[Categoría]="Terneros al pie"))+SUMPRODUCT((TablaMovimientos[Cab.])*(TablaMovimientos[Fecha]<=Indices[[#This Row],[Fecha]])*(TablaMovimientos[Actividad]=Indices[[#Headers],[Recría]])*(TablaMovimientos[Categoría]="Terneros al pie")))) -> 0 | F7: =IF(Indices[[#This Row],[Meses activos]]=0,0,(SUMPRODUCT((TablaInventarios[Cab.])*(TablaInventarios[Actividad]=Indices[[#Headers],[Invernada]]))+SUMPRODUCT((TablaMovimientos[Cab.])*(TablaMovimientos[Fecha]<=Indices[[#This Row],[Fecha]])*(TablaMovimientos[Actividad]=Indices[[#Headers],[Invernada]])))-(SUMPRODUCT((TablaInventarios[Cab.])*(TablaInventarios[Actividad]=Indices[[#Headers],[Invernada]])*(TablaInventarios[Categoría]="Terneros al pie"))+SUMPRODUCT((TablaMovimientos[Cab.])*(TablaMovimientos[Fecha]<=Indices[[#This Row],[Fecha]])*(TablaMovimientos[Actividad]=Indices[[#Headers],[Invernada]])*(TablaMovimientos[Categoría]="Terneros al pie")))) -> 0 | G7: =IF(Indices[[#This Row],[Meses activos]]=0,0,(SUMPRODUCT((TablaInventarios[Cab.])*(TablaInventarios[Actividad]=Indices[[#Headers],[Feed-lot]]))+SUMPRODUCT((TablaMovimientos[Cab.])*(TablaMovimientos[Fecha]<=Indices[[#This Row],[Fecha]])*(TablaMovimientos[Actividad]=Indices[[#Headers],[Feed-lot]])))-(SUMPRODUCT((TablaInventarios[Cab.])*(TablaInventarios[Actividad]=Indices[[#Headers],[Feed-lot]])*(TablaInventarios[Categoría]="Terneros al pie"))+SUMPRODUCT((TablaMovimientos[Cab.])*(TablaMovimientos[Fecha]<=Indices[[#This Row],[Fecha]])*(TablaMovimientos[Actividad]=Indices[[#Headers],[Feed-lot]])*(TablaMovimientos[Categoría]="Terneros al pie")))) -> 0 | H7: =IF(Indices[[#This Row],[Meses activos]]=0,0,(SUMPRODUCT((TablaInventarios[Cab.])*(TablaInventarios[Actividad]=Indices[[#Headers],[Cabaña]]))+SUMPRODUCT((TablaMovimientos[Cab.])*(TablaMovimientos[Fecha]<=Indices[[#This Row],[Fecha]])*(TablaMovimientos[Actividad]=Indices[[#Headers],[Cabaña]])))-(SUMPRODUCT((TablaInventarios[Cab.])*(TablaInventarios[Actividad]=Indices[[#Headers],[Cabaña]])*(TablaInventarios[Categoría]="Terneros al pie"))+SUMPRODUCT((TablaMovimientos[Cab.])*(TablaMovimientos[Fecha]<=Indices[[#This Row],[Fecha]])*(TablaMovimientos[Actividad]=Indices[[#Headers],[Cabaña]])*(TablaMovimientos[Categoría]="Terneros al pie")))) -> 0 | I7: =IF(Indices[[#This Row],[Meses activos]]=0,0,(SUMPRODUCT((TablaInventarios[Cab.])*(TablaInventarios[Actividad]=Indices[[#Headers],[Tambo]]))+SUMPRODUCT((TablaMovimientos[Cab.])*(TablaMovimientos[Fecha]<=Indices[[#This Row],[Fecha]])*(TablaMovimientos[Actividad]=Indices[[#Headers],[Tambo]])))-(SUMPRODUCT((TablaInventarios[Cab.])*(TablaInventarios[Actividad]=Indices[[#Headers],[Tambo]])*(TablaInventarios[Categoría]="Terneros al pie"))+SUMPRODUCT((TablaMovimientos[Cab.])*(TablaMovimientos[Fecha]<=Indices[[#This Row],[Fecha]])*(TablaMovimientos[Actividad]=Indices[[#Headers],[Tambo]])*(TablaMovimientos[Categoría]="Terneros al pie")))) -> 0 | J7: =IF(Indices[[#This Row],[Meses activos]]=0,0,(SUMPRODUCT((TablaInventarios[Cab.])*(TablaInventarios[Actividad]=Indices[[#Headers],[Guachera]]))+SUMPRODUCT((TablaMovimientos[Cab.])*(TablaMovimientos[Fecha]<=Indices[[#This Row],[Fecha]])*(TablaMovimientos[Actividad]=Indices[[#Headers],[Guachera]])))-(SUMPRODUCT((TablaInventarios[Cab.])*(TablaInventarios[Actividad]=Indices[[#Headers],[Guachera]])*(TablaInventarios[Categoría]="Terneros al pie"))+SUMPRODUCT((TablaMovimientos[Cab.])*(TablaMovimientos[Fecha]<=Indices[[#This Row],[Fecha]])*(TablaMovimientos[Actividad]=Indices[[#Headers],[Guachera]])*(TablaMovimientos[Categoría]="Terneros al pie")))) -> 0 | K7: =+SUM(Indices[[#This Row],[Cría]:[Guachera]]) -> 0 | L7: =IF(DATE(YEAR(Indices[[#This Row],[Fecha]]),MONTH(Indices[[#This Row],[Fecha]]),1)>=DATE(YEAR('Planilla de datos'!$N$19-1),MONTH('Planilla de datos'!$N$19-1),1),1,0)*IF(DATE(YEAR(Indices[[#This Row],[Fecha]]),MONTH(Indices[[#This Row],[Fecha]]),1)<='Planilla de datos'!$P$19,1,0) -> 0
A8: 2021-08-01 | B8: =IF(C8=0,"",VLOOKUP('Planilla de datos'!$T$23,'SIPM (Actualización en $)'!$A$6:$C$42,3,FALSE)/C8) ->  | D8: =IF(Indices[[#This Row],[Meses activos]]=0,0,(SUMPRODUCT((TablaInventarios[Cab.])*(TablaInventarios[Actividad]=Indices[[#Headers],[Cría]]))+SUMPRODUCT((TablaMovimientos[Cab.])*(TablaMovimientos[Fecha]<=Indices[[#This Row],[Fecha]])*(TablaMovimientos[Actividad]=Indices[[#Headers],[Cría]])))-(SUMPRODUCT((TablaInventarios[Cab.])*(TablaInventarios[Actividad]=Indices[[#Headers],[Cría]])*(TablaInventarios[Categoría]="Terneros al pie"))+SUMPRODUCT((TablaMovimientos[Cab.])*(TablaMovimientos[Fecha]<=Indices[[#This Row],[Fecha]])*(TablaMovimientos[Actividad]=Indices[[#Headers],[Cría]])*(TablaMovimientos[Categoría]="Terneros al pie")))) -> 0 | E8: =IF(Indices[[#This Row],[Meses activos]]=0,0,(SUMPRODUCT((TablaInventarios[Cab.])*(TablaInventarios[Actividad]=Indices[[#Headers],[Recría]]))+SUMPRODUCT((TablaMovimientos[Cab.])*(TablaMovimientos[Fecha]<=Indices[[#This Row],[Fecha]])*(TablaMovimientos[Actividad]=Indices[[#Headers],[Recría]])))-(SUMPRODUCT((TablaInventarios[Cab.])*(TablaInventarios[Actividad]=Indices[[#Headers],[Recría]])*(TablaInventarios[Categoría]="Terneros al pie"))+SUMPRODUCT((TablaMovimientos[Cab.])*(TablaMovimientos[Fecha]<=Indices[[#This Row],[Fecha]])*(TablaMovimientos[Actividad]=Indices[[#Headers],[Recría]])*(TablaMovimientos[Categoría]="Terneros al pie")))) -> 0 | F8: =IF(Indices[[#This Row],[Meses activos]]=0,0,(SUMPRODUCT((TablaInventarios[Cab.])*(TablaInventarios[Actividad]=Indices[[#Headers],[Invernada]]))+SUMPRODUCT((TablaMovimientos[Cab.])*(TablaMovimientos[Fecha]<=Indices[[#This Row],[Fecha]])*(TablaMovimientos[Actividad]=Indices[[#Headers],[Invernada]])))-(SUMPRODUCT((TablaInventarios[Cab.])*(TablaInventarios[Actividad]=Indices[[#Headers],[Invernada]])*(TablaInventarios[Categoría]="Terneros al pie"))+SUMPRODUCT((TablaMovimientos[Cab.])*(TablaMovimientos[Fecha]<=Indices[[#This Row],[Fecha]])*(TablaMovimientos[Actividad]=Indices[[#Headers],[Invernada]])*(TablaMovimientos[Categoría]="Terneros al pie")))) -> 0 | G8: =IF(Indices[[#This Row],[Meses activos]]=0,0,(SUMPRODUCT((TablaInventarios[Cab.])*(TablaInventarios[Actividad]=Indices[[#Headers],[Feed-lot]]))+SUMPRODUCT((TablaMovimientos[Cab.])*(TablaMovimientos[Fecha]<=Indices[[#This Row],[Fecha]])*(TablaMovimientos[Actividad]=Indices[[#Headers],[Feed-lot]])))-(SUMPRODUCT((TablaInventarios[Cab.])*(TablaInventarios[Actividad]=Indices[[#Headers],[Feed-lot]])*(TablaInventarios[Categoría]="Terneros al pie"))+SUMPRODUCT((TablaMovimientos[Cab.])*(TablaMovimientos[Fecha]<=Indices[[#This Row],[Fecha]])*(TablaMovimientos[Actividad]=Indices[[#Headers],[Feed-lot]])*(TablaMovimientos[Categoría]="Terneros al pie")))) -> 0 | H8: =IF(Indices[[#This Row],[Meses activos]]=0,0,(SUMPRODUCT((TablaInventarios[Cab.])*(TablaInventarios[Actividad]=Indices[[#Headers],[Cabaña]]))+SUMPRODUCT((TablaMovimientos[Cab.])*(TablaMovimientos[Fecha]<=Indices[[#This Row],[Fecha]])*(TablaMovimientos[Actividad]=Indices[[#Headers],[Cabaña]])))-(SUMPRODUCT((TablaInventarios[Cab.])*(TablaInventarios[Actividad]=Indices[[#Headers],[Cabaña]])*(TablaInventarios[Categoría]="Terneros al pie"))+SUMPRODUCT((TablaMovimientos[Cab.])*(TablaMovimientos[Fecha]<=Indices[[#This Row],[Fecha]])*(TablaMovimientos[Actividad]=Indices[[#Headers],[Cabaña]])*(TablaMovimientos[Categoría]="Terneros al pie")))) -> 0 | I8: =IF(Indices[[#This Row],[Meses activos]]=0,0,(SUMPRODUCT((TablaInventarios[Cab.])*(TablaInventarios[Actividad]=Indices[[#Headers],[Tambo]]))+SUMPRODUCT((TablaMovimientos[Cab.])*(TablaMovimientos[Fecha]<=Indices[[#This Row],[Fecha]])*(TablaMovimientos[Actividad]=Indices[[#Headers],[Tambo]])))-(SUMPRODUCT((TablaInventarios[Cab.])*(TablaInventarios[Actividad]=Indices[[#Headers],[Tambo]])*(TablaInventarios[Categoría]="Terneros al pie"))+SUMPRODUCT((TablaMovimientos[Cab.])*(TablaMovimientos[Fecha]<=Indices[[#This Row],[Fecha]])*(TablaMovimientos[Actividad]=Indices[[#Headers],[Tambo]])*(TablaMovimientos[Categoría]="Terneros al pie")))) -> 0 | J8: =IF(Indices[[#This Row],[Meses activos]]=0,0,(SUMPRODUCT((TablaInventarios[Cab.])*(TablaInventarios[Actividad]=Indices[[#Headers],[Guachera]]))+SUMPRODUCT((TablaMovimientos[Cab.])*(TablaMovimientos[Fecha]<=Indices[[#This Row],[Fecha]])*(TablaMovimientos[Actividad]=Indices[[#Headers],[Guachera]])))-(SUMPRODUCT((TablaInventarios[Cab.])*(TablaInventarios[Actividad]=Indices[[#Headers],[Guachera]])*(TablaInventarios[Categoría]="Terneros al pie"))+SUMPRODUCT((TablaMovimientos[Cab.])*(TablaMovimientos[Fecha]<=Indices[[#This Row],[Fecha]])*(TablaMovimientos[Actividad]=Indices[[#Headers],[Guachera]])*(TablaMovimientos[Categoría]="Terneros al pie")))) -> 0 | K8: =+SUM(Indices[[#This Row],[Cría]:[Guachera]]) -> 0 | L8: =IF(DATE(YEAR(Indices[[#This Row],[Fecha]]),MONTH(Indices[[#This Row],[Fecha]]),1)>=DATE(YEAR('Planilla de datos'!$N$19-1),MONTH('Planilla de datos'!$N$19-1),1),1,0)*IF(DATE(YEAR(Indices[[#This Row],[Fecha]]),MONTH(Indices[[#This Row],[Fecha]]),1)<='Planilla de datos'!$P$19,1,0) -> 0
A9: 2021-09-01 | B9: =IF(C9=0,"",VLOOKUP('Planilla de datos'!$T$23,'SIPM (Actualización en $)'!$A$6:$C$42,3,FALSE)/C9) ->  | D9: =IF(Indices[[#This Row],[Meses activos]]=0,0,(SUMPRODUCT((TablaInventarios[Cab.])*(TablaInventarios[Actividad]=Indices[[#Headers],[Cría]]))+SUMPRODUCT((TablaMovimientos[Cab.])*(TablaMovimientos[Fecha]<=Indices[[#This Row],[Fecha]])*(TablaMovimientos[Actividad]=Indices[[#Headers],[Cría]])))-(SUMPRODUCT((TablaInventarios[Cab.])*(TablaInventarios[Actividad]=Indices[[#Headers],[Cría]])*(TablaInventarios[Categoría]="Terneros al pie"))+SUMPRODUCT((TablaMovimientos[Cab.])*(TablaMovimientos[Fecha]<=Indices[[#This Row],[Fecha]])*(TablaMovimientos[Actividad]=Indices[[#Headers],[Cría]])*(TablaMovimientos[Categoría]="Terneros al pie")))) -> 0 | E9: =IF(Indices[[#This Row],[Meses activos]]=0,0,(SUMPRODUCT((TablaInventarios[Cab.])*(TablaInventarios[Actividad]=Indices[[#Headers],[Recría]]))+SUMPRODUCT((TablaMovimientos[Cab.])*(TablaMovimientos[Fecha]<=Indices[[#This Row],[Fecha]])*(TablaMovimientos[Actividad]=Indices[[#Headers],[Recría]])))-(SUMPRODUCT((TablaInventarios[Cab.])*(TablaInventarios[Actividad]=Indices[[#Headers],[Recría]])*(TablaInventarios[Categoría]="Terneros al pie"))+SUMPRODUCT((TablaMovimientos[Cab.])*(TablaMovimientos[Fecha]<=Indices[[#This Row],[Fecha]])*(TablaMovimientos[Actividad]=Indices[[#Headers],[Recría]])*(TablaMovimientos[Categoría]="Terneros al pie")))) -> 0 | F9: =IF(Indices[[#This Row],[Meses activos]]=0,0,(SUMPRODUCT((TablaInventarios[Cab.])*(TablaInventarios[Actividad]=Indices[[#Headers],[Invernada]]))+SUMPRODUCT((TablaMovimientos[Cab.])*(TablaMovimientos[Fecha]<=Indices[[#This Row],[Fecha]])*(TablaMovimientos[Actividad]=Indices[[#Headers],[Invernada]])))-(SUMPRODUCT((TablaInventarios[Cab.])*(TablaInventarios[Actividad]=Indices[[#Headers],[Invernada]])*(TablaInventarios[Categoría]="Terneros al pie"))+SUMPRODUCT((TablaMovimientos[Cab.])*(TablaMovimientos[Fecha]<=Indices[[#This Row],[Fecha]])*(TablaMovimientos[Actividad]=Indices[[#Headers],[Invernada]])*(TablaMovimientos[Categoría]="Terneros al pie")))) -> 0 | G9: =IF(Indices[[#This Row],[Meses activos]]=0,0,(SUMPRODUCT((TablaInventarios[Cab.])*(TablaInventarios[Actividad]=Indices[[#Headers],[Feed-lot]]))+SUMPRODUCT((TablaMovimientos[Cab.])*(TablaMovimientos[Fecha]<=Indices[[#This Row],[Fecha]])*(TablaMovimientos[Actividad]=Indices[[#Headers],[Feed-lot]])))-(SUMPRODUCT((TablaInventarios[Cab.])*(TablaInventarios[Actividad]=Indices[[#Headers],[Feed-lot]])*(TablaInventarios[Categoría]="Terneros al pie"))+SUMPRODUCT((TablaMovimientos[Cab.])*(TablaMovimientos[Fecha]<=Indices[[#This Row],[Fecha]])*(TablaMovimientos[Actividad]=Indices[[#Headers],[Feed-lot]])*(TablaMovimientos[Categoría]="Terneros al pie")))) -> 0 | H9: =IF(Indices[[#This Row],[Meses activos]]=0,0,(SUMPRODUCT((TablaInventarios[Cab.])*(TablaInventarios[Actividad]=Indices[[#Headers],[Cabaña]]))+SUMPRODUCT((TablaMovimientos[Cab.])*(TablaMovimientos[Fecha]<=Indices[[#This Row],[Fecha]])*(TablaMovimientos[Actividad]=Indices[[#Headers],[Cabaña]])))-(SUMPRODUCT((TablaInventarios[Cab.])*(TablaInventarios[Actividad]=Indices[[#Headers],[Cabaña]])*(TablaInventarios[Categoría]="Terneros al pie"))+SUMPRODUCT((TablaMovimientos[Cab.])*(TablaMovimientos[Fecha]<=Indices[[#This Row],[Fecha]])*(TablaMovimientos[Actividad]=Indices[[#Headers],[Cabaña]])*(TablaMovimientos[Categoría]="Terneros al pie")))) -> 0 | I9: =IF(Indices[[#This Row],[Meses activos]]=0,0,(SUMPRODUCT((TablaInventarios[Cab.])*(TablaInventarios[Actividad]=Indices[[#Headers],[Tambo]]))+SUMPRODUCT((TablaMovimientos[Cab.])*(TablaMovimientos[Fecha]<=Indices[[#This Row],[Fecha]])*(TablaMovimientos[Actividad]=Indices[[#Headers],[Tambo]])))-(SUMPRODUCT((TablaInventarios[Cab.])*(TablaInventarios[Actividad]=Indices[[#Headers],[Tambo]])*(TablaInventarios[Categoría]="Terneros al pie"))+SUMPRODUCT((TablaMovimientos[Cab.])*(TablaMovimientos[Fecha]<=Indices[[#This Row],[Fecha]])*(TablaMovimientos[Actividad]=Indices[[#Headers],[Tambo]])*(TablaMovimientos[Categoría]="Terneros al pie")))) -> 0 | J9: =IF(Indices[[#This Row],[Meses activos]]=0,0,(SUMPRODUCT((TablaInventarios[Cab.])*(TablaInventarios[Actividad]=Indices[[#Headers],[Guachera]]))+SUMPRODUCT((TablaMovimientos[Cab.])*(TablaMovimientos[Fecha]<=Indices[[#This Row],[Fecha]])*(TablaMovimientos[Actividad]=Indices[[#Headers],[Guachera]])))-(SUMPRODUCT((TablaInventarios[Cab.])*(TablaInventarios[Actividad]=Indices[[#Headers],[Guachera]])*(TablaInventarios[Categoría]="Terneros al pie"))+SUMPRODUCT((TablaMovimientos[Cab.])*(TablaMovimientos[Fecha]<=Indices[[#This Row],[Fecha]])*(TablaMovimientos[Actividad]=Indices[[#Headers],[Guachera]])*(TablaMovimientos[Categoría]="Terneros al pie")))) -> 0 | K9: =+SUM(Indices[[#This Row],[Cría]:[Guachera]]) -> 0 | L9: =IF(DATE(YEAR(Indices[[#This Row],[Fecha]]),MONTH(Indices[[#This Row],[Fecha]]),1)>=DATE(YEAR('Planilla de datos'!$N$19-1),MONTH('Planilla de datos'!$N$19-1),1),1,0)*IF(DATE(YEAR(Indices[[#This Row],[Fecha]]),MONTH(Indices[[#This Row],[Fecha]]),1)<='Planilla de datos'!$P$19,1,0) -> 0
A10: 2021-10-01 | B10: =IF(C10=0,"",VLOOKUP('Planilla de datos'!$T$23,'SIPM (Actualización en $)'!$A$6:$C$42,3,FALSE)/C10) ->  | D10: =IF(Indices[[#This Row],[Meses activos]]=0,0,(SUMPRODUCT((TablaInventarios[Cab.])*(TablaInventarios[Actividad]=Indices[[#Headers],[Cría]]))+SUMPRODUCT((TablaMovimientos[Cab.])*(TablaMovimientos[Fecha]<=Indices[[#This Row],[Fecha]])*(TablaMovimientos[Actividad]=Indices[[#Headers],[Cría]])))-(SUMPRODUCT((TablaInventarios[Cab.])*(TablaInventarios[Actividad]=Indices[[#Headers],[Cría]])*(TablaInventarios[Categoría]="Terneros al pie"))+SUMPRODUCT((TablaMovimientos[Cab.])*(TablaMovimientos[Fecha]<=Indices[[#This Row],[Fecha]])*(TablaMovimientos[Actividad]=Indices[[#Headers],[Cría]])*(TablaMovimientos[Categoría]="Terneros al pie")))) -> 0 | E10: =IF(Indices[[#This Row],[Meses activos]]=0,0,(SUMPRODUCT((TablaInventarios[Cab.])*(TablaInventarios[Actividad]=Indices[[#Headers],[Recría]]))+SUMPRODUCT((TablaMovimientos[Cab.])*(TablaMovimientos[Fecha]<=Indices[[#This Row],[Fecha]])*(TablaMovimientos[Actividad]=Indices[[#Headers],[Recría]])))-(SUMPRODUCT((TablaInventarios[Cab.])*(TablaInventarios[Actividad]=Indices[[#Headers],[Recría]])*(TablaInventarios[Categoría]="Terneros al pie"))+SUMPRODUCT((TablaMovimientos[Cab.])*(TablaMovimientos[Fecha]<=Indices[[#This Row],[Fecha]])*(TablaMovimientos[Actividad]=Indices[[#Headers],[Recría]])*(TablaMovimientos[Categoría]="Terneros al pie")))) -> 0 | F10: =IF(Indices[[#This Row],[Meses activos]]=0,0,(SUMPRODUCT((TablaInventarios[Cab.])*(TablaInventarios[Actividad]=Indices[[#Headers],[Invernada]]))+SUMPRODUCT((TablaMovimientos[Cab.])*(TablaMovimientos[Fecha]<=Indices[[#This Row],[Fecha]])*(TablaMovimientos[Actividad]=Indices[[#Headers],[Invernada]])))-(SUMPRODUCT((TablaInventarios[Cab.])*(TablaInventarios[Actividad]=Indices[[#Headers],[Invernada]])*(TablaInventarios[Categoría]="Terneros al pie"))+SUMPRODUCT((TablaMovimientos[Cab.])*(TablaMovimientos[Fecha]<=Indices[[#This Row],[Fecha]])*(TablaMovimientos[Actividad]=Indices[[#Headers],[Invernada]])*(TablaMovimientos[Categoría]="Terneros al pie")))) -> 0 | G10: =IF(Indices[[#This Row],[Meses activos]]=0,0,(SUMPRODUCT((TablaInventarios[Cab.])*(TablaInventarios[Actividad]=Indices[[#Headers],[Feed-lot]]))+SUMPRODUCT((TablaMovimientos[Cab.])*(TablaMovimientos[Fecha]<=Indices[[#This Row],[Fecha]])*(TablaMovimientos[Actividad]=Indices[[#Headers],[Feed-lot]])))-(SUMPRODUCT((TablaInventarios[Cab.])*(TablaInventarios[Actividad]=Indices[[#Headers],[Feed-lot]])*(TablaInventarios[Categoría]="Terneros al pie"))+SUMPRODUCT((TablaMovimientos[Cab.])*(TablaMovimientos[Fecha]<=Indices[[#This Row],[Fecha]])*(TablaMovimientos[Actividad]=Indices[[#Headers],[Feed-lot]])*(TablaMovimientos[Categoría]="Terneros al pie")))) -> 0 | H10: =IF(Indices[[#This Row],[Meses activos]]=0,0,(SUMPRODUCT((TablaInventarios[Cab.])*(TablaInventarios[Actividad]=Indices[[#Headers],[Cabaña]]))+SUMPRODUCT((TablaMovimientos[Cab.])*(TablaMovimientos[Fecha]<=Indices[[#This Row],[Fecha]])*(TablaMovimientos[Actividad]=Indices[[#Headers],[Cabaña]])))-(SUMPRODUCT((TablaInventarios[Cab.])*(TablaInventarios[Actividad]=Indices[[#Headers],[Cabaña]])*(TablaInventarios[Categoría]="Terneros al pie"))+SUMPRODUCT((TablaMovimientos[Cab.])*(TablaMovimientos[Fecha]<=Indices[[#This Row],[Fecha]])*(TablaMovimientos[Actividad]=Indices[[#Headers],[Cabaña]])*(TablaMovimientos[Categoría]="Terneros al pie")))) -> 0 | I10: =IF(Indices[[#This Row],[Meses activos]]=0,0,(SUMPRODUCT((TablaInventarios[Cab.])*(TablaInventarios[Actividad]=Indices[[#Headers],[Tambo]]))+SUMPRODUCT((TablaMovimientos[Cab.])*(TablaMovimientos[Fecha]<=Indices[[#This Row],[Fecha]])*(TablaMovimientos[Actividad]=Indices[[#Headers],[Tambo]])))-(SUMPRODUCT((TablaInventarios[Cab.])*(TablaInventarios[Actividad]=Indices[[#Headers],[Tambo]])*(TablaInventarios[Categoría]="Terneros al pie"))+SUMPRODUCT((TablaMovimientos[Cab.])*(TablaMovimientos[Fecha]<=Indices[[#This Row],[Fecha]])*(TablaMovimientos[Actividad]=Indices[[#Headers],[Tambo]])*(TablaMovimientos[Categoría]="Terneros al pie")))) -> 0 | J10: =IF(Indices[[#This Row],[Meses activos]]=0,0,(SUMPRODUCT((TablaInventarios[Cab.])*(TablaInventarios[Actividad]=Indices[[#Headers],[Guachera]]))+SUMPRODUCT((TablaMovimientos[Cab.])*(TablaMovimientos[Fecha]<=Indices[[#This Row],[Fecha]])*(TablaMovimientos[Actividad]=Indices[[#Headers],[Guachera]])))-(SUMPRODUCT((TablaInventarios[Cab.])*(TablaInventarios[Actividad]=Indices[[#Headers],[Guachera]])*(TablaInventarios[Categoría]="Terneros al pie"))+SUMPRODUCT((TablaMovimientos[Cab.])*(TablaMovimientos[Fecha]<=Indices[[#This Row],[Fecha]])*(TablaMovimientos[Actividad]=Indices[[#Headers],[Guachera]])*(TablaMovimientos[Categoría]="Terneros al pie")))) -> 0 | K10: =+SUM(Indices[[#This Row],[Cría]:[Guachera]]) -> 0 | L10: =IF(DATE(YEAR(Indices[[#This Row],[Fecha]]),MONTH(Indices[[#This Row],[Fecha]]),1)>=DATE(YEAR('Planilla de datos'!$N$19-1),MONTH('Planilla de datos'!$N$19-1),1),1,0)*IF(DATE(YEAR(Indices[[#This Row],[Fecha]]),MONTH(Indices[[#This Row],[Fecha]]),1)<='Planilla de datos'!$P$19,1,0) -> 0
A11: 2021-11-01 | B11: =IF(C11=0,"",VLOOKUP('Planilla de datos'!$T$23,'SIPM (Actualización en $)'!$A$6:$C$42,3,FALSE)/C11) ->  | D11: =IF(Indices[[#This Row],[Meses activos]]=0,0,(SUMPRODUCT((TablaInventarios[Cab.])*(TablaInventarios[Actividad]=Indices[[#Headers],[Cría]]))+SUMPRODUCT((TablaMovimientos[Cab.])*(TablaMovimientos[Fecha]<=Indices[[#This Row],[Fecha]])*(TablaMovimientos[Actividad]=Indices[[#Headers],[Cría]])))-(SUMPRODUCT((TablaInventarios[Cab.])*(TablaInventarios[Actividad]=Indices[[#Headers],[Cría]])*(TablaInventarios[Categoría]="Terneros al pie"))+SUMPRODUCT((TablaMovimientos[Cab.])*(TablaMovimientos[Fecha]<=Indices[[#This Row],[Fecha]])*(TablaMovimientos[Actividad]=Indices[[#Headers],[Cría]])*(TablaMovimientos[Categoría]="Terneros al pie")))) -> 0 | E11: =IF(Indices[[#This Row],[Meses activos]]=0,0,(SUMPRODUCT((TablaInventarios[Cab.])*(TablaInventarios[Actividad]=Indices[[#Headers],[Recría]]))+SUMPRODUCT((TablaMovimientos[Cab.])*(TablaMovimientos[Fecha]<=Indices[[#This Row],[Fecha]])*(TablaMovimientos[Actividad]=Indices[[#Headers],[Recría]])))-(SUMPRODUCT((TablaInventarios[Cab.])*(TablaInventarios[Actividad]=Indices[[#Headers],[Recría]])*(TablaInventarios[Categoría]="Terneros al pie"))+SUMPRODUCT((TablaMovimientos[Cab.])*(TablaMovimientos[Fecha]<=Indices[[#This Row],[Fecha]])*(TablaMovimientos[Actividad]=Indices[[#Headers],[Recría]])*(TablaMovimientos[Categoría]="Terneros al pie")))) -> 0 | F11: =IF(Indices[[#This Row],[Meses activos]]=0,0,(SUMPRODUCT((TablaInventarios[Cab.])*(TablaInventarios[Actividad]=Indices[[#Headers],[Invernada]]))+SUMPRODUCT((TablaMovimientos[Cab.])*(TablaMovimientos[Fecha]<=Indices[[#This Row],[Fecha]])*(TablaMovimientos[Actividad]=Indices[[#Headers],[Invernada]])))-(SUMPRODUCT((TablaInventarios[Cab.])*(TablaInventarios[Actividad]=Indices[[#Headers],[Invernada]])*(TablaInventarios[Categoría]="Terneros al pie"))+SUMPRODUCT((TablaMovimientos[Cab.])*(TablaMovimientos[Fecha]<=Indices[[#This Row],[Fecha]])*(TablaMovimientos[Actividad]=Indices[[#Headers],[Invernada]])*(TablaMovimientos[Categoría]="Terneros al pie")))) -> 0 | G11: =IF(Indices[[#This Row],[Meses activos]]=0,0,(SUMPRODUCT((TablaInventarios[Cab.])*(TablaInventarios[Actividad]=Indices[[#Headers],[Feed-lot]]))+SUMPRODUCT((TablaMovimientos[Cab.])*(TablaMovimientos[Fecha]<=Indices[[#This Row],[Fecha]])*(TablaMovimientos[Actividad]=Indices[[#Headers],[Feed-lot]])))-(SUMPRODUCT((TablaInventarios[Cab.])*(TablaInventarios[Actividad]=Indices[[#Headers],[Feed-lot]])*(TablaInventarios[Categoría]="Terneros al pie"))+SUMPRODUCT((TablaMovimientos[Cab.])*(TablaMovimientos[Fecha]<=Indices[[#This Row],[Fecha]])*(TablaMovimientos[Actividad]=Indices[[#Headers],[Feed-lot]])*(TablaMovimientos[Categoría]="Terneros al pie")))) -> 0 | H11: =IF(Indices[[#This Row],[Meses activos]]=0,0,(SUMPRODUCT((TablaInventarios[Cab.])*(TablaInventarios[Actividad]=Indices[[#Headers],[Cabaña]]))+SUMPRODUCT((TablaMovimientos[Cab.])*(TablaMovimientos[Fecha]<=Indices[[#This Row],[Fecha]])*(TablaMovimientos[Actividad]=Indices[[#Headers],[Cabaña]])))-(SUMPRODUCT((TablaInventarios[Cab.])*(TablaInventarios[Actividad]=Indices[[#Headers],[Cabaña]])*(TablaInventarios[Categoría]="Terneros al pie"))+SUMPRODUCT((TablaMovimientos[Cab.])*(TablaMovimientos[Fecha]<=Indices[[#This Row],[Fecha]])*(TablaMovimientos[Actividad]=Indices[[#Headers],[Cabaña]])*(TablaMovimientos[Categoría]="Terneros al pie")))) -> 0 | I11: =IF(Indices[[#This Row],[Meses activos]]=0,0,(SUMPRODUCT((TablaInventarios[Cab.])*(TablaInventarios[Actividad]=Indices[[#Headers],[Tambo]]))+SUMPRODUCT((TablaMovimientos[Cab.])*(TablaMovimientos[Fecha]<=Indices[[#This Row],[Fecha]])*(TablaMovimientos[Actividad]=Indices[[#Headers],[Tambo]])))-(SUMPRODUCT((TablaInventarios[Cab.])*(TablaInventarios[Actividad]=Indices[[#Headers],[Tambo]])*(TablaInventarios[Categoría]="Terneros al pie"))+SUMPRODUCT((TablaMovimientos[Cab.])*(TablaMovimientos[Fecha]<=Indices[[#This Row],[Fecha]])*(TablaMovimientos[Actividad]=Indices[[#Headers],[Tambo]])*(TablaMovimientos[Categoría]="Terneros al pie")))) -> 0 | J11: =IF(Indices[[#This Row],[Meses activos]]=0,0,(SUMPRODUCT((TablaInventarios[Cab.])*(TablaInventarios[Actividad]=Indices[[#Headers],[Guachera]]))+SUMPRODUCT((TablaMovimientos[Cab.])*(TablaMovimientos[Fecha]<=Indices[[#This Row],[Fecha]])*(TablaMovimientos[Actividad]=Indices[[#Headers],[Guachera]])))-(SUMPRODUCT((TablaInventarios[Cab.])*(TablaInventarios[Actividad]=Indices[[#Headers],[Guachera]])*(TablaInventarios[Categoría]="Terneros al pie"))+SUMPRODUCT((TablaMovimientos[Cab.])*(TablaMovimientos[Fecha]<=Indices[[#This Row],[Fecha]])*(TablaMovimientos[Actividad]=Indices[[#Headers],[Guachera]])*(TablaMovimientos[Categoría]="Terneros al pie")))) -> 0 | K11: =+SUM(Indices[[#This Row],[Cría]:[Guachera]]) -> 0 | L11: =IF(DATE(YEAR(Indices[[#This Row],[Fecha]]),MONTH(Indices[[#This Row],[Fecha]]),1)>=DATE(YEAR('Planilla de datos'!$N$19-1),MONTH('Planilla de datos'!$N$19-1),1),1,0)*IF(DATE(YEAR(Indices[[#This Row],[Fecha]]),MONTH(Indices[[#This Row],[Fecha]]),1)<='Planilla de datos'!$P$19,1,0) -> 0
A12: 2021-12-01 | B12: =IF(C12=0,"",VLOOKUP('Planilla de datos'!$T$23,'SIPM (Actualización en $)'!$A$6:$C$42,3,FALSE)/C12) ->  | D12: =IF(Indices[[#This Row],[Meses activos]]=0,0,(SUMPRODUCT((TablaInventarios[Cab.])*(TablaInventarios[Actividad]=Indices[[#Headers],[Cría]]))+SUMPRODUCT((TablaMovimientos[Cab.])*(TablaMovimientos[Fecha]<=Indices[[#This Row],[Fecha]])*(TablaMovimientos[Actividad]=Indices[[#Headers],[Cría]])))-(SUMPRODUCT((TablaInventarios[Cab.])*(TablaInventarios[Actividad]=Indices[[#Headers],[Cría]])*(TablaInventarios[Categoría]="Terneros al pie"))+SUMPRODUCT((TablaMovimientos[Cab.])*(TablaMovimientos[Fecha]<=Indices[[#This Row],[Fecha]])*(TablaMovimientos[Actividad]=Indices[[#Headers],[Cría]])*(TablaMovimientos[Categoría]="Terneros al pie")))) -> 0 | E12: =IF(Indices[[#This Row],[Meses activos]]=0,0,(SUMPRODUCT((TablaInventarios[Cab.])*(TablaInventarios[Actividad]=Indices[[#Headers],[Recría]]))+SUMPRODUCT((TablaMovimientos[Cab.])*(TablaMovimientos[Fecha]<=Indices[[#This Row],[Fecha]])*(TablaMovimientos[Actividad]=Indices[[#Headers],[Recría]])))-(SUMPRODUCT((TablaInventarios[Cab.])*(TablaInventarios[Actividad]=Indices[[#Headers],[Recría]])*(TablaInventarios[Categoría]="Terneros al pie"))+SUMPRODUCT((TablaMovimientos[Cab.])*(TablaMovimientos[Fecha]<=Indices[[#This Row],[Fecha]])*(TablaMovimientos[Actividad]=Indices[[#Headers],[Recría]])*(TablaMovimientos[Categoría]="Terneros al pie")))) -> 0 | F12: =IF(Indices[[#This Row],[Meses activos]]=0,0,(SUMPRODUCT((TablaInventarios[Cab.])*(TablaInventarios[Actividad]=Indices[[#Headers],[Invernada]]))+SUMPRODUCT((TablaMovimientos[Cab.])*(TablaMovimientos[Fecha]<=Indices[[#This Row],[Fecha]])*(TablaMovimientos[Actividad]=Indices[[#Headers],[Invernada]])))-(SUMPRODUCT((TablaInventarios[Cab.])*(TablaInventarios[Actividad]=Indices[[#Headers],[Invernada]])*(TablaInventarios[Categoría]="Terneros al pie"))+SUMPRODUCT((TablaMovimientos[Cab.])*(TablaMovimientos[Fecha]<=Indices[[#This Row],[Fecha]])*(TablaMovimientos[Actividad]=Indices[[#Headers],[Invernada]])*(TablaMovimientos[Categoría]="Terneros al pie")))) -> 0 | G12: =IF(Indices[[#This Row],[Meses activos]]=0,0,(SUMPRODUCT((TablaInventarios[Cab.])*(TablaInventarios[Actividad]=Indices[[#Headers],[Feed-lot]]))+SUMPRODUCT((TablaMovimientos[Cab.])*(TablaMovimientos[Fecha]<=Indices[[#This Row],[Fecha]])*(TablaMovimientos[Actividad]=Indices[[#Headers],[Feed-lot]])))-(SUMPRODUCT((TablaInventarios[Cab.])*(TablaInventarios[Actividad]=Indices[[#Headers],[Feed-lot]])*(TablaInventarios[Categoría]="Terneros al pie"))+SUMPRODUCT((TablaMovimientos[Cab.])*(TablaMovimientos[Fecha]<=Indices[[#This Row],[Fecha]])*(TablaMovimientos[Actividad]=Indices[[#Headers],[Feed-lot]])*(TablaMovimientos[Categoría]="Terneros al pie")))) -> 0 | H12: =IF(Indices[[#This Row],[Meses activos]]=0,0,(SUMPRODUCT((TablaInventarios[Cab.])*(TablaInventarios[Actividad]=Indices[[#Headers],[Cabaña]]))+SUMPRODUCT((TablaMovimientos[Cab.])*(TablaMovimientos[Fecha]<=Indices[[#This Row],[Fecha]])*(TablaMovimientos[Actividad]=Indices[[#Headers],[Cabaña]])))-(SUMPRODUCT((TablaInventarios[Cab.])*(TablaInventarios[Actividad]=Indices[[#Headers],[Cabaña]])*(TablaInventarios[Categoría]="Terneros al pie"))+SUMPRODUCT((TablaMovimientos[Cab.])*(TablaMovimientos[Fecha]<=Indices[[#This Row],[Fecha]])*(TablaMovimientos[Actividad]=Indices[[#Headers],[Cabaña]])*(TablaMovimientos[Categoría]="Terneros al pie")))) -> 0 | I12: =IF(Indices[[#This Row],[Meses activos]]=0,0,(SUMPRODUCT((TablaInventarios[Cab.])*(TablaInventarios[Actividad]=Indices[[#Headers],[Tambo]]))+SUMPRODUCT((TablaMovimientos[Cab.])*(TablaMovimientos[Fecha]<=Indices[[#This Row],[Fecha]])*(TablaMovimientos[Actividad]=Indices[[#Headers],[Tambo]])))-(SUMPRODUCT((TablaInventarios[Cab.])*(TablaInventarios[Actividad]=Indices[[#Headers],[Tambo]])*(TablaInventarios[Categoría]="Terneros al pie"))+SUMPRODUCT((TablaMovimientos[Cab.])*(TablaMovimientos[Fecha]<=Indices[[#This Row],[Fecha]])*(TablaMovimientos[Actividad]=Indices[[#Headers],[Tambo]])*(TablaMovimientos[Categoría]="Terneros al pie")))) -> 0 | J12: =IF(Indices[[#This Row],[Meses activos]]=0,0,(SUMPRODUCT((TablaInventarios[Cab.])*(TablaInventarios[Actividad]=Indices[[#Headers],[Guachera]]))+SUMPRODUCT((TablaMovimientos[Cab.])*(TablaMovimientos[Fecha]<=Indices[[#This Row],[Fecha]])*(TablaMovimientos[Actividad]=Indices[[#Headers],[Guachera]])))-(SUMPRODUCT((TablaInventarios[Cab.])*(TablaInventarios[Actividad]=Indices[[#Headers],[Guachera]])*(TablaInventarios[Categoría]="Terneros al pie"))+SUMPRODUCT((TablaMovimientos[Cab.])*(TablaMovimientos[Fecha]<=Indices[[#This Row],[Fecha]])*(TablaMovimientos[Actividad]=Indices[[#Headers],[Guachera]])*(TablaMovimientos[Categoría]="Terneros al pie")))) -> 0 | K12: =+SUM(Indices[[#This Row],[Cría]:[Guachera]]) -> 0 | L12: =IF(DATE(YEAR(Indices[[#This Row],[Fecha]]),MONTH(Indices[[#This Row],[Fecha]]),1)>=DATE(YEAR('Planilla de datos'!$N$19-1),MONTH('Planilla de datos'!$N$19-1),1),1,0)*IF(DATE(YEAR(Indices[[#This Row],[Fecha]]),MONTH(Indices[[#This Row],[Fecha]]),1)<='Planilla de datos'!$P$19,1,0) -> 0
A13: 2022-01-01 | B13: =IF(C13=0,"",VLOOKUP('Planilla de datos'!$T$23,'SIPM (Actualización en $)'!$A$6:$C$42,3,FALSE)/C13) ->  | D13: =IF(Indices[[#This Row],[Meses activos]]=0,0,(SUMPRODUCT((TablaInventarios[Cab.])*(TablaInventarios[Actividad]=Indices[[#Headers],[Cría]]))+SUMPRODUCT((TablaMovimientos[Cab.])*(TablaMovimientos[Fecha]<=Indices[[#This Row],[Fecha]])*(TablaMovimientos[Actividad]=Indices[[#Headers],[Cría]])))-(SUMPRODUCT((TablaInventarios[Cab.])*(TablaInventarios[Actividad]=Indices[[#Headers],[Cría]])*(TablaInventarios[Categoría]="Terneros al pie"))+SUMPRODUCT((TablaMovimientos[Cab.])*(TablaMovimientos[Fecha]<=Indices[[#This Row],[Fecha]])*(TablaMovimientos[Actividad]=Indices[[#Headers],[Cría]])*(TablaMovimientos[Categoría]="Terneros al pie")))) -> 0 | E13: =IF(Indices[[#This Row],[Meses activos]]=0,0,(SUMPRODUCT((TablaInventarios[Cab.])*(TablaInventarios[Actividad]=Indices[[#Headers],[Recría]]))+SUMPRODUCT((TablaMovimientos[Cab.])*(TablaMovimientos[Fecha]<=Indices[[#This Row],[Fecha]])*(TablaMovimientos[Actividad]=Indices[[#Headers],[Recría]])))-(SUMPRODUCT((TablaInventarios[Cab.])*(TablaInventarios[Actividad]=Indices[[#Headers],[Recría]])*(TablaInventarios[Categoría]="Terneros al pie"))+SUMPRODUCT((TablaMovimientos[Cab.])*(TablaMovimientos[Fecha]<=Indices[[#This Row],[Fecha]])*(TablaMovimientos[Actividad]=Indices[[#Headers],[Recría]])*(TablaMovimientos[Categoría]="Terneros al pie")))) -> 0 | F13: =IF(Indices[[#This Row],[Meses activos]]=0,0,(SUMPRODUCT((TablaInventarios[Cab.])*(TablaInventarios[Actividad]=Indices[[#Headers],[Invernada]]))+SUMPRODUCT((TablaMovimientos[Cab.])*(TablaMovimientos[Fecha]<=Indices[[#This Row],[Fecha]])*(TablaMovimientos[Actividad]=Indices[[#Headers],[Invernada]])))-(SUMPRODUCT((TablaInventarios[Cab.])*(TablaInventarios[Actividad]=Indices[[#Headers],[Invernada]])*(TablaInventarios[Categoría]="Terneros al pie"))+SUMPRODUCT((TablaMovimientos[Cab.])*(TablaMovimientos[Fecha]<=Indices[[#This Row],[Fecha]])*(TablaMovimientos[Actividad]=Indices[[#Headers],[Invernada]])*(TablaMovimientos[Categoría]="Terneros al pie")))) -> 0 | G13: =IF(Indices[[#This Row],[Meses activos]]=0,0,(SUMPRODUCT((TablaInventarios[Cab.])*(TablaInventarios[Actividad]=Indices[[#Headers],[Feed-lot]]))+SUMPRODUCT((TablaMovimientos[Cab.])*(TablaMovimientos[Fecha]<=Indices[[#This Row],[Fecha]])*(TablaMovimientos[Actividad]=Indices[[#Headers],[Feed-lot]])))-(SUMPRODUCT((TablaInventarios[Cab.])*(TablaInventarios[Actividad]=Indices[[#Headers],[Feed-lot]])*(TablaInventarios[Categoría]="Terneros al pie"))+SUMPRODUCT((TablaMovimientos[Cab.])*(TablaMovimientos[Fecha]<=Indices[[#This Row],[Fecha]])*(TablaMovimientos[Actividad]=Indices[[#Headers],[Feed-lot]])*(TablaMovimientos[Categoría]="Terneros al pie")))) -> 0 | H13: =IF(Indices[[#This Row],[Meses activos]]=0,0,(SUMPRODUCT((TablaInventarios[Cab.])*(TablaInventarios[Actividad]=Indices[[#Headers],[Cabaña]]))+SUMPRODUCT((TablaMovimientos[Cab.])*(TablaMovimientos[Fecha]<=Indices[[#This Row],[Fecha]])*(TablaMovimientos[Actividad]=Indices[[#Headers],[Cabaña]])))-(SUMPRODUCT((TablaInventarios[Cab.])*(TablaInventarios[Actividad]=Indices[[#Headers],[Cabaña]])*(TablaInventarios[Categoría]="Terneros al pie"))+SUMPRODUCT((TablaMovimientos[Cab.])*(TablaMovimientos[Fecha]<=Indices[[#This Row],[Fecha]])*(TablaMovimientos[Actividad]=Indices[[#Headers],[Cabaña]])*(TablaMovimientos[Categoría]="Terneros al pie")))) -> 0 | I13: =IF(Indices[[#This Row],[Meses activos]]=0,0,(SUMPRODUCT((TablaInventarios[Cab.])*(TablaInventarios[Actividad]=Indices[[#Headers],[Tambo]]))+SUMPRODUCT((TablaMovimientos[Cab.])*(TablaMovimientos[Fecha]<=Indices[[#This Row],[Fecha]])*(TablaMovimientos[Actividad]=Indices[[#Headers],[Tambo]])))-(SUMPRODUCT((TablaInventarios[Cab.])*(TablaInventarios[Actividad]=Indices[[#Headers],[Tambo]])*(TablaInventarios[Categoría]="Terneros al pie"))+SUMPRODUCT((TablaMovimientos[Cab.])*(TablaMovimientos[Fecha]<=Indices[[#This Row],[Fecha]])*(TablaMovimientos[Actividad]=Indices[[#Headers],[Tambo]])*(TablaMovimientos[Categoría]="Terneros al pie")))) -> 0 | J13: =IF(Indices[[#This Row],[Meses activos]]=0,0,(SUMPRODUCT((TablaInventarios[Cab.])*(TablaInventarios[Actividad]=Indices[[#Headers],[Guachera]]))+SUMPRODUCT((TablaMovimientos[Cab.])*(TablaMovimientos[Fecha]<=Indices[[#This Row],[Fecha]])*(TablaMovimientos[Actividad]=Indices[[#Headers],[Guachera]])))-(SUMPRODUCT((TablaInventarios[Cab.])*(TablaInventarios[Actividad]=Indices[[#Headers],[Guachera]])*(TablaInventarios[Categoría]="Terneros al pie"))+SUMPRODUCT((TablaMovimientos[Cab.])*(TablaMovimientos[Fecha]<=Indices[[#This Row],[Fecha]])*(TablaMovimientos[Actividad]=Indices[[#Headers],[Guachera]])*(TablaMovimientos[Categoría]="Terneros al pie")))) -> 0 | K13: =+SUM(Indices[[#This Row],[Cría]:[Guachera]]) -> 0 | L13: =IF(DATE(YEAR(Indices[[#This Row],[Fecha]]),MONTH(Indices[[#This Row],[Fecha]]),1)>=DATE(YEAR('Planilla de datos'!$N$19-1),MONTH('Planilla de datos'!$N$19-1),1),1,0)*IF(DATE(YEAR(Indices[[#This Row],[Fecha]]),MONTH(Indices[[#This Row],[Fecha]]),1)<='Planilla de datos'!$P$19,1,0) -> 0
A14: 2022-02-01 | B14: =IF(C14=0,"",VLOOKUP('Planilla de datos'!$T$23,'SIPM (Actualización en $)'!$A$6:$C$42,3,FALSE)/C14) ->  | D14: =IF(Indices[[#This Row],[Meses activos]]=0,0,(SUMPRODUCT((TablaInventarios[Cab.])*(TablaInventarios[Actividad]=Indices[[#Headers],[Cría]]))+SUMPRODUCT((TablaMovimientos[Cab.])*(TablaMovimientos[Fecha]<=Indices[[#This Row],[Fecha]])*(TablaMovimientos[Actividad]=Indices[[#Headers],[Cría]])))-(SUMPRODUCT((TablaInventarios[Cab.])*(TablaInventarios[Actividad]=Indices[[#Headers],[Cría]])*(TablaInventarios[Categoría]="Terneros al pie"))+SUMPRODUCT((TablaMovimientos[Cab.])*(TablaMovimientos[Fecha]<=Indices[[#This Row],[Fecha]])*(TablaMovimientos[Actividad]=Indices[[#Headers],[Cría]])*(TablaMovimientos[Categoría]="Terneros al pie")))) -> 0 | E14: =IF(Indices[[#This Row],[Meses activos]]=0,0,(SUMPRODUCT((TablaInventarios[Cab.])*(TablaInventarios[Actividad]=Indices[[#Headers],[Recría]]))+SUMPRODUCT((TablaMovimientos[Cab.])*(TablaMovimientos[Fecha]<=Indices[[#This Row],[Fecha]])*(TablaMovimientos[Actividad]=Indices[[#Headers],[Recría]])))-(SUMPRODUCT((TablaInventarios[Cab.])*(TablaInventarios[Actividad]=Indices[[#Headers],[Recría]])*(TablaInventarios[Categoría]="Terneros al pie"))+SUMPRODUCT((TablaMovimientos[Cab.])*(TablaMovimientos[Fecha]<=Indices[[#This Row],[Fecha]])*(TablaMovimientos[Actividad]=Indices[[#Headers],[Recría]])*(TablaMovimientos[Categoría]="Terneros al pie")))) -> 0 | F14: =IF(Indices[[#This Row],[Meses activos]]=0,0,(SUMPRODUCT((TablaInventarios[Cab.])*(TablaInventarios[Actividad]=Indices[[#Headers],[Invernada]]))+SUMPRODUCT((TablaMovimientos[Cab.])*(TablaMovimientos[Fecha]<=Indices[[#This Row],[Fecha]])*(TablaMovimientos[Actividad]=Indices[[#Headers],[Invernada]])))-(SUMPRODUCT((TablaInventarios[Cab.])*(TablaInventarios[Actividad]=Indices[[#Headers],[Invernada]])*(TablaInventarios[Categoría]="Terneros al pie"))+SUMPRODUCT((TablaMovimientos[Cab.])*(TablaMovimientos[Fecha]<=Indices[[#This Row],[Fecha]])*(TablaMovimientos[Actividad]=Indices[[#Headers],[Invernada]])*(TablaMovimientos[Categoría]="Terneros al pie")))) -> 0 | G14: =IF(Indices[[#This Row],[Meses activos]]=0,0,(SUMPRODUCT((TablaInventarios[Cab.])*(TablaInventarios[Actividad]=Indices[[#Headers],[Feed-lot]]))+SUMPRODUCT((TablaMovimientos[Cab.])*(TablaMovimientos[Fecha]<=Indices[[#This Row],[Fecha]])*(TablaMovimientos[Actividad]=Indices[[#Headers],[Feed-lot]])))-(SUMPRODUCT((TablaInventarios[Cab.])*(TablaInventarios[Actividad]=Indices[[#Headers],[Feed-lot]])*(TablaInventarios[Categoría]="Terneros al pie"))+SUMPRODUCT((TablaMovimientos[Cab.])*(TablaMovimientos[Fecha]<=Indices[[#This Row],[Fecha]])*(TablaMovimientos[Actividad]=Indices[[#Headers],[Feed-lot]])*(TablaMovimientos[Categoría]="Terneros al pie")))) -> 0 | H14: =IF(Indices[[#This Row],[Meses activos]]=0,0,(SUMPRODUCT((TablaInventarios[Cab.])*(TablaInventarios[Actividad]=Indices[[#Headers],[Cabaña]]))+SUMPRODUCT((TablaMovimientos[Cab.])*(TablaMovimientos[Fecha]<=Indices[[#This Row],[Fecha]])*(TablaMovimientos[Actividad]=Indices[[#Headers],[Cabaña]])))-(SUMPRODUCT((TablaInventarios[Cab.])*(TablaInventarios[Actividad]=Indices[[#Headers],[Cabaña]])*(TablaInventarios[Categoría]="Terneros al pie"))+SUMPRODUCT((TablaMovimientos[Cab.])*(TablaMovimientos[Fecha]<=Indices[[#This Row],[Fecha]])*(TablaMovimientos[Actividad]=Indices[[#Headers],[Cabaña]])*(TablaMovimientos[Categoría]="Terneros al pie")))) -> 0 | I14: =IF(Indices[[#This Row],[Meses activos]]=0,0,(SUMPRODUCT((TablaInventarios[Cab.])*(TablaInventarios[Actividad]=Indices[[#Headers],[Tambo]]))+SUMPRODUCT((TablaMovimientos[Cab.])*(TablaMovimientos[Fecha]<=Indices[[#This Row],[Fecha]])*(TablaMovimientos[Actividad]=Indices[[#Headers],[Tambo]])))-(SUMPRODUCT((TablaInventarios[Cab.])*(TablaInventarios[Actividad]=Indices[[#Headers],[Tambo]])*(TablaInventarios[Categoría]="Terneros al pie"))+SUMPRODUCT((TablaMovimientos[Cab.])*(TablaMovimientos[Fecha]<=Indices[[#This Row],[Fecha]])*(TablaMovimientos[Actividad]=Indices[[#Headers],[Tambo]])*(TablaMovimientos[Categoría]="Terneros al pie")))) -> 0 | J14: =IF(Indices[[#This Row],[Meses activos]]=0,0,(SUMPRODUCT((TablaInventarios[Cab.])*(TablaInventarios[Actividad]=Indices[[#Headers],[Guachera]]))+SUMPRODUCT((TablaMovimientos[Cab.])*(TablaMovimientos[Fecha]<=Indices[[#This Row],[Fecha]])*(TablaMovimientos[Actividad]=Indices[[#Headers],[Guachera]])))-(SUMPRODUCT((TablaInventarios[Cab.])*(TablaInventarios[Actividad]=Indices[[#Headers],[Guachera]])*(TablaInventarios[Categoría]="Terneros al pie"))+SUMPRODUCT((TablaMovimientos[Cab.])*(TablaMovimientos[Fecha]<=Indices[[#This Row],[Fecha]])*(TablaMovimientos[Actividad]=Indices[[#Headers],[Guachera]])*(TablaMovimientos[Categoría]="Terneros al pie")))) -> 0 | K14: =+SUM(Indices[[#This Row],[Cría]:[Guachera]]) -> 0 | L14: =IF(DATE(YEAR(Indices[[#This Row],[Fecha]]),MONTH(Indices[[#This Row],[Fecha]]),1)>=DATE(YEAR('Planilla de datos'!$N$19-1),MONTH('Planilla de datos'!$N$19-1),1),1,0)*IF(DATE(YEAR(Indices[[#This Row],[Fecha]]),MONTH(Indices[[#This Row],[Fecha]]),1)<='Planilla de datos'!$P$19,1,0) -> 0
A15: 2022-03-01 | B15: =IF(C15=0,"",VLOOKUP('Planilla de datos'!$T$23,'SIPM (Actualización en $)'!$A$6:$C$42,3,FALSE)/C15) ->  | D15: =IF(Indices[[#This Row],[Meses activos]]=0,0,(SUMPRODUCT((TablaInventarios[Cab.])*(TablaInventarios[Actividad]=Indices[[#Headers],[Cría]]))+SUMPRODUCT((TablaMovimientos[Cab.])*(TablaMovimientos[Fecha]<=Indices[[#This Row],[Fecha]])*(TablaMovimientos[Actividad]=Indices[[#Headers],[Cría]])))-(SUMPRODUCT((TablaInventarios[Cab.])*(TablaInventarios[Actividad]=Indices[[#Headers],[Cría]])*(TablaInventarios[Categoría]="Terneros al pie"))+SUMPRODUCT((TablaMovimientos[Cab.])*(TablaMovimientos[Fecha]<=Indices[[#This Row],[Fecha]])*(TablaMovimientos[Actividad]=Indices[[#Headers],[Cría]])*(TablaMovimientos[Categoría]="Terneros al pie")))) -> 0 | E15: =IF(Indices[[#This Row],[Meses activos]]=0,0,(SUMPRODUCT((TablaInventarios[Cab.])*(TablaInventarios[Actividad]=Indices[[#Headers],[Recría]]))+SUMPRODUCT((TablaMovimientos[Cab.])*(TablaMovimientos[Fecha]<=Indices[[#This Row],[Fecha]])*(TablaMovimientos[Actividad]=Indices[[#Headers],[Recría]])))-(SUMPRODUCT((TablaInventarios[Cab.])*(TablaInventarios[Actividad]=Indices[[#Headers],[Recría]])*(TablaInventarios[Categoría]="Terneros al pie"))+SUMPRODUCT((TablaMovimientos[Cab.])*(TablaMovimientos[Fecha]<=Indices[[#This Row],[Fecha]])*(TablaMovimientos[Actividad]=Indices[[#Headers],[Recría]])*(TablaMovimientos[Categoría]="Terneros al pie")))) -> 0 | F15: =IF(Indices[[#This Row],[Meses activos]]=0,0,(SUMPRODUCT((TablaInventarios[Cab.])*(TablaInventarios[Actividad]=Indices[[#Headers],[Invernada]]))+SUMPRODUCT((TablaMovimientos[Cab.])*(TablaMovimientos[Fecha]<=Indices[[#This Row],[Fecha]])*(TablaMovimientos[Actividad]=Indices[[#Headers],[Invernada]])))-(SUMPRODUCT((TablaInventarios[Cab.])*(TablaInventarios[Actividad]=Indices[[#Headers],[Invernada]])*(TablaInventarios[Categoría]="Terneros al pie"))+SUMPRODUCT((TablaMovimientos[Cab.])*(TablaMovimientos[Fecha]<=Indices[[#This Row],[Fecha]])*(TablaMovimientos[Actividad]=Indices[[#Headers],[Invernada]])*(TablaMovimientos[Categoría]="Terneros al pie")))) -> 0 | G15: =IF(Indices[[#This Row],[Meses activos]]=0,0,(SUMPRODUCT((TablaInventarios[Cab.])*(TablaInventarios[Actividad]=Indices[[#Headers],[Feed-lot]]))+SUMPRODUCT((TablaMovimientos[Cab.])*(TablaMovimientos[Fecha]<=Indices[[#This Row],[Fecha]])*(TablaMovimientos[Actividad]=Indices[[#Headers],[Feed-lot]])))-(SUMPRODUCT((TablaInventarios[Cab.])*(TablaInventarios[Actividad]=Indices[[#Headers],[Feed-lot]])*(TablaInventarios[Categoría]="Terneros al pie"))+SUMPRODUCT((TablaMovimientos[Cab.])*(TablaMovimientos[Fecha]<=Indices[[#This Row],[Fecha]])*(TablaMovimientos[Actividad]=Indices[[#Headers],[Feed-lot]])*(TablaMovimientos[Categoría]="Terneros al pie")))) -> 0 | H15: =IF(Indices[[#This Row],[Meses activos]]=0,0,(SUMPRODUCT((TablaInventarios[Cab.])*(TablaInventarios[Actividad]=Indices[[#Headers],[Cabaña]]))+SUMPRODUCT((TablaMovimientos[Cab.])*(TablaMovimientos[Fecha]<=Indices[[#This Row],[Fecha]])*(TablaMovimientos[Actividad]=Indices[[#Headers],[Cabaña]])))-(SUMPRODUCT((TablaInventarios[Cab.])*(TablaInventarios[Actividad]=Indices[[#Headers],[Cabaña]])*(TablaInventarios[Categoría]="Terneros al pie"))+SUMPRODUCT((TablaMovimientos[Cab.])*(TablaMovimientos[Fecha]<=Indices[[#This Row],[Fecha]])*(TablaMovimientos[Actividad]=Indices[[#Headers],[Cabaña]])*(TablaMovimientos[Categoría]="Terneros al pie")))) -> 0 | I15: =IF(Indices[[#This Row],[Meses activos]]=0,0,(SUMPRODUCT((TablaInventarios[Cab.])*(TablaInventarios[Actividad]=Indices[[#Headers],[Tambo]]))+SUMPRODUCT((TablaMovimientos[Cab.])*(TablaMovimientos[Fecha]<=Indices[[#This Row],[Fecha]])*(TablaMovimientos[Actividad]=Indices[[#Headers],[Tambo]])))-(SUMPRODUCT((TablaInventarios[Cab.])*(TablaInventarios[Actividad]=Indices[[#Headers],[Tambo]])*(TablaInventarios[Categoría]="Terneros al pie"))+SUMPRODUCT((TablaMovimientos[Cab.])*(TablaMovimientos[Fecha]<=Indices[[#This Row],[Fecha]])*(TablaMovimientos[Actividad]=Indices[[#Headers],[Tambo]])*(TablaMovimientos[Categoría]="Terneros al pie")))) -> 0 | J15: =IF(Indices[[#This Row],[Meses activos]]=0,0,(SUMPRODUCT((TablaInventarios[Cab.])*(TablaInventarios[Actividad]=Indices[[#Headers],[Guachera]]))+SUMPRODUCT((TablaMovimientos[Cab.])*(TablaMovimientos[Fecha]<=Indices[[#This Row],[Fecha]])*(TablaMovimientos[Actividad]=Indices[[#Headers],[Guachera]])))-(SUMPRODUCT((TablaInventarios[Cab.])*(TablaInventarios[Actividad]=Indices[[#Headers],[Guachera]])*(TablaInventarios[Categoría]="Terneros al pie"))+SUMPRODUCT((TablaMovimientos[Cab.])*(TablaMovimientos[Fecha]<=Indices[[#This Row],[Fecha]])*(TablaMovimientos[Actividad]=Indices[[#Headers],[Guachera]])*(TablaMovimientos[Categoría]="Terneros al pie")))) -> 0 | K15: =+SUM(Indices[[#This Row],[Cría]:[Guachera]]) -> 0 | L15: =IF(DATE(YEAR(Indices[[#This Row],[Fecha]]),MONTH(Indices[[#This Row],[Fecha]]),1)>=DATE(YEAR('Planilla de datos'!$N$19-1),MONTH('Planilla de datos'!$N$19-1),1),1,0)*IF(DATE(YEAR(Indices[[#This Row],[Fecha]]),MONTH(Indices[[#This Row],[Fecha]]),1)<='Planilla de datos'!$P$19,1,0) -> 0
A16: 2022-04-01 | B16: =IF(C16=0,"",VLOOKUP('Planilla de datos'!$T$23,'SIPM (Actualización en $)'!$A$6:$C$42,3,FALSE)/C16) ->  | D16: =IF(Indices[[#This Row],[Meses activos]]=0,0,(SUMPRODUCT((TablaInventarios[Cab.])*(TablaInventarios[Actividad]=Indices[[#Headers],[Cría]]))+SUMPRODUCT((TablaMovimientos[Cab.])*(TablaMovimientos[Fecha]<=Indices[[#This Row],[Fecha]])*(TablaMovimientos[Actividad]=Indices[[#Headers],[Cría]])))-(SUMPRODUCT((TablaInventarios[Cab.])*(TablaInventarios[Actividad]=Indices[[#Headers],[Cría]])*(TablaInventarios[Categoría]="Terneros al pie"))+SUMPRODUCT((TablaMovimientos[Cab.])*(TablaMovimientos[Fecha]<=Indices[[#This Row],[Fecha]])*(TablaMovimientos[Actividad]=Indices[[#Headers],[Cría]])*(TablaMovimientos[Categoría]="Terneros al pie")))) -> 0 | E16: =IF(Indices[[#This Row],[Meses activos]]=0,0,(SUMPRODUCT((TablaInventarios[Cab.])*(TablaInventarios[Actividad]=Indices[[#Headers],[Recría]]))+SUMPRODUCT((TablaMovimientos[Cab.])*(TablaMovimientos[Fecha]<=Indices[[#This Row],[Fecha]])*(TablaMovimientos[Actividad]=Indices[[#Headers],[Recría]])))-(SUMPRODUCT((TablaInventarios[Cab.])*(TablaInventarios[Actividad]=Indices[[#Headers],[Recría]])*(TablaInventarios[Categoría]="Terneros al pie"))+SUMPRODUCT((TablaMovimientos[Cab.])*(TablaMovimientos[Fecha]<=Indices[[#This Row],[Fecha]])*(TablaMovimientos[Actividad]=Indices[[#Headers],[Recría]])*(TablaMovimientos[Categoría]="Terneros al pie")))) -> 0 | F16: =IF(Indices[[#This Row],[Meses activos]]=0,0,(SUMPRODUCT((TablaInventarios[Cab.])*(TablaInventarios[Actividad]=Indices[[#Headers],[Invernada]]))+SUMPRODUCT((TablaMovimientos[Cab.])*(TablaMovimientos[Fecha]<=Indices[[#This Row],[Fecha]])*(TablaMovimientos[Actividad]=Indices[[#Headers],[Invernada]])))-(SUMPRODUCT((TablaInventarios[Cab.])*(TablaInventarios[Actividad]=Indices[[#Headers],[Invernada]])*(TablaInventarios[Categoría]="Terneros al pie"))+SUMPRODUCT((TablaMovimientos[Cab.])*(TablaMovimientos[Fecha]<=Indices[[#This Row],[Fecha]])*(TablaMovimientos[Actividad]=Indices[[#Headers],[Invernada]])*(TablaMovimientos[Categoría]="Terneros al pie")))) -> 0 | G16: =IF(Indices[[#This Row],[Meses activos]]=0,0,(SUMPRODUCT((TablaInventarios[Cab.])*(TablaInventarios[Actividad]=Indices[[#Headers],[Feed-lot]]))+SUMPRODUCT((TablaMovimientos[Cab.])*(TablaMovimientos[Fecha]<=Indices[[#This Row],[Fecha]])*(TablaMovimientos[Actividad]=Indices[[#Headers],[Feed-lot]])))-(SUMPRODUCT((TablaInventarios[Cab.])*(TablaInventarios[Actividad]=Indices[[#Headers],[Feed-lot]])*(TablaInventarios[Categoría]="Terneros al pie"))+SUMPRODUCT((TablaMovimientos[Cab.])*(TablaMovimientos[Fecha]<=Indices[[#This Row],[Fecha]])*(TablaMovimientos[Actividad]=Indices[[#Headers],[Feed-lot]])*(TablaMovimientos[Categoría]="Terneros al pie")))) -> 0 | H16: =IF(Indices[[#This Row],[Meses activos]]=0,0,(SUMPRODUCT((TablaInventarios[Cab.])*(TablaInventarios[Actividad]=Indices[[#Headers],[Cabaña]]))+SUMPRODUCT((TablaMovimientos[Cab.])*(TablaMovimientos[Fecha]<=Indices[[#This Row],[Fecha]])*(TablaMovimientos[Actividad]=Indices[[#Headers],[Cabaña]])))-(SUMPRODUCT((TablaInventarios[Cab.])*(TablaInventarios[Actividad]=Indices[[#Headers],[Cabaña]])*(TablaInventarios[Categoría]="Terneros al pie"))+SUMPRODUCT((TablaMovimientos[Cab.])*(TablaMovimientos[Fecha]<=Indices[[#This Row],[Fecha]])*(TablaMovimientos[Actividad]=Indices[[#Headers],[Cabaña]])*(TablaMovimientos[Categoría]="Terneros al pie")))) -> 0 | I16: =IF(Indices[[#This Row],[Meses activos]]=0,0,(SUMPRODUCT((TablaInventarios[Cab.])*(TablaInventarios[Actividad]=Indices[[#Headers],[Tambo]]))+SUMPRODUCT((TablaMovimientos[Cab.])*(TablaMovimientos[Fecha]<=Indices[[#This Row],[Fecha]])*(TablaMovimientos[Actividad]=Indices[[#Headers],[Tambo]])))-(SUMPRODUCT((TablaInventarios[Cab.])*(TablaInventarios[Actividad]=Indices[[#Headers],[Tambo]])*(TablaInventarios[Categoría]="Terneros al pie"))+SUMPRODUCT((TablaMovimientos[Cab.])*(TablaMovimientos[Fecha]<=Indices[[#This Row],[Fecha]])*(TablaMovimientos[Actividad]=Indices[[#Headers],[Tambo]])*(TablaMovimientos[Categoría]="Terneros al pie")))) -> 0 | J16: =IF(Indices[[#This Row],[Meses activos]]=0,0,(SUMPRODUCT((TablaInventarios[Cab.])*(TablaInventarios[Actividad]=Indices[[#Headers],[Guachera]]))+SUMPRODUCT((TablaMovimientos[Cab.])*(TablaMovimientos[Fecha]<=Indices[[#This Row],[Fecha]])*(TablaMovimientos[Actividad]=Indices[[#Headers],[Guachera]])))-(SUMPRODUCT((TablaInventarios[Cab.])*(TablaInventarios[Actividad]=Indices[[#Headers],[Guachera]])*(TablaInventarios[Categoría]="Terneros al pie"))+SUMPRODUCT((TablaMovimientos[Cab.])*(TablaMovimientos[Fecha]<=Indices[[#This Row],[Fecha]])*(TablaMovimientos[Actividad]=Indices[[#Headers],[Guachera]])*(TablaMovimientos[Categoría]="Terneros al pie")))) -> 0 | K16: =+SUM(Indices[[#This Row],[Cría]:[Guachera]]) -> 0 | L16: =IF(DATE(YEAR(Indices[[#This Row],[Fecha]]),MONTH(Indices[[#This Row],[Fecha]]),1)>=DATE(YEAR('Planilla de datos'!$N$19-1),MONTH('Planilla de datos'!$N$19-1),1),1,0)*IF(DATE(YEAR(Indices[[#This Row],[Fecha]]),MONTH(Indices[[#This Row],[Fecha]]),1)<='Planilla de datos'!$P$19,1,0) -> 0
A17: 2022-05-01 | B17: =IF(C17=0,"",VLOOKUP('Planilla de datos'!$T$23,'SIPM (Actualización en $)'!$A$6:$C$42,3,FALSE)/C17) ->  | D17: =IF(Indices[[#This Row],[Meses activos]]=0,0,(SUMPRODUCT((TablaInventarios[Cab.])*(TablaInventarios[Actividad]=Indices[[#Headers],[Cría]]))+SUMPRODUCT((TablaMovimientos[Cab.])*(TablaMovimientos[Fecha]<=Indices[[#This Row],[Fecha]])*(TablaMovimientos[Actividad]=Indices[[#Headers],[Cría]])))-(SUMPRODUCT((TablaInventarios[Cab.])*(TablaInventarios[Actividad]=Indices[[#Headers],[Cría]])*(TablaInventarios[Categoría]="Terneros al pie"))+SUMPRODUCT((TablaMovimientos[Cab.])*(TablaMovimientos[Fecha]<=Indices[[#This Row],[Fecha]])*(TablaMovimientos[Actividad]=Indices[[#Headers],[Cría]])*(TablaMovimientos[Categoría]="Terneros al pie")))) -> 0 | E17: =IF(Indices[[#This Row],[Meses activos]]=0,0,(SUMPRODUCT((TablaInventarios[Cab.])*(TablaInventarios[Actividad]=Indices[[#Headers],[Recría]]))+SUMPRODUCT((TablaMovimientos[Cab.])*(TablaMovimientos[Fecha]<=Indices[[#This Row],[Fecha]])*(TablaMovimientos[Actividad]=Indices[[#Headers],[Recría]])))-(SUMPRODUCT((TablaInventarios[Cab.])*(TablaInventarios[Actividad]=Indices[[#Headers],[Recría]])*(TablaInventarios[Categoría]="Terneros al pie"))+SUMPRODUCT((TablaMovimientos[Cab.])*(TablaMovimientos[Fecha]<=Indices[[#This Row],[Fecha]])*(TablaMovimientos[Actividad]=Indices[[#Headers],[Recría]])*(TablaMovimientos[Categoría]="Terneros al pie")))) -> 0 | F17: =IF(Indices[[#This Row],[Meses activos]]=0,0,(SUMPRODUCT((TablaInventarios[Cab.])*(TablaInventarios[Actividad]=Indices[[#Headers],[Invernada]]))+SUMPRODUCT((TablaMovimientos[Cab.])*(TablaMovimientos[Fecha]<=Indices[[#This Row],[Fecha]])*(TablaMovimientos[Actividad]=Indices[[#Headers],[Invernada]])))-(SUMPRODUCT((TablaInventarios[Cab.])*(TablaInventarios[Actividad]=Indices[[#Headers],[Invernada]])*(TablaInventarios[Categoría]="Terneros al pie"))+SUMPRODUCT((TablaMovimientos[Cab.])*(TablaMovimientos[Fecha]<=Indices[[#This Row],[Fecha]])*(TablaMovimientos[Actividad]=Indices[[#Headers],[Invernada]])*(TablaMovimientos[Categoría]="Terneros al pie")))) -> 0 | G17: =IF(Indices[[#This Row],[Meses activos]]=0,0,(SUMPRODUCT((TablaInventarios[Cab.])*(TablaInventarios[Actividad]=Indices[[#Headers],[Feed-lot]]))+SUMPRODUCT((TablaMovimientos[Cab.])*(TablaMovimientos[Fecha]<=Indices[[#This Row],[Fecha]])*(TablaMovimientos[Actividad]=Indices[[#Headers],[Feed-lot]])))-(SUMPRODUCT((TablaInventarios[Cab.])*(TablaInventarios[Actividad]=Indices[[#Headers],[Feed-lot]])*(TablaInventarios[Categoría]="Terneros al pie"))+SUMPRODUCT((TablaMovimientos[Cab.])*(TablaMovimientos[Fecha]<=Indices[[#This Row],[Fecha]])*(TablaMovimientos[Actividad]=Indices[[#Headers],[Feed-lot]])*(TablaMovimientos[Categoría]="Terneros al pie")))) -> 0 | H17: =IF(Indices[[#This Row],[Meses activos]]=0,0,(SUMPRODUCT((TablaInventarios[Cab.])*(TablaInventarios[Actividad]=Indices[[#Headers],[Cabaña]]))+SUMPRODUCT((TablaMovimientos[Cab.])*(TablaMovimientos[Fecha]<=Indices[[#This Row],[Fecha]])*(TablaMovimientos[Actividad]=Indices[[#Headers],[Cabaña]])))-(SUMPRODUCT((TablaInventarios[Cab.])*(TablaInventarios[Actividad]=Indices[[#Headers],[Cabaña]])*(TablaInventarios[Categoría]="Terneros al pie"))+SUMPRODUCT((TablaMovimientos[Cab.])*(TablaMovimientos[Fecha]<=Indices[[#This Row],[Fecha]])*(TablaMovimientos[Actividad]=Indices[[#Headers],[Cabaña]])*(TablaMovimientos[Categoría]="Terneros al pie")))) -> 0 | I17: =IF(Indices[[#This Row],[Meses activos]]=0,0,(SUMPRODUCT((TablaInventarios[Cab.])*(TablaInventarios[Actividad]=Indices[[#Headers],[Tambo]]))+SUMPRODUCT((TablaMovimientos[Cab.])*(TablaMovimientos[Fecha]<=Indices[[#This Row],[Fecha]])*(TablaMovimientos[Actividad]=Indices[[#Headers],[Tambo]])))-(SUMPRODUCT((TablaInventarios[Cab.])*(TablaInventarios[Actividad]=Indices[[#Headers],[Tambo]])*(TablaInventarios[Categoría]="Terneros al pie"))+SUMPRODUCT((TablaMovimientos[Cab.])*(TablaMovimientos[Fecha]<=Indices[[#This Row],[Fecha]])*(TablaMovimientos[Actividad]=Indices[[#Headers],[Tambo]])*(TablaMovimientos[Categoría]="Terneros al pie")))) -> 0 | J17: =IF(Indices[[#This Row],[Meses activos]]=0,0,(SUMPRODUCT((TablaInventarios[Cab.])*(TablaInventarios[Actividad]=Indices[[#Headers],[Guachera]]))+SUMPRODUCT((TablaMovimientos[Cab.])*(TablaMovimientos[Fecha]<=Indices[[#This Row],[Fecha]])*(TablaMovimientos[Actividad]=Indices[[#Headers],[Guachera]])))-(SUMPRODUCT((TablaInventarios[Cab.])*(TablaInventarios[Actividad]=Indices[[#Headers],[Guachera]])*(TablaInventarios[Categoría]="Terneros al pie"))+SUMPRODUCT((TablaMovimientos[Cab.])*(TablaMovimientos[Fecha]<=Indices[[#This Row],[Fecha]])*(TablaMovimientos[Actividad]=Indices[[#Headers],[Guachera]])*(TablaMovimientos[Categoría]="Terneros al pie")))) -> 0 | K17: =+SUM(Indices[[#This Row],[Cría]:[Guachera]]) -> 0 | L17: =IF(DATE(YEAR(Indices[[#This Row],[Fecha]]),MONTH(Indices[[#This Row],[Fecha]]),1)>=DATE(YEAR('Planilla de datos'!$N$19-1),MONTH('Planilla de datos'!$N$19-1),1),1,0)*IF(DATE(YEAR(Indices[[#This Row],[Fecha]]),MONTH(Indices[[#This Row],[Fecha]]),1)<='Planilla de datos'!$P$19,1,0) -> 0
A18: 2022-06-01 | B18: =IF(C18=0,"",VLOOKUP('Planilla de datos'!$T$23,'SIPM (Actualización en $)'!$A$6:$C$42,3,FALSE)/C18) ->  | D18: =IF(Indices[[#This Row],[Meses activos]]=0,0,(SUMPRODUCT((TablaInventarios[Cab.])*(TablaInventarios[Actividad]=Indices[[#Headers],[Cría]]))+SUMPRODUCT((TablaMovimientos[Cab.])*(TablaMovimientos[Fecha]<=Indices[[#This Row],[Fecha]])*(TablaMovimientos[Actividad]=Indices[[#Headers],[Cría]])))-(SUMPRODUCT((TablaInventarios[Cab.])*(TablaInventarios[Actividad]=Indices[[#Headers],[Cría]])*(TablaInventarios[Categoría]="Terneros al pie"))+SUMPRODUCT((TablaMovimientos[Cab.])*(TablaMovimientos[Fecha]<=Indices[[#This Row],[Fecha]])*(TablaMovimientos[Actividad]=Indices[[#Headers],[Cría]])*(TablaMovimientos[Categoría]="Terneros al pie")))) -> 0 | E18: =IF(Indices[[#This Row],[Meses activos]]=0,0,(SUMPRODUCT((TablaInventarios[Cab.])*(TablaInventarios[Actividad]=Indices[[#Headers],[Recría]]))+SUMPRODUCT((TablaMovimientos[Cab.])*(TablaMovimientos[Fecha]<=Indices[[#This Row],[Fecha]])*(TablaMovimientos[Actividad]=Indices[[#Headers],[Recría]])))-(SUMPRODUCT((TablaInventarios[Cab.])*(TablaInventarios[Actividad]=Indices[[#Headers],[Recría]])*(TablaInventarios[Categoría]="Terneros al pie"))+SUMPRODUCT((TablaMovimientos[Cab.])*(TablaMovimientos[Fecha]<=Indices[[#This Row],[Fecha]])*(TablaMovimientos[Actividad]=Indices[[#Headers],[Recría]])*(TablaMovimientos[Categoría]="Terneros al pie")))) -> 0 | F18: =IF(Indices[[#This Row],[Meses activos]]=0,0,(SUMPRODUCT((TablaInventarios[Cab.])*(TablaInventarios[Actividad]=Indices[[#Headers],[Invernada]]))+SUMPRODUCT((TablaMovimientos[Cab.])*(TablaMovimientos[Fecha]<=Indices[[#This Row],[Fecha]])*(TablaMovimientos[Actividad]=Indices[[#Headers],[Invernada]])))-(SUMPRODUCT((TablaInventarios[Cab.])*(TablaInventarios[Actividad]=Indices[[#Headers],[Invernada]])*(TablaInventarios[Categoría]="Terneros al pie"))+SUMPRODUCT((TablaMovimientos[Cab.])*(TablaMovimientos[Fecha]<=Indices[[#This Row],[Fecha]])*(TablaMovimientos[Actividad]=Indices[[#Headers],[Invernada]])*(TablaMovimientos[Categoría]="Terneros al pie")))) -> 0 | G18: =IF(Indices[[#This Row],[Meses activos]]=0,0,(SUMPRODUCT((TablaInventarios[Cab.])*(TablaInventarios[Actividad]=Indices[[#Headers],[Feed-lot]]))+SUMPRODUCT((TablaMovimientos[Cab.])*(TablaMovimientos[Fecha]<=Indices[[#This Row],[Fecha]])*(TablaMovimientos[Actividad]=Indices[[#Headers],[Feed-lot]])))-(SUMPRODUCT((TablaInventarios[Cab.])*(TablaInventarios[Actividad]=Indices[[#Headers],[Feed-lot]])*(TablaInventarios[Categoría]="Terneros al pie"))+SUMPRODUCT((TablaMovimientos[Cab.])*(TablaMovimientos[Fecha]<=Indices[[#This Row],[Fecha]])*(TablaMovimientos[Actividad]=Indices[[#Headers],[Feed-lot]])*(TablaMovimientos[Categoría]="Terneros al pie")))) -> 0 | H18: =IF(Indices[[#This Row],[Meses activos]]=0,0,(SUMPRODUCT((TablaInventarios[Cab.])*(TablaInventarios[Actividad]=Indices[[#Headers],[Cabaña]]))+SUMPRODUCT((TablaMovimientos[Cab.])*(TablaMovimientos[Fecha]<=Indices[[#This Row],[Fecha]])*(TablaMovimientos[Actividad]=Indices[[#Headers],[Cabaña]])))-(SUMPRODUCT((TablaInventarios[Cab.])*(TablaInventarios[Actividad]=Indices[[#Headers],[Cabaña]])*(TablaInventarios[Categoría]="Terneros al pie"))+SUMPRODUCT((TablaMovimientos[Cab.])*(TablaMovimientos[Fecha]<=Indices[[#This Row],[Fecha]])*(TablaMovimientos[Actividad]=Indices[[#Headers],[Cabaña]])*(TablaMovimientos[Categoría]="Terneros al pie")))) -> 0 | I18: =IF(Indices[[#This Row],[Meses activos]]=0,0,(SUMPRODUCT((TablaInventarios[Cab.])*(TablaInventarios[Actividad]=Indices[[#Headers],[Tambo]]))+SUMPRODUCT((TablaMovimientos[Cab.])*(TablaMovimientos[Fecha]<=Indices[[#This Row],[Fecha]])*(TablaMovimientos[Actividad]=Indices[[#Headers],[Tambo]])))-(SUMPRODUCT((TablaInventarios[Cab.])*(TablaInventarios[Actividad]=Indices[[#Headers],[Tambo]])*(TablaInventarios[Categoría]="Terneros al pie"))+SUMPRODUCT((TablaMovimientos[Cab.])*(TablaMovimientos[Fecha]<=Indices[[#This Row],[Fecha]])*(TablaMovimientos[Actividad]=Indices[[#Headers],[Tambo]])*(TablaMovimientos[Categoría]="Terneros al pie")))) -> 0 | J18: =IF(Indices[[#This Row],[Meses activos]]=0,0,(SUMPRODUCT((TablaInventarios[Cab.])*(TablaInventarios[Actividad]=Indices[[#Headers],[Guachera]]))+SUMPRODUCT((TablaMovimientos[Cab.])*(TablaMovimientos[Fecha]<=Indices[[#This Row],[Fecha]])*(TablaMovimientos[Actividad]=Indices[[#Headers],[Guachera]])))-(SUMPRODUCT((TablaInventarios[Cab.])*(TablaInventarios[Actividad]=Indices[[#Headers],[Guachera]])*(TablaInventarios[Categoría]="Terneros al pie"))+SUMPRODUCT((TablaMovimientos[Cab.])*(TablaMovimientos[Fecha]<=Indices[[#This Row],[Fecha]])*(TablaMovimientos[Actividad]=Indices[[#Headers],[Guachera]])*(TablaMovimientos[Categoría]="Terneros al pie")))) -> 0 | K18: =+SUM(Indices[[#This Row],[Cría]:[Guachera]]) -> 0 | L18: =IF(DATE(YEAR(Indices[[#This Row],[Fecha]]),MONTH(Indices[[#This Row],[Fecha]]),1)>=DATE(YEAR('Planilla de datos'!$N$19-1),MONTH('Planilla de datos'!$N$19-1),1),1,0)*IF(DATE(YEAR(Indices[[#This Row],[Fecha]]),MONTH(Indices[[#This Row],[Fecha]]),1)<='Planilla de datos'!$P$19,1,0) -> 0
A19: 2022-07-01 | B19: =IF(C19=0,"",VLOOKUP('Planilla de datos'!$T$23,'SIPM (Actualización en $)'!$A$6:$C$42,3,FALSE)/C19) ->  | D19: =IF(Indices[[#This Row],[Meses activos]]=0,0,(SUMPRODUCT((TablaInventarios[Cab.])*(TablaInventarios[Actividad]=Indices[[#Headers],[Cría]]))+SUMPRODUCT((TablaMovimientos[Cab.])*(TablaMovimientos[Fecha]<=Indices[[#This Row],[Fecha]])*(TablaMovimientos[Actividad]=Indices[[#Headers],[Cría]])))-(SUMPRODUCT((TablaInventarios[Cab.])*(TablaInventarios[Actividad]=Indices[[#Headers],[Cría]])*(TablaInventarios[Categoría]="Terneros al pie"))+SUMPRODUCT((TablaMovimientos[Cab.])*(TablaMovimientos[Fecha]<=Indices[[#This Row],[Fecha]])*(TablaMovimientos[Actividad]=Indices[[#Headers],[Cría]])*(TablaMovimientos[Categoría]="Terneros al pie")))) -> 0 | E19: =IF(Indices[[#This Row],[Meses activos]]=0,0,(SUMPRODUCT((TablaInventarios[Cab.])*(TablaInventarios[Actividad]=Indices[[#Headers],[Recría]]))+SUMPRODUCT((TablaMovimientos[Cab.])*(TablaMovimientos[Fecha]<=Indices[[#This Row],[Fecha]])*(TablaMovimientos[Actividad]=Indices[[#Headers],[Recría]])))-(SUMPRODUCT((TablaInventarios[Cab.])*(TablaInventarios[Actividad]=Indices[[#Headers],[Recría]])*(TablaInventarios[Categoría]="Terneros al pie"))+SUMPRODUCT((TablaMovimientos[Cab.])*(TablaMovimientos[Fecha]<=Indices[[#This Row],[Fecha]])*(TablaMovimientos[Actividad]=Indices[[#Headers],[Recría]])*(TablaMovimientos[Categoría]="Terneros al pie")))) -> 0 | F19: =IF(Indices[[#This Row],[Meses activos]]=0,0,(SUMPRODUCT((TablaInventarios[Cab.])*(TablaInventarios[Actividad]=Indices[[#Headers],[Invernada]]))+SUMPRODUCT((TablaMovimientos[Cab.])*(TablaMovimientos[Fecha]<=Indices[[#This Row],[Fecha]])*(TablaMovimientos[Actividad]=Indices[[#Headers],[Invernada]])))-(SUMPRODUCT((TablaInventarios[Cab.])*(TablaInventarios[Actividad]=Indices[[#Headers],[Invernada]])*(TablaInventarios[Categoría]="Terneros al pie"))+SUMPRODUCT((TablaMovimientos[Cab.])*(TablaMovimientos[Fecha]<=Indices[[#This Row],[Fecha]])*(TablaMovimientos[Actividad]=Indices[[#Headers],[Invernada]])*(TablaMovimientos[Categoría]="Terneros al pie")))) -> 0 | G19: =IF(Indices[[#This Row],[Meses activos]]=0,0,(SUMPRODUCT((TablaInventarios[Cab.])*(TablaInventarios[Actividad]=Indices[[#Headers],[Feed-lot]]))+SUMPRODUCT((TablaMovimientos[Cab.])*(TablaMovimientos[Fecha]<=Indices[[#This Row],[Fecha]])*(TablaMovimientos[Actividad]=Indices[[#Headers],[Feed-lot]])))-(SUMPRODUCT((TablaInventarios[Cab.])*(TablaInventarios[Actividad]=Indices[[#Headers],[Feed-lot]])*(TablaInventarios[Categoría]="Terneros al pie"))+SUMPRODUCT((TablaMovimientos[Cab.])*(TablaMovimientos[Fecha]<=Indices[[#This Row],[Fecha]])*(TablaMovimientos[Actividad]=Indices[[#Headers],[Feed-lot]])*(TablaMovimientos[Categoría]="Terneros al pie")))) -> 0 | H19: =IF(Indices[[#This Row],[Meses activos]]=0,0,(SUMPRODUCT((TablaInventarios[Cab.])*(TablaInventarios[Actividad]=Indices[[#Headers],[Cabaña]]))+SUMPRODUCT((TablaMovimientos[Cab.])*(TablaMovimientos[Fecha]<=Indices[[#This Row],[Fecha]])*(TablaMovimientos[Actividad]=Indices[[#Headers],[Cabaña]])))-(SUMPRODUCT((TablaInventarios[Cab.])*(TablaInventarios[Actividad]=Indices[[#Headers],[Cabaña]])*(TablaInventarios[Categoría]="Terneros al pie"))+SUMPRODUCT((TablaMovimientos[Cab.])*(TablaMovimientos[Fecha]<=Indices[[#This Row],[Fecha]])*(TablaMovimientos[Actividad]=Indices[[#Headers],[Cabaña]])*(TablaMovimientos[Categoría]="Terneros al pie")))) -> 0 | I19: =IF(Indices[[#This Row],[Meses activos]]=0,0,(SUMPRODUCT((TablaInventarios[Cab.])*(TablaInventarios[Actividad]=Indices[[#Headers],[Tambo]]))+SUMPRODUCT((TablaMovimientos[Cab.])*(TablaMovimientos[Fecha]<=Indices[[#This Row],[Fecha]])*(TablaMovimientos[Actividad]=Indices[[#Headers],[Tambo]])))-(SUMPRODUCT((TablaInventarios[Cab.])*(TablaInventarios[Actividad]=Indices[[#Headers],[Tambo]])*(TablaInventarios[Categoría]="Terneros al pie"))+SUMPRODUCT((TablaMovimientos[Cab.])*(TablaMovimientos[Fecha]<=Indices[[#This Row],[Fecha]])*(TablaMovimientos[Actividad]=Indices[[#Headers],[Tambo]])*(TablaMovimientos[Categoría]="Terneros al pie")))) -> 0 | J19: =IF(Indices[[#This Row],[Meses activos]]=0,0,(SUMPRODUCT((TablaInventarios[Cab.])*(TablaInventarios[Actividad]=Indices[[#Headers],[Guachera]]))+SUMPRODUCT((TablaMovimientos[Cab.])*(TablaMovimientos[Fecha]<=Indices[[#This Row],[Fecha]])*(TablaMovimientos[Actividad]=Indices[[#Headers],[Guachera]])))-(SUMPRODUCT((TablaInventarios[Cab.])*(TablaInventarios[Actividad]=Indices[[#Headers],[Guachera]])*(TablaInventarios[Categoría]="Terneros al pie"))+SUMPRODUCT((TablaMovimientos[Cab.])*(TablaMovimientos[Fecha]<=Indices[[#This Row],[Fecha]])*(TablaMovimientos[Actividad]=Indices[[#Headers],[Guachera]])*(TablaMovimientos[Categoría]="Terneros al pie")))) -> 0 | K19: =+SUM(Indices[[#This Row],[Cría]:[Guachera]]) -> 0 | L19: =IF(DATE(YEAR(Indices[[#This Row],[Fecha]]),MONTH(Indices[[#This Row],[Fecha]]),1)>=DATE(YEAR('Planilla de datos'!$N$19-1),MONTH('Planilla de datos'!$N$19-1),1),1,0)*IF(DATE(YEAR(Indices[[#This Row],[Fecha]]),MONTH(Indices[[#This Row],[Fecha]]),1)<='Planilla de datos'!$P$19,1,0) -> 0
A20: 2022-08-01 | B20: =IF(C20=0,"",VLOOKUP('Planilla de datos'!$T$23,'SIPM (Actualización en $)'!$A$6:$C$42,3,FALSE)/C20) ->  | D20: =IF(Indices[[#This Row],[Meses activos]]=0,0,(SUMPRODUCT((TablaInventarios[Cab.])*(TablaInventarios[Actividad]=Indices[[#Headers],[Cría]]))+SUMPRODUCT((TablaMovimientos[Cab.])*(TablaMovimientos[Fecha]<=Indices[[#This Row],[Fecha]])*(TablaMovimientos[Actividad]=Indices[[#Headers],[Cría]])))-(SUMPRODUCT((TablaInventarios[Cab.])*(TablaInventarios[Actividad]=Indices[[#Headers],[Cría]])*(TablaInventarios[Categoría]="Terneros al pie"))+SUMPRODUCT((TablaMovimientos[Cab.])*(TablaMovimientos[Fecha]<=Indices[[#This Row],[Fecha]])*(TablaMovimientos[Actividad]=Indices[[#Headers],[Cría]])*(TablaMovimientos[Categoría]="Terneros al pie")))) -> 0 | E20: =IF(Indices[[#This Row],[Meses activos]]=0,0,(SUMPRODUCT((TablaInventarios[Cab.])*(TablaInventarios[Actividad]=Indices[[#Headers],[Recría]]))+SUMPRODUCT((TablaMovimientos[Cab.])*(TablaMovimientos[Fecha]<=Indices[[#This Row],[Fecha]])*(TablaMovimientos[Actividad]=Indices[[#Headers],[Recría]])))-(SUMPRODUCT((TablaInventarios[Cab.])*(TablaInventarios[Actividad]=Indices[[#Headers],[Recría]])*(TablaInventarios[Categoría]="Terneros al pie"))+SUMPRODUCT((TablaMovimientos[Cab.])*(TablaMovimientos[Fecha]<=Indices[[#This Row],[Fecha]])*(TablaMovimientos[Actividad]=Indices[[#Headers],[Recría]])*(TablaMovimientos[Categoría]="Terneros al pie")))) -> 0 | F20: =IF(Indices[[#This Row],[Meses activos]]=0,0,(SUMPRODUCT((TablaInventarios[Cab.])*(TablaInventarios[Actividad]=Indices[[#Headers],[Invernada]]))+SUMPRODUCT((TablaMovimientos[Cab.])*(TablaMovimientos[Fecha]<=Indices[[#This Row],[Fecha]])*(TablaMovimientos[Actividad]=Indices[[#Headers],[Invernada]])))-(SUMPRODUCT((TablaInventarios[Cab.])*(TablaInventarios[Actividad]=Indices[[#Headers],[Invernada]])*(TablaInventarios[Categoría]="Terneros al pie"))+SUMPRODUCT((TablaMovimientos[Cab.])*(TablaMovimientos[Fecha]<=Indices[[#This Row],[Fecha]])*(TablaMovimientos[Actividad]=Indices[[#Headers],[Invernada]])*(TablaMovimientos[Categoría]="Terneros al pie")))) -> 0 | G20: =IF(Indices[[#This Row],[Meses activos]]=0,0,(SUMPRODUCT((TablaInventarios[Cab.])*(TablaInventarios[Actividad]=Indices[[#Headers],[Feed-lot]]))+SUMPRODUCT((TablaMovimientos[Cab.])*(TablaMovimientos[Fecha]<=Indices[[#This Row],[Fecha]])*(TablaMovimientos[Actividad]=Indices[[#Headers],[Feed-lot]])))-(SUMPRODUCT((TablaInventarios[Cab.])*(TablaInventarios[Actividad]=Indices[[#Headers],[Feed-lot]])*(TablaInventarios[Categoría]="Terneros al pie"))+SUMPRODUCT((TablaMovimientos[Cab.])*(TablaMovimientos[Fecha]<=Indices[[#This Row],[Fecha]])*(TablaMovimientos[Actividad]=Indices[[#Headers],[Feed-lot]])*(TablaMovimientos[Categoría]="Terneros al pie")))) -> 0 | H20: =IF(Indices[[#This Row],[Meses activos]]=0,0,(SUMPRODUCT((TablaInventarios[Cab.])*(TablaInventarios[Actividad]=Indices[[#Headers],[Cabaña]]))+SUMPRODUCT((TablaMovimientos[Cab.])*(TablaMovimientos[Fecha]<=Indices[[#This Row],[Fecha]])*(TablaMovimientos[Actividad]=Indices[[#Headers],[Cabaña]])))-(SUMPRODUCT((TablaInventarios[Cab.])*(TablaInventarios[Actividad]=Indices[[#Headers],[Cabaña]])*(TablaInventarios[Categoría]="Terneros al pie"))+SUMPRODUCT((TablaMovimientos[Cab.])*(TablaMovimientos[Fecha]<=Indices[[#This Row],[Fecha]])*(TablaMovimientos[Actividad]=Indices[[#Headers],[Cabaña]])*(TablaMovimientos[Categoría]="Terneros al pie")))) -> 0 | I20: =IF(Indices[[#This Row],[Meses activos]]=0,0,(SUMPRODUCT((TablaInventarios[Cab.])*(TablaInventarios[Actividad]=Indices[[#Headers],[Tambo]]))+SUMPRODUCT((TablaMovimientos[Cab.])*(TablaMovimientos[Fecha]<=Indices[[#This Row],[Fecha]])*(TablaMovimientos[Actividad]=Indices[[#Headers],[Tambo]])))-(SUMPRODUCT((TablaInventarios[Cab.])*(TablaInventarios[Actividad]=Indices[[#Headers],[Tambo]])*(TablaInventarios[Categoría]="Terneros al pie"))+SUMPRODUCT((TablaMovimientos[Cab.])*(TablaMovimientos[Fecha]<=Indices[[#This Row],[Fecha]])*(TablaMovimientos[Actividad]=Indices[[#Headers],[Tambo]])*(TablaMovimientos[Categoría]="Terneros al pie")))) -> 0 | J20: =IF(Indices[[#This Row],[Meses activos]]=0,0,(SUMPRODUCT((TablaInventarios[Cab.])*(TablaInventarios[Actividad]=Indices[[#Headers],[Guachera]]))+SUMPRODUCT((TablaMovimientos[Cab.])*(TablaMovimientos[Fecha]<=Indices[[#This Row],[Fecha]])*(TablaMovimientos[Actividad]=Indices[[#Headers],[Guachera]])))-(SUMPRODUCT((TablaInventarios[Cab.])*(TablaInventarios[Actividad]=Indices[[#Headers],[Guachera]])*(TablaInventarios[Categoría]="Terneros al pie"))+SUMPRODUCT((TablaMovimientos[Cab.])*(TablaMovimientos[Fecha]<=Indices[[#This Row],[Fecha]])*(TablaMovimientos[Actividad]=Indices[[#Headers],[Guachera]])*(TablaMovimientos[Categoría]="Terneros al pie")))) -> 0 | K20: =+SUM(Indices[[#This Row],[Cría]:[Guachera]]) -> 0 | L20: =IF(DATE(YEAR(Indices[[#This Row],[Fecha]]),MONTH(Indices[[#This Row],[Fecha]]),1)>=DATE(YEAR('Planilla de datos'!$N$19-1),MONTH('Planilla de datos'!$N$19-1),1),1,0)*IF(DATE(YEAR(Indices[[#This Row],[Fecha]]),MONTH(Indices[[#This Row],[Fecha]]),1)<='Planilla de datos'!$P$19,1,0) -> 0
A21: 2022-09-01 | B21: =IF(C21=0,"",VLOOKUP('Planilla de datos'!$T$23,'SIPM (Actualización en $)'!$A$6:$C$42,3,FALSE)/C21) ->  | D21: =IF(Indices[[#This Row],[Meses activos]]=0,0,(SUMPRODUCT((TablaInventarios[Cab.])*(TablaInventarios[Actividad]=Indices[[#Headers],[Cría]]))+SUMPRODUCT((TablaMovimientos[Cab.])*(TablaMovimientos[Fecha]<=Indices[[#This Row],[Fecha]])*(TablaMovimientos[Actividad]=Indices[[#Headers],[Cría]])))-(SUMPRODUCT((TablaInventarios[Cab.])*(TablaInventarios[Actividad]=Indices[[#Headers],[Cría]])*(TablaInventarios[Categoría]="Terneros al pie"))+SUMPRODUCT((TablaMovimientos[Cab.])*(TablaMovimientos[Fecha]<=Indices[[#This Row],[Fecha]])*(TablaMovimientos[Actividad]=Indices[[#Headers],[Cría]])*(TablaMovimientos[Categoría]="Terneros al pie")))) -> 0 | E21: =IF(Indices[[#This Row],[Meses activos]]=0,0,(SUMPRODUCT((TablaInventarios[Cab.])*(TablaInventarios[Actividad]=Indices[[#Headers],[Recría]]))+SUMPRODUCT((TablaMovimientos[Cab.])*(TablaMovimientos[Fecha]<=Indices[[#This Row],[Fecha]])*(TablaMovimientos[Actividad]=Indices[[#Headers],[Recría]])))-(SUMPRODUCT((TablaInventarios[Cab.])*(TablaInventarios[Actividad]=Indices[[#Headers],[Recría]])*(TablaInventarios[Categoría]="Terneros al pie"))+SUMPRODUCT((TablaMovimientos[Cab.])*(TablaMovimientos[Fecha]<=Indices[[#This Row],[Fecha]])*(TablaMovimientos[Actividad]=Indices[[#Headers],[Recría]])*(TablaMovimientos[Categoría]="Terneros al pie")))) -> 0 | F21: =IF(Indices[[#This Row],[Meses activos]]=0,0,(SUMPRODUCT((TablaInventarios[Cab.])*(TablaInventarios[Actividad]=Indices[[#Headers],[Invernada]]))+SUMPRODUCT((TablaMovimientos[Cab.])*(TablaMovimientos[Fecha]<=Indices[[#This Row],[Fecha]])*(TablaMovimientos[Actividad]=Indices[[#Headers],[Invernada]])))-(SUMPRODUCT((TablaInventarios[Cab.])*(TablaInventarios[Actividad]=Indices[[#Headers],[Invernada]])*(TablaInventarios[Categoría]="Terneros al pie"))+SUMPRODUCT((TablaMovimientos[Cab.])*(TablaMovimientos[Fecha]<=Indices[[#This Row],[Fecha]])*(TablaMovimientos[Actividad]=Indices[[#Headers],[Invernada]])*(TablaMovimientos[Categoría]="Terneros al pie")))) -> 0 | G21: =IF(Indices[[#This Row],[Meses activos]]=0,0,(SUMPRODUCT((TablaInventarios[Cab.])*(TablaInventarios[Actividad]=Indices[[#Headers],[Feed-lot]]))+SUMPRODUCT((TablaMovimientos[Cab.])*(TablaMovimientos[Fecha]<=Indices[[#This Row],[Fecha]])*(TablaMovimientos[Actividad]=Indices[[#Headers],[Feed-lot]])))-(SUMPRODUCT((TablaInventarios[Cab.])*(TablaInventarios[Actividad]=Indices[[#Headers],[Feed-lot]])*(TablaInventarios[Categoría]="Terneros al pie"))+SUMPRODUCT((TablaMovimientos[Cab.])*(TablaMovimientos[Fecha]<=Indices[[#This Row],[Fecha]])*(TablaMovimientos[Actividad]=Indices[[#Headers],[Feed-lot]])*(TablaMovimientos[Categoría]="Terneros al pie")))) -> 0 | H21: =IF(Indices[[#This Row],[Meses activos]]=0,0,(SUMPRODUCT((TablaInventarios[Cab.])*(TablaInventarios[Actividad]=Indices[[#Headers],[Cabaña]]))+SUMPRODUCT((TablaMovimientos[Cab.])*(TablaMovimientos[Fecha]<=Indices[[#This Row],[Fecha]])*(TablaMovimientos[Actividad]=Indices[[#Headers],[Cabaña]])))-(SUMPRODUCT((TablaInventarios[Cab.])*(TablaInventarios[Actividad]=Indices[[#Headers],[Cabaña]])*(TablaInventarios[Categoría]="Terneros al pie"))+SUMPRODUCT((TablaMovimientos[Cab.])*(TablaMovimientos[Fecha]<=Indices[[#This Row],[Fecha]])*(TablaMovimientos[Actividad]=Indices[[#Headers],[Cabaña]])*(TablaMovimientos[Categoría]="Terneros al pie")))) -> 0 | I21: =IF(Indices[[#This Row],[Meses activos]]=0,0,(SUMPRODUCT((TablaInventarios[Cab.])*(TablaInventarios[Actividad]=Indices[[#Headers],[Tambo]]))+SUMPRODUCT((TablaMovimientos[Cab.])*(TablaMovimientos[Fecha]<=Indices[[#This Row],[Fecha]])*(TablaMovimientos[Actividad]=Indices[[#Headers],[Tambo]])))-(SUMPRODUCT((TablaInventarios[Cab.])*(TablaInventarios[Actividad]=Indices[[#Headers],[Tambo]])*(TablaInventarios[Categoría]="Terneros al pie"))+SUMPRODUCT((TablaMovimientos[Cab.])*(TablaMovimientos[Fecha]<=Indices[[#This Row],[Fecha]])*(TablaMovimientos[Actividad]=Indices[[#Headers],[Tambo]])*(TablaMovimientos[Categoría]="Terneros al pie")))) -> 0 | J21: =IF(Indices[[#This Row],[Meses activos]]=0,0,(SUMPRODUCT((TablaInventarios[Cab.])*(TablaInventarios[Actividad]=Indices[[#Headers],[Guachera]]))+SUMPRODUCT((TablaMovimientos[Cab.])*(TablaMovimientos[Fecha]<=Indices[[#This Row],[Fecha]])*(TablaMovimientos[Actividad]=Indices[[#Headers],[Guachera]])))-(SUMPRODUCT((TablaInventarios[Cab.])*(TablaInventarios[Actividad]=Indices[[#Headers],[Guachera]])*(TablaInventarios[Categoría]="Terneros al pie"))+SUMPRODUCT((TablaMovimientos[Cab.])*(TablaMovimientos[Fecha]<=Indices[[#This Row],[Fecha]])*(TablaMovimientos[Actividad]=Indices[[#Headers],[Guachera]])*(TablaMovimientos[Categoría]="Terneros al pie")))) -> 0 | K21: =+SUM(Indices[[#This Row],[Cría]:[Guachera]]) -> 0 | L21: =IF(DATE(YEAR(Indices[[#This Row],[Fecha]]),MONTH(Indices[[#This Row],[Fecha]]),1)>=DATE(YEAR('Planilla de datos'!$N$19-1),MONTH('Planilla de datos'!$N$19-1),1),1,0)*IF(DATE(YEAR(Indices[[#This Row],[Fecha]]),MONTH(Indices[[#This Row],[Fecha]]),1)<='Planilla de datos'!$P$19,1,0) -> 0
A22: 2022-10-01 | B22: =IF(C22=0,"",VLOOKUP('Planilla de datos'!$T$23,'SIPM (Actualización en $)'!$A$6:$C$42,3,FALSE)/C22) ->  | D22: =IF(Indices[[#This Row],[Meses activos]]=0,0,(SUMPRODUCT((TablaInventarios[Cab.])*(TablaInventarios[Actividad]=Indices[[#Headers],[Cría]]))+SUMPRODUCT((TablaMovimientos[Cab.])*(TablaMovimientos[Fecha]<=Indices[[#This Row],[Fecha]])*(TablaMovimientos[Actividad]=Indices[[#Headers],[Cría]])))-(SUMPRODUCT((TablaInventarios[Cab.])*(TablaInventarios[Actividad]=Indices[[#Headers],[Cría]])*(TablaInventarios[Categoría]="Terneros al pie"))+SUMPRODUCT((TablaMovimientos[Cab.])*(TablaMovimientos[Fecha]<=Indices[[#This Row],[Fecha]])*(TablaMovimientos[Actividad]=Indices[[#Headers],[Cría]])*(TablaMovimientos[Categoría]="Terneros al pie")))) -> 0 | E22: =IF(Indices[[#This Row],[Meses activos]]=0,0,(SUMPRODUCT((TablaInventarios[Cab.])*(TablaInventarios[Actividad]=Indices[[#Headers],[Recría]]))+SUMPRODUCT((TablaMovimientos[Cab.])*(TablaMovimientos[Fecha]<=Indices[[#This Row],[Fecha]])*(TablaMovimientos[Actividad]=Indices[[#Headers],[Recría]])))-(SUMPRODUCT((TablaInventarios[Cab.])*(TablaInventarios[Actividad]=Indices[[#Headers],[Recría]])*(TablaInventarios[Categoría]="Terneros al pie"))+SUMPRODUCT((TablaMovimientos[Cab.])*(TablaMovimientos[Fecha]<=Indices[[#This Row],[Fecha]])*(TablaMovimientos[Actividad]=Indices[[#Headers],[Recría]])*(TablaMovimientos[Categoría]="Terneros al pie")))) -> 0 | F22: =IF(Indices[[#This Row],[Meses activos]]=0,0,(SUMPRODUCT((TablaInventarios[Cab.])*(TablaInventarios[Actividad]=Indices[[#Headers],[Invernada]]))+SUMPRODUCT((TablaMovimientos[Cab.])*(TablaMovimientos[Fecha]<=Indices[[#This Row],[Fecha]])*(TablaMovimientos[Actividad]=Indices[[#Headers],[Invernada]])))-(SUMPRODUCT((TablaInventarios[Cab.])*(TablaInventarios[Actividad]=Indices[[#Headers],[Invernada]])*(TablaInventarios[Categoría]="Terneros al pie"))+SUMPRODUCT((TablaMovimientos[Cab.])*(TablaMovimientos[Fecha]<=Indices[[#This Row],[Fecha]])*(TablaMovimientos[Actividad]=Indices[[#Headers],[Invernada]])*(TablaMovimientos[Categoría]="Terneros al pie")))) -> 0 | G22: =IF(Indices[[#This Row],[Meses activos]]=0,0,(SUMPRODUCT((TablaInventarios[Cab.])*(TablaInventarios[Actividad]=Indices[[#Headers],[Feed-lot]]))+SUMPRODUCT((TablaMovimientos[Cab.])*(TablaMovimientos[Fecha]<=Indices[[#This Row],[Fecha]])*(TablaMovimientos[Actividad]=Indices[[#Headers],[Feed-lot]])))-(SUMPRODUCT((TablaInventarios[Cab.])*(TablaInventarios[Actividad]=Indices[[#Headers],[Feed-lot]])*(TablaInventarios[Categoría]="Terneros al pie"))+SUMPRODUCT((TablaMovimientos[Cab.])*(TablaMovimientos[Fecha]<=Indices[[#This Row],[Fecha]])*(TablaMovimientos[Actividad]=Indices[[#Headers],[Feed-lot]])*(TablaMovimientos[Categoría]="Terneros al pie")))) -> 0 | H22: =IF(Indices[[#This Row],[Meses activos]]=0,0,(SUMPRODUCT((TablaInventarios[Cab.])*(TablaInventarios[Actividad]=Indices[[#Headers],[Cabaña]]))+SUMPRODUCT((TablaMovimientos[Cab.])*(TablaMovimientos[Fecha]<=Indices[[#This Row],[Fecha]])*(TablaMovimientos[Actividad]=Indices[[#Headers],[Cabaña]])))-(SUMPRODUCT((TablaInventarios[Cab.])*(TablaInventarios[Actividad]=Indices[[#Headers],[Cabaña]])*(TablaInventarios[Categoría]="Terneros al pie"))+SUMPRODUCT((TablaMovimientos[Cab.])*(TablaMovimientos[Fecha]<=Indices[[#This Row],[Fecha]])*(TablaMovimientos[Actividad]=Indices[[#Headers],[Cabaña]])*(TablaMovimientos[Categoría]="Terneros al pie")))) -> 0 | I22: =IF(Indices[[#This Row],[Meses activos]]=0,0,(SUMPRODUCT((TablaInventarios[Cab.])*(TablaInventarios[Actividad]=Indices[[#Headers],[Tambo]]))+SUMPRODUCT((TablaMovimientos[Cab.])*(TablaMovimientos[Fecha]<=Indices[[#This Row],[Fecha]])*(TablaMovimientos[Actividad]=Indices[[#Headers],[Tambo]])))-(SUMPRODUCT((TablaInventarios[Cab.])*(TablaInventarios[Actividad]=Indices[[#Headers],[Tambo]])*(TablaInventarios[Categoría]="Terneros al pie"))+SUMPRODUCT((TablaMovimientos[Cab.])*(TablaMovimientos[Fecha]<=Indices[[#This Row],[Fecha]])*(TablaMovimientos[Actividad]=Indices[[#Headers],[Tambo]])*(TablaMovimientos[Categoría]="Terneros al pie")))) -> 0 | J22: =IF(Indices[[#This Row],[Meses activos]]=0,0,(SUMPRODUCT((TablaInventarios[Cab.])*(TablaInventarios[Actividad]=Indices[[#Headers],[Guachera]]))+SUMPRODUCT((TablaMovimientos[Cab.])*(TablaMovimientos[Fecha]<=Indices[[#This Row],[Fecha]])*(TablaMovimientos[Actividad]=Indices[[#Headers],[Guachera]])))-(SUMPRODUCT((TablaInventarios[Cab.])*(TablaInventarios[Actividad]=Indices[[#Headers],[Guachera]])*(TablaInventarios[Categoría]="Terneros al pie"))+SUMPRODUCT((TablaMovimientos[Cab.])*(TablaMovimientos[Fecha]<=Indices[[#This Row],[Fecha]])*(TablaMovimientos[Actividad]=Indices[[#Headers],[Guachera]])*(TablaMovimientos[Categoría]="Terneros al pie")))) -> 0 | K22: =+SUM(Indices[[#This Row],[Cría]:[Guachera]]) -> 0 | L22: =IF(DATE(YEAR(Indices[[#This Row],[Fecha]]),MONTH(Indices[[#This Row],[Fecha]]),1)>=DATE(YEAR('Planilla de datos'!$N$19-1),MONTH('Planilla de datos'!$N$19-1),1),1,0)*IF(DATE(YEAR(Indices[[#This Row],[Fecha]]),MONTH(Indices[[#This Row],[Fecha]]),1)<='Planilla de datos'!$P$19,1,0) -> 0
A23: 2022-11-01 | B23: =IF(C23=0,"",VLOOKUP('Planilla de datos'!$T$23,'SIPM (Actualización en $)'!$A$6:$C$42,3,FALSE)/C23) ->  | D23: =IF(Indices[[#This Row],[Meses activos]]=0,0,(SUMPRODUCT((TablaInventarios[Cab.])*(TablaInventarios[Actividad]=Indices[[#Headers],[Cría]]))+SUMPRODUCT((TablaMovimientos[Cab.])*(TablaMovimientos[Fecha]<=Indices[[#This Row],[Fecha]])*(TablaMovimientos[Actividad]=Indices[[#Headers],[Cría]])))-(SUMPRODUCT((TablaInventarios[Cab.])*(TablaInventarios[Actividad]=Indices[[#Headers],[Cría]])*(TablaInventarios[Categoría]="Terneros al pie"))+SUMPRODUCT((TablaMovimientos[Cab.])*(TablaMovimientos[Fecha]<=Indices[[#This Row],[Fecha]])*(TablaMovimientos[Actividad]=Indices[[#Headers],[Cría]])*(TablaMovimientos[Categoría]="Terneros al pie")))) -> 0 | E23: =IF(Indices[[#This Row],[Meses activos]]=0,0,(SUMPRODUCT((TablaInventarios[Cab.])*(TablaInventarios[Actividad]=Indices[[#Headers],[Recría]]))+SUMPRODUCT((TablaMovimientos[Cab.])*(TablaMovimientos[Fecha]<=Indices[[#This Row],[Fecha]])*(TablaMovimientos[Actividad]=Indices[[#Headers],[Recría]])))-(SUMPRODUCT((TablaInventarios[Cab.])*(TablaInventarios[Actividad]=Indices[[#Headers],[Recría]])*(TablaInventarios[Categoría]="Terneros al pie"))+SUMPRODUCT((TablaMovimientos[Cab.])*(TablaMovimientos[Fecha]<=Indices[[#This Row],[Fecha]])*(TablaMovimientos[Actividad]=Indices[[#Headers],[Recría]])*(TablaMovimientos[Categoría]="Terneros al pie")))) -> 0 | F23: =IF(Indices[[#This Row],[Meses activos]]=0,0,(SUMPRODUCT((TablaInventarios[Cab.])*(TablaInventarios[Actividad]=Indices[[#Headers],[Invernada]]))+SUMPRODUCT((TablaMovimientos[Cab.])*(TablaMovimientos[Fecha]<=Indices[[#This Row],[Fecha]])*(TablaMovimientos[Actividad]=Indices[[#Headers],[Invernada]])))-(SUMPRODUCT((TablaInventarios[Cab.])*(TablaInventarios[Actividad]=Indices[[#Headers],[Invernada]])*(TablaInventarios[Categoría]="Terneros al pie"))+SUMPRODUCT((TablaMovimientos[Cab.])*(TablaMovimientos[Fecha]<=Indices[[#This Row],[Fecha]])*(TablaMovimientos[Actividad]=Indices[[#Headers],[Invernada]])*(TablaMovimientos[Categoría]="Terneros al pie")))) -> 0 | G23: =IF(Indices[[#This Row],[Meses activos]]=0,0,(SUMPRODUCT((TablaInventarios[Cab.])*(TablaInventarios[Actividad]=Indices[[#Headers],[Feed-lot]]))+SUMPRODUCT((TablaMovimientos[Cab.])*(TablaMovimientos[Fecha]<=Indices[[#This Row],[Fecha]])*(TablaMovimientos[Actividad]=Indices[[#Headers],[Feed-lot]])))-(SUMPRODUCT((TablaInventarios[Cab.])*(TablaInventarios[Actividad]=Indices[[#Headers],[Feed-lot]])*(TablaInventarios[Categoría]="Terneros al pie"))+SUMPRODUCT((TablaMovimientos[Cab.])*(TablaMovimientos[Fecha]<=Indices[[#This Row],[Fecha]])*(TablaMovimientos[Actividad]=Indices[[#Headers],[Feed-lot]])*(TablaMovimientos[Categoría]="Terneros al pie")))) -> 0 | H23: =IF(Indices[[#This Row],[Meses activos]]=0,0,(SUMPRODUCT((TablaInventarios[Cab.])*(TablaInventarios[Actividad]=Indices[[#Headers],[Cabaña]]))+SUMPRODUCT((TablaMovimientos[Cab.])*(TablaMovimientos[Fecha]<=Indices[[#This Row],[Fecha]])*(TablaMovimientos[Actividad]=Indices[[#Headers],[Cabaña]])))-(SUMPRODUCT((TablaInventarios[Cab.])*(TablaInventarios[Actividad]=Indices[[#Headers],[Cabaña]])*(TablaInventarios[Categoría]="Terneros al pie"))+SUMPRODUCT((TablaMovimientos[Cab.])*(TablaMovimientos[Fecha]<=Indices[[#This Row],[Fecha]])*(TablaMovimientos[Actividad]=Indices[[#Headers],[Cabaña]])*(TablaMovimientos[Categoría]="Terneros al pie")))) -> 0 | I23: =IF(Indices[[#This Row],[Meses activos]]=0,0,(SUMPRODUCT((TablaInventarios[Cab.])*(TablaInventarios[Actividad]=Indices[[#Headers],[Tambo]]))+SUMPRODUCT((TablaMovimientos[Cab.])*(TablaMovimientos[Fecha]<=Indices[[#This Row],[Fecha]])*(TablaMovimientos[Actividad]=Indices[[#Headers],[Tambo]])))-(SUMPRODUCT((TablaInventarios[Cab.])*(TablaInventarios[Actividad]=Indices[[#Headers],[Tambo]])*(TablaInventarios[Categoría]="Terneros al pie"))+SUMPRODUCT((TablaMovimientos[Cab.])*(TablaMovimientos[Fecha]<=Indices[[#This Row],[Fecha]])*(TablaMovimientos[Actividad]=Indices[[#Headers],[Tambo]])*(TablaMovimientos[Categoría]="Terneros al pie")))) -> 0 | J23: =IF(Indices[[#This Row],[Meses activos]]=0,0,(SUMPRODUCT((TablaInventarios[Cab.])*(TablaInventarios[Actividad]=Indices[[#Headers],[Guachera]]))+SUMPRODUCT((TablaMovimientos[Cab.])*(TablaMovimientos[Fecha]<=Indices[[#This Row],[Fecha]])*(TablaMovimientos[Actividad]=Indices[[#Headers],[Guachera]])))-(SUMPRODUCT((TablaInventarios[Cab.])*(TablaInventarios[Actividad]=Indices[[#Headers],[Guachera]])*(TablaInventarios[Categoría]="Terneros al pie"))+SUMPRODUCT((TablaMovimientos[Cab.])*(TablaMovimientos[Fecha]<=Indices[[#This Row],[Fecha]])*(TablaMovimientos[Actividad]=Indices[[#Headers],[Guachera]])*(TablaMovimientos[Categoría]="Terneros al pie")))) -> 0 | K23: =+SUM(Indices[[#This Row],[Cría]:[Guachera]]) -> 0 | L23: =IF(DATE(YEAR(Indices[[#This Row],[Fecha]]),MONTH(Indices[[#This Row],[Fecha]]),1)>=DATE(YEAR('Planilla de datos'!$N$19-1),MONTH('Planilla de datos'!$N$19-1),1),1,0)*IF(DATE(YEAR(Indices[[#This Row],[Fecha]]),MONTH(Indices[[#This Row],[Fecha]]),1)<='Planilla de datos'!$P$19,1,0) -> 0
A24: 2022-12-01 | B24: =IF(C24=0,"",VLOOKUP('Planilla de datos'!$T$23,'SIPM (Actualización en $)'!$A$6:$C$42,3,FALSE)/C24) ->  | D24: =IF(Indices[[#This Row],[Meses activos]]=0,0,(SUMPRODUCT((TablaInventarios[Cab.])*(TablaInventarios[Actividad]=Indices[[#Headers],[Cría]]))+SUMPRODUCT((TablaMovimientos[Cab.])*(TablaMovimientos[Fecha]<=Indices[[#This Row],[Fecha]])*(TablaMovimientos[Actividad]=Indices[[#Headers],[Cría]])))-(SUMPRODUCT((TablaInventarios[Cab.])*(TablaInventarios[Actividad]=Indices[[#Headers],[Cría]])*(TablaInventarios[Categoría]="Terneros al pie"))+SUMPRODUCT((TablaMovimientos[Cab.])*(TablaMovimientos[Fecha]<=Indices[[#This Row],[Fecha]])*(TablaMovimientos[Actividad]=Indices[[#Headers],[Cría]])*(TablaMovimientos[Categoría]="Terneros al pie")))) -> 0 | E24: =IF(Indices[[#This Row],[Meses activos]]=0,0,(SUMPRODUCT((TablaInventarios[Cab.])*(TablaInventarios[Actividad]=Indices[[#Headers],[Recría]]))+SUMPRODUCT((TablaMovimientos[Cab.])*(TablaMovimientos[Fecha]<=Indices[[#This Row],[Fecha]])*(TablaMovimientos[Actividad]=Indices[[#Headers],[Recría]])))-(SUMPRODUCT((TablaInventarios[Cab.])*(TablaInventarios[Actividad]=Indices[[#Headers],[Recría]])*(TablaInventarios[Categoría]="Terneros al pie"))+SUMPRODUCT((TablaMovimientos[Cab.])*(TablaMovimientos[Fecha]<=Indices[[#This Row],[Fecha]])*(TablaMovimientos[Actividad]=Indices[[#Headers],[Recría]])*(TablaMovimientos[Categoría]="Terneros al pie")))) -> 0 | F24: =IF(Indices[[#This Row],[Meses activos]]=0,0,(SUMPRODUCT((TablaInventarios[Cab.])*(TablaInventarios[Actividad]=Indices[[#Headers],[Invernada]]))+SUMPRODUCT((TablaMovimientos[Cab.])*(TablaMovimientos[Fecha]<=Indices[[#This Row],[Fecha]])*(TablaMovimientos[Actividad]=Indices[[#Headers],[Invernada]])))-(SUMPRODUCT((TablaInventarios[Cab.])*(TablaInventarios[Actividad]=Indices[[#Headers],[Invernada]])*(TablaInventarios[Categoría]="Terneros al pie"))+SUMPRODUCT((TablaMovimientos[Cab.])*(TablaMovimientos[Fecha]<=Indices[[#This Row],[Fecha]])*(TablaMovimientos[Actividad]=Indices[[#Headers],[Invernada]])*(TablaMovimientos[Categoría]="Terneros al pie")))) -> 0 | G24: =IF(Indices[[#This Row],[Meses activos]]=0,0,(SUMPRODUCT((TablaInventarios[Cab.])*(TablaInventarios[Actividad]=Indices[[#Headers],[Feed-lot]]))+SUMPRODUCT((TablaMovimientos[Cab.])*(TablaMovimientos[Fecha]<=Indices[[#This Row],[Fecha]])*(TablaMovimientos[Actividad]=Indices[[#Headers],[Feed-lot]])))-(SUMPRODUCT((TablaInventarios[Cab.])*(TablaInventarios[Actividad]=Indices[[#Headers],[Feed-lot]])*(TablaInventarios[Categoría]="Terneros al pie"))+SUMPRODUCT((TablaMovimientos[Cab.])*(TablaMovimientos[Fecha]<=Indices[[#This Row],[Fecha]])*(TablaMovimientos[Actividad]=Indices[[#Headers],[Feed-lot]])*(TablaMovimientos[Categoría]="Terneros al pie")))) -> 0 | H24: =IF(Indices[[#This Row],[Meses activos]]=0,0,(SUMPRODUCT((TablaInventarios[Cab.])*(TablaInventarios[Actividad]=Indices[[#Headers],[Cabaña]]))+SUMPRODUCT((TablaMovimientos[Cab.])*(TablaMovimientos[Fecha]<=Indices[[#This Row],[Fecha]])*(TablaMovimientos[Actividad]=Indices[[#Headers],[Cabaña]])))-(SUMPRODUCT((TablaInventarios[Cab.])*(TablaInventarios[Actividad]=Indices[[#Headers],[Cabaña]])*(TablaInventarios[Categoría]="Terneros al pie"))+SUMPRODUCT((TablaMovimientos[Cab.])*(TablaMovimientos[Fecha]<=Indices[[#This Row],[Fecha]])*(TablaMovimientos[Actividad]=Indices[[#Headers],[Cabaña]])*(TablaMovimientos[Categoría]="Terneros al pie")))) -> 0 | I24: =IF(Indices[[#This Row],[Meses activos]]=0,0,(SUMPRODUCT((TablaInventarios[Cab.])*(TablaInventarios[Actividad]=Indices[[#Headers],[Tambo]]))+SUMPRODUCT((TablaMovimientos[Cab.])*(TablaMovimientos[Fecha]<=Indices[[#This Row],[Fecha]])*(TablaMovimientos[Actividad]=Indices[[#Headers],[Tambo]])))-(SUMPRODUCT((TablaInventarios[Cab.])*(TablaInventarios[Actividad]=Indices[[#Headers],[Tambo]])*(TablaInventarios[Categoría]="Terneros al pie"))+SUMPRODUCT((TablaMovimientos[Cab.])*(TablaMovimientos[Fecha]<=Indices[[#This Row],[Fecha]])*(TablaMovimientos[Actividad]=Indices[[#Headers],[Tambo]])*(TablaMovimientos[Categoría]="Terneros al pie")))) -> 0 | J24: =IF(Indices[[#This Row],[Meses activos]]=0,0,(SUMPRODUCT((TablaInventarios[Cab.])*(TablaInventarios[Actividad]=Indices[[#Headers],[Guachera]]))+SUMPRODUCT((TablaMovimientos[Cab.])*(TablaMovimientos[Fecha]<=Indices[[#This Row],[Fecha]])*(TablaMovimientos[Actividad]=Indices[[#Headers],[Guachera]])))-(SUMPRODUCT((TablaInventarios[Cab.])*(TablaInventarios[Actividad]=Indices[[#Headers],[Guachera]])*(TablaInventarios[Categoría]="Terneros al pie"))+SUMPRODUCT((TablaMovimientos[Cab.])*(TablaMovimientos[Fecha]<=Indices[[#This Row],[Fecha]])*(TablaMovimientos[Actividad]=Indices[[#Headers],[Guachera]])*(TablaMovimientos[Categoría]="Terneros al pie")))) -> 0 | K24: =+SUM(Indices[[#This Row],[Cría]:[Guachera]]) -> 0 | L24: =IF(DATE(YEAR(Indices[[#This Row],[Fecha]]),MONTH(Indices[[#This Row],[Fecha]]),1)>=DATE(YEAR('Planilla de datos'!$N$19-1),MONTH('Planilla de datos'!$N$19-1),1),1,0)*IF(DATE(YEAR(Indices[[#This Row],[Fecha]]),MONTH(Indices[[#This Row],[Fecha]]),1)<='Planilla de datos'!$P$19,1,0) -> 0
A25: 2023-01-01 | B25: =IF(C25=0,"",VLOOKUP('Planilla de datos'!$T$23,'SIPM (Actualización en $)'!$A$6:$C$42,3,FALSE)/C25) ->  | D25: =IF(Indices[[#This Row],[Meses activos]]=0,0,(SUMPRODUCT((TablaInventarios[Cab.])*(TablaInventarios[Actividad]=Indices[[#Headers],[Cría]]))+SUMPRODUCT((TablaMovimientos[Cab.])*(TablaMovimientos[Fecha]<=Indices[[#This Row],[Fecha]])*(TablaMovimientos[Actividad]=Indices[[#Headers],[Cría]])))-(SUMPRODUCT((TablaInventarios[Cab.])*(TablaInventarios[Actividad]=Indices[[#Headers],[Cría]])*(TablaInventarios[Categoría]="Terneros al pie"))+SUMPRODUCT((TablaMovimientos[Cab.])*(TablaMovimientos[Fecha]<=Indices[[#This Row],[Fecha]])*(TablaMovimientos[Actividad]=Indices[[#Headers],[Cría]])*(TablaMovimientos[Categoría]="Terneros al pie")))) -> 0 | E25: =IF(Indices[[#This Row],[Meses activos]]=0,0,(SUMPRODUCT((TablaInventarios[Cab.])*(TablaInventarios[Actividad]=Indices[[#Headers],[Recría]]))+SUMPRODUCT((TablaMovimientos[Cab.])*(TablaMovimientos[Fecha]<=Indices[[#This Row],[Fecha]])*(TablaMovimientos[Actividad]=Indices[[#Headers],[Recría]])))-(SUMPRODUCT((TablaInventarios[Cab.])*(TablaInventarios[Actividad]=Indices[[#Headers],[Recría]])*(TablaInventarios[Categoría]="Terneros al pie"))+SUMPRODUCT((TablaMovimientos[Cab.])*(TablaMovimientos[Fecha]<=Indices[[#This Row],[Fecha]])*(TablaMovimientos[Actividad]=Indices[[#Headers],[Recría]])*(TablaMovimientos[Categoría]="Terneros al pie")))) -> 0 | F25: =IF(Indices[[#This Row],[Meses activos]]=0,0,(SUMPRODUCT((TablaInventarios[Cab.])*(TablaInventarios[Actividad]=Indices[[#Headers],[Invernada]]))+SUMPRODUCT((TablaMovimientos[Cab.])*(TablaMovimientos[Fecha]<=Indices[[#This Row],[Fecha]])*(TablaMovimientos[Actividad]=Indices[[#Headers],[Invernada]])))-(SUMPRODUCT((TablaInventarios[Cab.])*(TablaInventarios[Actividad]=Indices[[#Headers],[Invernada]])*(TablaInventarios[Categoría]="Terneros al pie"))+SUMPRODUCT((TablaMovimientos[Cab.])*(TablaMovimientos[Fecha]<=Indices[[#This Row],[Fecha]])*(TablaMovimientos[Actividad]=Indices[[#Headers],[Invernada]])*(TablaMovimientos[Categoría]="Terneros al pie")))) -> 0 | G25: =IF(Indices[[#This Row],[Meses activos]]=0,0,(SUMPRODUCT((TablaInventarios[Cab.])*(TablaInventarios[Actividad]=Indices[[#Headers],[Feed-lot]]))+SUMPRODUCT((TablaMovimientos[Cab.])*(TablaMovimientos[Fecha]<=Indices[[#This Row],[Fecha]])*(TablaMovimientos[Actividad]=Indices[[#Headers],[Feed-lot]])))-(SUMPRODUCT((TablaInventarios[Cab.])*(TablaInventarios[Actividad]=Indices[[#Headers],[Feed-lot]])*(TablaInventarios[Categoría]="Terneros al pie"))+SUMPRODUCT((TablaMovimientos[Cab.])*(TablaMovimientos[Fecha]<=Indices[[#This Row],[Fecha]])*(TablaMovimientos[Actividad]=Indices[[#Headers],[Feed-lot]])*(TablaMovimientos[Categoría]="Terneros al pie")))) -> 0 | H25: =IF(Indices[[#This Row],[Meses activos]]=0,0,(SUMPRODUCT((TablaInventarios[Cab.])*(TablaInventarios[Actividad]=Indices[[#Headers],[Cabaña]]))+SUMPRODUCT((TablaMovimientos[Cab.])*(TablaMovimientos[Fecha]<=Indices[[#This Row],[Fecha]])*(TablaMovimientos[Actividad]=Indices[[#Headers],[Cabaña]])))-(SUMPRODUCT((TablaInventarios[Cab.])*(TablaInventarios[Actividad]=Indices[[#Headers],[Cabaña]])*(TablaInventarios[Categoría]="Terneros al pie"))+SUMPRODUCT((TablaMovimientos[Cab.])*(TablaMovimientos[Fecha]<=Indices[[#This Row],[Fecha]])*(TablaMovimientos[Actividad]=Indices[[#Headers],[Cabaña]])*(TablaMovimientos[Categoría]="Terneros al pie")))) -> 0 | I25: =IF(Indices[[#This Row],[Meses activos]]=0,0,(SUMPRODUCT((TablaInventarios[Cab.])*(TablaInventarios[Actividad]=Indices[[#Headers],[Tambo]]))+SUMPRODUCT((TablaMovimientos[Cab.])*(TablaMovimientos[Fecha]<=Indices[[#This Row],[Fecha]])*(TablaMovimientos[Actividad]=Indices[[#Headers],[Tambo]])))-(SUMPRODUCT((TablaInventarios[Cab.])*(TablaInventarios[Actividad]=Indices[[#Headers],[Tambo]])*(TablaInventarios[Categoría]="Terneros al pie"))+SUMPRODUCT((TablaMovimientos[Cab.])*(TablaMovimientos[Fecha]<=Indices[[#This Row],[Fecha]])*(TablaMovimientos[Actividad]=Indices[[#Headers],[Tambo]])*(TablaMovimientos[Categoría]="Terneros al pie")))) -> 0 | J25: =IF(Indices[[#This Row],[Meses activos]]=0,0,(SUMPRODUCT((TablaInventarios[Cab.])*(TablaInventarios[Actividad]=Indices[[#Headers],[Guachera]]))+SUMPRODUCT((TablaMovimientos[Cab.])*(TablaMovimientos[Fecha]<=Indices[[#This Row],[Fecha]])*(TablaMovimientos[Actividad]=Indices[[#Headers],[Guachera]])))-(SUMPRODUCT((TablaInventarios[Cab.])*(TablaInventarios[Actividad]=Indices[[#Headers],[Guachera]])*(TablaInventarios[Categoría]="Terneros al pie"))+SUMPRODUCT((TablaMovimientos[Cab.])*(TablaMovimientos[Fecha]<=Indices[[#This Row],[Fecha]])*(TablaMovimientos[Actividad]=Indices[[#Headers],[Guachera]])*(TablaMovimientos[Categoría]="Terneros al pie")))) -> 0 | K25: =+SUM(Indices[[#This Row],[Cría]:[Guachera]]) -> 0 | L25: =IF(DATE(YEAR(Indices[[#This Row],[Fecha]]),MONTH(Indices[[#This Row],[Fecha]]),1)>=DATE(YEAR('Planilla de datos'!$N$19-1),MONTH('Planilla de datos'!$N$19-1),1),1,0)*IF(DATE(YEAR(Indices[[#This Row],[Fecha]]),MONTH(Indices[[#This Row],[Fecha]]),1)<='Planilla de datos'!$P$19,1,0) -> 0
A26: 2023-02-01 | B26: =IF(C26=0,"",VLOOKUP('Planilla de datos'!$T$23,'SIPM (Actualización en $)'!$A$6:$C$42,3,FALSE)/C26) ->  | D26: =IF(Indices[[#This Row],[Meses activos]]=0,0,(SUMPRODUCT((TablaInventarios[Cab.])*(TablaInventarios[Actividad]=Indices[[#Headers],[Cría]]))+SUMPRODUCT((TablaMovimientos[Cab.])*(TablaMovimientos[Fecha]<=Indices[[#This Row],[Fecha]])*(TablaMovimientos[Actividad]=Indices[[#Headers],[Cría]])))-(SUMPRODUCT((TablaInventarios[Cab.])*(TablaInventarios[Actividad]=Indices[[#Headers],[Cría]])*(TablaInventarios[Categoría]="Terneros al pie"))+SUMPRODUCT((TablaMovimientos[Cab.])*(TablaMovimientos[Fecha]<=Indices[[#This Row],[Fecha]])*(TablaMovimientos[Actividad]=Indices[[#Headers],[Cría]])*(TablaMovimientos[Categoría]="Terneros al pie")))) -> 0 | E26: =IF(Indices[[#This Row],[Meses activos]]=0,0,(SUMPRODUCT((TablaInventarios[Cab.])*(TablaInventarios[Actividad]=Indices[[#Headers],[Recría]]))+SUMPRODUCT((TablaMovimientos[Cab.])*(TablaMovimientos[Fecha]<=Indices[[#This Row],[Fecha]])*(TablaMovimientos[Actividad]=Indices[[#Headers],[Recría]])))-(SUMPRODUCT((TablaInventarios[Cab.])*(TablaInventarios[Actividad]=Indices[[#Headers],[Recría]])*(TablaInventarios[Categoría]="Terneros al pie"))+SUMPRODUCT((TablaMovimientos[Cab.])*(TablaMovimientos[Fecha]<=Indices[[#This Row],[Fecha]])*(TablaMovimientos[Actividad]=Indices[[#Headers],[Recría]])*(TablaMovimientos[Categoría]="Terneros al pie")))) -> 0 | F26: =IF(Indices[[#This Row],[Meses activos]]=0,0,(SUMPRODUCT((TablaInventarios[Cab.])*(TablaInventarios[Actividad]=Indices[[#Headers],[Invernada]]))+SUMPRODUCT((TablaMovimientos[Cab.])*(TablaMovimientos[Fecha]<=Indices[[#This Row],[Fecha]])*(TablaMovimientos[Actividad]=Indices[[#Headers],[Invernada]])))-(SUMPRODUCT((TablaInventarios[Cab.])*(TablaInventarios[Actividad]=Indices[[#Headers],[Invernada]])*(TablaInventarios[Categoría]="Terneros al pie"))+SUMPRODUCT((TablaMovimientos[Cab.])*(TablaMovimientos[Fecha]<=Indices[[#This Row],[Fecha]])*(TablaMovimientos[Actividad]=Indices[[#Headers],[Invernada]])*(TablaMovimientos[Categoría]="Terneros al pie")))) -> 0 | G26: =IF(Indices[[#This Row],[Meses activos]]=0,0,(SUMPRODUCT((TablaInventarios[Cab.])*(TablaInventarios[Actividad]=Indices[[#Headers],[Feed-lot]]))+SUMPRODUCT((TablaMovimientos[Cab.])*(TablaMovimientos[Fecha]<=Indices[[#This Row],[Fecha]])*(TablaMovimientos[Actividad]=Indices[[#Headers],[Feed-lot]])))-(SUMPRODUCT((TablaInventarios[Cab.])*(TablaInventarios[Actividad]=Indices[[#Headers],[Feed-lot]])*(TablaInventarios[Categoría]="Terneros al pie"))+SUMPRODUCT((TablaMovimientos[Cab.])*(TablaMovimientos[Fecha]<=Indices[[#This Row],[Fecha]])*(TablaMovimientos[Actividad]=Indices[[#Headers],[Feed-lot]])*(TablaMovimientos[Categoría]="Terneros al pie")))) -> 0 | H26: =IF(Indices[[#This Row],[Meses activos]]=0,0,(SUMPRODUCT((TablaInventarios[Cab.])*(TablaInventarios[Actividad]=Indices[[#Headers],[Cabaña]]))+SUMPRODUCT((TablaMovimientos[Cab.])*(TablaMovimientos[Fecha]<=Indices[[#This Row],[Fecha]])*(TablaMovimientos[Actividad]=Indices[[#Headers],[Cabaña]])))-(SUMPRODUCT((TablaInventarios[Cab.])*(TablaInventarios[Actividad]=Indices[[#Headers],[Cabaña]])*(TablaInventarios[Categoría]="Terneros al pie"))+SUMPRODUCT((TablaMovimientos[Cab.])*(TablaMovimientos[Fecha]<=Indices[[#This Row],[Fecha]])*(TablaMovimientos[Actividad]=Indices[[#Headers],[Cabaña]])*(TablaMovimientos[Categoría]="Terneros al pie")))) -> 0 | I26: =IF(Indices[[#This Row],[Meses activos]]=0,0,(SUMPRODUCT((TablaInventarios[Cab.])*(TablaInventarios[Actividad]=Indices[[#Headers],[Tambo]]))+SUMPRODUCT((TablaMovimientos[Cab.])*(TablaMovimientos[Fecha]<=Indices[[#This Row],[Fecha]])*(TablaMovimientos[Actividad]=Indices[[#Headers],[Tambo]])))-(SUMPRODUCT((TablaInventarios[Cab.])*(TablaInventarios[Actividad]=Indices[[#Headers],[Tambo]])*(TablaInventarios[Categoría]="Terneros al pie"))+SUMPRODUCT((TablaMovimientos[Cab.])*(TablaMovimientos[Fecha]<=Indices[[#This Row],[Fecha]])*(TablaMovimientos[Actividad]=Indices[[#Headers],[Tambo]])*(TablaMovimientos[Categoría]="Terneros al pie")))) -> 0 | J26: =IF(Indices[[#This Row],[Meses activos]]=0,0,(SUMPRODUCT((TablaInventarios[Cab.])*(TablaInventarios[Actividad]=Indices[[#Headers],[Guachera]]))+SUMPRODUCT((TablaMovimientos[Cab.])*(TablaMovimientos[Fecha]<=Indices[[#This Row],[Fecha]])*(TablaMovimientos[Actividad]=Indices[[#Headers],[Guachera]])))-(SUMPRODUCT((TablaInventarios[Cab.])*(TablaInventarios[Actividad]=Indices[[#Headers],[Guachera]])*(TablaInventarios[Categoría]="Terneros al pie"))+SUMPRODUCT((TablaMovimientos[Cab.])*(TablaMovimientos[Fecha]<=Indices[[#This Row],[Fecha]])*(TablaMovimientos[Actividad]=Indices[[#Headers],[Guachera]])*(TablaMovimientos[Categoría]="Terneros al pie")))) -> 0 | K26: =+SUM(Indices[[#This Row],[Cría]:[Guachera]]) -> 0 | L26: =IF(DATE(YEAR(Indices[[#This Row],[Fecha]]),MONTH(Indices[[#This Row],[Fecha]]),1)>=DATE(YEAR('Planilla de datos'!$N$19-1),MONTH('Planilla de datos'!$N$19-1),1),1,0)*IF(DATE(YEAR(Indices[[#This Row],[Fecha]]),MONTH(Indices[[#This Row],[Fecha]]),1)<='Planilla de datos'!$P$19,1,0) -> 0
A27: 2023-03-01 | B27: =IF(C27=0,"",VLOOKUP('Planilla de datos'!$T$23,'SIPM (Actualización en $)'!$A$6:$C$42,3,FALSE)/C27) ->  | D27: =IF(Indices[[#This Row],[Meses activos]]=0,0,(SUMPRODUCT((TablaInventarios[Cab.])*(TablaInventarios[Actividad]=Indices[[#Headers],[Cría]]))+SUMPRODUCT((TablaMovimientos[Cab.])*(TablaMovimientos[Fecha]<=Indices[[#This Row],[Fecha]])*(TablaMovimientos[Actividad]=Indices[[#Headers],[Cría]])))-(SUMPRODUCT((TablaInventarios[Cab.])*(TablaInventarios[Actividad]=Indices[[#Headers],[Cría]])*(TablaInventarios[Categoría]="Terneros al pie"))+SUMPRODUCT((TablaMovimientos[Cab.])*(TablaMovimientos[Fecha]<=Indices[[#This Row],[Fecha]])*(TablaMovimientos[Actividad]=Indices[[#Headers],[Cría]])*(TablaMovimientos[Categoría]="Terneros al pie")))) -> 0 | E27: =IF(Indices[[#This Row],[Meses activos]]=0,0,(SUMPRODUCT((TablaInventarios[Cab.])*(TablaInventarios[Actividad]=Indices[[#Headers],[Recría]]))+SUMPRODUCT((TablaMovimientos[Cab.])*(TablaMovimientos[Fecha]<=Indices[[#This Row],[Fecha]])*(TablaMovimientos[Actividad]=Indices[[#Headers],[Recría]])))-(SUMPRODUCT((TablaInventarios[Cab.])*(TablaInventarios[Actividad]=Indices[[#Headers],[Recría]])*(TablaInventarios[Categoría]="Terneros al pie"))+SUMPRODUCT((TablaMovimientos[Cab.])*(TablaMovimientos[Fecha]<=Indices[[#This Row],[Fecha]])*(TablaMovimientos[Actividad]=Indices[[#Headers],[Recría]])*(TablaMovimientos[Categoría]="Terneros al pie")))) -> 0 | F27: =IF(Indices[[#This Row],[Meses activos]]=0,0,(SUMPRODUCT((TablaInventarios[Cab.])*(TablaInventarios[Actividad]=Indices[[#Headers],[Invernada]]))+SUMPRODUCT((TablaMovimientos[Cab.])*(TablaMovimientos[Fecha]<=Indices[[#This Row],[Fecha]])*(TablaMovimientos[Actividad]=Indices[[#Headers],[Invernada]])))-(SUMPRODUCT((TablaInventarios[Cab.])*(TablaInventarios[Actividad]=Indices[[#Headers],[Invernada]])*(TablaInventarios[Categoría]="Terneros al pie"))+SUMPRODUCT((TablaMovimientos[Cab.])*(TablaMovimientos[Fecha]<=Indices[[#This Row],[Fecha]])*(TablaMovimientos[Actividad]=Indices[[#Headers],[Invernada]])*(TablaMovimientos[Categoría]="Terneros al pie")))) -> 0 | G27: =IF(Indices[[#This Row],[Meses activos]]=0,0,(SUMPRODUCT((TablaInventarios[Cab.])*(TablaInventarios[Actividad]=Indices[[#Headers],[Feed-lot]]))+SUMPRODUCT((TablaMovimientos[Cab.])*(TablaMovimientos[Fecha]<=Indices[[#This Row],[Fecha]])*(TablaMovimientos[Actividad]=Indices[[#Headers],[Feed-lot]])))-(SUMPRODUCT((TablaInventarios[Cab.])*(TablaInventarios[Actividad]=Indices[[#Headers],[Feed-lot]])*(TablaInventarios[Categoría]="Terneros al pie"))+SUMPRODUCT((TablaMovimientos[Cab.])*(TablaMovimientos[Fecha]<=Indices[[#This Row],[Fecha]])*(TablaMovimientos[Actividad]=Indices[[#Headers],[Feed-lot]])*(TablaMovimientos[Categoría]="Terneros al pie")))) -> 0 | H27: =IF(Indices[[#This Row],[Meses activos]]=0,0,(SUMPRODUCT((TablaInventarios[Cab.])*(TablaInventarios[Actividad]=Indices[[#Headers],[Cabaña]]))+SUMPRODUCT((TablaMovimientos[Cab.])*(TablaMovimientos[Fecha]<=Indices[[#This Row],[Fecha]])*(TablaMovimientos[Actividad]=Indices[[#Headers],[Cabaña]])))-(SUMPRODUCT((TablaInventarios[Cab.])*(TablaInventarios[Actividad]=Indices[[#Headers],[Cabaña]])*(TablaInventarios[Categoría]="Terneros al pie"))+SUMPRODUCT((TablaMovimientos[Cab.])*(TablaMovimientos[Fecha]<=Indices[[#This Row],[Fecha]])*(TablaMovimientos[Actividad]=Indices[[#Headers],[Cabaña]])*(TablaMovimientos[Categoría]="Terneros al pie")))) -> 0 | I27: =IF(Indices[[#This Row],[Meses activos]]=0,0,(SUMPRODUCT((TablaInventarios[Cab.])*(TablaInventarios[Actividad]=Indices[[#Headers],[Tambo]]))+SUMPRODUCT((TablaMovimientos[Cab.])*(TablaMovimientos[Fecha]<=Indices[[#This Row],[Fecha]])*(TablaMovimientos[Actividad]=Indices[[#Headers],[Tambo]])))-(SUMPRODUCT((TablaInventarios[Cab.])*(TablaInventarios[Actividad]=Indices[[#Headers],[Tambo]])*(TablaInventarios[Categoría]="Terneros al pie"))+SUMPRODUCT((TablaMovimientos[Cab.])*(TablaMovimientos[Fecha]<=Indices[[#This Row],[Fecha]])*(TablaMovimientos[Actividad]=Indices[[#Headers],[Tambo]])*(TablaMovimientos[Categoría]="Terneros al pie")))) -> 0 | J27: =IF(Indices[[#This Row],[Meses activos]]=0,0,(SUMPRODUCT((TablaInventarios[Cab.])*(TablaInventarios[Actividad]=Indices[[#Headers],[Guachera]]))+SUMPRODUCT((TablaMovimientos[Cab.])*(TablaMovimientos[Fecha]<=Indices[[#This Row],[Fecha]])*(TablaMovimientos[Actividad]=Indices[[#Headers],[Guachera]])))-(SUMPRODUCT((TablaInventarios[Cab.])*(TablaInventarios[Actividad]=Indices[[#Headers],[Guachera]])*(TablaInventarios[Categoría]="Terneros al pie"))+SUMPRODUCT((TablaMovimientos[Cab.])*(TablaMovimientos[Fecha]<=Indices[[#This Row],[Fecha]])*(TablaMovimientos[Actividad]=Indices[[#Headers],[Guachera]])*(TablaMovimientos[Categoría]="Terneros al pie")))) -> 0 | K27: =+SUM(Indices[[#This Row],[Cría]:[Guachera]]) -> 0 | L27: =IF(DATE(YEAR(Indices[[#This Row],[Fecha]]),MONTH(Indices[[#This Row],[Fecha]]),1)>=DATE(YEAR('Planilla de datos'!$N$19-1),MONTH('Planilla de datos'!$N$19-1),1),1,0)*IF(DATE(YEAR(Indices[[#This Row],[Fecha]]),MONTH(Indices[[#This Row],[Fecha]]),1)<='Planilla de datos'!$P$19,1,0) -> 0
A28: 2023-04-01 | B28: =IF(C28=0,"",VLOOKUP('Planilla de datos'!$T$23,'SIPM (Actualización en $)'!$A$6:$C$42,3,FALSE)/C28) ->  | D28: =IF(Indices[[#This Row],[Meses activos]]=0,0,(SUMPRODUCT((TablaInventarios[Cab.])*(TablaInventarios[Actividad]=Indices[[#Headers],[Cría]]))+SUMPRODUCT((TablaMovimientos[Cab.])*(TablaMovimientos[Fecha]<=Indices[[#This Row],[Fecha]])*(TablaMovimientos[Actividad]=Indices[[#Headers],[Cría]])))-(SUMPRODUCT((TablaInventarios[Cab.])*(TablaInventarios[Actividad]=Indices[[#Headers],[Cría]])*(TablaInventarios[Categoría]="Terneros al pie"))+SUMPRODUCT((TablaMovimientos[Cab.])*(TablaMovimientos[Fecha]<=Indices[[#This Row],[Fecha]])*(TablaMovimientos[Actividad]=Indices[[#Headers],[Cría]])*(TablaMovimientos[Categoría]="Terneros al pie")))) -> 0 | E28: =IF(Indices[[#This Row],[Meses activos]]=0,0,(SUMPRODUCT((TablaInventarios[Cab.])*(TablaInventarios[Actividad]=Indices[[#Headers],[Recría]]))+SUMPRODUCT((TablaMovimientos[Cab.])*(TablaMovimientos[Fecha]<=Indices[[#This Row],[Fecha]])*(TablaMovimientos[Actividad]=Indices[[#Headers],[Recría]])))-(SUMPRODUCT((TablaInventarios[Cab.])*(TablaInventarios[Actividad]=Indices[[#Headers],[Recría]])*(TablaInventarios[Categoría]="Terneros al pie"))+SUMPRODUCT((TablaMovimientos[Cab.])*(TablaMovimientos[Fecha]<=Indices[[#This Row],[Fecha]])*(TablaMovimientos[Actividad]=Indices[[#Headers],[Recría]])*(TablaMovimientos[Categoría]="Terneros al pie")))) -> 0 | F28: =IF(Indices[[#This Row],[Meses activos]]=0,0,(SUMPRODUCT((TablaInventarios[Cab.])*(TablaInventarios[Actividad]=Indices[[#Headers],[Invernada]]))+SUMPRODUCT((TablaMovimientos[Cab.])*(TablaMovimientos[Fecha]<=Indices[[#This Row],[Fecha]])*(TablaMovimientos[Actividad]=Indices[[#Headers],[Invernada]])))-(SUMPRODUCT((TablaInventarios[Cab.])*(TablaInventarios[Actividad]=Indices[[#Headers],[Invernada]])*(TablaInventarios[Categoría]="Terneros al pie"))+SUMPRODUCT((TablaMovimientos[Cab.])*(TablaMovimientos[Fecha]<=Indices[[#This Row],[Fecha]])*(TablaMovimientos[Actividad]=Indices[[#Headers],[Invernada]])*(TablaMovimientos[Categoría]="Terneros al pie")))) -> 0 | G28: =IF(Indices[[#This Row],[Meses activos]]=0,0,(SUMPRODUCT((TablaInventarios[Cab.])*(TablaInventarios[Actividad]=Indices[[#Headers],[Feed-lot]]))+SUMPRODUCT((TablaMovimientos[Cab.])*(TablaMovimientos[Fecha]<=Indices[[#This Row],[Fecha]])*(TablaMovimientos[Actividad]=Indices[[#Headers],[Feed-lot]])))-(SUMPRODUCT((TablaInventarios[Cab.])*(TablaInventarios[Actividad]=Indices[[#Headers],[Feed-lot]])*(TablaInventarios[Categoría]="Terneros al pie"))+SUMPRODUCT((TablaMovimientos[Cab.])*(TablaMovimientos[Fecha]<=Indices[[#This Row],[Fecha]])*(TablaMovimientos[Actividad]=Indices[[#Headers],[Feed-lot]])*(TablaMovimientos[Categoría]="Terneros al pie")))) -> 0 | H28: =IF(Indices[[#This Row],[Meses activos]]=0,0,(SUMPRODUCT((TablaInventarios[Cab.])*(TablaInventarios[Actividad]=Indices[[#Headers],[Cabaña]]))+SUMPRODUCT((TablaMovimientos[Cab.])*(TablaMovimientos[Fecha]<=Indices[[#This Row],[Fecha]])*(TablaMovimientos[Actividad]=Indices[[#Headers],[Cabaña]])))-(SUMPRODUCT((TablaInventarios[Cab.])*(TablaInventarios[Actividad]=Indices[[#Headers],[Cabaña]])*(TablaInventarios[Categoría]="Terneros al pie"))+SUMPRODUCT((TablaMovimientos[Cab.])*(TablaMovimientos[Fecha]<=Indices[[#This Row],[Fecha]])*(TablaMovimientos[Actividad]=Indices[[#Headers],[Cabaña]])*(TablaMovimientos[Categoría]="Terneros al pie")))) -> 0 | I28: =IF(Indices[[#This Row],[Meses activos]]=0,0,(SUMPRODUCT((TablaInventarios[Cab.])*(TablaInventarios[Actividad]=Indices[[#Headers],[Tambo]]))+SUMPRODUCT((TablaMovimientos[Cab.])*(TablaMovimientos[Fecha]<=Indices[[#This Row],[Fecha]])*(TablaMovimientos[Actividad]=Indices[[#Headers],[Tambo]])))-(SUMPRODUCT((TablaInventarios[Cab.])*(TablaInventarios[Actividad]=Indices[[#Headers],[Tambo]])*(TablaInventarios[Categoría]="Terneros al pie"))+SUMPRODUCT((TablaMovimientos[Cab.])*(TablaMovimientos[Fecha]<=Indices[[#This Row],[Fecha]])*(TablaMovimientos[Actividad]=Indices[[#Headers],[Tambo]])*(TablaMovimientos[Categoría]="Terneros al pie")))) -> 0 | J28: =IF(Indices[[#This Row],[Meses activos]]=0,0,(SUMPRODUCT((TablaInventarios[Cab.])*(TablaInventarios[Actividad]=Indices[[#Headers],[Guachera]]))+SUMPRODUCT((TablaMovimientos[Cab.])*(TablaMovimientos[Fecha]<=Indices[[#This Row],[Fecha]])*(TablaMovimientos[Actividad]=Indices[[#Headers],[Guachera]])))-(SUMPRODUCT((TablaInventarios[Cab.])*(TablaInventarios[Actividad]=Indices[[#Headers],[Guachera]])*(TablaInventarios[Categoría]="Terneros al pie"))+SUMPRODUCT((TablaMovimientos[Cab.])*(TablaMovimientos[Fecha]<=Indices[[#This Row],[Fecha]])*(TablaMovimientos[Actividad]=Indices[[#Headers],[Guachera]])*(TablaMovimientos[Categoría]="Terneros al pie")))) -> 0 | K28: =+SUM(Indices[[#This Row],[Cría]:[Guachera]]) -> 0 | L28: =IF(DATE(YEAR(Indices[[#This Row],[Fecha]]),MONTH(Indices[[#This Row],[Fecha]]),1)>=DATE(YEAR('Planilla de datos'!$N$19-1),MONTH('Planilla de datos'!$N$19-1),1),1,0)*IF(DATE(YEAR(Indices[[#This Row],[Fecha]]),MONTH(Indices[[#This Row],[Fecha]]),1)<='Planilla de datos'!$P$19,1,0) -> 0
A29: 2023-05-01 | B29: =IF(C29=0,"",VLOOKUP('Planilla de datos'!$T$23,'SIPM (Actualización en $)'!$A$6:$C$42,3,FALSE)/C29) ->  | D29: =IF(Indices[[#This Row],[Meses activos]]=0,0,(SUMPRODUCT((TablaInventarios[Cab.])*(TablaInventarios[Actividad]=Indices[[#Headers],[Cría]]))+SUMPRODUCT((TablaMovimientos[Cab.])*(TablaMovimientos[Fecha]<=Indices[[#This Row],[Fecha]])*(TablaMovimientos[Actividad]=Indices[[#Headers],[Cría]])))-(SUMPRODUCT((TablaInventarios[Cab.])*(TablaInventarios[Actividad]=Indices[[#Headers],[Cría]])*(TablaInventarios[Categoría]="Terneros al pie"))+SUMPRODUCT((TablaMovimientos[Cab.])*(TablaMovimientos[Fecha]<=Indices[[#This Row],[Fecha]])*(TablaMovimientos[Actividad]=Indices[[#Headers],[Cría]])*(TablaMovimientos[Categoría]="Terneros al pie")))) -> 0 | E29: =IF(Indices[[#This Row],[Meses activos]]=0,0,(SUMPRODUCT((TablaInventarios[Cab.])*(TablaInventarios[Actividad]=Indices[[#Headers],[Recría]]))+SUMPRODUCT((TablaMovimientos[Cab.])*(TablaMovimientos[Fecha]<=Indices[[#This Row],[Fecha]])*(TablaMovimientos[Actividad]=Indices[[#Headers],[Recría]])))-(SUMPRODUCT((TablaInventarios[Cab.])*(TablaInventarios[Actividad]=Indices[[#Headers],[Recría]])*(TablaInventarios[Categoría]="Terneros al pie"))+SUMPRODUCT((TablaMovimientos[Cab.])*(TablaMovimientos[Fecha]<=Indices[[#This Row],[Fecha]])*(TablaMovimientos[Actividad]=Indices[[#Headers],[Recría]])*(TablaMovimientos[Categoría]="Terneros al pie")))) -> 0 | F29: =IF(Indices[[#This Row],[Meses activos]]=0,0,(SUMPRODUCT((TablaInventarios[Cab.])*(TablaInventarios[Actividad]=Indices[[#Headers],[Invernada]]))+SUMPRODUCT((TablaMovimientos[Cab.])*(TablaMovimientos[Fecha]<=Indices[[#This Row],[Fecha]])*(TablaMovimientos[Actividad]=Indices[[#Headers],[Invernada]])))-(SUMPRODUCT((TablaInventarios[Cab.])*(TablaInventarios[Actividad]=Indices[[#Headers],[Invernada]])*(TablaInventarios[Categoría]="Terneros al pie"))+SUMPRODUCT((TablaMovimientos[Cab.])*(TablaMovimientos[Fecha]<=Indices[[#This Row],[Fecha]])*(TablaMovimientos[Actividad]=Indices[[#Headers],[Invernada]])*(TablaMovimientos[Categoría]="Terneros al pie")))) -> 0 | G29: =IF(Indices[[#This Row],[Meses activos]]=0,0,(SUMPRODUCT((TablaInventarios[Cab.])*(TablaInventarios[Actividad]=Indices[[#Headers],[Feed-lot]]))+SUMPRODUCT((TablaMovimientos[Cab.])*(TablaMovimientos[Fecha]<=Indices[[#This Row],[Fecha]])*(TablaMovimientos[Actividad]=Indices[[#Headers],[Feed-lot]])))-(SUMPRODUCT((TablaInventarios[Cab.])*(TablaInventarios[Actividad]=Indices[[#Headers],[Feed-lot]])*(TablaInventarios[Categoría]="Terneros al pie"))+SUMPRODUCT((TablaMovimientos[Cab.])*(TablaMovimientos[Fecha]<=Indices[[#This Row],[Fecha]])*(TablaMovimientos[Actividad]=Indices[[#Headers],[Feed-lot]])*(TablaMovimientos[Categoría]="Terneros al pie")))) -> 0 | H29: =IF(Indices[[#This Row],[Meses activos]]=0,0,(SUMPRODUCT((TablaInventarios[Cab.])*(TablaInventarios[Actividad]=Indices[[#Headers],[Cabaña]]))+SUMPRODUCT((TablaMovimientos[Cab.])*(TablaMovimientos[Fecha]<=Indices[[#This Row],[Fecha]])*(TablaMovimientos[Actividad]=Indices[[#Headers],[Cabaña]])))-(SUMPRODUCT((TablaInventarios[Cab.])*(TablaInventarios[Actividad]=Indices[[#Headers],[Cabaña]])*(TablaInventarios[Categoría]="Terneros al pie"))+SUMPRODUCT((TablaMovimientos[Cab.])*(TablaMovimientos[Fecha]<=Indices[[#This Row],[Fecha]])*(TablaMovimientos[Actividad]=Indices[[#Headers],[Cabaña]])*(TablaMovimientos[Categoría]="Terneros al pie")))) -> 0 | I29: =IF(Indices[[#This Row],[Meses activos]]=0,0,(SUMPRODUCT((TablaInventarios[Cab.])*(TablaInventarios[Actividad]=Indices[[#Headers],[Tambo]]))+SUMPRODUCT((TablaMovimientos[Cab.])*(TablaMovimientos[Fecha]<=Indices[[#This Row],[Fecha]])*(TablaMovimientos[Actividad]=Indices[[#Headers],[Tambo]])))-(SUMPRODUCT((TablaInventarios[Cab.])*(TablaInventarios[Actividad]=Indices[[#Headers],[Tambo]])*(TablaInventarios[Categoría]="Terneros al pie"))+SUMPRODUCT((TablaMovimientos[Cab.])*(TablaMovimientos[Fecha]<=Indices[[#This Row],[Fecha]])*(TablaMovimientos[Actividad]=Indices[[#Headers],[Tambo]])*(TablaMovimientos[Categoría]="Terneros al pie")))) -> 0 | J29: =IF(Indices[[#This Row],[Meses activos]]=0,0,(SUMPRODUCT((TablaInventarios[Cab.])*(TablaInventarios[Actividad]=Indices[[#Headers],[Guachera]]))+SUMPRODUCT((TablaMovimientos[Cab.])*(TablaMovimientos[Fecha]<=Indices[[#This Row],[Fecha]])*(TablaMovimientos[Actividad]=Indices[[#Headers],[Guachera]])))-(SUMPRODUCT((TablaInventarios[Cab.])*(TablaInventarios[Actividad]=Indices[[#Headers],[Guachera]])*(TablaInventarios[Categoría]="Terneros al pie"))+SUMPRODUCT((TablaMovimientos[Cab.])*(TablaMovimientos[Fecha]<=Indices[[#This Row],[Fecha]])*(TablaMovimientos[Actividad]=Indices[[#Headers],[Guachera]])*(TablaMovimientos[Categoría]="Terneros al pie")))) -> 0 | K29: =+SUM(Indices[[#This Row],[Cría]:[Guachera]]) -> 0 | L29: =IF(DATE(YEAR(Indices[[#This Row],[Fecha]]),MONTH(Indices[[#This Row],[Fecha]]),1)>=DATE(YEAR('Planilla de datos'!$N$19-1),MONTH('Planilla de datos'!$N$19-1),1),1,0)*IF(DATE(YEAR(Indices[[#This Row],[Fecha]]),MONTH(Indices[[#This Row],[Fecha]]),1)<='Planilla de datos'!$P$19,1,0) -> 0
A30: 2023-06-01 | B30: =IF(C30=0,"",VLOOKUP('Planilla de datos'!$T$23,'SIPM (Actualización en $)'!$A$6:$C$42,3,FALSE)/C30) -> 3.831417625 | C30: 261 | D30: =IF(Indices[[#This Row],[Meses activos]]=0,0,(SUMPRODUCT((TablaInventarios[Cab.])*(TablaInventarios[Actividad]=Indices[[#Headers],[Cría]]))+SUMPRODUCT((TablaMovimientos[Cab.])*(TablaMovimientos[Fecha]<=Indices[[#This Row],[Fecha]])*(TablaMovimientos[Actividad]=Indices[[#Headers],[Cría]])))-(SUMPRODUCT((TablaInventarios[Cab.])*(TablaInventarios[Actividad]=Indices[[#Headers],[Cría]])*(TablaInventarios[Categoría]="Terneros al pie"))+SUMPRODUCT((TablaMovimientos[Cab.])*(TablaMovimientos[Fecha]<=Indices[[#This Row],[Fecha]])*(TablaMovimientos[Actividad]=Indices[[#Headers],[Cría]])*(TablaMovimientos[Categoría]="Terneros al pie")))) -> 0 | E30: =IF(Indices[[#This Row],[Meses activos]]=0,0,(SUMPRODUCT((TablaInventarios[Cab.])*(TablaInventarios[Actividad]=Indices[[#Headers],[Recría]]))+SUMPRODUCT((TablaMovimientos[Cab.])*(TablaMovimientos[Fecha]<=Indices[[#This Row],[Fecha]])*(TablaMovimientos[Actividad]=Indices[[#Headers],[Recría]])))-(SUMPRODUCT((TablaInventarios[Cab.])*(TablaInventarios[Actividad]=Indices[[#Headers],[Recría]])*(TablaInventarios[Categoría]="Terneros al pie"))+SUMPRODUCT((TablaMovimientos[Cab.])*(TablaMovimientos[Fecha]<=Indices[[#This Row],[Fecha]])*(TablaMovimientos[Actividad]=Indices[[#Headers],[Recría]])*(TablaMovimientos[Categoría]="Terneros al pie")))) -> 0 | F30: =IF(Indices[[#This Row],[Meses activos]]=0,0,(SUMPRODUCT((TablaInventarios[Cab.])*(TablaInventarios[Actividad]=Indices[[#Headers],[Invernada]]))+SUMPRODUCT((TablaMovimientos[Cab.])*(TablaMovimientos[Fecha]<=Indices[[#This Row],[Fecha]])*(TablaMovimientos[Actividad]=Indices[[#Headers],[Invernada]])))-(SUMPRODUCT((TablaInventarios[Cab.])*(TablaInventarios[Actividad]=Indices[[#Headers],[Invernada]])*(TablaInventarios[Categoría]="Terneros al pie"))+SUMPRODUCT((TablaMovimientos[Cab.])*(TablaMovimientos[Fecha]<=Indices[[#This Row],[Fecha]])*(TablaMovimientos[Actividad]=Indices[[#Headers],[Invernada]])*(TablaMovimientos[Categoría]="Terneros al pie")))) -> 0 | G30: =IF(Indices[[#This Row],[Meses activos]]=0,0,(SUMPRODUCT((TablaInventarios[Cab.])*(TablaInventarios[Actividad]=Indices[[#Headers],[Feed-lot]]))+SUMPRODUCT((TablaMovimientos[Cab.])*(TablaMovimientos[Fecha]<=Indices[[#This Row],[Fecha]])*(TablaMovimientos[Actividad]=Indices[[#Headers],[Feed-lot]])))-(SUMPRODUCT((TablaInventarios[Cab.])*(TablaInventarios[Actividad]=Indices[[#Headers],[Feed-lot]])*(TablaInventarios[Categoría]="Terneros al pie"))+SUMPRODUCT((TablaMovimientos[Cab.])*(TablaMovimientos[Fecha]<=Indices[[#This Row],[Fecha]])*(TablaMovimientos[Actividad]=Indices[[#Headers],[Feed-lot]])*(TablaMovimientos[Categoría]="Terneros al pie")))) -> 0 | H30: =IF(Indices[[#This Row],[Meses activos]]=0,0,(SUMPRODUCT((TablaInventarios[Cab.])*(TablaInventarios[Actividad]=Indices[[#Headers],[Cabaña]]))+SUMPRODUCT((TablaMovimientos[Cab.])*(TablaMovimientos[Fecha]<=Indices[[#This Row],[Fecha]])*(TablaMovimientos[Actividad]=Indices[[#Headers],[Cabaña]])))-(SUMPRODUCT((TablaInventarios[Cab.])*(TablaInventarios[Actividad]=Indices[[#Headers],[Cabaña]])*(TablaInventarios[Categoría]="Terneros al pie"))+SUMPRODUCT((TablaMovimientos[Cab.])*(TablaMovimientos[Fecha]<=Indices[[#This Row],[Fecha]])*(TablaMovimientos[Actividad]=Indices[[#Headers],[Cabaña]])*(TablaMovimientos[Categoría]="Terneros al pie")))) -> 0 | I30: =IF(Indices[[#This Row],[Meses activos]]=0,0,(SUMPRODUCT((TablaInventarios[Cab.])*(TablaInventarios[Actividad]=Indices[[#Headers],[Tambo]]))+SUMPRODUCT((TablaMovimientos[Cab.])*(TablaMovimientos[Fecha]<=Indices[[#This Row],[Fecha]])*(TablaMovimientos[Actividad]=Indices[[#Headers],[Tambo]])))-(SUMPRODUCT((TablaInventarios[Cab.])*(TablaInventarios[Actividad]=Indices[[#Headers],[Tambo]])*(TablaInventarios[Categoría]="Terneros al pie"))+SUMPRODUCT((TablaMovimientos[Cab.])*(TablaMovimientos[Fecha]<=Indices[[#This Row],[Fecha]])*(TablaMovimientos[Actividad]=Indices[[#Headers],[Tambo]])*(TablaMovimientos[Categoría]="Terneros al pie")))) -> 0 | J30: =IF(Indices[[#This Row],[Meses activos]]=0,0,(SUMPRODUCT((TablaInventarios[Cab.])*(TablaInventarios[Actividad]=Indices[[#Headers],[Guachera]]))+SUMPRODUCT((TablaMovimientos[Cab.])*(TablaMovimientos[Fecha]<=Indices[[#This Row],[Fecha]])*(TablaMovimientos[Actividad]=Indices[[#Headers],[Guachera]])))-(SUMPRODUCT((TablaInventarios[Cab.])*(TablaInventarios[Actividad]=Indices[[#Headers],[Guachera]])*(TablaInventarios[Categoría]="Terneros al pie"))+SUMPRODUCT((TablaMovimientos[Cab.])*(TablaMovimientos[Fecha]<=Indices[[#This Row],[Fecha]])*(TablaMovimientos[Actividad]=Indices[[#Headers],[Guachera]])*(TablaMovimientos[Categoría]="Terneros al pie")))) -> 0 | K30: =+SUM(Indices[[#This Row],[Cría]:[Guachera]]) -> 0 | L30: =IF(DATE(YEAR(Indices[[#This Row],[Fecha]]),MONTH(Indices[[#This Row],[Fecha]]),1)>=DATE(YEAR('Planilla de datos'!$N$19-1),MONTH('Planilla de datos'!$N$19-1),1),1,0)*IF(DATE(YEAR(Indices[[#This Row],[Fecha]]),MONTH(Indices[[#This Row],[Fecha]]),1)<='Planilla de datos'!$P$19,1,0) -> 1
A31: 2023-07-01 | B31: =IF(C31=0,"",VLOOKUP('Planilla de datos'!$T$23,'SIPM (Actualización en $)'!$A$6:$C$42,3,FALSE)/C31) -> 3.584229391 | C31: 279 | D31: =IF(Indices[[#This Row],[Meses activos]]=0,0,(SUMPRODUCT((TablaInventarios[Cab.])*(TablaInventarios[Actividad]=Indices[[#Headers],[Cría]]))+SUMPRODUCT((TablaMovimientos[Cab.])*(TablaMovimientos[Fecha]<=Indices[[#This Row],[Fecha]])*(TablaMovimientos[Actividad]=Indices[[#Headers],[Cría]])))-(SUMPRODUCT((TablaInventarios[Cab.])*(TablaInventarios[Actividad]=Indices[[#Headers],[Cría]])*(TablaInventarios[Categoría]="Terneros al pie"))+SUMPRODUCT((TablaMovimientos[Cab.])*(TablaMovimientos[Fecha]<=Indices[[#This Row],[Fecha]])*(TablaMovimientos[Actividad]=Indices[[#Headers],[Cría]])*(TablaMovimientos[Categoría]="Terneros al pie")))) -> 0 | E31: =IF(Indices[[#This Row],[Meses activos]]=0,0,(SUMPRODUCT((TablaInventarios[Cab.])*(TablaInventarios[Actividad]=Indices[[#Headers],[Recría]]))+SUMPRODUCT((TablaMovimientos[Cab.])*(TablaMovimientos[Fecha]<=Indices[[#This Row],[Fecha]])*(TablaMovimientos[Actividad]=Indices[[#Headers],[Recría]])))-(SUMPRODUCT((TablaInventarios[Cab.])*(TablaInventarios[Actividad]=Indices[[#Headers],[Recría]])*(TablaInventarios[Categoría]="Terneros al pie"))+SUMPRODUCT((TablaMovimientos[Cab.])*(TablaMovimientos[Fecha]<=Indices[[#This Row],[Fecha]])*(TablaMovimientos[Actividad]=Indices[[#Headers],[Recría]])*(TablaMovimientos[Categoría]="Terneros al pie")))) -> 0 | F31: =IF(Indices[[#This Row],[Meses activos]]=0,0,(SUMPRODUCT((TablaInventarios[Cab.])*(TablaInventarios[Actividad]=Indices[[#Headers],[Invernada]]))+SUMPRODUCT((TablaMovimientos[Cab.])*(TablaMovimientos[Fecha]<=Indices[[#This Row],[Fecha]])*(TablaMovimientos[Actividad]=Indices[[#Headers],[Invernada]])))-(SUMPRODUCT((TablaInventarios[Cab.])*(TablaInventarios[Actividad]=Indices[[#Headers],[Invernada]])*(TablaInventarios[Categoría]="Terneros al pie"))+SUMPRODUCT((TablaMovimientos[Cab.])*(TablaMovimientos[Fecha]<=Indices[[#This Row],[Fecha]])*(TablaMovimientos[Actividad]=Indices[[#Headers],[Invernada]])*(TablaMovimientos[Categoría]="Terneros al pie")))) -> 0 | G31: =IF(Indices[[#This Row],[Meses activos]]=0,0,(SUMPRODUCT((TablaInventarios[Cab.])*(TablaInventarios[Actividad]=Indices[[#Headers],[Feed-lot]]))+SUMPRODUCT((TablaMovimientos[Cab.])*(TablaMovimientos[Fecha]<=Indices[[#This Row],[Fecha]])*(TablaMovimientos[Actividad]=Indices[[#Headers],[Feed-lot]])))-(SUMPRODUCT((TablaInventarios[Cab.])*(TablaInventarios[Actividad]=Indices[[#Headers],[Feed-lot]])*(TablaInventarios[Categoría]="Terneros al pie"))+SUMPRODUCT((TablaMovimientos[Cab.])*(TablaMovimientos[Fecha]<=Indices[[#This Row],[Fecha]])*(TablaMovimientos[Actividad]=Indices[[#Headers],[Feed-lot]])*(TablaMovimientos[Categoría]="Terneros al pie")))) -> 0 | H31: =IF(Indices[[#This Row],[Meses activos]]=0,0,(SUMPRODUCT((TablaInventarios[Cab.])*(TablaInventarios[Actividad]=Indices[[#Headers],[Cabaña]]))+SUMPRODUCT((TablaMovimientos[Cab.])*(TablaMovimientos[Fecha]<=Indices[[#This Row],[Fecha]])*(TablaMovimientos[Actividad]=Indices[[#Headers],[Cabaña]])))-(SUMPRODUCT((TablaInventarios[Cab.])*(TablaInventarios[Actividad]=Indices[[#Headers],[Cabaña]])*(TablaInventarios[Categoría]="Terneros al pie"))+SUMPRODUCT((TablaMovimientos[Cab.])*(TablaMovimientos[Fecha]<=Indices[[#This Row],[Fecha]])*(TablaMovimientos[Actividad]=Indices[[#Headers],[Cabaña]])*(TablaMovimientos[Categoría]="Terneros al pie")))) -> 0 | I31: =IF(Indices[[#This Row],[Meses activos]]=0,0,(SUMPRODUCT((TablaInventarios[Cab.])*(TablaInventarios[Actividad]=Indices[[#Headers],[Tambo]]))+SUMPRODUCT((TablaMovimientos[Cab.])*(TablaMovimientos[Fecha]<=Indices[[#This Row],[Fecha]])*(TablaMovimientos[Actividad]=Indices[[#Headers],[Tambo]])))-(SUMPRODUCT((TablaInventarios[Cab.])*(TablaInventarios[Actividad]=Indices[[#Headers],[Tambo]])*(TablaInventarios[Categoría]="Terneros al pie"))+SUMPRODUCT((TablaMovimientos[Cab.])*(TablaMovimientos[Fecha]<=Indices[[#This Row],[Fecha]])*(TablaMovimientos[Actividad]=Indices[[#Headers],[Tambo]])*(TablaMovimientos[Categoría]="Terneros al pie")))) -> 0 | J31: =IF(Indices[[#This Row],[Meses activos]]=0,0,(SUMPRODUCT((TablaInventarios[Cab.])*(TablaInventarios[Actividad]=Indices[[#Headers],[Guachera]]))+SUMPRODUCT((TablaMovimientos[Cab.])*(TablaMovimientos[Fecha]<=Indices[[#This Row],[Fecha]])*(TablaMovimientos[Actividad]=Indices[[#Headers],[Guachera]])))-(SUMPRODUCT((TablaInventarios[Cab.])*(TablaInventarios[Actividad]=Indices[[#Headers],[Guachera]])*(TablaInventarios[Categoría]="Terneros al pie"))+SUMPRODUCT((TablaMovimientos[Cab.])*(TablaMovimientos[Fecha]<=Indices[[#This Row],[Fecha]])*(TablaMovimientos[Actividad]=Indices[[#Headers],[Guachera]])*(TablaMovimientos[Categoría]="Terneros al pie")))) -> 0 | K31: =+SUM(Indices[[#This Row],[Cría]:[Guachera]]) -> 0 | L31: =IF(DATE(YEAR(Indices[[#This Row],[Fecha]]),MONTH(Indices[[#This Row],[Fecha]]),1)>=DATE(YEAR('Planilla de datos'!$N$19-1),MONTH('Planilla de datos'!$N$19-1),1),1,0)*IF(DATE(YEAR(Indices[[#This Row],[Fecha]]),MONTH(Indices[[#This Row],[Fecha]]),1)<='Planilla de datos'!$P$19,1,0) -> 1
A32: 2023-08-01 | B32: =IF(C32=0,"",VLOOKUP('Planilla de datos'!$T$23,'SIPM (Actualización en $)'!$A$6:$C$42,3,FALSE)/C32) -> 3.012048193 | C32: 332 | D32: =IF(Indices[[#This Row],[Meses activos]]=0,0,(SUMPRODUCT((TablaInventarios[Cab.])*(TablaInventarios[Actividad]=Indices[[#Headers],[Cría]]))+SUMPRODUCT((TablaMovimientos[Cab.])*(TablaMovimientos[Fecha]<=Indices[[#This Row],[Fecha]])*(TablaMovimientos[Actividad]=Indices[[#Headers],[Cría]])))-(SUMPRODUCT((TablaInventarios[Cab.])*(TablaInventarios[Actividad]=Indices[[#Headers],[Cría]])*(TablaInventarios[Categoría]="Terneros al pie"))+SUMPRODUCT((TablaMovimientos[Cab.])*(TablaMovimientos[Fecha]<=Indices[[#This Row],[Fecha]])*(TablaMovimientos[Actividad]=Indices[[#Headers],[Cría]])*(TablaMovimientos[Categoría]="Terneros al pie")))) -> 0 | E32: =IF(Indices[[#This Row],[Meses activos]]=0,0,(SUMPRODUCT((TablaInventarios[Cab.])*(TablaInventarios[Actividad]=Indices[[#Headers],[Recría]]))+SUMPRODUCT((TablaMovimientos[Cab.])*(TablaMovimientos[Fecha]<=Indices[[#This Row],[Fecha]])*(TablaMovimientos[Actividad]=Indices[[#Headers],[Recría]])))-(SUMPRODUCT((TablaInventarios[Cab.])*(TablaInventarios[Actividad]=Indices[[#Headers],[Recría]])*(TablaInventarios[Categoría]="Terneros al pie"))+SUMPRODUCT((TablaMovimientos[Cab.])*(TablaMovimientos[Fecha]<=Indices[[#This Row],[Fecha]])*(TablaMovimientos[Actividad]=Indices[[#Headers],[Recría]])*(TablaMovimientos[Categoría]="Terneros al pie")))) -> 0 | F32: =IF(Indices[[#This Row],[Meses activos]]=0,0,(SUMPRODUCT((TablaInventarios[Cab.])*(TablaInventarios[Actividad]=Indices[[#Headers],[Invernada]]))+SUMPRODUCT((TablaMovimientos[Cab.])*(TablaMovimientos[Fecha]<=Indices[[#This Row],[Fecha]])*(TablaMovimientos[Actividad]=Indices[[#Headers],[Invernada]])))-(SUMPRODUCT((TablaInventarios[Cab.])*(TablaInventarios[Actividad]=Indices[[#Headers],[Invernada]])*(TablaInventarios[Categoría]="Terneros al pie"))+SUMPRODUCT((TablaMovimientos[Cab.])*(TablaMovimientos[Fecha]<=Indices[[#This Row],[Fecha]])*(TablaMovimientos[Actividad]=Indices[[#Headers],[Invernada]])*(TablaMovimientos[Categoría]="Terneros al pie")))) -> 0 | G32: =IF(Indices[[#This Row],[Meses activos]]=0,0,(SUMPRODUCT((TablaInventarios[Cab.])*(TablaInventarios[Actividad]=Indices[[#Headers],[Feed-lot]]))+SUMPRODUCT((TablaMovimientos[Cab.])*(TablaMovimientos[Fecha]<=Indices[[#This Row],[Fecha]])*(TablaMovimientos[Actividad]=Indices[[#Headers],[Feed-lot]])))-(SUMPRODUCT((TablaInventarios[Cab.])*(TablaInventarios[Actividad]=Indices[[#Headers],[Feed-lot]])*(TablaInventarios[Categoría]="Terneros al pie"))+SUMPRODUCT((TablaMovimientos[Cab.])*(TablaMovimientos[Fecha]<=Indices[[#This Row],[Fecha]])*(TablaMovimientos[Actividad]=Indices[[#Headers],[Feed-lot]])*(TablaMovimientos[Categoría]="Terneros al pie")))) -> 0 | H32: =IF(Indices[[#This Row],[Meses activos]]=0,0,(SUMPRODUCT((TablaInventarios[Cab.])*(TablaInventarios[Actividad]=Indices[[#Headers],[Cabaña]]))+SUMPRODUCT((TablaMovimientos[Cab.])*(TablaMovimientos[Fecha]<=Indices[[#This Row],[Fecha]])*(TablaMovimientos[Actividad]=Indices[[#Headers],[Cabaña]])))-(SUMPRODUCT((TablaInventarios[Cab.])*(TablaInventarios[Actividad]=Indices[[#Headers],[Cabaña]])*(TablaInventarios[Categoría]="Terneros al pie"))+SUMPRODUCT((TablaMovimientos[Cab.])*(TablaMovimientos[Fecha]<=Indices[[#This Row],[Fecha]])*(TablaMovimientos[Actividad]=Indices[[#Headers],[Cabaña]])*(TablaMovimientos[Categoría]="Terneros al pie")))) -> 0 | I32: =IF(Indices[[#This Row],[Meses activos]]=0,0,(SUMPRODUCT((TablaInventarios[Cab.])*(TablaInventarios[Actividad]=Indices[[#Headers],[Tambo]]))+SUMPRODUCT((TablaMovimientos[Cab.])*(TablaMovimientos[Fecha]<=Indices[[#This Row],[Fecha]])*(TablaMovimientos[Actividad]=Indices[[#Headers],[Tambo]])))-(SUMPRODUCT((TablaInventarios[Cab.])*(TablaInventarios[Actividad]=Indices[[#Headers],[Tambo]])*(TablaInventarios[Categoría]="Terneros al pie"))+SUMPRODUCT((TablaMovimientos[Cab.])*(TablaMovimientos[Fecha]<=Indices[[#This Row],[Fecha]])*(TablaMovimientos[Actividad]=Indices[[#Headers],[Tambo]])*(TablaMovimientos[Categoría]="Terneros al pie")))) -> 0 | J32: =IF(Indices[[#This Row],[Meses activos]]=0,0,(SUMPRODUCT((TablaInventarios[Cab.])*(TablaInventarios[Actividad]=Indices[[#Headers],[Guachera]]))+SUMPRODUCT((TablaMovimientos[Cab.])*(TablaMovimientos[Fecha]<=Indices[[#This Row],[Fecha]])*(TablaMovimientos[Actividad]=Indices[[#Headers],[Guachera]])))-(SUMPRODUCT((TablaInventarios[Cab.])*(TablaInventarios[Actividad]=Indices[[#Headers],[Guachera]])*(TablaInventarios[Categoría]="Terneros al pie"))+SUMPRODUCT((TablaMovimientos[Cab.])*(TablaMovimientos[Fecha]<=Indices[[#This Row],[Fecha]])*(TablaMovimientos[Actividad]=Indices[[#Headers],[Guachera]])*(TablaMovimientos[Categoría]="Terneros al pie")))) -> 0 | K32: =+SUM(Indices[[#This Row],[Cría]:[Guachera]]) -> 0 | L32: =IF(DATE(YEAR(Indices[[#This Row],[Fecha]]),MONTH(Indices[[#This Row],[Fecha]]),1)>=DATE(YEAR('Planilla de datos'!$N$19-1),MONTH('Planilla de datos'!$N$19-1),1),1,0)*IF(DATE(YEAR(Indices[[#This Row],[Fecha]]),MONTH(Indices[[#This Row],[Fecha]]),1)<='Planilla de datos'!$P$19,1,0) -> 1
A33: 2023-09-01 | B33: =IF(C33=0,"",VLOOKUP('Planilla de datos'!$T$23,'SIPM (Actualización en $)'!$A$6:$C$42,3,FALSE)/C33) -> 2.762430939 | C33: 362 | D33: =IF(Indices[[#This Row],[Meses activos]]=0,0,(SUMPRODUCT((TablaInventarios[Cab.])*(TablaInventarios[Actividad]=Indices[[#Headers],[Cría]]))+SUMPRODUCT((TablaMovimientos[Cab.])*(TablaMovimientos[Fecha]<=Indices[[#This Row],[Fecha]])*(TablaMovimientos[Actividad]=Indices[[#Headers],[Cría]])))-(SUMPRODUCT((TablaInventarios[Cab.])*(TablaInventarios[Actividad]=Indices[[#Headers],[Cría]])*(TablaInventarios[Categoría]="Terneros al pie"))+SUMPRODUCT((TablaMovimientos[Cab.])*(TablaMovimientos[Fecha]<=Indices[[#This Row],[Fecha]])*(TablaMovimientos[Actividad]=Indices[[#Headers],[Cría]])*(TablaMovimientos[Categoría]="Terneros al pie")))) -> 0 | E33: =IF(Indices[[#This Row],[Meses activos]]=0,0,(SUMPRODUCT((TablaInventarios[Cab.])*(TablaInventarios[Actividad]=Indices[[#Headers],[Recría]]))+SUMPRODUCT((TablaMovimientos[Cab.])*(TablaMovimientos[Fecha]<=Indices[[#This Row],[Fecha]])*(TablaMovimientos[Actividad]=Indices[[#Headers],[Recría]])))-(SUMPRODUCT((TablaInventarios[Cab.])*(TablaInventarios[Actividad]=Indices[[#Headers],[Recría]])*(TablaInventarios[Categoría]="Terneros al pie"))+SUMPRODUCT((TablaMovimientos[Cab.])*(TablaMovimientos[Fecha]<=Indices[[#This Row],[Fecha]])*(TablaMovimientos[Actividad]=Indices[[#Headers],[Recría]])*(TablaMovimientos[Categoría]="Terneros al pie")))) -> 0 | F33: =IF(Indices[[#This Row],[Meses activos]]=0,0,(SUMPRODUCT((TablaInventarios[Cab.])*(TablaInventarios[Actividad]=Indices[[#Headers],[Invernada]]))+SUMPRODUCT((TablaMovimientos[Cab.])*(TablaMovimientos[Fecha]<=Indices[[#This Row],[Fecha]])*(TablaMovimientos[Actividad]=Indices[[#Headers],[Invernada]])))-(SUMPRODUCT((TablaInventarios[Cab.])*(TablaInventarios[Actividad]=Indices[[#Headers],[Invernada]])*(TablaInventarios[Categoría]="Terneros al pie"))+SUMPRODUCT((TablaMovimientos[Cab.])*(TablaMovimientos[Fecha]<=Indices[[#This Row],[Fecha]])*(TablaMovimientos[Actividad]=Indices[[#Headers],[Invernada]])*(TablaMovimientos[Categoría]="Terneros al pie")))) -> 0 | G33: =IF(Indices[[#This Row],[Meses activos]]=0,0,(SUMPRODUCT((TablaInventarios[Cab.])*(TablaInventarios[Actividad]=Indices[[#Headers],[Feed-lot]]))+SUMPRODUCT((TablaMovimientos[Cab.])*(TablaMovimientos[Fecha]<=Indices[[#This Row],[Fecha]])*(TablaMovimientos[Actividad]=Indices[[#Headers],[Feed-lot]])))-(SUMPRODUCT((TablaInventarios[Cab.])*(TablaInventarios[Actividad]=Indices[[#Headers],[Feed-lot]])*(TablaInventarios[Categoría]="Terneros al pie"))+SUMPRODUCT((TablaMovimientos[Cab.])*(TablaMovimientos[Fecha]<=Indices[[#This Row],[Fecha]])*(TablaMovimientos[Actividad]=Indices[[#Headers],[Feed-lot]])*(TablaMovimientos[Categoría]="Terneros al pie")))) -> 0 | H33: =IF(Indices[[#This Row],[Meses activos]]=0,0,(SUMPRODUCT((TablaInventarios[Cab.])*(TablaInventarios[Actividad]=Indices[[#Headers],[Cabaña]]))+SUMPRODUCT((TablaMovimientos[Cab.])*(TablaMovimientos[Fecha]<=Indices[[#This Row],[Fecha]])*(TablaMovimientos[Actividad]=Indices[[#Headers],[Cabaña]])))-(SUMPRODUCT((TablaInventarios[Cab.])*(TablaInventarios[Actividad]=Indices[[#Headers],[Cabaña]])*(TablaInventarios[Categoría]="Terneros al pie"))+SUMPRODUCT((TablaMovimientos[Cab.])*(TablaMovimientos[Fecha]<=Indices[[#This Row],[Fecha]])*(TablaMovimientos[Actividad]=Indices[[#Headers],[Cabaña]])*(TablaMovimientos[Categoría]="Terneros al pie")))) -> 0 | I33: =IF(Indices[[#This Row],[Meses activos]]=0,0,(SUMPRODUCT((TablaInventarios[Cab.])*(TablaInventarios[Actividad]=Indices[[#Headers],[Tambo]]))+SUMPRODUCT((TablaMovimientos[Cab.])*(TablaMovimientos[Fecha]<=Indices[[#This Row],[Fecha]])*(TablaMovimientos[Actividad]=Indices[[#Headers],[Tambo]])))-(SUMPRODUCT((TablaInventarios[Cab.])*(TablaInventarios[Actividad]=Indices[[#Headers],[Tambo]])*(TablaInventarios[Categoría]="Terneros al pie"))+SUMPRODUCT((TablaMovimientos[Cab.])*(TablaMovimientos[Fecha]<=Indices[[#This Row],[Fecha]])*(TablaMovimientos[Actividad]=Indices[[#Headers],[Tambo]])*(TablaMovimientos[Categoría]="Terneros al pie")))) -> 0 | J33: =IF(Indices[[#This Row],[Meses activos]]=0,0,(SUMPRODUCT((TablaInventarios[Cab.])*(TablaInventarios[Actividad]=Indices[[#Headers],[Guachera]]))+SUMPRODUCT((TablaMovimientos[Cab.])*(TablaMovimientos[Fecha]<=Indices[[#This Row],[Fecha]])*(TablaMovimientos[Actividad]=Indices[[#Headers],[Guachera]])))-(SUMPRODUCT((TablaInventarios[Cab.])*(TablaInventarios[Actividad]=Indices[[#Headers],[Guachera]])*(TablaInventarios[Categoría]="Terneros al pie"))+SUMPRODUCT((TablaMovimientos[Cab.])*(TablaMovimientos[Fecha]<=Indices[[#This Row],[Fecha]])*(TablaMovimientos[Actividad]=Indices[[#Headers],[Guachera]])*(TablaMovimientos[Categoría]="Terneros al pie")))) -> 0 | K33: =+SUM(Indices[[#This Row],[Cría]:[Guachera]]) -> 0 | L33: =IF(DATE(YEAR(Indices[[#This Row],[Fecha]]),MONTH(Indices[[#This Row],[Fecha]]),1)>=DATE(YEAR('Planilla de datos'!$N$19-1),MONTH('Planilla de datos'!$N$19-1),1),1,0)*IF(DATE(YEAR(Indices[[#This Row],[Fecha]]),MONTH(Indices[[#This Row],[Fecha]]),1)<='Planilla de datos'!$P$19,1,0) -> 1
A34: 2023-10-01 | B34: =IF(C34=0,"",VLOOKUP('Planilla de datos'!$T$23,'SIPM (Actualización en $)'!$A$6:$C$42,3,FALSE)/C34) -> 2.583979328 | C34: 387 | D34: =IF(Indices[[#This Row],[Meses activos]]=0,0,(SUMPRODUCT((TablaInventarios[Cab.])*(TablaInventarios[Actividad]=Indices[[#Headers],[Cría]]))+SUMPRODUCT((TablaMovimientos[Cab.])*(TablaMovimientos[Fecha]<=Indices[[#This Row],[Fecha]])*(TablaMovimientos[Actividad]=Indices[[#Headers],[Cría]])))-(SUMPRODUCT((TablaInventarios[Cab.])*(TablaInventarios[Actividad]=Indices[[#Headers],[Cría]])*(TablaInventarios[Categoría]="Terneros al pie"))+SUMPRODUCT((TablaMovimientos[Cab.])*(TablaMovimientos[Fecha]<=Indices[[#This Row],[Fecha]])*(TablaMovimientos[Actividad]=Indices[[#Headers],[Cría]])*(TablaMovimientos[Categoría]="Terneros al pie")))) -> 0 | E34: =IF(Indices[[#This Row],[Meses activos]]=0,0,(SUMPRODUCT((TablaInventarios[Cab.])*(TablaInventarios[Actividad]=Indices[[#Headers],[Recría]]))+SUMPRODUCT((TablaMovimientos[Cab.])*(TablaMovimientos[Fecha]<=Indices[[#This Row],[Fecha]])*(TablaMovimientos[Actividad]=Indices[[#Headers],[Recría]])))-(SUMPRODUCT((TablaInventarios[Cab.])*(TablaInventarios[Actividad]=Indices[[#Headers],[Recría]])*(TablaInventarios[Categoría]="Terneros al pie"))+SUMPRODUCT((TablaMovimientos[Cab.])*(TablaMovimientos[Fecha]<=Indices[[#This Row],[Fecha]])*(TablaMovimientos[Actividad]=Indices[[#Headers],[Recría]])*(TablaMovimientos[Categoría]="Terneros al pie")))) -> 0 | F34: =IF(Indices[[#This Row],[Meses activos]]=0,0,(SUMPRODUCT((TablaInventarios[Cab.])*(TablaInventarios[Actividad]=Indices[[#Headers],[Invernada]]))+SUMPRODUCT((TablaMovimientos[Cab.])*(TablaMovimientos[Fecha]<=Indices[[#This Row],[Fecha]])*(TablaMovimientos[Actividad]=Indices[[#Headers],[Invernada]])))-(SUMPRODUCT((TablaInventarios[Cab.])*(TablaInventarios[Actividad]=Indices[[#Headers],[Invernada]])*(TablaInventarios[Categoría]="Terneros al pie"))+SUMPRODUCT((TablaMovimientos[Cab.])*(TablaMovimientos[Fecha]<=Indices[[#This Row],[Fecha]])*(TablaMovimientos[Actividad]=Indices[[#Headers],[Invernada]])*(TablaMovimientos[Categoría]="Terneros al pie")))) -> 0 | G34: =IF(Indices[[#This Row],[Meses activos]]=0,0,(SUMPRODUCT((TablaInventarios[Cab.])*(TablaInventarios[Actividad]=Indices[[#Headers],[Feed-lot]]))+SUMPRODUCT((TablaMovimientos[Cab.])*(TablaMovimientos[Fecha]<=Indices[[#This Row],[Fecha]])*(TablaMovimientos[Actividad]=Indices[[#Headers],[Feed-lot]])))-(SUMPRODUCT((TablaInventarios[Cab.])*(TablaInventarios[Actividad]=Indices[[#Headers],[Feed-lot]])*(TablaInventarios[Categoría]="Terneros al pie"))+SUMPRODUCT((TablaMovimientos[Cab.])*(TablaMovimientos[Fecha]<=Indices[[#This Row],[Fecha]])*(TablaMovimientos[Actividad]=Indices[[#Headers],[Feed-lot]])*(TablaMovimientos[Categoría]="Terneros al pie")))) -> 0 | H34: =IF(Indices[[#This Row],[Meses activos]]=0,0,(SUMPRODUCT((TablaInventarios[Cab.])*(TablaInventarios[Actividad]=Indices[[#Headers],[Cabaña]]))+SUMPRODUCT((TablaMovimientos[Cab.])*(TablaMovimientos[Fecha]<=Indices[[#This Row],[Fecha]])*(TablaMovimientos[Actividad]=Indices[[#Headers],[Cabaña]])))-(SUMPRODUCT((TablaInventarios[Cab.])*(TablaInventarios[Actividad]=Indices[[#Headers],[Cabaña]])*(TablaInventarios[Categoría]="Terneros al pie"))+SUMPRODUCT((TablaMovimientos[Cab.])*(TablaMovimientos[Fecha]<=Indices[[#This Row],[Fecha]])*(TablaMovimientos[Actividad]=Indices[[#Headers],[Cabaña]])*(TablaMovimientos[Categoría]="Terneros al pie")))) -> 0 | I34: =IF(Indices[[#This Row],[Meses activos]]=0,0,(SUMPRODUCT((TablaInventarios[Cab.])*(TablaInventarios[Actividad]=Indices[[#Headers],[Tambo]]))+SUMPRODUCT((TablaMovimientos[Cab.])*(TablaMovimientos[Fecha]<=Indices[[#This Row],[Fecha]])*(TablaMovimientos[Actividad]=Indices[[#Headers],[Tambo]])))-(SUMPRODUCT((TablaInventarios[Cab.])*(TablaInventarios[Actividad]=Indices[[#Headers],[Tambo]])*(TablaInventarios[Categoría]="Terneros al pie"))+SUMPRODUCT((TablaMovimientos[Cab.])*(TablaMovimientos[Fecha]<=Indices[[#This Row],[Fecha]])*(TablaMovimientos[Actividad]=Indices[[#Headers],[Tambo]])*(TablaMovimientos[Categoría]="Terneros al pie")))) -> 0 | J34: =IF(Indices[[#This Row],[Meses activos]]=0,0,(SUMPRODUCT((TablaInventarios[Cab.])*(TablaInventarios[Actividad]=Indices[[#Headers],[Guachera]]))+SUMPRODUCT((TablaMovimientos[Cab.])*(TablaMovimientos[Fecha]<=Indices[[#This Row],[Fecha]])*(TablaMovimientos[Actividad]=Indices[[#Headers],[Guachera]])))-(SUMPRODUCT((TablaInventarios[Cab.])*(TablaInventarios[Actividad]=Indices[[#Headers],[Guachera]])*(TablaInventarios[Categoría]="Terneros al pie"))+SUMPRODUCT((TablaMovimientos[Cab.])*(TablaMovimientos[Fecha]<=Indices[[#This Row],[Fecha]])*(TablaMovimientos[Actividad]=Indices[[#Headers],[Guachera]])*(TablaMovimientos[Categoría]="Terneros al pie")))) -> 0 | K34: =+SUM(Indices[[#This Row],[Cría]:[Guachera]]) -> 0 | L34: =IF(DATE(YEAR(Indices[[#This Row],[Fecha]]),MONTH(Indices[[#This Row],[Fecha]]),1)>=DATE(YEAR('Planilla de datos'!$N$19-1),MONTH('Planilla de datos'!$N$19-1),1),1,0)*IF(DATE(YEAR(Indices[[#This Row],[Fecha]]),MONTH(Indices[[#This Row],[Fecha]]),1)<='Planilla de datos'!$P$19,1,0) -> 1
A35: 2023-11-01 | B35: =IF(C35=0,"",VLOOKUP('Planilla de datos'!$T$23,'SIPM (Actualización en $)'!$A$6:$C$42,3,FALSE)/C35) -> 2.325581395 | C35: 430 | D35: =IF(Indices[[#This Row],[Meses activos]]=0,0,(SUMPRODUCT((TablaInventarios[Cab.])*(TablaInventarios[Actividad]=Indices[[#Headers],[Cría]]))+SUMPRODUCT((TablaMovimientos[Cab.])*(TablaMovimientos[Fecha]<=Indices[[#This Row],[Fecha]])*(TablaMovimientos[Actividad]=Indices[[#Headers],[Cría]])))-(SUMPRODUCT((TablaInventarios[Cab.])*(TablaInventarios[Actividad]=Indices[[#Headers],[Cría]])*(TablaInventarios[Categoría]="Terneros al pie"))+SUMPRODUCT((TablaMovimientos[Cab.])*(TablaMovimientos[Fecha]<=Indices[[#This Row],[Fecha]])*(TablaMovimientos[Actividad]=Indices[[#Headers],[Cría]])*(TablaMovimientos[Categoría]="Terneros al pie")))) -> 0 | E35: =IF(Indices[[#This Row],[Meses activos]]=0,0,(SUMPRODUCT((TablaInventarios[Cab.])*(TablaInventarios[Actividad]=Indices[[#Headers],[Recría]]))+SUMPRODUCT((TablaMovimientos[Cab.])*(TablaMovimientos[Fecha]<=Indices[[#This Row],[Fecha]])*(TablaMovimientos[Actividad]=Indices[[#Headers],[Recría]])))-(SUMPRODUCT((TablaInventarios[Cab.])*(TablaInventarios[Actividad]=Indices[[#Headers],[Recría]])*(TablaInventarios[Categoría]="Terneros al pie"))+SUMPRODUCT((TablaMovimientos[Cab.])*(TablaMovimientos[Fecha]<=Indices[[#This Row],[Fecha]])*(TablaMovimientos[Actividad]=Indices[[#Headers],[Recría]])*(TablaMovimientos[Categoría]="Terneros al pie")))) -> 0 | F35: =IF(Indices[[#This Row],[Meses activos]]=0,0,(SUMPRODUCT((TablaInventarios[Cab.])*(TablaInventarios[Actividad]=Indices[[#Headers],[Invernada]]))+SUMPRODUCT((TablaMovimientos[Cab.])*(TablaMovimientos[Fecha]<=Indices[[#This Row],[Fecha]])*(TablaMovimientos[Actividad]=Indices[[#Headers],[Invernada]])))-(SUMPRODUCT((TablaInventarios[Cab.])*(TablaInventarios[Actividad]=Indices[[#Headers],[Invernada]])*(TablaInventarios[Categoría]="Terneros al pie"))+SUMPRODUCT((TablaMovimientos[Cab.])*(TablaMovimientos[Fecha]<=Indices[[#This Row],[Fecha]])*(TablaMovimientos[Actividad]=Indices[[#Headers],[Invernada]])*(TablaMovimientos[Categoría]="Terneros al pie")))) -> 0 | G35: =IF(Indices[[#This Row],[Meses activos]]=0,0,(SUMPRODUCT((TablaInventarios[Cab.])*(TablaInventarios[Actividad]=Indices[[#Headers],[Feed-lot]]))+SUMPRODUCT((TablaMovimientos[Cab.])*(TablaMovimientos[Fecha]<=Indices[[#This Row],[Fecha]])*(TablaMovimientos[Actividad]=Indices[[#Headers],[Feed-lot]])))-(SUMPRODUCT((TablaInventarios[Cab.])*(TablaInventarios[Actividad]=Indices[[#Headers],[Feed-lot]])*(TablaInventarios[Categoría]="Terneros al pie"))+SUMPRODUCT((TablaMovimientos[Cab.])*(TablaMovimientos[Fecha]<=Indices[[#This Row],[Fecha]])*(TablaMovimientos[Actividad]=Indices[[#Headers],[Feed-lot]])*(TablaMovimientos[Categoría]="Terneros al pie")))) -> 0 | H35: =IF(Indices[[#This Row],[Meses activos]]=0,0,(SUMPRODUCT((TablaInventarios[Cab.])*(TablaInventarios[Actividad]=Indices[[#Headers],[Cabaña]]))+SUMPRODUCT((TablaMovimientos[Cab.])*(TablaMovimientos[Fecha]<=Indices[[#This Row],[Fecha]])*(TablaMovimientos[Actividad]=Indices[[#Headers],[Cabaña]])))-(SUMPRODUCT((TablaInventarios[Cab.])*(TablaInventarios[Actividad]=Indices[[#Headers],[Cabaña]])*(TablaInventarios[Categoría]="Terneros al pie"))+SUMPRODUCT((TablaMovimientos[Cab.])*(TablaMovimientos[Fecha]<=Indices[[#This Row],[Fecha]])*(TablaMovimientos[Actividad]=Indices[[#Headers],[Cabaña]])*(TablaMovimientos[Categoría]="Terneros al pie")))) -> 0 | I35: =IF(Indices[[#This Row],[Meses activos]]=0,0,(SUMPRODUCT((TablaInventarios[Cab.])*(TablaInventarios[Actividad]=Indices[[#Headers],[Tambo]]))+SUMPRODUCT((TablaMovimientos[Cab.])*(TablaMovimientos[Fecha]<=Indices[[#This Row],[Fecha]])*(TablaMovimientos[Actividad]=Indices[[#Headers],[Tambo]])))-(SUMPRODUCT((TablaInventarios[Cab.])*(TablaInventarios[Actividad]=Indices[[#Headers],[Tambo]])*(TablaInventarios[Categoría]="Terneros al pie"))+SUMPRODUCT((TablaMovimientos[Cab.])*(TablaMovimientos[Fecha]<=Indices[[#This Row],[Fecha]])*(TablaMovimientos[Actividad]=Indices[[#Headers],[Tambo]])*(TablaMovimientos[Categoría]="Terneros al pie")))) -> 0 | J35: =IF(Indices[[#This Row],[Meses activos]]=0,0,(SUMPRODUCT((TablaInventarios[Cab.])*(TablaInventarios[Actividad]=Indices[[#Headers],[Guachera]]))+SUMPRODUCT((TablaMovimientos[Cab.])*(TablaMovimientos[Fecha]<=Indices[[#This Row],[Fecha]])*(TablaMovimientos[Actividad]=Indices[[#Headers],[Guachera]])))-(SUMPRODUCT((TablaInventarios[Cab.])*(TablaInventarios[Actividad]=Indices[[#Headers],[Guachera]])*(TablaInventarios[Categoría]="Terneros al pie"))+SUMPRODUCT((TablaMovimientos[Cab.])*(TablaMovimientos[Fecha]<=Indices[[#This Row],[Fecha]])*(TablaMovimientos[Actividad]=Indices[[#Headers],[Guachera]])*(TablaMovimientos[Categoría]="Terneros al pie")))) -> 0 | K35: =+SUM(Indices[[#This Row],[Cría]:[Guachera]]) -> 0 | L35: =IF(DATE(YEAR(Indices[[#This Row],[Fecha]]),MONTH(Indices[[#This Row],[Fecha]]),1)>=DATE(YEAR('Planilla de datos'!$N$19-1),MONTH('Planilla de datos'!$N$19-1),1),1,0)*IF(DATE(YEAR(Indices[[#This Row],[Fecha]]),MONTH(Indices[[#This Row],[Fecha]]),1)<='Planilla de datos'!$P$19,1,0) -> 1
A36: 2023-12-01 | B36: =IF(C36=0,"",VLOOKUP('Planilla de datos'!$T$23,'SIPM (Actualización en $)'!$A$6:$C$42,3,FALSE)/C36) -> 1.515151515 | C36: 660 | D36: =IF(Indices[[#This Row],[Meses activos]]=0,0,(SUMPRODUCT((TablaInventarios[Cab.])*(TablaInventarios[Actividad]=Indices[[#Headers],[Cría]]))+SUMPRODUCT((TablaMovimientos[Cab.])*(TablaMovimientos[Fecha]<=Indices[[#This Row],[Fecha]])*(TablaMovimientos[Actividad]=Indices[[#Headers],[Cría]])))-(SUMPRODUCT((TablaInventarios[Cab.])*(TablaInventarios[Actividad]=Indices[[#Headers],[Cría]])*(TablaInventarios[Categoría]="Terneros al pie"))+SUMPRODUCT((TablaMovimientos[Cab.])*(TablaMovimientos[Fecha]<=Indices[[#This Row],[Fecha]])*(TablaMovimientos[Actividad]=Indices[[#Headers],[Cría]])*(TablaMovimientos[Categoría]="Terneros al pie")))) -> 0 | E36: =IF(Indices[[#This Row],[Meses activos]]=0,0,(SUMPRODUCT((TablaInventarios[Cab.])*(TablaInventarios[Actividad]=Indices[[#Headers],[Recría]]))+SUMPRODUCT((TablaMovimientos[Cab.])*(TablaMovimientos[Fecha]<=Indices[[#This Row],[Fecha]])*(TablaMovimientos[Actividad]=Indices[[#Headers],[Recría]])))-(SUMPRODUCT((TablaInventarios[Cab.])*(TablaInventarios[Actividad]=Indices[[#Headers],[Recría]])*(TablaInventarios[Categoría]="Terneros al pie"))+SUMPRODUCT((TablaMovimientos[Cab.])*(TablaMovimientos[Fecha]<=Indices[[#This Row],[Fecha]])*(TablaMovimientos[Actividad]=Indices[[#Headers],[Recría]])*(TablaMovimientos[Categoría]="Terneros al pie")))) -> 0 | F36: =IF(Indices[[#This Row],[Meses activos]]=0,0,(SUMPRODUCT((TablaInventarios[Cab.])*(TablaInventarios[Actividad]=Indices[[#Headers],[Invernada]]))+SUMPRODUCT((TablaMovimientos[Cab.])*(TablaMovimientos[Fecha]<=Indices[[#This Row],[Fecha]])*(TablaMovimientos[Actividad]=Indices[[#Headers],[Invernada]])))-(SUMPRODUCT((TablaInventarios[Cab.])*(TablaInventarios[Actividad]=Indices[[#Headers],[Invernada]])*(TablaInventarios[Categoría]="Terneros al pie"))+SUMPRODUCT((TablaMovimientos[Cab.])*(TablaMovimientos[Fecha]<=Indices[[#This Row],[Fecha]])*(TablaMovimientos[Actividad]=Indices[[#Headers],[Invernada]])*(TablaMovimientos[Categoría]="Terneros al pie")))) -> 0 | G36: =IF(Indices[[#This Row],[Meses activos]]=0,0,(SUMPRODUCT((TablaInventarios[Cab.])*(TablaInventarios[Actividad]=Indices[[#Headers],[Feed-lot]]))+SUMPRODUCT((TablaMovimientos[Cab.])*(TablaMovimientos[Fecha]<=Indices[[#This Row],[Fecha]])*(TablaMovimientos[Actividad]=Indices[[#Headers],[Feed-lot]])))-(SUMPRODUCT((TablaInventarios[Cab.])*(TablaInventarios[Actividad]=Indices[[#Headers],[Feed-lot]])*(TablaInventarios[Categoría]="Terneros al pie"))+SUMPRODUCT((TablaMovimientos[Cab.])*(TablaMovimientos[Fecha]<=Indices[[#This Row],[Fecha]])*(TablaMovimientos[Actividad]=Indices[[#Headers],[Feed-lot]])*(TablaMovimientos[Categoría]="Terneros al pie")))) -> 0 | H36: =IF(Indices[[#This Row],[Meses activos]]=0,0,(SUMPRODUCT((TablaInventarios[Cab.])*(TablaInventarios[Actividad]=Indices[[#Headers],[Cabaña]]))+SUMPRODUCT((TablaMovimientos[Cab.])*(TablaMovimientos[Fecha]<=Indices[[#This Row],[Fecha]])*(TablaMovimientos[Actividad]=Indices[[#Headers],[Cabaña]])))-(SUMPRODUCT((TablaInventarios[Cab.])*(TablaInventarios[Actividad]=Indices[[#Headers],[Cabaña]])*(TablaInventarios[Categoría]="Terneros al pie"))+SUMPRODUCT((TablaMovimientos[Cab.])*(TablaMovimientos[Fecha]<=Indices[[#This Row],[Fecha]])*(TablaMovimientos[Actividad]=Indices[[#Headers],[Cabaña]])*(TablaMovimientos[Categoría]="Terneros al pie")))) -> 0 | I36: =IF(Indices[[#This Row],[Meses activos]]=0,0,(SUMPRODUCT((TablaInventarios[Cab.])*(TablaInventarios[Actividad]=Indices[[#Headers],[Tambo]]))+SUMPRODUCT((TablaMovimientos[Cab.])*(TablaMovimientos[Fecha]<=Indices[[#This Row],[Fecha]])*(TablaMovimientos[Actividad]=Indices[[#Headers],[Tambo]])))-(SUMPRODUCT((TablaInventarios[Cab.])*(TablaInventarios[Actividad]=Indices[[#Headers],[Tambo]])*(TablaInventarios[Categoría]="Terneros al pie"))+SUMPRODUCT((TablaMovimientos[Cab.])*(TablaMovimientos[Fecha]<=Indices[[#This Row],[Fecha]])*(TablaMovimientos[Actividad]=Indices[[#Headers],[Tambo]])*(TablaMovimientos[Categoría]="Terneros al pie")))) -> 0 | J36: =IF(Indices[[#This Row],[Meses activos]]=0,0,(SUMPRODUCT((TablaInventarios[Cab.])*(TablaInventarios[Actividad]=Indices[[#Headers],[Guachera]]))+SUMPRODUCT((TablaMovimientos[Cab.])*(TablaMovimientos[Fecha]<=Indices[[#This Row],[Fecha]])*(TablaMovimientos[Actividad]=Indices[[#Headers],[Guachera]])))-(SUMPRODUCT((TablaInventarios[Cab.])*(TablaInventarios[Actividad]=Indices[[#Headers],[Guachera]])*(TablaInventarios[Categoría]="Terneros al pie"))+SUMPRODUCT((TablaMovimientos[Cab.])*(TablaMovimientos[Fecha]<=Indices[[#This Row],[Fecha]])*(TablaMovimientos[Actividad]=Indices[[#Headers],[Guachera]])*(TablaMovimientos[Categoría]="Terneros al pie")))) -> 0 | K36: =+SUM(Indices[[#This Row],[Cría]:[Guachera]]) -> 0 | L36: =IF(DATE(YEAR(Indices[[#This Row],[Fecha]]),MONTH(Indices[[#This Row],[Fecha]]),1)>=DATE(YEAR('Planilla de datos'!$N$19-1),MONTH('Planilla de datos'!$N$19-1),1),1,0)*IF(DATE(YEAR(Indices[[#This Row],[Fecha]]),MONTH(Indices[[#This Row],[Fecha]]),1)<='Planilla de datos'!$P$19,1,0) -> 1
A37: 2024-01-01 | B37: =IF(C37=0,"",VLOOKUP('Planilla de datos'!$T$23,'SIPM (Actualización en $)'!$A$6:$C$42,3,FALSE)/C37) -> 1.282051282 | C37: 780 | D37: =IF(Indices[[#This Row],[Meses activos]]=0,0,(SUMPRODUCT((TablaInventarios[Cab.])*(TablaInventarios[Actividad]=Indices[[#Headers],[Cría]]))+SUMPRODUCT((TablaMovimientos[Cab.])*(TablaMovimientos[Fecha]<=Indices[[#This Row],[Fecha]])*(TablaMovimientos[Actividad]=Indices[[#Headers],[Cría]])))-(SUMPRODUCT((TablaInventarios[Cab.])*(TablaInventarios[Actividad]=Indices[[#Headers],[Cría]])*(TablaInventarios[Categoría]="Terneros al pie"))+SUMPRODUCT((TablaMovimientos[Cab.])*(TablaMovimientos[Fecha]<=Indices[[#This Row],[Fecha]])*(TablaMovimientos[Actividad]=Indices[[#Headers],[Cría]])*(TablaMovimientos[Categoría]="Terneros al pie")))) -> 0 | E37: =IF(Indices[[#This Row],[Meses activos]]=0,0,(SUMPRODUCT((TablaInventarios[Cab.])*(TablaInventarios[Actividad]=Indices[[#Headers],[Recría]]))+SUMPRODUCT((TablaMovimientos[Cab.])*(TablaMovimientos[Fecha]<=Indices[[#This Row],[Fecha]])*(TablaMovimientos[Actividad]=Indices[[#Headers],[Recría]])))-(SUMPRODUCT((TablaInventarios[Cab.])*(TablaInventarios[Actividad]=Indices[[#Headers],[Recría]])*(TablaInventarios[Categoría]="Terneros al pie"))+SUMPRODUCT((TablaMovimientos[Cab.])*(TablaMovimientos[Fecha]<=Indices[[#This Row],[Fecha]])*(TablaMovimientos[Actividad]=Indices[[#Headers],[Recría]])*(TablaMovimientos[Categoría]="Terneros al pie")))) -> 0 | F37: =IF(Indices[[#This Row],[Meses activos]]=0,0,(SUMPRODUCT((TablaInventarios[Cab.])*(TablaInventarios[Actividad]=Indices[[#Headers],[Invernada]]))+SUMPRODUCT((TablaMovimientos[Cab.])*(TablaMovimientos[Fecha]<=Indices[[#This Row],[Fecha]])*(TablaMovimientos[Actividad]=Indices[[#Headers],[Invernada]])))-(SUMPRODUCT((TablaInventarios[Cab.])*(TablaInventarios[Actividad]=Indices[[#Headers],[Invernada]])*(TablaInventarios[Categoría]="Terneros al pie"))+SUMPRODUCT((TablaMovimientos[Cab.])*(TablaMovimientos[Fecha]<=Indices[[#This Row],[Fecha]])*(TablaMovimientos[Actividad]=Indices[[#Headers],[Invernada]])*(TablaMovimientos[Categoría]="Terneros al pie")))) -> 0 | G37: =IF(Indices[[#This Row],[Meses activos]]=0,0,(SUMPRODUCT((TablaInventarios[Cab.])*(TablaInventarios[Actividad]=Indices[[#Headers],[Feed-lot]]))+SUMPRODUCT((TablaMovimientos[Cab.])*(TablaMovimientos[Fecha]<=Indices[[#This Row],[Fecha]])*(TablaMovimientos[Actividad]=Indices[[#Headers],[Feed-lot]])))-(SUMPRODUCT((TablaInventarios[Cab.])*(TablaInventarios[Actividad]=Indices[[#Headers],[Feed-lot]])*(TablaInventarios[Categoría]="Terneros al pie"))+SUMPRODUCT((TablaMovimientos[Cab.])*(TablaMovimientos[Fecha]<=Indices[[#This Row],[Fecha]])*(TablaMovimientos[Actividad]=Indices[[#Headers],[Feed-lot]])*(TablaMovimientos[Categoría]="Terneros al pie")))) -> 0 | H37: =IF(Indices[[#This Row],[Meses activos]]=0,0,(SUMPRODUCT((TablaInventarios[Cab.])*(TablaInventarios[Actividad]=Indices[[#Headers],[Cabaña]]))+SUMPRODUCT((TablaMovimientos[Cab.])*(TablaMovimientos[Fecha]<=Indices[[#This Row],[Fecha]])*(TablaMovimientos[Actividad]=Indices[[#Headers],[Cabaña]])))-(SUMPRODUCT((TablaInventarios[Cab.])*(TablaInventarios[Actividad]=Indices[[#Headers],[Cabaña]])*(TablaInventarios[Categoría]="Terneros al pie"))+SUMPRODUCT((TablaMovimientos[Cab.])*(TablaMovimientos[Fecha]<=Indices[[#This Row],[Fecha]])*(TablaMovimientos[Actividad]=Indices[[#Headers],[Cabaña]])*(TablaMovimientos[Categoría]="Terneros al pie")))) -> 0 | I37: =IF(Indices[[#This Row],[Meses activos]]=0,0,(SUMPRODUCT((TablaInventarios[Cab.])*(TablaInventarios[Actividad]=Indices[[#Headers],[Tambo]]))+SUMPRODUCT((TablaMovimientos[Cab.])*(TablaMovimientos[Fecha]<=Indices[[#This Row],[Fecha]])*(TablaMovimientos[Actividad]=Indices[[#Headers],[Tambo]])))-(SUMPRODUCT((TablaInventarios[Cab.])*(TablaInventarios[Actividad]=Indices[[#Headers],[Tambo]])*(TablaInventarios[Categoría]="Terneros al pie"))+SUMPRODUCT((TablaMovimientos[Cab.])*(TablaMovimientos[Fecha]<=Indices[[#This Row],[Fecha]])*(TablaMovimientos[Actividad]=Indices[[#Headers],[Tambo]])*(TablaMovimientos[Categoría]="Terneros al pie")))) -> 0 | J37: =IF(Indices[[#This Row],[Meses activos]]=0,0,(SUMPRODUCT((TablaInventarios[Cab.])*(TablaInventarios[Actividad]=Indices[[#Headers],[Guachera]]))+SUMPRODUCT((TablaMovimientos[Cab.])*(TablaMovimientos[Fecha]<=Indices[[#This Row],[Fecha]])*(TablaMovimientos[Actividad]=Indices[[#Headers],[Guachera]])))-(SUMPRODUCT((TablaInventarios[Cab.])*(TablaInventarios[Actividad]=Indices[[#Headers],[Guachera]])*(TablaInventarios[Categoría]="Terneros al pie"))+SUMPRODUCT((TablaMovimientos[Cab.])*(TablaMovimientos[Fecha]<=Indices[[#This Row],[Fecha]])*(TablaMovimientos[Actividad]=Indices[[#Headers],[Guachera]])*(TablaMovimientos[Categoría]="Terneros al pie")))) -> 0 | K37: =+SUM(Indices[[#This Row],[Cría]:[Guachera]]) -> 0 | L37: =IF(DATE(YEAR(Indices[[#This Row],[Fecha]]),MONTH(Indices[[#This Row],[Fecha]]),1)>=DATE(YEAR('Planilla de datos'!$N$19-1),MONTH('Planilla de datos'!$N$19-1),1),1,0)*IF(DATE(YEAR(Indices[[#This Row],[Fecha]]),MONTH(Indices[[#This Row],[Fecha]]),1)<='Planilla de datos'!$P$19,1,0) -> 1
A38: 2024-02-01 | B38: =IF(C38=0,"",VLOOKUP('Planilla de datos'!$T$23,'SIPM (Actualización en $)'!$A$6:$C$42,3,FALSE)/C38) -> 1.162790698 | C38: 860 | D38: =IF(Indices[[#This Row],[Meses activos]]=0,0,(SUMPRODUCT((TablaInventarios[Cab.])*(TablaInventarios[Actividad]=Indices[[#Headers],[Cría]]))+SUMPRODUCT((TablaMovimientos[Cab.])*(TablaMovimientos[Fecha]<=Indices[[#This Row],[Fecha]])*(TablaMovimientos[Actividad]=Indices[[#Headers],[Cría]])))-(SUMPRODUCT((TablaInventarios[Cab.])*(TablaInventarios[Actividad]=Indices[[#Headers],[Cría]])*(TablaInventarios[Categoría]="Terneros al pie"))+SUMPRODUCT((TablaMovimientos[Cab.])*(TablaMovimientos[Fecha]<=Indices[[#This Row],[Fecha]])*(TablaMovimientos[Actividad]=Indices[[#Headers],[Cría]])*(TablaMovimientos[Categoría]="Terneros al pie")))) -> 0 | E38: =IF(Indices[[#This Row],[Meses activos]]=0,0,(SUMPRODUCT((TablaInventarios[Cab.])*(TablaInventarios[Actividad]=Indices[[#Headers],[Recría]]))+SUMPRODUCT((TablaMovimientos[Cab.])*(TablaMovimientos[Fecha]<=Indices[[#This Row],[Fecha]])*(TablaMovimientos[Actividad]=Indices[[#Headers],[Recría]])))-(SUMPRODUCT((TablaInventarios[Cab.])*(TablaInventarios[Actividad]=Indices[[#Headers],[Recría]])*(TablaInventarios[Categoría]="Terneros al pie"))+SUMPRODUCT((TablaMovimientos[Cab.])*(TablaMovimientos[Fecha]<=Indices[[#This Row],[Fecha]])*(TablaMovimientos[Actividad]=Indices[[#Headers],[Recría]])*(TablaMovimientos[Categoría]="Terneros al pie")))) -> 0 | F38: =IF(Indices[[#This Row],[Meses activos]]=0,0,(SUMPRODUCT((TablaInventarios[Cab.])*(TablaInventarios[Actividad]=Indices[[#Headers],[Invernada]]))+SUMPRODUCT((TablaMovimientos[Cab.])*(TablaMovimientos[Fecha]<=Indices[[#This Row],[Fecha]])*(TablaMovimientos[Actividad]=Indices[[#Headers],[Invernada]])))-(SUMPRODUCT((TablaInventarios[Cab.])*(TablaInventarios[Actividad]=Indices[[#Headers],[Invernada]])*(TablaInventarios[Categoría]="Terneros al pie"))+SUMPRODUCT((TablaMovimientos[Cab.])*(TablaMovimientos[Fecha]<=Indices[[#This Row],[Fecha]])*(TablaMovimientos[Actividad]=Indices[[#Headers],[Invernada]])*(TablaMovimientos[Categoría]="Terneros al pie")))) -> 0 | G38: =IF(Indices[[#This Row],[Meses activos]]=0,0,(SUMPRODUCT((TablaInventarios[Cab.])*(TablaInventarios[Actividad]=Indices[[#Headers],[Feed-lot]]))+SUMPRODUCT((TablaMovimientos[Cab.])*(TablaMovimientos[Fecha]<=Indices[[#This Row],[Fecha]])*(TablaMovimientos[Actividad]=Indices[[#Headers],[Feed-lot]])))-(SUMPRODUCT((TablaInventarios[Cab.])*(TablaInventarios[Actividad]=Indices[[#Headers],[Feed-lot]])*(TablaInventarios[Categoría]="Terneros al pie"))+SUMPRODUCT((TablaMovimientos[Cab.])*(TablaMovimientos[Fecha]<=Indices[[#This Row],[Fecha]])*(TablaMovimientos[Actividad]=Indices[[#Headers],[Feed-lot]])*(TablaMovimientos[Categoría]="Terneros al pie")))) -> 0 | H38: =IF(Indices[[#This Row],[Meses activos]]=0,0,(SUMPRODUCT((TablaInventarios[Cab.])*(TablaInventarios[Actividad]=Indices[[#Headers],[Cabaña]]))+SUMPRODUCT((TablaMovimientos[Cab.])*(TablaMovimientos[Fecha]<=Indices[[#This Row],[Fecha]])*(TablaMovimientos[Actividad]=Indices[[#Headers],[Cabaña]])))-(SUMPRODUCT((TablaInventarios[Cab.])*(TablaInventarios[Actividad]=Indices[[#Headers],[Cabaña]])*(TablaInventarios[Categoría]="Terneros al pie"))+SUMPRODUCT((TablaMovimientos[Cab.])*(TablaMovimientos[Fecha]<=Indices[[#This Row],[Fecha]])*(TablaMovimientos[Actividad]=Indices[[#Headers],[Cabaña]])*(TablaMovimientos[Categoría]="Terneros al pie")))) -> 0 | I38: =IF(Indices[[#This Row],[Meses activos]]=0,0,(SUMPRODUCT((TablaInventarios[Cab.])*(TablaInventarios[Actividad]=Indices[[#Headers],[Tambo]]))+SUMPRODUCT((TablaMovimientos[Cab.])*(TablaMovimientos[Fecha]<=Indices[[#This Row],[Fecha]])*(TablaMovimientos[Actividad]=Indices[[#Headers],[Tambo]])))-(SUMPRODUCT((TablaInventarios[Cab.])*(TablaInventarios[Actividad]=Indices[[#Headers],[Tambo]])*(TablaInventarios[Categoría]="Terneros al pie"))+SUMPRODUCT((TablaMovimientos[Cab.])*(TablaMovimientos[Fecha]<=Indices[[#This Row],[Fecha]])*(TablaMovimientos[Actividad]=Indices[[#Headers],[Tambo]])*(TablaMovimientos[Categoría]="Terneros al pie")))) -> 0 | J38: =IF(Indices[[#This Row],[Meses activos]]=0,0,(SUMPRODUCT((TablaInventarios[Cab.])*(TablaInventarios[Actividad]=Indices[[#Headers],[Guachera]]))+SUMPRODUCT((TablaMovimientos[Cab.])*(TablaMovimientos[Fecha]<=Indices[[#This Row],[Fecha]])*(TablaMovimientos[Actividad]=Indices[[#Headers],[Guachera]])))-(SUMPRODUCT((TablaInventarios[Cab.])*(TablaInventarios[Actividad]=Indices[[#Headers],[Guachera]])*(TablaInventarios[Categoría]="Terneros al pie"))+SUMPRODUCT((TablaMovimientos[Cab.])*(TablaMovimientos[Fecha]<=Indices[[#This Row],[Fecha]])*(TablaMovimientos[Actividad]=Indices[[#Headers],[Guachera]])*(TablaMovimientos[Categoría]="Terneros al pie")))) -> 0 | K38: =+SUM(Indices[[#This Row],[Cría]:[Guachera]]) -> 0 | L38: =IF(DATE(YEAR(Indices[[#This Row],[Fecha]]),MONTH(Indices[[#This Row],[Fecha]]),1)>=DATE(YEAR('Planilla de datos'!$N$19-1),MONTH('Planilla de datos'!$N$19-1),1),1,0)*IF(DATE(YEAR(Indices[[#This Row],[Fecha]]),MONTH(Indices[[#This Row],[Fecha]]),1)<='Planilla de datos'!$P$19,1,0) -> 1
A39: 2024-03-01 | B39: =IF(C39=0,"",VLOOKUP('Planilla de datos'!$T$23,'SIPM (Actualización en $)'!$A$6:$C$42,3,FALSE)/C39) -> 1.104972376 | C39: 905 | D39: =IF(Indices[[#This Row],[Meses activos]]=0,0,(SUMPRODUCT((TablaInventarios[Cab.])*(TablaInventarios[Actividad]=Indices[[#Headers],[Cría]]))+SUMPRODUCT((TablaMovimientos[Cab.])*(TablaMovimientos[Fecha]<=Indices[[#This Row],[Fecha]])*(TablaMovimientos[Actividad]=Indices[[#Headers],[Cría]])))-(SUMPRODUCT((TablaInventarios[Cab.])*(TablaInventarios[Actividad]=Indices[[#Headers],[Cría]])*(TablaInventarios[Categoría]="Terneros al pie"))+SUMPRODUCT((TablaMovimientos[Cab.])*(TablaMovimientos[Fecha]<=Indices[[#This Row],[Fecha]])*(TablaMovimientos[Actividad]=Indices[[#Headers],[Cría]])*(TablaMovimientos[Categoría]="Terneros al pie")))) -> 0 | E39: =IF(Indices[[#This Row],[Meses activos]]=0,0,(SUMPRODUCT((TablaInventarios[Cab.])*(TablaInventarios[Actividad]=Indices[[#Headers],[Recría]]))+SUMPRODUCT((TablaMovimientos[Cab.])*(TablaMovimientos[Fecha]<=Indices[[#This Row],[Fecha]])*(TablaMovimientos[Actividad]=Indices[[#Headers],[Recría]])))-(SUMPRODUCT((TablaInventarios[Cab.])*(TablaInventarios[Actividad]=Indices[[#Headers],[Recría]])*(TablaInventarios[Categoría]="Terneros al pie"))+SUMPRODUCT((TablaMovimientos[Cab.])*(TablaMovimientos[Fecha]<=Indices[[#This Row],[Fecha]])*(TablaMovimientos[Actividad]=Indices[[#Headers],[Recría]])*(TablaMovimientos[Categoría]="Terneros al pie")))) -> 0 | F39: =IF(Indices[[#This Row],[Meses activos]]=0,0,(SUMPRODUCT((TablaInventarios[Cab.])*(TablaInventarios[Actividad]=Indices[[#Headers],[Invernada]]))+SUMPRODUCT((TablaMovimientos[Cab.])*(TablaMovimientos[Fecha]<=Indices[[#This Row],[Fecha]])*(TablaMovimientos[Actividad]=Indices[[#Headers],[Invernada]])))-(SUMPRODUCT((TablaInventarios[Cab.])*(TablaInventarios[Actividad]=Indices[[#Headers],[Invernada]])*(TablaInventarios[Categoría]="Terneros al pie"))+SUMPRODUCT((TablaMovimientos[Cab.])*(TablaMovimientos[Fecha]<=Indices[[#This Row],[Fecha]])*(TablaMovimientos[Actividad]=Indices[[#Headers],[Invernada]])*(TablaMovimientos[Categoría]="Terneros al pie")))) -> 0 | G39: =IF(Indices[[#This Row],[Meses activos]]=0,0,(SUMPRODUCT((TablaInventarios[Cab.])*(TablaInventarios[Actividad]=Indices[[#Headers],[Feed-lot]]))+SUMPRODUCT((TablaMovimientos[Cab.])*(TablaMovimientos[Fecha]<=Indices[[#This Row],[Fecha]])*(TablaMovimientos[Actividad]=Indices[[#Headers],[Feed-lot]])))-(SUMPRODUCT((TablaInventarios[Cab.])*(TablaInventarios[Actividad]=Indices[[#Headers],[Feed-lot]])*(TablaInventarios[Categoría]="Terneros al pie"))+SUMPRODUCT((TablaMovimientos[Cab.])*(TablaMovimientos[Fecha]<=Indices[[#This Row],[Fecha]])*(TablaMovimientos[Actividad]=Indices[[#Headers],[Feed-lot]])*(TablaMovimientos[Categoría]="Terneros al pie")))) -> 0 | H39: =IF(Indices[[#This Row],[Meses activos]]=0,0,(SUMPRODUCT((TablaInventarios[Cab.])*(TablaInventarios[Actividad]=Indices[[#Headers],[Cabaña]]))+SUMPRODUCT((TablaMovimientos[Cab.])*(TablaMovimientos[Fecha]<=Indices[[#This Row],[Fecha]])*(TablaMovimientos[Actividad]=Indices[[#Headers],[Cabaña]])))-(SUMPRODUCT((TablaInventarios[Cab.])*(TablaInventarios[Actividad]=Indices[[#Headers],[Cabaña]])*(TablaInventarios[Categoría]="Terneros al pie"))+SUMPRODUCT((TablaMovimientos[Cab.])*(TablaMovimientos[Fecha]<=Indices[[#This Row],[Fecha]])*(TablaMovimientos[Actividad]=Indices[[#Headers],[Cabaña]])*(TablaMovimientos[Categoría]="Terneros al pie")))) -> 0 | I39: =IF(Indices[[#This Row],[Meses activos]]=0,0,(SUMPRODUCT((TablaInventarios[Cab.])*(TablaInventarios[Actividad]=Indices[[#Headers],[Tambo]]))+SUMPRODUCT((TablaMovimientos[Cab.])*(TablaMovimientos[Fecha]<=Indices[[#This Row],[Fecha]])*(TablaMovimientos[Actividad]=Indices[[#Headers],[Tambo]])))-(SUMPRODUCT((TablaInventarios[Cab.])*(TablaInventarios[Actividad]=Indices[[#Headers],[Tambo]])*(TablaInventarios[Categoría]="Terneros al pie"))+SUMPRODUCT((TablaMovimientos[Cab.])*(TablaMovimientos[Fecha]<=Indices[[#This Row],[Fecha]])*(TablaMovimientos[Actividad]=Indices[[#Headers],[Tambo]])*(TablaMovimientos[Categoría]="Terneros al pie")))) -> 0 | J39: =IF(Indices[[#This Row],[Meses activos]]=0,0,(SUMPRODUCT((TablaInventarios[Cab.])*(TablaInventarios[Actividad]=Indices[[#Headers],[Guachera]]))+SUMPRODUCT((TablaMovimientos[Cab.])*(TablaMovimientos[Fecha]<=Indices[[#This Row],[Fecha]])*(TablaMovimientos[Actividad]=Indices[[#Headers],[Guachera]])))-(SUMPRODUCT((TablaInventarios[Cab.])*(TablaInventarios[Actividad]=Indices[[#Headers],[Guachera]])*(TablaInventarios[Categoría]="Terneros al pie"))+SUMPRODUCT((TablaMovimientos[Cab.])*(TablaMovimientos[Fecha]<=Indices[[#This Row],[Fecha]])*(TablaMovimientos[Actividad]=Indices[[#Headers],[Guachera]])*(TablaMovimientos[Categoría]="Terneros al pie")))) -> 0 | K39: =+SUM(Indices[[#This Row],[Cría]:[Guachera]]) -> 0 | L39: =IF(DATE(YEAR(Indices[[#This Row],[Fecha]]),MONTH(Indices[[#This Row],[Fecha]]),1)>=DATE(YEAR('Planilla de datos'!$N$19-1),MONTH('Planilla de datos'!$N$19-1),1),1,0)*IF(DATE(YEAR(Indices[[#This Row],[Fecha]]),MONTH(Indices[[#This Row],[Fecha]]),1)<='Planilla de datos'!$P$19,1,0) -> 1
A40: 2024-04-01 | B40: =IF(C40=0,"",VLOOKUP('Planilla de datos'!$T$23,'SIPM (Actualización en $)'!$A$6:$C$42,3,FALSE)/C40) -> 1.061571125 | C40: 942 | D40: =IF(Indices[[#This Row],[Meses activos]]=0,0,(SUMPRODUCT((TablaInventarios[Cab.])*(TablaInventarios[Actividad]=Indices[[#Headers],[Cría]]))+SUMPRODUCT((TablaMovimientos[Cab.])*(TablaMovimientos[Fecha]<=Indices[[#This Row],[Fecha]])*(TablaMovimientos[Actividad]=Indices[[#Headers],[Cría]])))-(SUMPRODUCT((TablaInventarios[Cab.])*(TablaInventarios[Actividad]=Indices[[#Headers],[Cría]])*(TablaInventarios[Categoría]="Terneros al pie"))+SUMPRODUCT((TablaMovimientos[Cab.])*(TablaMovimientos[Fecha]<=Indices[[#This Row],[Fecha]])*(TablaMovimientos[Actividad]=Indices[[#Headers],[Cría]])*(TablaMovimientos[Categoría]="Terneros al pie")))) -> 0 | E40: =IF(Indices[[#This Row],[Meses activos]]=0,0,(SUMPRODUCT((TablaInventarios[Cab.])*(TablaInventarios[Actividad]=Indices[[#Headers],[Recría]]))+SUMPRODUCT((TablaMovimientos[Cab.])*(TablaMovimientos[Fecha]<=Indices[[#This Row],[Fecha]])*(TablaMovimientos[Actividad]=Indices[[#Headers],[Recría]])))-(SUMPRODUCT((TablaInventarios[Cab.])*(TablaInventarios[Actividad]=Indices[[#Headers],[Recría]])*(TablaInventarios[Categoría]="Terneros al pie"))+SUMPRODUCT((TablaMovimientos[Cab.])*(TablaMovimientos[Fecha]<=Indices[[#This Row],[Fecha]])*(TablaMovimientos[Actividad]=Indices[[#Headers],[Recría]])*(TablaMovimientos[Categoría]="Terneros al pie")))) -> 0 | F40: =IF(Indices[[#This Row],[Meses activos]]=0,0,(SUMPRODUCT((TablaInventarios[Cab.])*(TablaInventarios[Actividad]=Indices[[#Headers],[Invernada]]))+SUMPRODUCT((TablaMovimientos[Cab.])*(TablaMovimientos[Fecha]<=Indices[[#This Row],[Fecha]])*(TablaMovimientos[Actividad]=Indices[[#Headers],[Invernada]])))-(SUMPRODUCT((TablaInventarios[Cab.])*(TablaInventarios[Actividad]=Indices[[#Headers],[Invernada]])*(TablaInventarios[Categoría]="Terneros al pie"))+SUMPRODUCT((TablaMovimientos[Cab.])*(TablaMovimientos[Fecha]<=Indices[[#This Row],[Fecha]])*(TablaMovimientos[Actividad]=Indices[[#Headers],[Invernada]])*(TablaMovimientos[Categoría]="Terneros al pie")))) -> 0 | G40: =IF(Indices[[#This Row],[Meses activos]]=0,0,(SUMPRODUCT((TablaInventarios[Cab.])*(TablaInventarios[Actividad]=Indices[[#Headers],[Feed-lot]]))+SUMPRODUCT((TablaMovimientos[Cab.])*(TablaMovimientos[Fecha]<=Indices[[#This Row],[Fecha]])*(TablaMovimientos[Actividad]=Indices[[#Headers],[Feed-lot]])))-(SUMPRODUCT((TablaInventarios[Cab.])*(TablaInventarios[Actividad]=Indices[[#Headers],[Feed-lot]])*(TablaInventarios[Categoría]="Terneros al pie"))+SUMPRODUCT((TablaMovimientos[Cab.])*(TablaMovimientos[Fecha]<=Indices[[#This Row],[Fecha]])*(TablaMovimientos[Actividad]=Indices[[#Headers],[Feed-lot]])*(TablaMovimientos[Categoría]="Terneros al pie")))) -> 0 | H40: =IF(Indices[[#This Row],[Meses activos]]=0,0,(SUMPRODUCT((TablaInventarios[Cab.])*(TablaInventarios[Actividad]=Indices[[#Headers],[Cabaña]]))+SUMPRODUCT((TablaMovimientos[Cab.])*(TablaMovimientos[Fecha]<=Indices[[#This Row],[Fecha]])*(TablaMovimientos[Actividad]=Indices[[#Headers],[Cabaña]])))-(SUMPRODUCT((TablaInventarios[Cab.])*(TablaInventarios[Actividad]=Indices[[#Headers],[Cabaña]])*(TablaInventarios[Categoría]="Terneros al pie"))+SUMPRODUCT((TablaMovimientos[Cab.])*(TablaMovimientos[Fecha]<=Indices[[#This Row],[Fecha]])*(TablaMovimientos[Actividad]=Indices[[#Headers],[Cabaña]])*(TablaMovimientos[Categoría]="Terneros al pie")))) -> 0 | I40: =IF(Indices[[#This Row],[Meses activos]]=0,0,(SUMPRODUCT((TablaInventarios[Cab.])*(TablaInventarios[Actividad]=Indices[[#Headers],[Tambo]]))+SUMPRODUCT((TablaMovimientos[Cab.])*(TablaMovimientos[Fecha]<=Indices[[#This Row],[Fecha]])*(TablaMovimientos[Actividad]=Indices[[#Headers],[Tambo]])))-(SUMPRODUCT((TablaInventarios[Cab.])*(TablaInventarios[Actividad]=Indices[[#Headers],[Tambo]])*(TablaInventarios[Categoría]="Terneros al pie"))+SUMPRODUCT((TablaMovimientos[Cab.])*(TablaMovimientos[Fecha]<=Indices[[#This Row],[Fecha]])*(TablaMovimientos[Actividad]=Indices[[#Headers],[Tambo]])*(TablaMovimientos[Categoría]="Terneros al pie")))) -> 0 | J40: =IF(Indices[[#This Row],[Meses activos]]=0,0,(SUMPRODUCT((TablaInventarios[Cab.])*(TablaInventarios[Actividad]=Indices[[#Headers],[Guachera]]))+SUMPRODUCT((TablaMovimientos[Cab.])*(TablaMovimientos[Fecha]<=Indices[[#This Row],[Fecha]])*(TablaMovimientos[Actividad]=Indices[[#Headers],[Guachera]])))-(SUMPRODUCT((TablaInventarios[Cab.])*(TablaInventarios[Actividad]=Indices[[#Headers],[Guachera]])*(TablaInventarios[Categoría]="Terneros al pie"))+SUMPRODUCT((TablaMovimientos[Cab.])*(TablaMovimientos[Fecha]<=Indices[[#This Row],[Fecha]])*(TablaMovimientos[Actividad]=Indices[[#Headers],[Guachera]])*(TablaMovimientos[Categoría]="Terneros al pie")))) -> 0 | K40: =+SUM(Indices[[#This Row],[Cría]:[Guachera]]) -> 0 | L40: =IF(DATE(YEAR(Indices[[#This Row],[Fecha]]),MONTH(Indices[[#This Row],[Fecha]]),1)>=DATE(YEAR('Planilla de datos'!$N$19-1),MONTH('Planilla de datos'!$N$19-1),1),1,0)*IF(DATE(YEAR(Indices[[#This Row],[Fecha]]),MONTH(Indices[[#This Row],[Fecha]]),1)<='Planilla de datos'!$P$19,1,0) -> 1
A41: 2024-05-01 | B41: =IF(C41=0,"",VLOOKUP('Planilla de datos'!$T$23,'SIPM (Actualización en $)'!$A$6:$C$42,3,FALSE)/C41) -> 1.030927835 | C41: 970 | D41: =IF(Indices[[#This Row],[Meses activos]]=0,0,(SUMPRODUCT((TablaInventarios[Cab.])*(TablaInventarios[Actividad]=Indices[[#Headers],[Cría]]))+SUMPRODUCT((TablaMovimientos[Cab.])*(TablaMovimientos[Fecha]<=Indices[[#This Row],[Fecha]])*(TablaMovimientos[Actividad]=Indices[[#Headers],[Cría]])))-(SUMPRODUCT((TablaInventarios[Cab.])*(TablaInventarios[Actividad]=Indices[[#Headers],[Cría]])*(TablaInventarios[Categoría]="Terneros al pie"))+SUMPRODUCT((TablaMovimientos[Cab.])*(TablaMovimientos[Fecha]<=Indices[[#This Row],[Fecha]])*(TablaMovimientos[Actividad]=Indices[[#Headers],[Cría]])*(TablaMovimientos[Categoría]="Terneros al pie")))) -> 0 | E41: =IF(Indices[[#This Row],[Meses activos]]=0,0,(SUMPRODUCT((TablaInventarios[Cab.])*(TablaInventarios[Actividad]=Indices[[#Headers],[Recría]]))+SUMPRODUCT((TablaMovimientos[Cab.])*(TablaMovimientos[Fecha]<=Indices[[#This Row],[Fecha]])*(TablaMovimientos[Actividad]=Indices[[#Headers],[Recría]])))-(SUMPRODUCT((TablaInventarios[Cab.])*(TablaInventarios[Actividad]=Indices[[#Headers],[Recría]])*(TablaInventarios[Categoría]="Terneros al pie"))+SUMPRODUCT((TablaMovimientos[Cab.])*(TablaMovimientos[Fecha]<=Indices[[#This Row],[Fecha]])*(TablaMovimientos[Actividad]=Indices[[#Headers],[Recría]])*(TablaMovimientos[Categoría]="Terneros al pie")))) -> 0 | F41: =IF(Indices[[#This Row],[Meses activos]]=0,0,(SUMPRODUCT((TablaInventarios[Cab.])*(TablaInventarios[Actividad]=Indices[[#Headers],[Invernada]]))+SUMPRODUCT((TablaMovimientos[Cab.])*(TablaMovimientos[Fecha]<=Indices[[#This Row],[Fecha]])*(TablaMovimientos[Actividad]=Indices[[#Headers],[Invernada]])))-(SUMPRODUCT((TablaInventarios[Cab.])*(TablaInventarios[Actividad]=Indices[[#Headers],[Invernada]])*(TablaInventarios[Categoría]="Terneros al pie"))+SUMPRODUCT((TablaMovimientos[Cab.])*(TablaMovimientos[Fecha]<=Indices[[#This Row],[Fecha]])*(TablaMovimientos[Actividad]=Indices[[#Headers],[Invernada]])*(TablaMovimientos[Categoría]="Terneros al pie")))) -> 0 | G41: =IF(Indices[[#This Row],[Meses activos]]=0,0,(SUMPRODUCT((TablaInventarios[Cab.])*(TablaInventarios[Actividad]=Indices[[#Headers],[Feed-lot]]))+SUMPRODUCT((TablaMovimientos[Cab.])*(TablaMovimientos[Fecha]<=Indices[[#This Row],[Fecha]])*(TablaMovimientos[Actividad]=Indices[[#Headers],[Feed-lot]])))-(SUMPRODUCT((TablaInventarios[Cab.])*(TablaInventarios[Actividad]=Indices[[#Headers],[Feed-lot]])*(TablaInventarios[Categoría]="Terneros al pie"))+SUMPRODUCT((TablaMovimientos[Cab.])*(TablaMovimientos[Fecha]<=Indices[[#This Row],[Fecha]])*(TablaMovimientos[Actividad]=Indices[[#Headers],[Feed-lot]])*(TablaMovimientos[Categoría]="Terneros al pie")))) -> 0 | H41: =IF(Indices[[#This Row],[Meses activos]]=0,0,(SUMPRODUCT((TablaInventarios[Cab.])*(TablaInventarios[Actividad]=Indices[[#Headers],[Cabaña]]))+SUMPRODUCT((TablaMovimientos[Cab.])*(TablaMovimientos[Fecha]<=Indices[[#This Row],[Fecha]])*(TablaMovimientos[Actividad]=Indices[[#Headers],[Cabaña]])))-(SUMPRODUCT((TablaInventarios[Cab.])*(TablaInventarios[Actividad]=Indices[[#Headers],[Cabaña]])*(TablaInventarios[Categoría]="Terneros al pie"))+SUMPRODUCT((TablaMovimientos[Cab.])*(TablaMovimientos[Fecha]<=Indices[[#This Row],[Fecha]])*(TablaMovimientos[Actividad]=Indices[[#Headers],[Cabaña]])*(TablaMovimientos[Categoría]="Terneros al pie")))) -> 0 | I41: =IF(Indices[[#This Row],[Meses activos]]=0,0,(SUMPRODUCT((TablaInventarios[Cab.])*(TablaInventarios[Actividad]=Indices[[#Headers],[Tambo]]))+SUMPRODUCT((TablaMovimientos[Cab.])*(TablaMovimientos[Fecha]<=Indices[[#This Row],[Fecha]])*(TablaMovimientos[Actividad]=Indices[[#Headers],[Tambo]])))-(SUMPRODUCT((TablaInventarios[Cab.])*(TablaInventarios[Actividad]=Indices[[#Headers],[Tambo]])*(TablaInventarios[Categoría]="Terneros al pie"))+SUMPRODUCT((TablaMovimientos[Cab.])*(TablaMovimientos[Fecha]<=Indices[[#This Row],[Fecha]])*(TablaMovimientos[Actividad]=Indices[[#Headers],[Tambo]])*(TablaMovimientos[Categoría]="Terneros al pie")))) -> 0 | J41: =IF(Indices[[#This Row],[Meses activos]]=0,0,(SUMPRODUCT((TablaInventarios[Cab.])*(TablaInventarios[Actividad]=Indices[[#Headers],[Guachera]]))+SUMPRODUCT((TablaMovimientos[Cab.])*(TablaMovimientos[Fecha]<=Indices[[#This Row],[Fecha]])*(TablaMovimientos[Actividad]=Indices[[#Headers],[Guachera]])))-(SUMPRODUCT((TablaInventarios[Cab.])*(TablaInventarios[Actividad]=Indices[[#Headers],[Guachera]])*(TablaInventarios[Categoría]="Terneros al pie"))+SUMPRODUCT((TablaMovimientos[Cab.])*(TablaMovimientos[Fecha]<=Indices[[#This Row],[Fecha]])*(TablaMovimientos[Actividad]=Indices[[#Headers],[Guachera]])*(TablaMovimientos[Categoría]="Terneros al pie")))) -> 0 | K41: =+SUM(Indices[[#This Row],[Cría]:[Guachera]]) -> 0 | L41: =IF(DATE(YEAR(Indices[[#This Row],[Fecha]]),MONTH(Indices[[#This Row],[Fecha]]),1)>=DATE(YEAR('Planilla de datos'!$N$19-1),MONTH('Planilla de datos'!$N$19-1),1),1,0)*IF(DATE(YEAR(Indices[[#This Row],[Fecha]]),MONTH(Indices[[#This Row],[Fecha]]),1)<='Planilla de datos'!$P$19,1,0) -> 1
A42: 2024-06-01 | B42: =IF(C42=0,"",VLOOKUP('Planilla de datos'!$T$23,'SIPM (Actualización en $)'!$A$6:$C$42,3,FALSE)/C42) -> 1 | C42: 1000 | D42: =IF(Indices[[#This Row],[Meses activos]]=0,0,(SUMPRODUCT((TablaInventarios[Cab.])*(TablaInventarios[Actividad]=Indices[[#Headers],[Cría]]))+SUMPRODUCT((TablaMovimientos[Cab.])*(TablaMovimientos[Fecha]<=Indices[[#This Row],[Fecha]])*(TablaMovimientos[Actividad]=Indices[[#Headers],[Cría]])))-(SUMPRODUCT((TablaInventarios[Cab.])*(TablaInventarios[Actividad]=Indices[[#Headers],[Cría]])*(TablaInventarios[Categoría]="Terneros al pie"))+SUMPRODUCT((TablaMovimientos[Cab.])*(TablaMovimientos[Fecha]<=Indices[[#This Row],[Fecha]])*(TablaMovimientos[Actividad]=Indices[[#Headers],[Cría]])*(TablaMovimientos[Categoría]="Terneros al pie")))) -> 0 | E42: =IF(Indices[[#This Row],[Meses activos]]=0,0,(SUMPRODUCT((TablaInventarios[Cab.])*(TablaInventarios[Actividad]=Indices[[#Headers],[Recría]]))+SUMPRODUCT((TablaMovimientos[Cab.])*(TablaMovimientos[Fecha]<=Indices[[#This Row],[Fecha]])*(TablaMovimientos[Actividad]=Indices[[#Headers],[Recría]])))-(SUMPRODUCT((TablaInventarios[Cab.])*(TablaInventarios[Actividad]=Indices[[#Headers],[Recría]])*(TablaInventarios[Categoría]="Terneros al pie"))+SUMPRODUCT((TablaMovimientos[Cab.])*(TablaMovimientos[Fecha]<=Indices[[#This Row],[Fecha]])*(TablaMovimientos[Actividad]=Indices[[#Headers],[Recría]])*(TablaMovimientos[Categoría]="Terneros al pie")))) -> 0 | F42: =IF(Indices[[#This Row],[Meses activos]]=0,0,(SUMPRODUCT((TablaInventarios[Cab.])*(TablaInventarios[Actividad]=Indices[[#Headers],[Invernada]]))+SUMPRODUCT((TablaMovimientos[Cab.])*(TablaMovimientos[Fecha]<=Indices[[#This Row],[Fecha]])*(TablaMovimientos[Actividad]=Indices[[#Headers],[Invernada]])))-(SUMPRODUCT((TablaInventarios[Cab.])*(TablaInventarios[Actividad]=Indices[[#Headers],[Invernada]])*(TablaInventarios[Categoría]="Terneros al pie"))+SUMPRODUCT((TablaMovimientos[Cab.])*(TablaMovimientos[Fecha]<=Indices[[#This Row],[Fecha]])*(TablaMovimientos[Actividad]=Indices[[#Headers],[Invernada]])*(TablaMovimientos[Categoría]="Terneros al pie")))) -> 0 | G42: =IF(Indices[[#This Row],[Meses activos]]=0,0,(SUMPRODUCT((TablaInventarios[Cab.])*(TablaInventarios[Actividad]=Indices[[#Headers],[Feed-lot]]))+SUMPRODUCT((TablaMovimientos[Cab.])*(TablaMovimientos[Fecha]<=Indices[[#This Row],[Fecha]])*(TablaMovimientos[Actividad]=Indices[[#Headers],[Feed-lot]])))-(SUMPRODUCT((TablaInventarios[Cab.])*(TablaInventarios[Actividad]=Indices[[#Headers],[Feed-lot]])*(TablaInventarios[Categoría]="Terneros al pie"))+SUMPRODUCT((TablaMovimientos[Cab.])*(TablaMovimientos[Fecha]<=Indices[[#This Row],[Fecha]])*(TablaMovimientos[Actividad]=Indices[[#Headers],[Feed-lot]])*(TablaMovimientos[Categoría]="Terneros al pie")))) -> 0 | H42: =IF(Indices[[#This Row],[Meses activos]]=0,0,(SUMPRODUCT((TablaInventarios[Cab.])*(TablaInventarios[Actividad]=Indices[[#Headers],[Cabaña]]))+SUMPRODUCT((TablaMovimientos[Cab.])*(TablaMovimientos[Fecha]<=Indices[[#This Row],[Fecha]])*(TablaMovimientos[Actividad]=Indices[[#Headers],[Cabaña]])))-(SUMPRODUCT((TablaInventarios[Cab.])*(TablaInventarios[Actividad]=Indices[[#Headers],[Cabaña]])*(TablaInventarios[Categoría]="Terneros al pie"))+SUMPRODUCT((TablaMovimientos[Cab.])*(TablaMovimientos[Fecha]<=Indices[[#This Row],[Fecha]])*(TablaMovimientos[Actividad]=Indices[[#Headers],[Cabaña]])*(TablaMovimientos[Categoría]="Terneros al pie")))) -> 0 | I42: =IF(Indices[[#This Row],[Meses activos]]=0,0,(SUMPRODUCT((TablaInventarios[Cab.])*(TablaInventarios[Actividad]=Indices[[#Headers],[Tambo]]))+SUMPRODUCT((TablaMovimientos[Cab.])*(TablaMovimientos[Fecha]<=Indices[[#This Row],[Fecha]])*(TablaMovimientos[Actividad]=Indices[[#Headers],[Tambo]])))-(SUMPRODUCT((TablaInventarios[Cab.])*(TablaInventarios[Actividad]=Indices[[#Headers],[Tambo]])*(TablaInventarios[Categoría]="Terneros al pie"))+SUMPRODUCT((TablaMovimientos[Cab.])*(TablaMovimientos[Fecha]<=Indices[[#This Row],[Fecha]])*(TablaMovimientos[Actividad]=Indices[[#Headers],[Tambo]])*(TablaMovimientos[Categoría]="Terneros al pie")))) -> 0 | J42: =IF(Indices[[#This Row],[Meses activos]]=0,0,(SUMPRODUCT((TablaInventarios[Cab.])*(TablaInventarios[Actividad]=Indices[[#Headers],[Guachera]]))+SUMPRODUCT((TablaMovimientos[Cab.])*(TablaMovimientos[Fecha]<=Indices[[#This Row],[Fecha]])*(TablaMovimientos[Actividad]=Indices[[#Headers],[Guachera]])))-(SUMPRODUCT((TablaInventarios[Cab.])*(TablaInventarios[Actividad]=Indices[[#Headers],[Guachera]])*(TablaInventarios[Categoría]="Terneros al pie"))+SUMPRODUCT((TablaMovimientos[Cab.])*(TablaMovimientos[Fecha]<=Indices[[#This Row],[Fecha]])*(TablaMovimientos[Actividad]=Indices[[#Headers],[Guachera]])*(TablaMovimientos[Categoría]="Terneros al pie")))) -> 0 | K42: =+SUM(Indices[[#This Row],[Cría]:[Guachera]]) -> 0 | L42: =IF(DATE(YEAR(Indices[[#This Row],[Fecha]]),MONTH(Indices[[#This Row],[Fecha]]),1)>=DATE(YEAR('Planilla de datos'!$N$19-1),MONTH('Planilla de datos'!$N$19-1),1),1,0)*IF(DATE(YEAR(Indices[[#This Row],[Fecha]]),MONTH(Indices[[#This Row],[Fecha]]),1)<='Planilla de datos'!$P$19,1,0) -> 1
C75: 809.3716874 | D75: 831.99367 | E75: 855.6824718 | F75: 880.8886461 | G75: 900.7803667 | H75: 934.33619 | I75: 978.603257 | J75: 1040.541994 | K75: 1101.953317 | L75: 1158.92228 | M75: 1214.824148
C77: 809.3716874
C78: 831.99367
C79: 855.6824718
C80: 880.8886461
C81: 900.7803667
C82: 934.33619
C83: 978.603257
C84: 1040.541994
C85: 1101.953317
C86: 1158.92228
C87: 1214.824148

Sheet Dólar
A1: Dólar Oficial | F1: Dólar Informal | K1: Dólar MEP
A2: https://www.ambito.com/contenidos/dolar-oficial-historico.html | F2: https://www.ambito.com/contenidos/dolar-informal-historico.html | K2: https://www.ambito.com/contenidos/dolar-mep-historico.html
A4: Fecha | B4: Compra | C4: Venta | F4: Fecha | G4: Compra | H4: Venta | K4: Fecha | L4: MEP
A5: 2018-12-28 | B5: 36.83 | C5: 38.83 | F5: 2018-12-28 | G5: 38.5 | H5: 40.5 | K5: 2018-12-28
A6: 2019-01-02 | B6: 36.77 | C6: 38.77 | F6: 2019-01-02 | G6: 38.5 | H6: 40.5 | K6: 2019-01-02
A7: 2019-01-03 | B7: 36.51 | C7: 38.51 | F7: 2019-01-03 | G7: 38.25 | H7: 40.25 | K7: 2019-01-03
A8: 2019-01-04 | B8: 36.42 | C8: 38.42 | F8: 2019-01-04 | G8: 38 | H8: 40 | K8: 2019-01-04
A9: 2019-01-07 | B9: 36.41 | C9: 38.41 | F9: 2019-01-07 | G9: 37.5 | H9: 39.5 | K9: 2019-01-07
A10: 2019-01-08 | B10: 36.61 | C10: 38.61 | F10: 2019-01-08 | G10: 37.25 | H10: 39.25 | K10: 2019-01-08
A11: 2019-01-09 | B11: 36.49 | C11: 38.49 | F11: 2019-01-09 | G11: 37.75 | H11: 39.75 | K11: 2019-01-09
